Workbook

Sheet Übersicht
B12: Letze Aktualisierung | D12: 2021-09-15
B14: Übersicht:
B15: 1. THG Bilanz | F15: Zunächst wird der IST-Stand analysiert und eine Treibhausgas (THG) Bilanz nach dem international anerkannten GHG Protocol durchgeführt.
B16: 2. Prozess-Technologie-Matrix | F16: Auswahl der eigenen Prozesse und Temperaturen im Betrieb. Ermittlung möglicher Technologien zur Wärme und Kältebereitstellung.
B17: 3. Nutzwertanalyse | F17: Vergleich möglicher Technologien und unterstützte Entscheidungsfindung durch individuelle Gewichtungskriterien
B18: 4. Wirtschaftlichkeitsanalyse | F18: Bewertung der Wirtschaftlichkeit ausgewählter Technologien mit der verbauten Referenz
B19: Ergebnisse | F19: Zusammenfassung aller Ergebnisse
B21: Hinweise:
B22: Ausfüll und Auswahlfelder sind farblich | F22: gekennzeichnet
B23: Die Gliederungspunkte im Header können angeklickt werden und leiten direkt zu den entsprechenden Seiten
B26: Gefördert durch den Verband Deutscher Wirtschaftsingenieure e.V. im Rahmen des VWI Fokusthema 2021
B32: Haftungsausschluss: Der Autor übernimmt keinerlei Gewähr für die Aktualität, Korrektheit, Vollständigkeit oder Qualität der bereitgestellten Informationen. Haftungsansprüche gegen den Autor, welche sich auf Schäden materieller oder ideeller Art beziehen, die durch die Nutzung oder Nichtnutzung der dargebotenen Informationen bzw. durch die Nutzung fehlerhafter und unvollständiger Informationen verursacht wurden, sind grundsätzlich ausgeschlossen.

Sheet 01_THG-Bilanz
B13: 1. Treibhausgas (THG) Bilanz nach dem GHG Protokoll
B15: Verwendete Emissionsfaktoren | E15: IPCC AR5* | F15: Die Verwendung der IPCC AR5 Faktoren wird nach GHG Protokoll empfohlen
B17: letztes abgeschlossenes Jahr: | D17: 2017 | F17: =D17-1 -> 2016 | H17: =F17-1 -> 2015
B18: Klassifikation | C18: Energieträger | D18: Energiebedarf | E18: Emissionen | F18: Energiebedarf | G18: Emissionen | H18: Energiebedarf | I18: Emissionen
D19: kWh/a | E19: tCO2e /a | F19: kWh/a | G19: tCO2e /a | H19: kWh/a | I19: tCO2e /a
B20: Scope 1 | C20: Erdgas | D20: =3100000*0.5*PI() -> 4869468.613 | E20: =IFERROR(IF(VLOOKUP($C20,$B$44:$J$61,9,FALSE)<>"",(VLOOKUP($C20,$B$44:$J$61,9,FALSE)/1000)*D20,IF(VLOOKUP($C20,$B$44:$J$61,8,FALSE)<>"",(VLOOKUP($C20,$B$44:$J$61,8,FALSE)/1000)*D20,(VLOOKUP($C20,$B$44:$J$61,7,FALSE)/1000)*D20)),"") -> 978.7631912 | G20: =IFERROR(IF(VLOOKUP($C20,$B$44:$J$61,9,FALSE)<>"",(VLOOKUP($C20,$B$44:$J$61,9,FALSE)/1000)*F20,IF(VLOOKUP($C20,$B$44:$J$61,8,FALSE)<>"",(VLOOKUP($C20,$B$44:$J$61,8,FALSE)/1000)*F20,(VLOOKUP($C20,$B$44:$J$61,7,FALSE)/1000)*F20)),"") -> 0 | I20: =IFERROR(IF(VLOOKUP($C20,$B$44:$J$61,9,FALSE)<>"",(VLOOKUP($C20,$B$44:$J$61,9,FALSE)/1000)*H20,IF(VLOOKUP($C20,$B$44:$J$61,8,FALSE)<>"",(VLOOKUP($C20,$B$44:$J$61,8,FALSE)/1000)*H20,(VLOOKUP($C20,$B$44:$J$61,7,FALSE)/1000)*H20)),"") -> 0
E21: =IFERROR(IF(VLOOKUP($C21,$B$44:$J$61,9,FALSE)<>"",(VLOOKUP($C21,$B$44:$J$61,9,FALSE)/1000)*D21,IF(VLOOKUP($C21,$B$44:$J$61,8,FALSE)<>"",(VLOOKUP($C21,$B$44:$J$61,8,FALSE)/1000)*D21,(VLOOKUP($C21,$B$44:$J$61,7,FALSE)/1000)*D21)),"") ->  | G21: =IFERROR(IF(VLOOKUP($C21,$B$44:$J$61,9,FALSE)<>"",(VLOOKUP($C21,$B$44:$J$61,9,FALSE)/1000)*F21,IF(VLOOKUP($C21,$B$44:$J$61,8,FALSE)<>"",(VLOOKUP($C21,$B$44:$J$61,8,FALSE)/1000)*F21,(VLOOKUP($C21,$B$44:$J$61,7,FALSE)/1000)*F21)),"") ->  | I21: =IFERROR(IF(VLOOKUP($C21,$B$44:$J$61,9,FALSE)<>"",(VLOOKUP($C21,$B$44:$J$61,9,FALSE)/1000)*H21,IF(VLOOKUP($C21,$B$44:$J$61,8,FALSE)<>"",(VLOOKUP($C21,$B$44:$J$61,8,FALSE)/1000)*H21,(VLOOKUP($C21,$B$44:$J$61,7,FALSE)/1000)*H21)),"") -> 
B30: Scope 2 | C30: Strommix (DE) | D30: =5232000*0.5*PI() -> 8218406.382 | E30: =IFERROR(IF(VLOOKUP($C30,$B$63:$J$65,9,FALSE)<>"",(VLOOKUP($C30,$B$63:$J$65,9,FALSE)/1000)*D30,IF(VLOOKUP($C30,$B$63:$J$65,8,FALSE)<>"",(VLOOKUP($C30,$B$63:$J$65,8,FALSE)/1000)*D30,(VLOOKUP($C30,$B$63:$J$65,7,FALSE)/1000)*D30)),"") -> 3007.936736 | G30: =IFERROR(IF(VLOOKUP($C30,$B$63:$J$65,9,FALSE)<>"",(VLOOKUP($C30,$B$63:$J$65,9,FALSE)/1000)*F30,IF(VLOOKUP($C30,$B$63:$J$65,8,FALSE)<>"",(VLOOKUP($C30,$B$63:$J$65,8,FALSE)/1000)*F30,(VLOOKUP($C30,$B$63:$J$65,7,FALSE)/1000)*F30)),"") -> 0 | I30: =IFERROR(IF(VLOOKUP($C30,$B$63:$J$65,9,FALSE)<>"",(VLOOKUP($C30,$B$63:$J$65,9,FALSE)/1000)*H30,IF(VLOOKUP($C30,$B$63:$J$65,8,FALSE)<>"",(VLOOKUP($C30,$B$63:$J$65,8,FALSE)/1000)*H30,(VLOOKUP($C30,$B$63:$J$65,7,FALSE)/1000)*H30)),"") -> 0
E31: =IFERROR(IF(VLOOKUP($C31,$B$63:$J$65,9,FALSE)<>"",(VLOOKUP($C31,$B$63:$J$65,9,FALSE)/1000)*D31,IF(VLOOKUP($C31,$B$63:$J$65,8,FALSE)<>"",(VLOOKUP($C31,$B$63:$J$65,8,FALSE)/1000)*D31,(VLOOKUP($C31,$B$63:$J$65,7,FALSE)/1000)*D31)),"") ->  | G31: =IFERROR(IF(VLOOKUP($C31,$B$63:$J$65,9,FALSE)<>"",(VLOOKUP($C31,$B$63:$J$65,9,FALSE)/1000)*F31,IF(VLOOKUP($C31,$B$63:$J$65,8,FALSE)<>"",(VLOOKUP($C31,$B$63:$J$65,8,FALSE)/1000)*F31,(VLOOKUP($C31,$B$63:$J$65,7,FALSE)/1000)*F31)),"") ->  | I31: =IFERROR(IF(VLOOKUP($C31,$B$63:$J$65,9,FALSE)<>"",(VLOOKUP($C31,$B$63:$J$65,9,FALSE)/1000)*H31,IF(VLOOKUP($C31,$B$63:$J$65,8,FALSE)<>"",(VLOOKUP($C31,$B$63:$J$65,8,FALSE)/1000)*H31,(VLOOKUP($C31,$B$63:$J$65,7,FALSE)/1000)*H31)),"") -> 
L32: =0.5*PI() -> 1.570796327
C33: Summe Scope 1 | D33: =SUM(D20:D29) -> 4869468.613 | E33: =SUM(E20:E29) -> 978.7631912 | F33: 0 | G33: 0 | H33: 0 | I33: 0
C34: Summe Scope 2 | D34: =SUM(D30:D32) -> 8218406.382 | E34: =SUM(E30:E32) -> 3007.936736 | F34: 0 | G34: 0 | H34: 0 | I34: 0
C35: Gesamt | D35: =SUM(D33:D34) -> 13087874.99 | E35: =SUM(E33:E34) -> 3986.699927 | F35: 0 | G35: 0 | H35: 0 | I35: 0
B40: Emissionsfaktoren der wichtigsten Treibhausgase | H40: CO2-Äquivalente
B41: Energieträger | D41: CO2 | E41: CH4 | F41: N2O | G41: Biogener CO2 | H41: IPCC AR5 | I41: LfU /UBA | J41: Bafa
D42: kgCO2/kWh | E42: gCH4/kWh | F42: gN2O/kWh | G42: kgCO2/kWh | H42: kgCO2e/kWh | I42: kgCO2e/kWh | J42: kgCO2e/kWh
B43: Scope 1
B44: Antrazit Kohle | D44: 0.3538049659 | E44: 0.03753355796 | F44: 0.005459426613 | G44: 0 | H44: 0.3563026536 | I44: 0.353
B45: Steinkohle | D45: 0.3182845715 | E45: 0.03753355796 | F45: 0.005459426613 | G45: 0 | H45: 0.3207822592 | I45: 0.335 | J45: 0.335
B46: Steinkohlekoks | D46: 0.3878581394 | E46: 0.03753355796 | F46: 0.005459426613 | G46: 0 | H46: 0.3903558271 | I46: 0.378
B47: Braunkohle | D47: 0.3334344804 | E47: 0.03753355796 | F47: 0.005459426613 | G47: 0 | H47: 0.3359321681 | I47: 0.407 | J47: 0.383
B48: Torf | D48: 0 | E48: 0.1091885323 | F48: 0.01433099486 | G48: 0.3816139202 | H48: 0.3884689128
B49: Heizöl leicht | D49: 0.2488474893 | E49: 0.0102364249 | F49: 0.00204728498 | G49: 0 | H49: 0.2496766397 | I49: 0.266 | J49: 0.266
B50: Heizöl schwer | D50: 0.2562518366 | E50: 0.0102364249 | F50: 0.00204728498 | G50: 0 | H50: 0.2570809871 | I50: 0.281 | J50: 0.288
B51: Erdgas | D51: 0.1810482351 | E51: 0.003412141633 | F51: 0.0003412141633 | G51: 0 | H51: 0.1812341968 | I51: 0.202 | J51: 0.201
B52: Flüssiggas | D52: 0.2097102248 | E52: 0.0102364249 | F52: 0.00204728498 | G52: 0 | H52: 0.2105393752 | I52: 0.234 | J52: 0.239
B53: Ottokraftstoff | D53: 0.231943784 | E53: 1.028292915e-05 | F53: 2.139800285e-06 | G53: 0 | H53: 0.2327987531 | I53: 0.263 | J53: 0.264
B54: Diesel | D54: 0.2697205051 | E54: 2.971944841e-07 | F54: 5.943889681e-07 | G54: 0 | H54: 0.2698863396 | I54: 0.266 | J54: 0.266
B55: Biogas | D55: 0 | E55: 0.01091885323 | F55: 0.002149649229 | G55: 0.1776702148 | H55: 0.1785455998 | I55: 0.071 | J55: 0.152
B56: Holz und Holzreste | D56: 0 | E56: 0.02456741976 | F56: 0.01228370988 | G56: 0.3200588852 | H56: 0.3240019561 | I56: 0.016 | J56: 0.027
B57: Klärgas & Deponiegas | D57: 0 | E57: 0.01091885323 | F57: 0.002149649229 | G57: 0.1776702148 | H57: 0.1785455998 | I57: 0
B58: Feste Siedlungsabfälle | D58: 0.3094812461 | E58: 0.1091885323 | F58: 0.01433099486 | G58: 0 | H58: 0.3163362387 | I58: 0.288
B59: Landwirtschaftliche Nebenerzeugnisse | D59: 0 | E59: 0.1091885323 | F59: 0.01433099486 | G59: 0.4032127768 | H59: 0.4100677693
B60: Biokraftstoffe | D60: 0 | E60: 0.003753355796 | F60: 0.0003753355796 | G60: 0.2782601502 | H60: 0.2784647081 | I60: 0.083 | J60: 0.043
B61: Bagasse (Reststoffe Zuckerrohr) | D61: 0 | E61: 0.006483069103 | F61: 0.001433099486 | G61: 0.325859526 | H61: 0.3264208233
B62: Scope 2
B63: Strommix (DE) | D63: 0.72869 | E63: 0 | F63: 0 | G63: 0 | H63: 0.72869 | I63: 0.416 | J63: 0.366
B64: Erneuerbarer Strom | D64: 0 | E64: 0 | F64: 0 | G64: 0 | H64: 0 | I64: 0 | J64: 0
B65: Nah-/Fernwärme | D65: 0.2263273545 | E65: 4.265177041e-06 | F65: 4.265177041e-07 | G65: 0 | H65: 0.2265598067 | J65: 0.28
B66: * Werte aus dem 5. Assessment Report des Weltklimarates IPCC nach GHG Protokoll
B67: ** https://lfu.brandenburg.de/cms/media.php/lbm1.a.3310.de/emissionsfaktoren_co2_2017.pdf

Sheet 02_Prozess-Technologie Matrix
B13: 2. Prozess-Technologie-Matrix
B15: Hinweis:
B16: Teilbereiche können zur Verbesserung der Übersichtlichkeit über das (-) Symbol aus und (+) eingeblendet werden! | AN16: Legende
B17: Schritt 1: Auswählen der eigenen thermischen Prozesse oder Branche über die Filterfunktion (Pfeil nach unten) (ggf. Definition weiterer Prozesse); Prozessbeschreibungen anschließend ausblenden (-) | AO17: Höchsttemperatur mit Technologie möglich
B18: Schritt 2: Ablesen des erforderlichen Temperaturbereichs der eigenen Wärme- und Kältebedarfe; Temperaturbereic anschließend ausblenden (-) | AO18: Mindesttemperatur mit Technologie möglich
B19: Schritt 3: Ablesen der in Frage kommenden Technologien, die für eine Wärmeversorgung (rot) und Kälteversorgung (blau) genutzt werden können | J19: Legende | AO19: Tiefstemperatur mit Technologie möglich
K20: Temperaturbereich des ausgewählten Prozesses | AO20: Prozesse sind nicht mit der Technologie kompatibel
C22: Schritt 1: Thermische Prozesse auswählen | J22: Schritt 2: Temperaturbereich ablesen | AN22: Schritt 3: Technologien ablesen
AN23: Wärmeerzeugung | AY23: Kälteerzeugung
B24: Prozessklasse | C24: Prozesse | D24: Prozessbeschreibung | E24: Branchen | F24: Dampf notwendig (X) | G24: Min [°C] | H24: Max [°C] | J24: Temperaturbereiche | AN24: Wärmepumpe (Sole, Wasser, Luft) | AO24: Hochtemperatur Wärmepumpe | AP24: Höchstemperatur-Wärmepume | AQ24: Solarthermie Flachkollektor | AR24: Solarthermie Vakuumröhrenkollektor | AS24: Konzentrierende Solarthermie | AT24: Biogas BW Kessel | AU24: Holzpellet-Kessel | AV24: Holzhackschnitzel-Kessel | AW24: Elektrokessel | AX24: Elektrodenkessel | AY24: Absorptionskälteanlagen (LiBr) | AZ24: Absorptionskälteanlagen (Ammoniak) | BA24: Vakuum-Absorptionskälteanlagen (Ammoniak) | BB24: Adsorptionskälteanlage | BC24: Kompressionskälte
J25: -40 | K25: -30 | L25: -20 | M25: -10 | N25: 0 | O25: 10 | P25: 20 | Q25: 30 | R25: 40 | S25: 50 | T25: 60 | U25: 70 | V25: 80 | W25: 90 | X25: 100 | Y25: 120 | Z25: 130 | AA25: 140 | AB25: 150 | AC25: 160 | AD25: 170 | AE25: 180 | AF25: 190 | AG25: 200 | AH25: 210 | AI25: 220 | AJ25: 230 | AK25: 240 | AL25: 250 | AN25: 80 | AO25: 120 | AP25: 160 | AQ25: 80 | AR25: 120 | AS25: 400 | AT25: 500 | AU25: 500 | AV25: 500 | AW25: 160 | AX25: 240 | AY25: 5 | AZ25: -33 | BA25: -60 | BB25: -60 | BC25: -33
A26: Erwärmen | B26: Erhitzen | C26: Kochen | D26: Garen von Lebensmitteln in flüssigem Wasser beim Siedepunkt | E26: 10.13; 10.32; 11.05; 11.07; 10.82; 10.73 | G26: 70 | H26: 160
C27: Vakuumkochen | D27: Garen von Lebensmitteln unter Vakuumatmosphäre zum Erhalt von Aromen und Reduzieren von Oxidation | E27: 10.39; | G27: 65 | H27: 80
C28: Braten | D28: Trockenes Garen bei hoher Temperatur zur Bildung von Aromastoffen (Maillard-Reaktion) | E28: 10.13; | G28: 100 | H28: 200
C29: Rösten | D29: Trockenes und fettloses Erhitzen von pflanzlichen Lebensmitteln für Aromabildung und Feuchtigkeitsentzug | E29: 10.82; | G29: 130 | H29: 300
C30: Backen | D30: Garen von Backwaren im Backofen in trockener Heißluft oder Schwaden | E30: 10.71; 10.82 | G30: 150 | H30: 250
C31: Räuchern | D31: Konservieren und Aromatisieren von Räuchergut durch Verschwelen eines Räuchermaterials | E31: 10.13; | G31: 50 | H31: 85
C32: Blanchieren | D32: Kurzzeitige Erhitzung von Lebensmitteln in siedendem Wasser oder Wasserdampf | E32: 10.39; | G32: 75 | H32: 110
C33: Frittieren | D33: Garen von Lebensmitteln in Fett bei hohen Temperaturen | E33: 10.13; | G33: 140 | H33: 180
C34: Schmelzen | D34: Phasenübergang von fest nach flüssig durch Wärmezufuhr | E34: 10.41; 10.42 | G34: 30 | H34: 60
C35: Wärmebehandeln | D35: Inaktivierung von Mikroorganismen | E35: 10.51; 10.52 | G35: 40 | H35: 95
C36: Dämpfen | D36: Garen von Lebensmitteln in Dampf und Anhebung der Produktfeuchtigkeit und Temperatur | E36: 10.61; 10.62 | F36: X | G36: 100 | H36: 120
B37: Trocknen | C37: Trocknen | D37: Austreiben von Wasser aus den zu trocknenden Produkten (z.B. Walzentrocknung, Sprühtrocknung,…) | E37: alle | G37: 10 | H37: 145
C38: Sprühtrocknen | D38: Trocknen eines Produktes durch zersteuben in einem Heißgasstrom | E38: 10.51; 10.52 | G38: 95 | H38: 250
B39: Struktur bilden & umwandeln | C39: Eindampfen | D39: Trennen eines Stoffes von seinem Lösungsmittel (z.B. Wasser) | E39: 10.39; 10.41; 10.42; 10.51; 10.52; 10.82 | F39: X | G39: 45 | H39: 120
C40: Gären | D40: Wärmebehandlung von Lebensmitteln zur Veränderung von Konsistenz, Geschmack oder Verdaulichkeit | E40: 10.71; 10.72; 11.01 | F40: X | G40: 20 | H40: 32
C41: Hydrieren / Fetthärten | D41: Verfestigung von Ölen und Fetten durch einbringen von Wasserstoff an die Doppelbindungen der Fettsäuren | E41: 10.41; 10.42 | F41: X | G41: 120 | H41: 180
B42: Konservieren | C42: Pasteurisieren | D42: Haltbarmachung von Lebensmitteln durch Erwärmen auf 70 bis 100 °C | E42: 10.13; 10.32; 11.05; 11.07; 10.39; 10.51; 10.52; 10.73; 11.01 | G42: 70 | H42: 95
C43: UHT-Erhitzen | D43: Konservierung von Lebensmittel durch kurzzeitige Erhitzen und anschließendes kühlen | E43: 10.51; 10.52 | G43: 135 | H43: 150
C44: Sterilisieren | D44: Entfernen von Mikroorganismen und Viren durch Erhitzen über eine definierte Dauer | E44: 10.13; 10.51; 10.52 | G44: 117 | H44: 160
B45: Trennen | C45: Destillieren | D45: Thermisches Trennverfahren durch Verdampfen von Stoffgemischen mit unterschiedlichen Siedepunkten | E45: 11.01; | G45: 80 | H45: 100
C46: Rektifizieren | D46: Thermisches Trennnverfahren durch mehrfache Destillation mit Dampf und Flüssigkeit im Gegenstrom | E46: 11.01; | F46: X | G46: 80 | H46: 100
C47: Entkeimen | D47: Entfernen von Mikroorganismen im Keimstadium | E47: 11.06; | G47: 60 | H47: 160
C48: Exthrahieren | D48: Trennen von Stoffgemischen mittels Extraktionsmittel (z.B. überkritisches CO2) | E48: 10.41; 10.42 | G48: 10 | H48: 97
C49: Baktofugieren | D49: Entfernen von Mikroorganismen aus Rohmilch durch Zentrifugieren und erhitzen der abgetrennten Stoffe | E49: 10.51; 10.52 | G49: 57 | H49: 68
B50: Reinigen | C50: Reinigen | D50: Reinigen von Rohrleitungen, Anlagen, Produktionsräumen oder Tanks | E50: alle | G50: 20 | H50: 80
C51: Waschen | D51: Reinigen von Behältnissen (z.B. Flaschen, Kisten,…) | E51: alle | G51: 60 | H51: 80
C52: Spülen | E52: alle | G52: 60 | H52: 80
C53: CIP-Reinigung | E53: alle | G53: 60 | H53: 80
A54: Eigener Heizprozess 1
A55: Eigener Heizprozess 2
A56: Eigener Heizprozess 3
A57: Kühlen | B57: Kühlen | C57: Kühlen | E57: alle | G57: 0 | H57: 15
C58: Gefrieren | E58: 10.39; 10.51; 10.52; 10.73 | G58: -20 | H58: 0
C59: Tiefkühlen | E59: 10.13; 10.71; 10.72 | G59: -45 | H59: -20
B60: Konservieren | C60: Schockgefrieren | E60: 10.71; 10.72 | G60: -40 | H60: -30
B61: Trocknen | C61: Gefriertrocknen | E61: 10.13; 10.82 | G61: -20 | H61: -10
A62: Eigener Kühlprozess 1
A63: Eigener Kühlprozess 2
A64: Eigener Kühlprozess 3

Sheet 03_Nutzwertanalyse
B13: 3. Nutzwertanalyse
B15: Hinweis:
B16: Ziel: Auswahl der ökologisch und wirtschaftlich sinnvollsten Technologie
B17: Schritt 1 & 2: Eingeben der idividuellen Daten des eigenen Betriebs
B18: Schritt 3: Festlegen der Gewichtungsfaktoren über Schieberegler
B19: Ergebnis sind die drei am besten geeigneten Technologien für den Anwendungsfall
B21: Schritt 1: Kriterien & Eckdaten des Prozesses | G21: Schritt 2: Energiebezugspreise | J21: Individuelle Eingabe von Preisen
B22: Prozessart | G22: ='Technologie Berechnung'!M3 -> Ökostrompreis [€/MWh] | I22: ='Technologie Berechnung'!N3 -> 210 | M22: 167
B23: Benötigte Temperatur [°C] | E23: 120 | G23: ='Technologie Berechnung'!M4 -> Wärmepreis [€/MWh] | I23: ='Technologie Berechnung'!N4 -> 70 | M23: 38.9
B24: Benötigte Leistung [kW] | E24: 4000 | G24: ='Technologie Berechnung'!M5 -> Biomethanpreis [€/MWh] | I24: ='Technologie Berechnung'!N5 -> 65 | M24: 55
B25: Benötigte Nutzenergiemenge (Wärme/Kälte)* | E25: 615 | G25: ='Technologie Berechnung'!M6 -> Holzpelletpreis [€/MWh] | I25: ='Technologie Berechnung'!N6 -> 53.16321106 | M25: 50
B26: Kalkulatorische Kapitalkosten [%] | E26: 0.05 | G26: ='Technologie Berechnung'!M7 -> Holzhackschnitzel [€/MWh] | I26: ='Technologie Berechnung'!N7 -> 25 | M26: 35
B27: Wird oder soll Öko-Strom bezogen werden? | G27: ='Technologie Berechnung'!M8 -> Erdgaspreis Industrie [€/MWh] | I27: ='Technologie Berechnung'!N8 -> 25.3 | M27: 50
B28: Nutzbare Flächen im Gebäude vorhanden?
B29: Nutzbare Dachflächen vorhanden? | G29: Schritt 3: Gewichtung von Entscheidungsparametern
B30: Nutzbare Freiflächen vorhanden? | G30: Investitionssumme | I30: Vernachlässigbar | M30: sehr wichtig
B31: Marktreife der Technologie ist zwingend? | G31: Betriebskosten | I31: Vernachlässigbar | M31: sehr wichtig
B32: Abwärme zur Kälteerzeugung vorhanden? | G32: Platzbedarf | I32: Vernachlässigbar | M32: sehr wichtig
B33: * Es wird unterstellt, dass der Prozess in gänze ersetzt wird. Eine anteilige Ersetzung ist jedoch ebenfalls möglich | G33: CO2-Emissionen | I33: Vernachlässigbar | M33: sehr wichtig
B35: =IF(E37="","Keine passende Technologie gefunden, bitte überprüfen die die eingegebenen Kriterien","Ergebnis: Nachstehend finden Sie die drei Technologien mit der größten Übereinstimmung mit Ihren Angaben.") -> Ergebnis: Nachstehend finden Sie die drei Technologien mit der größten Übereinstimmung mit Ihren Angaben.
E36: 1 | H36: 2 | K36: 3
B37: Technologie | E37: =IF(LARGE('Technologie Berechnung'!$D$86:$V$86,'03_Nutzwertanalyse'!E$36)=0,"",HLOOKUP(LARGE('Technologie Berechnung'!$D$86:$V$86,'03_Nutzwertanalyse'!E$36),'Technologie Berechnung'!$D$86:$V$110,4,FALSE)) -> Holzhackschnitzelkessel | H37: =IF(LARGE('Technologie Berechnung'!$D$86:$V$86,'03_Nutzwertanalyse'!H$36)=0,"",HLOOKUP(LARGE('Technologie Berechnung'!$D$86:$V$86,'03_Nutzwertanalyse'!H$36),'Technologie Berechnung'!$D$86:$V$110,4,FALSE)) -> Vakuumröhrenkollektor | K37: =IF(LARGE('Technologie Berechnung'!$D$86:$V$86,'03_Nutzwertanalyse'!K$36)=0,"",HLOOKUP(LARGE('Technologie Berechnung'!$D$86:$V$86,'03_Nutzwertanalyse'!K$36),'Technologie Berechnung'!$D$86:$V$110,4,FALSE)) -> Holzpelletkessel
B38: Einsatzbereich | E38: =IF(LARGE('Technologie Berechnung'!$D$86:$V$86,'03_Nutzwertanalyse'!E$36)=0,"",HLOOKUP(LARGE('Technologie Berechnung'!$D$86:$V$86,'03_Nutzwertanalyse'!E$36),'Technologie Berechnung'!$D$86:$V$110,5,FALSE)) -> Wärme | 20°C bis 500°C | H38: =IF(LARGE('Technologie Berechnung'!$D$86:$V$86,'03_Nutzwertanalyse'!H$36)=0,"",HLOOKUP(LARGE('Technologie Berechnung'!$D$86:$V$86,'03_Nutzwertanalyse'!H$36),'Technologie Berechnung'!$D$86:$V$110,5,FALSE)) -> Wärme | 20°C bis 120°C | K38: =IF(LARGE('Technologie Berechnung'!$D$86:$V$86,'03_Nutzwertanalyse'!K$36)=0,"",HLOOKUP(LARGE('Technologie Berechnung'!$D$86:$V$86,'03_Nutzwertanalyse'!K$36),'Technologie Berechnung'!$D$86:$V$110,5,FALSE)) -> Wärme | 20°C bis 500°C
B39: Energiequelle | E39: =IF(LARGE('Technologie Berechnung'!$D$86:$V$86,'03_Nutzwertanalyse'!E$36)=0,"",HLOOKUP(LARGE('Technologie Berechnung'!$D$86:$V$86,'03_Nutzwertanalyse'!E$36),'Technologie Berechnung'!$D$86:$V$110,6,FALSE)) -> Holzhackschnitzel | H39: =IF(LARGE('Technologie Berechnung'!$D$86:$V$86,'03_Nutzwertanalyse'!H$36)=0,"",HLOOKUP(LARGE('Technologie Berechnung'!$D$86:$V$86,'03_Nutzwertanalyse'!H$36),'Technologie Berechnung'!$D$86:$V$110,6,FALSE)) -> Solarstrahlung | K39: =IF(LARGE('Technologie Berechnung'!$D$86:$V$86,'03_Nutzwertanalyse'!K$36)=0,"",HLOOKUP(LARGE('Technologie Berechnung'!$D$86:$V$86,'03_Nutzwertanalyse'!K$36),'Technologie Berechnung'!$D$86:$V$110,6,FALSE)) -> Holzpellets
B40: Realisierbare Vollbenutzungsstunden | E40: =IF(LARGE('Technologie Berechnung'!$D$86:$V$86,'03_Nutzwertanalyse'!E$36)=0,"",HLOOKUP(LARGE('Technologie Berechnung'!$D$86:$V$86,'03_Nutzwertanalyse'!E$36),'Technologie Berechnung'!$D$86:$V$110,7,FALSE)) -> 7500 | H40: =IF(LARGE('Technologie Berechnung'!$D$86:$V$86,'03_Nutzwertanalyse'!H$36)=0,"",HLOOKUP(LARGE('Technologie Berechnung'!$D$86:$V$86,'03_Nutzwertanalyse'!H$36),'Technologie Berechnung'!$D$86:$V$110,7,FALSE)) -> 1500 | K40: =IF(LARGE('Technologie Berechnung'!$D$86:$V$86,'03_Nutzwertanalyse'!K$36)=0,"",HLOOKUP(LARGE('Technologie Berechnung'!$D$86:$V$86,'03_Nutzwertanalyse'!K$36),'Technologie Berechnung'!$D$86:$V$110,7,FALSE)) -> 7500
B41: Nutzungsdauer | E41: =IF(LARGE('Technologie Berechnung'!$D$86:$V$86,'03_Nutzwertanalyse'!E$36)=0,"",HLOOKUP(LARGE('Technologie Berechnung'!$D$86:$V$86,'03_Nutzwertanalyse'!E$36),'Technologie Berechnung'!$D$86:$V$110,8,FALSE)) -> 15 Jahre | H41: =IF(LARGE('Technologie Berechnung'!$D$86:$V$86,'03_Nutzwertanalyse'!H$36)=0,"",HLOOKUP(LARGE('Technologie Berechnung'!$D$86:$V$86,'03_Nutzwertanalyse'!H$36),'Technologie Berechnung'!$D$86:$V$110,8,FALSE)) -> 18 Jahre | K41: =IF(LARGE('Technologie Berechnung'!$D$86:$V$86,'03_Nutzwertanalyse'!K$36)=0,"",HLOOKUP(LARGE('Technologie Berechnung'!$D$86:$V$86,'03_Nutzwertanalyse'!K$36),'Technologie Berechnung'!$D$86:$V$110,8,FALSE)) -> 15 Jahre
B43: Spez. Investiton | E43: =IF(LARGE('Technologie Berechnung'!$D$86:$V$86,'03_Nutzwertanalyse'!E$36)=0,"",HLOOKUP(LARGE('Technologie Berechnung'!$D$86:$V$86,'03_Nutzwertanalyse'!E$36),'Technologie Berechnung'!$D$86:$V$110,10,FALSE)) -> 264 | H43: =IF(LARGE('Technologie Berechnung'!$D$86:$V$86,'03_Nutzwertanalyse'!H$36)=0,"",HLOOKUP(LARGE('Technologie Berechnung'!$D$86:$V$86,'03_Nutzwertanalyse'!H$36),'Technologie Berechnung'!$D$86:$V$110,10,FALSE)) -> 1384 | K43: =IF(LARGE('Technologie Berechnung'!$D$86:$V$86,'03_Nutzwertanalyse'!K$36)=0,"",HLOOKUP(LARGE('Technologie Berechnung'!$D$86:$V$86,'03_Nutzwertanalyse'!K$36),'Technologie Berechnung'!$D$86:$V$110,10,FALSE)) -> 305
B44: Gesamtinvestition | E44: =IF(LARGE('Technologie Berechnung'!$D$86:$V$86,'03_Nutzwertanalyse'!E$36)=0,"",HLOOKUP(LARGE('Technologie Berechnung'!$D$86:$V$86,'03_Nutzwertanalyse'!E$36),'Technologie Berechnung'!$D$86:$V$110,11,FALSE)) -> 1057830.717 | H44: =IF(LARGE('Technologie Berechnung'!$D$86:$V$86,'03_Nutzwertanalyse'!H$36)=0,"",HLOOKUP(LARGE('Technologie Berechnung'!$D$86:$V$86,'03_Nutzwertanalyse'!H$36),'Technologie Berechnung'!$D$86:$V$110,11,FALSE)) -> 5534773.042 | K44: =IF(LARGE('Technologie Berechnung'!$D$86:$V$86,'03_Nutzwertanalyse'!K$36)=0,"",HLOOKUP(LARGE('Technologie Berechnung'!$D$86:$V$86,'03_Nutzwertanalyse'!K$36),'Technologie Berechnung'!$D$86:$V$110,11,FALSE)) -> 1219800.673
B45: Genauigkeit | E45: =IF(LARGE('Technologie Berechnung'!$D$86:$V$86,'03_Nutzwertanalyse'!E$36)=0,"",HLOOKUP(LARGE('Technologie Berechnung'!$D$86:$V$86,'03_Nutzwertanalyse'!E$36),'Technologie Berechnung'!$D$86:$V$110,12,FALSE)) -> 2 - Aus einer Studie basierend auf umgesetzten Projekten | H45: =IF(LARGE('Technologie Berechnung'!$D$86:$V$86,'03_Nutzwertanalyse'!H$36)=0,"",HLOOKUP(LARGE('Technologie Berechnung'!$D$86:$V$86,'03_Nutzwertanalyse'!H$36),'Technologie Berechnung'!$D$86:$V$110,12,FALSE)) -> 1 - Regression Umgesetzter Projekte | K45: =IF(LARGE('Technologie Berechnung'!$D$86:$V$86,'03_Nutzwertanalyse'!K$36)=0,"",HLOOKUP(LARGE('Technologie Berechnung'!$D$86:$V$86,'03_Nutzwertanalyse'!K$36),'Technologie Berechnung'!$D$86:$V$110,12,FALSE)) -> 2 - Aus einer Studie basierend auf umgesetzten Projekten
B47: Wirkungsgrad / COP | E47: =IF(LARGE('Technologie Berechnung'!$D$86:$V$86,'03_Nutzwertanalyse'!E$36)=0,"",HLOOKUP(LARGE('Technologie Berechnung'!$D$86:$V$86,'03_Nutzwertanalyse'!E$36),'Technologie Berechnung'!$D$86:$V$110,14,FALSE)) -> 0.8 | H47: =IF(LARGE('Technologie Berechnung'!$D$86:$V$86,'03_Nutzwertanalyse'!H$36)=0,"",HLOOKUP(LARGE('Technologie Berechnung'!$D$86:$V$86,'03_Nutzwertanalyse'!H$36),'Technologie Berechnung'!$D$86:$V$110,14,FALSE)) -> 0.8 | K47: =IF(LARGE('Technologie Berechnung'!$D$86:$V$86,'03_Nutzwertanalyse'!K$36)=0,"",HLOOKUP(LARGE('Technologie Berechnung'!$D$86:$V$86,'03_Nutzwertanalyse'!K$36),'Technologie Berechnung'!$D$86:$V$110,14,FALSE)) -> 0.85
B48: Endenergiebezug | E48: =IF(LARGE('Technologie Berechnung'!$D$86:$V$86,'03_Nutzwertanalyse'!E$36)=0,"",HLOOKUP(LARGE('Technologie Berechnung'!$D$86:$V$86,'03_Nutzwertanalyse'!E$36),'Technologie Berechnung'!$D$86:$V$110,15,FALSE)) -> 768.8 | H48: =IF(LARGE('Technologie Berechnung'!$D$86:$V$86,'03_Nutzwertanalyse'!H$36)=0,"",HLOOKUP(LARGE('Technologie Berechnung'!$D$86:$V$86,'03_Nutzwertanalyse'!H$36),'Technologie Berechnung'!$D$86:$V$110,15,FALSE)) -> 0 | K48: =IF(LARGE('Technologie Berechnung'!$D$86:$V$86,'03_Nutzwertanalyse'!K$36)=0,"",HLOOKUP(LARGE('Technologie Berechnung'!$D$86:$V$86,'03_Nutzwertanalyse'!K$36),'Technologie Berechnung'!$D$86:$V$110,15,FALSE)) -> 723.5
B49: Betriebs- und Wartungskosten | E49: =IF(LARGE('Technologie Berechnung'!$D$86:$V$86,'03_Nutzwertanalyse'!E$36)=0,"",HLOOKUP(LARGE('Technologie Berechnung'!$D$86:$V$86,'03_Nutzwertanalyse'!E$36),'Technologie Berechnung'!$D$86:$V$110,16,FALSE)) -> 83689 | H49: =IF(LARGE('Technologie Berechnung'!$D$86:$V$86,'03_Nutzwertanalyse'!H$36)=0,"",HLOOKUP(LARGE('Technologie Berechnung'!$D$86:$V$86,'03_Nutzwertanalyse'!H$36),'Technologie Berechnung'!$D$86:$V$110,16,FALSE)) -> 83272 | K49: =IF(LARGE('Technologie Berechnung'!$D$86:$V$86,'03_Nutzwertanalyse'!K$36)=0,"",HLOOKUP(LARGE('Technologie Berechnung'!$D$86:$V$86,'03_Nutzwertanalyse'!K$36),'Technologie Berechnung'!$D$86:$V$110,16,FALSE)) -> 112403
B50: Spez. Betriebskosten | E50: =IF(LARGE('Technologie Berechnung'!$D$86:$V$86,'03_Nutzwertanalyse'!E$36)=0,"",HLOOKUP(LARGE('Technologie Berechnung'!$D$86:$V$86,'03_Nutzwertanalyse'!E$36),'Technologie Berechnung'!$D$86:$V$110,17,FALSE)) -> 13.608 | H50: =IF(LARGE('Technologie Berechnung'!$D$86:$V$86,'03_Nutzwertanalyse'!H$36)=0,"",HLOOKUP(LARGE('Technologie Berechnung'!$D$86:$V$86,'03_Nutzwertanalyse'!H$36),'Technologie Berechnung'!$D$86:$V$110,17,FALSE)) -> 13.54 | K50: =IF(LARGE('Technologie Berechnung'!$D$86:$V$86,'03_Nutzwertanalyse'!K$36)=0,"",HLOOKUP(LARGE('Technologie Berechnung'!$D$86:$V$86,'03_Nutzwertanalyse'!K$36),'Technologie Berechnung'!$D$86:$V$110,17,FALSE)) -> 18.277
B51: Genauigkeit | E51: =IF(LARGE('Technologie Berechnung'!$D$86:$V$86,'03_Nutzwertanalyse'!E$36)=0,"",HLOOKUP(LARGE('Technologie Berechnung'!$D$86:$V$86,'03_Nutzwertanalyse'!E$36),'Technologie Berechnung'!$D$86:$V$110,18,FALSE)) -> 3 - Energiekosten zzgl. Mittelwerte aus VDI 2067 | H51: =IF(LARGE('Technologie Berechnung'!$D$86:$V$86,'03_Nutzwertanalyse'!H$36)=0,"",HLOOKUP(LARGE('Technologie Berechnung'!$D$86:$V$86,'03_Nutzwertanalyse'!H$36),'Technologie Berechnung'!$D$86:$V$110,18,FALSE)) -> 3 - Energiekosten zzgl. Mittelwerte aus VDI 2067 | K51: =IF(LARGE('Technologie Berechnung'!$D$86:$V$86,'03_Nutzwertanalyse'!K$36)=0,"",HLOOKUP(LARGE('Technologie Berechnung'!$D$86:$V$86,'03_Nutzwertanalyse'!K$36),'Technologie Berechnung'!$D$86:$V$110,18,FALSE)) -> 3 - Energiekosten zzgl. Mittelwerte aus VDI 2067
B53: Wärmegestehungskosten | E53: =IF(LARGE('Technologie Berechnung'!$D$86:$V$86,'03_Nutzwertanalyse'!E$36)=0,"",HLOOKUP(LARGE('Technologie Berechnung'!$D$86:$V$86,'03_Nutzwertanalyse'!E$36),'Technologie Berechnung'!$D$86:$V$110,20,FALSE)) -> 30.179 | H53: =IF(LARGE('Technologie Berechnung'!$D$86:$V$86,'03_Nutzwertanalyse'!H$36)=0,"",HLOOKUP(LARGE('Technologie Berechnung'!$D$86:$V$86,'03_Nutzwertanalyse'!H$36),'Technologie Berechnung'!$D$86:$V$110,20,FALSE)) -> 90.529 | K53: =IF(LARGE('Technologie Berechnung'!$D$86:$V$86,'03_Nutzwertanalyse'!K$36)=0,"",HLOOKUP(LARGE('Technologie Berechnung'!$D$86:$V$86,'03_Nutzwertanalyse'!K$36),'Technologie Berechnung'!$D$86:$V$110,20,FALSE)) -> 37.386
B55: CO2-Emission (CO2-Äq.) | E55: =IF(LARGE('Technologie Berechnung'!$D$86:$V$86,'03_Nutzwertanalyse'!E$36)=0,"",HLOOKUP(LARGE('Technologie Berechnung'!$D$86:$V$86,'03_Nutzwertanalyse'!E$36),'Technologie Berechnung'!$D$86:$V$110,22,FALSE)) -> 20.756 | H55: =IF(LARGE('Technologie Berechnung'!$D$86:$V$86,'03_Nutzwertanalyse'!H$36)=0,"",HLOOKUP(LARGE('Technologie Berechnung'!$D$86:$V$86,'03_Nutzwertanalyse'!H$36),'Technologie Berechnung'!$D$86:$V$110,22,FALSE)) -> 0 | K55: =IF(LARGE('Technologie Berechnung'!$D$86:$V$86,'03_Nutzwertanalyse'!K$36)=0,"",HLOOKUP(LARGE('Technologie Berechnung'!$D$86:$V$86,'03_Nutzwertanalyse'!K$36),'Technologie Berechnung'!$D$86:$V$110,22,FALSE)) -> 19.535
B57: Platzbedarf | E57: =IF(LARGE('Technologie Berechnung'!$D$86:$V$86,'03_Nutzwertanalyse'!E$36)=0,"",HLOOKUP(LARGE('Technologie Berechnung'!$D$86:$V$86,'03_Nutzwertanalyse'!E$36),'Technologie Berechnung'!$D$86:$V$110,24,FALSE)) -> 18,5 m² | Kessel + Hachschnitzellager | H57: =IF(LARGE('Technologie Berechnung'!$D$86:$V$86,'03_Nutzwertanalyse'!H$36)=0,"",HLOOKUP(LARGE('Technologie Berechnung'!$D$86:$V$86,'03_Nutzwertanalyse'!H$36),'Technologie Berechnung'!$D$86:$V$110,24,FALSE)) -> 5720 m² | Kolektoren | K57: =IF(LARGE('Technologie Berechnung'!$D$86:$V$86,'03_Nutzwertanalyse'!K$36)=0,"",HLOOKUP(LARGE('Technologie Berechnung'!$D$86:$V$86,'03_Nutzwertanalyse'!K$36),'Technologie Berechnung'!$D$86:$V$110,24,FALSE)) -> 15,9 m² | Kessel + Pelletlager
B58: Flächenart | E58: =IF(LARGE('Technologie Berechnung'!$D$86:$V$86,'03_Nutzwertanalyse'!E$36)=0,"",HLOOKUP(LARGE('Technologie Berechnung'!$D$86:$V$86,'03_Nutzwertanalyse'!E$36),'Technologie Berechnung'!$D$86:$V$110,25,FALSE)) -> Im Gebäude | Freifläche | H58: =IF(LARGE('Technologie Berechnung'!$D$86:$V$86,'03_Nutzwertanalyse'!H$36)=0,"",HLOOKUP(LARGE('Technologie Berechnung'!$D$86:$V$86,'03_Nutzwertanalyse'!H$36),'Technologie Berechnung'!$D$86:$V$110,25,FALSE)) -> Dachfläche | Freifläche | K58: =IF(LARGE('Technologie Berechnung'!$D$86:$V$86,'03_Nutzwertanalyse'!K$36)=0,"",HLOOKUP(LARGE('Technologie Berechnung'!$D$86:$V$86,'03_Nutzwertanalyse'!K$36),'Technologie Berechnung'!$D$86:$V$110,25,FALSE)) -> Im Gebäude | Freifläche
B59: Genauigkeit | E59: =IF(LARGE('Technologie Berechnung'!$D$86:$V$86,'03_Nutzwertanalyse'!E$36)=0,"",HLOOKUP(LARGE('Technologie Berechnung'!$D$86:$V$86,'03_Nutzwertanalyse'!E$36),'Technologie Berechnung'!$D$86:$V$111,26,FALSE)) -> 3 - Vergleich 20 Fuß Containerlösung zzgl. Wochenvorrat | H59: =IF(LARGE('Technologie Berechnung'!$D$86:$V$86,'03_Nutzwertanalyse'!H$36)=0,"",HLOOKUP(LARGE('Technologie Berechnung'!$D$86:$V$86,'03_Nutzwertanalyse'!H$36),'Technologie Berechnung'!$D$86:$V$111,26,FALSE)) -> 1 - Spez. Flächenbedarf gemäß Erfahrungswerten | K59: =IF(LARGE('Technologie Berechnung'!$D$86:$V$86,'03_Nutzwertanalyse'!K$36)=0,"",HLOOKUP(LARGE('Technologie Berechnung'!$D$86:$V$86,'03_Nutzwertanalyse'!K$36),'Technologie Berechnung'!$D$86:$V$111,26,FALSE)) -> 3 - Vergleich 20 Fuß Containerlösung zzgl. Wochenvorrat
B61: Legende der Genauigkeitsklassen:
B62: 1) Erfahrungswerte & Berechnungen daraus
B63: 2) Werte aus einschlägigen Studien und Literatur
B64: 3) Richttwerte & Schätzungen

Sheet 04_Wirtschaftlichkeit
B13: 4. Wirtschaftlichkeitsanalyse
B15: Randbedingungen definieren
B16: Kalkulatorische Kapitalkosten | E16: [%/a] | F16: 0.0125
B17: Betrachtungsdauer | E17: [a] | F17: 20
B18: CO2 -Brepreisung | E18: [€/t] | F18: 25
B19: Referenzanlage (Derzeitige Technologie) | F19: Erdgas Dampferzeuger
B20: Wird die Bestandsanlage weiter betrieben oder muss diese erneuert werden? | F20: Neu
E23: Referenz | H23: Top 1 | K23: Top 2 | N23: Top 3
B24: Technologie | E24: =F19 -> Erdgas Dampferzeuger | H24: ='03_Nutzwertanalyse'!E37 -> Holzhackschnitzelkessel | K24: ='03_Nutzwertanalyse'!H37 -> Vakuumröhrenkollektor | N24: ='03_Nutzwertanalyse'!K37 -> Holzpelletkessel
B25: Einsatzbereich | E25: =HLOOKUP($F$19,'Technologie Berechnung'!$D$89:$X$111,2,FALSE) -> Wärme | 20°C bis 250°C | H25: ='03_Nutzwertanalyse'!E38 -> Wärme | 20°C bis 500°C | K25: ='03_Nutzwertanalyse'!H38 -> Wärme | 20°C bis 120°C | N25: ='03_Nutzwertanalyse'!K38 -> Wärme | 20°C bis 500°C
B26: Energiequelle | E26: =HLOOKUP($F$19,'Technologie Berechnung'!$D$89:$X$111,3,FALSE) -> Erdgas | H26: ='03_Nutzwertanalyse'!E39 -> Holzhackschnitzel | K26: ='03_Nutzwertanalyse'!H39 -> Solarstrahlung | N26: ='03_Nutzwertanalyse'!K39 -> Holzpellets
B27: Realisierbare Vollbenutzungsstunden | E27: =HLOOKUP($F$19,'Technologie Berechnung'!$D$89:$X$111,4,FALSE) -> 8000 | H27: ='03_Nutzwertanalyse'!E40 -> 7500 | K27: ='03_Nutzwertanalyse'!H40 -> 1500 | N27: ='03_Nutzwertanalyse'!K40 -> 7500
B28: Nutzungsdauer | E28: =HLOOKUP($F$19,'Technologie Berechnung'!$D$89:$X$111,5,FALSE) -> 25 Jahre | H28: ='03_Nutzwertanalyse'!E41 -> 15 Jahre | K28: ='03_Nutzwertanalyse'!H41 -> 18 Jahre | N28: ='03_Nutzwertanalyse'!K41 -> 15 Jahre
B29: Spez. Investiton | E29: =HLOOKUP($F$19,'Technologie Berechnung'!$D$89:$X$111,7,FALSE) -> 60 | H29: ='03_Nutzwertanalyse'!E43 -> 264 | K29: ='03_Nutzwertanalyse'!H43 -> 1384 | N29: ='03_Nutzwertanalyse'!K43 -> 305
B30: Gesamtinvestition | E30: =HLOOKUP($F$19,'Technologie Berechnung'!$D$89:$X$111,8,FALSE) -> 239307.3236 | H30: ='03_Nutzwertanalyse'!E44 -> 1057830.717 | K30: ='03_Nutzwertanalyse'!H44 -> 5534773.042 | N30: ='03_Nutzwertanalyse'!K44 -> 1219800.673
B31: Genauigkeit | E31: =HLOOKUP($F$19,'Technologie Berechnung'!$D$89:$X$111,9,FALSE) -> 2 - Aus einer Studie basierend auf umgesetzten Projekten | H31: ='03_Nutzwertanalyse'!E45 -> 2 - Aus einer Studie basierend auf umgesetzten Projekten | K31: ='03_Nutzwertanalyse'!H45 -> 1 - Regression Umgesetzter Projekte | N31: ='03_Nutzwertanalyse'!K45 -> 2 - Aus einer Studie basierend auf umgesetzten Projekten
B32: Wirkungsgrad / COP | E32: =HLOOKUP($F$19,'Technologie Berechnung'!$D$89:$X$111,11,FALSE) -> 0.95 | H32: ='03_Nutzwertanalyse'!E47 -> 0.8 | K32: ='03_Nutzwertanalyse'!H47 -> 0.8 | N32: ='03_Nutzwertanalyse'!K47 -> 0.85
B33: Endenergiebezug | E33: =HLOOKUP($F$19,'Technologie Berechnung'!$D$89:$X$111,12,FALSE) -> 647.4 | H33: ='03_Nutzwertanalyse'!E48 -> 768.8 | K33: ='03_Nutzwertanalyse'!H48 -> 0 | N33: ='03_Nutzwertanalyse'!K48 -> 723.5
B34: Betriebs- und Wartungskosten | E34: =HLOOKUP($F$19,'Technologie Berechnung'!$D$89:$X$111,13,FALSE) -> 27558 | H34: ='03_Nutzwertanalyse'!E49 -> 83689 | K34: ='03_Nutzwertanalyse'!H49 -> 83272 | N34: ='03_Nutzwertanalyse'!K49 -> 112403
B35: Spez. Betriebskosten | E35: =HLOOKUP($F$19,'Technologie Berechnung'!$D$89:$X$111,14,FALSE) -> 4.481 | H35: ='03_Nutzwertanalyse'!E50 -> 13.608 | K35: ='03_Nutzwertanalyse'!H50 -> 13.54 | N35: ='03_Nutzwertanalyse'!K50 -> 18.277
B36: Genauigkeit | E36: =HLOOKUP($F$19,'Technologie Berechnung'!$D$89:$X$111,15,FALSE) -> 3 - Energiekosten zzgl. Mittelwerte aus VDI 2067 | H36: ='03_Nutzwertanalyse'!E51 -> 3 - Energiekosten zzgl. Mittelwerte aus VDI 2067 | K36: ='03_Nutzwertanalyse'!H51 -> 3 - Energiekosten zzgl. Mittelwerte aus VDI 2067 | N36: ='03_Nutzwertanalyse'!K51 -> 3 - Energiekosten zzgl. Mittelwerte aus VDI 2067
B37: Wärmegestehungskosten | E37: =HLOOKUP($F$19,'Technologie Berechnung'!$D$89:$X$111,17,FALSE) -> 7.242 | H37: ='03_Nutzwertanalyse'!E53 -> 30.179 | K37: ='03_Nutzwertanalyse'!H53 -> 90.529 | N37: ='03_Nutzwertanalyse'!K53 -> 37.386
B38: CO2-Emission (CO2-Äq.) | E38: =HLOOKUP($F$19,'Technologie Berechnung'!$D$89:$X$111,19,FALSE) -> 130.121 | H38: ='03_Nutzwertanalyse'!E55 -> 20.756 | K38: ='03_Nutzwertanalyse'!H55 -> 0 | N38: ='03_Nutzwertanalyse'!K55 -> 19.535
B39: Platzbedarf | E39: =HLOOKUP($F$19,'Technologie Berechnung'!$D$89:$X$111,21,FALSE) -> 14,8 m² | Kessel | H39: ='03_Nutzwertanalyse'!E57 -> 18,5 m² | Kessel + Hachschnitzellager | K39: ='03_Nutzwertanalyse'!H57 -> 5720 m² | Kolektoren | N39: ='03_Nutzwertanalyse'!K57 -> 15,9 m² | Kessel + Pelletlager
B40: Flächenart | E40: =HLOOKUP($F$19,'Technologie Berechnung'!$D$89:$X$111,22,FALSE) -> Im Gebäude | Freifläche | H40: ='03_Nutzwertanalyse'!E58 -> Im Gebäude | Freifläche | K40: ='03_Nutzwertanalyse'!H58 -> Dachfläche | Freifläche | N40: ='03_Nutzwertanalyse'!K58 -> Im Gebäude | Freifläche
B41: Genauigkeit | E41: =HLOOKUP($F$19,'Technologie Berechnung'!$D$89:$X$111,23,FALSE) -> 3 - Vergleich mit 20 Fuß Containerlösung | H41: ='03_Nutzwertanalyse'!E59 -> 3 - Vergleich 20 Fuß Containerlösung zzgl. Wochenvorrat | K41: ='03_Nutzwertanalyse'!H59 -> 1 - Spez. Flächenbedarf gemäß Erfahrungswerten | N41: ='03_Nutzwertanalyse'!K59 -> 3 - Vergleich 20 Fuß Containerlösung zzgl. Wochenvorrat
B44: Ergebnis der Wirtschaftlichkeitsrechnung | E44: Referenz | G44: Top 1 | I44: Top 2 | K44: Top 3
E45: =F19 -> Erdgas Dampferzeuger | G45: =H24 -> Holzhackschnitzelkessel | I45: =K24 -> Vakuumröhrenkollektor | K45: =N24 -> Holzpelletkessel
B46: Investitionsart | E46: =F20 -> Neu | G46: Neu
B47: Wirtschaftlichkeitskennzahlen
B48: CO2 Kosten | D48: [€/a] | E48: =E38*$F$18 -> 3253.025 | G48: =H38*$F$18 -> 518.9 | I48: =K38*$F$18 -> 0 | K48: =N38*$F$18 -> 488.375
B49: Investition | D49: [€] | E49: =IF(F20="Neu",'04_Wirtschaftlichkeit'!E30,0) -> 239307.3236 | G49: ='04_Wirtschaftlichkeit'!H30 -> 1057830.717 | I49: ='04_Wirtschaftlichkeit'!K30 -> 5534773.042 | K49: ='04_Wirtschaftlichkeit'!N30 -> 1219800.673
B50: Betriebskosten | D50: [€/a] | E50: ='04_Wirtschaftlichkeit'!E34 -> 27558 | G50: ='04_Wirtschaftlichkeit'!H34 -> 83689 | I50: ='04_Wirtschaftlichkeit'!K34 -> 83272 | K50: ='04_Wirtschaftlichkeit'!N34 -> 112403
B51: Kapitalwert (NPV)* | D51: [€] | E51: =SUM(Nebenrechnungen!C22:AB22) -> -781560.293 | G51: =SUM(Nebenrechnungen!C31:AB31) -> -1758271.877 | I51: =SUM(Nebenrechnungen!C40:AB40) -> -6218743.002 | K51: =SUM(Nebenrechnungen!C49:AB49) -> -2425051.377
B52: Dyn. Amortisationszeit | D52: [a] | E52: =IF(SUM(Nebenrechnungen!C24:AB24)=0,"> "&$F$17&" a",SUM(Nebenrechnungen!C24:AB24)) -> > 20 a | G52: =IF(SUM(Nebenrechnungen!C33:AB33)=0,"> "&$F$17&" a",SUM(Nebenrechnungen!C33:AB33)) -> > 20 a | I52: =IF(SUM(Nebenrechnungen!E42:AD42)=0,"> "&$F$17&" a",SUM(Nebenrechnungen!E42:AD42)) -> > 20 a | K52: =IF(SUM(Nebenrechnungen!G51:AF51)=0,"> "&$F$17&" a",SUM(Nebenrechnungen!G51:AF51)) -> > 20 a
B53: Interner Zinsfuß | D53: [%] | G53: =IRR(Nebenrechnungen!C30:BA30) ->  | I53: =IRR(Nebenrechnungen!C39:BA39) ->  | K53: =IRR(Nebenrechnungen!C48:BA48) -> 
B54: Spez. Vermeidungs- & Gestehungskosten
B55: Energiegestehungskosten | D55: [€/MWh] | E55: =IF(F20="Neu",'04_Wirtschaftlichkeit'!E37*10,(_xlfn.XLOOKUP(F19,'Technologie Berechnung'!D11:X11,'Technologie Berechnung'!D48:X48)/_xlfn.XLOOKUP(F19,'Technologie Berechnung'!D11:X11,'Technologie Berechnung'!D67:X67))) -> 72.42 | G55: ='04_Wirtschaftlichkeit'!H37*10 -> 301.79 | I55: ='04_Wirtschaftlichkeit'!K37*10 -> 905.29 | K55: ='04_Wirtschaftlichkeit'!N37*10 -> 373.86
B56: Emissions Einsparung | D56: [tCO2e] | E56: 0 | G56: =('04_Wirtschaftlichkeit'!$E$38-'04_Wirtschaftlichkeit'!H38)*$F$17 -> 2187.3 | I56: =('04_Wirtschaftlichkeit'!$E$38-'04_Wirtschaftlichkeit'!K38)*$F$17 -> 2602.42 | K56: =('04_Wirtschaftlichkeit'!$E$38-'04_Wirtschaftlichkeit'!N38)*$F$17 -> 2211.72
B57: Emissionsvermeidungskosten | D57: [€/tCO2e] | E57: 0 | G57: =(G51*-1)/G56 -> 803.8549248 | I57: =(I51*-1)/I56 -> 2389.600065 | K57: =(K51*-1)/K56 -> 1096.454966
B58: * Kapitalwerte von TOP 1-3 verglichen mit der Referenz (Die Kosten der Referenz werden durch die Investition eingespart und als Einnahmen vebucht)
B77: Sensitivitätsanalyse des Kapitalwerts
B78: Periode | C78: -0.5 | D78: -0.4 | E78: -0.3 | F78: -0.2 | G78: -0.1 | H78: 0 | I78: 0.1 | J78: 0.2 | K78: 0.3 | L78: 0.4 | M78: 0.5
B79: Top 1
B80: Investition | C80: =NPV($F$16,Nebenrechnungen!$C$58:$BA$58) -> -1986090.678 | D80: =NPV($F$16,Nebenrechnungen!$C$59:$BA$59) -> -2090567.786 | E80: =NPV($F$16,Nebenrechnungen!$C$60:$BA$60) -> -2195044.894 | F80: =NPV($F$16,Nebenrechnungen!$C$61:$BA$61) -> -2299522.002 | G80: =NPV($F$16,Nebenrechnungen!$C$62:$BA$62) -> -2403999.109 | H80: =NPV($F$16,Nebenrechnungen!$C$63:$BA$63) -> -2508476.217 | I80: =NPV($F$16,Nebenrechnungen!$C$64:$BA$64) -> -2612953.325 | J80: =NPV($F$16,Nebenrechnungen!$C$65:$BA$65) -> -2717430.433 | K80: =NPV($F$16,Nebenrechnungen!$C$66:$BA$66) -> -2821907.541 | L80: =NPV($F$16,Nebenrechnungen!$C$67:$BA$67) -> -2926384.649 | M80: =NPV($F$16,Nebenrechnungen!$C$68:$BA$68) -> -3030861.756
B81: Zinssatz | C81: =NPV($F$16*(1+C78),Nebenrechnungen!$C$70:$BA$70) -> -2619979.882 | D81: =NPV($F$16*(1+D78),Nebenrechnungen!$C$70:$BA$70) -> -2596875.621 | E81: =NPV($F$16*(1+E78),Nebenrechnungen!$C$70:$BA$70) -> -2574181.951 | F81: =NPV($F$16*(1+F78),Nebenrechnungen!$C$70:$BA$70) -> -2551889.937 | G81: =NPV($F$16*(1+G78),Nebenrechnungen!$C$70:$BA$70) -> -2529990.861 | H81: =NPV($F$16*(1+H78),Nebenrechnungen!$C$70:$BA$70) -> -2508476.217 | I81: =NPV($F$16*(1+I78),Nebenrechnungen!$C$70:$BA$70) -> -2487337.706 | J81: =NPV($F$16*(1+J78),Nebenrechnungen!$C$70:$BA$70) -> -2466567.226 | K81: =NPV($F$16*(1+K78),Nebenrechnungen!$C$70:$BA$70) -> -2446156.876 | L81: =NPV($F$16*(1+L78),Nebenrechnungen!$C$70:$BA$70) -> -2426098.939 | M81: =NPV($F$16*(1+M78),Nebenrechnungen!$C$70:$BA$70) -> -2406385.888
B82: CO2 Kosten | C82: =NPV($F$16,Nebenrechnungen!$C$72:$BA$72) -> -2503966.447 | D82: =NPV($F$16,Nebenrechnungen!$C$73:$BA$73) -> -2504868.401 | E82: =NPV($F$16,Nebenrechnungen!$C$74:$BA$74) -> -2505770.355 | F82: =NPV($F$16,Nebenrechnungen!$C$75:$BA$75) -> -2506672.309 | G82: =NPV($F$16,Nebenrechnungen!$C$76:$BA$76) -> -2507574.263 | H82: =NPV($F$16,Nebenrechnungen!$C$77:$BA$77) -> -2508476.217 | I82: =NPV($F$16,Nebenrechnungen!$C$78:$BA$78) -> -2509378.171 | J82: =NPV($F$16,Nebenrechnungen!$C$79:$BA$79) -> -2510280.125 | K82: =NPV($F$16,Nebenrechnungen!$C$80:$BA$80) -> -2511182.08 | L82: =NPV($F$16,Nebenrechnungen!$C$81:$BA$81) -> -2512084.034 | M82: =NPV($F$16,Nebenrechnungen!$C$82:$BA$82) -> -2512985.988
B83: Betriebskosten | C83: =NPV($F$16,Nebenrechnungen!$C$84:$BA$84) -> -1781133.418 | D83: =NPV($F$16,Nebenrechnungen!$C$85:$BA$85) -> -1926601.978 | E83: =NPV($F$16,Nebenrechnungen!$C$86:$BA$86) -> -2072070.538 | F83: =NPV($F$16,Nebenrechnungen!$C$87:$BA$87) -> -2217539.098 | G83: =NPV($F$16,Nebenrechnungen!$C$88:$BA$88) -> -2363007.657 | H83: =NPV($F$16,Nebenrechnungen!$C$89:$BA$89) -> -2508476.217 | I83: =NPV($F$16,Nebenrechnungen!$C$90:$BA$90) -> -2653944.777 | J83: =NPV($F$16,Nebenrechnungen!$C$91:$BA$91) -> -2799413.337 | K83: =NPV($F$16,Nebenrechnungen!$C$92:$BA$92) -> -2944881.897 | L83: =NPV($F$16,Nebenrechnungen!$C$93:$BA$93) -> -3090350.456 | M83: =NPV($F$16,Nebenrechnungen!$C$94:$BA$94) -> -3235819.016
B84: Dauer | C84: =NPV($F$16,Nebenrechnungen!$C$97:$BA$97) -> -1822022.546 | D84: =NPV($F$16,Nebenrechnungen!$C$99:$BA$99) -> -1966218.579 | E84: =NPV($F$16,Nebenrechnungen!$C$101:$BA$101) -> -2106876.193 | F84: =NPV($F$16,Nebenrechnungen!$C$103:$BA$103) -> -2244082.219 | G84: =NPV($F$16,Nebenrechnungen!$C$105:$BA$105) -> -2377921.353 | H84: =NPV($F$16,Nebenrechnungen!$C$107:$BA$107) -> -2508476.217 | I84: =NPV($F$16,Nebenrechnungen!$C$109:$BA$109) -> -2635827.403 | J84: =NPV($F$16,Nebenrechnungen!$C$111:$BA$111) -> -2760053.525 | K84: =NPV($F$16,Nebenrechnungen!$C$113:$BA$113) -> -2881231.27 | L84: =NPV($F$16,Nebenrechnungen!$C$115:$BA$115) -> -2999435.441 | M84: =NPV($F$16,Nebenrechnungen!$C$117:$BA$117) -> -3114739.006

Sheet Ergebnisse
B14: Ist Situation
B15: Energiebedarf in kWh/a | H15: Emissionen in tCO2e/a | N15: Anteil Scope 1 und Scope 2 Emissionen
N29: Hinweise:
N30: Klimaneutralität Scope 1 - Keine Verbrennung von fossilen oder biogenen Brennstoffen - Nur 100 % erneuerbarer Strom, Solar- & Geothermie - (Sonst ist eine Kompensation der Restemissionen notwendig)
N34: Klimaneutralität Scope 2 - Bezug von 100 % erneuerbarem Strom - Wärmebezug bei 100 % erneuerbar (Strom, Solar, Geothermie)
B38: Bewertung der Maßnahmen zur Dekarbonisierung
B39: Vergleich von Investition, Betriebs- und CO2 Kosten | H39: Einsparungen an Emissionen in t CO2e und die Vermeidungskosten | N39: Sensitivitätsanalyse für | Q39: ='04_Wirtschaftlichkeit'!$B$79 -> Top 1
H58: Hinweis: negative Vermeidungskosten entsprechen einem Erlös | N58: Hinweis: Auswahl der Technologie im Reiter "Wirtschaflichkeitsanalyse"
A60: Der Abschlussbericht zum Projekt kann auf der Website des SWK E² herunter geladen werden: https://www.hs-niederrhein.de/swk-e2/vwi-fokusthema-2021/

Sheet THG-Grafik
E2: Energiebedarf in kWh/a | J2: Emissionen in tCO2e/a | O2: Anteil Scope 1 und Scope 2 Emissionen

Sheet Nebenrechnungen
B1: Hilfstabellen und Nebenrechnungen
B3: Jahre | D3: Auswahl Sensitivität | G3: Anteile Emissionen
B4: 2017 | D4: Referenz | G4: Jahre | H4: ='01_THG-Bilanz'!D17 -> 2017 | I4: ='01_THG-Bilanz'!F17 -> 2016 | J4: ='01_THG-Bilanz'!H17 -> 2015
B5: =B4+1 -> 2018 | D5: Top 1 | G5: ='01_THG-Bilanz'!C33 -> Summe Scope 1 | H5: ='01_THG-Bilanz'!E33/'01_THG-Bilanz'!$E$35 -> 0.2455071134 | I5: ='01_THG-Bilanz'!G33/'01_THG-Bilanz'!$G$35 ->  | J5: ='01_THG-Bilanz'!I33/'01_THG-Bilanz'!$I$35 -> 
B6: =B5+1 -> 2019 | D6: Top 2 | G6: ='01_THG-Bilanz'!C34 -> Summe Scope 2 | H6: ='01_THG-Bilanz'!E34/'01_THG-Bilanz'!$E$35 -> 0.7544928866 | I6: ='01_THG-Bilanz'!G34/'01_THG-Bilanz'!$G$35 ->  | J6: ='01_THG-Bilanz'!I34/'01_THG-Bilanz'!$I$35 -> 
B7: 2020 | D7: Top 3 | G7: Gesamt | H7: ='01_THG-Bilanz'!E35/'01_THG-Bilanz'!$E$35 -> 1 | I7: ='01_THG-Bilanz'!G35/'01_THG-Bilanz'!$G$35 ->  | J7: ='01_THG-Bilanz'!I35/'01_THG-Bilanz'!$I$35 -> 
B8: 2021
B9: 2022
B10: 2023
B11: 2024
B13: Berechnungstabelle
B14: Periode | C14: 0 | D14: 1 | E14: 2 | F14: 3 | G14: 4 | H14: 5 | I14: 6 | J14: 7 | K14: 8 | L14: 9 | M14: 10 | N14: 11 | O14: 12 | P14: 13 | Q14: 14 | R14: 15 | S14: 16 | T14: 17 | U14: 18 | V14: 19 | W14: 20 | X14: 21 | Y14: 22 | Z14: 23 | AA14: 24 | AB14: 25 | AC14: 26 | AD14: 27 | AE14: 28 | AF14: 29 | AG14: 30 | AH14: 31 | AI14: 32 | AJ14: 33 | AK14: 34 | AL14: 35 | AM14: 36 | AN14: 37 | AO14: 38 | AP14: 39 | AQ14: 40 | AR14: 41 | AS14: 42 | AT14: 43 | AU14: 44 | AV14: 45 | AW14: 46 | AX14: 47 | AY14: 48 | AZ14: 49 | BA14: 50
B15: Betr.-Dauer | C15: =IF('04_Wirtschaftlichkeit'!$F$17>=Nebenrechnungen!C14,1,0) -> 1 | D15: =IF('04_Wirtschaftlichkeit'!$F$17>=Nebenrechnungen!D14,1,0) -> 1 | E15: =IF('04_Wirtschaftlichkeit'!$F$17>=Nebenrechnungen!E14,1,0) -> 1 | F15: =IF('04_Wirtschaftlichkeit'!$F$17>=Nebenrechnungen!F14,1,0) -> 1 | G15: =IF('04_Wirtschaftlichkeit'!$F$17>=Nebenrechnungen!G14,1,0) -> 1 | H15: =IF('04_Wirtschaftlichkeit'!$F$17>=Nebenrechnungen!H14,1,0) -> 1 | I15: =IF('04_Wirtschaftlichkeit'!$F$17>=Nebenrechnungen!I14,1,0) -> 1 | J15: =IF('04_Wirtschaftlichkeit'!$F$17>=Nebenrechnungen!J14,1,0) -> 1 | K15: =IF('04_Wirtschaftlichkeit'!$F$17>=Nebenrechnungen!K14,1,0) -> 1 | L15: =IF('04_Wirtschaftlichkeit'!$F$17>=Nebenrechnungen!L14,1,0) -> 1 | M15: =IF('04_Wirtschaftlichkeit'!$F$17>=Nebenrechnungen!M14,1,0) -> 1 | N15: =IF('04_Wirtschaftlichkeit'!$F$17>=Nebenrechnungen!N14,1,0) -> 1 | O15: =IF('04_Wirtschaftlichkeit'!$F$17>=Nebenrechnungen!O14,1,0) -> 1 | P15: =IF('04_Wirtschaftlichkeit'!$F$17>=Nebenrechnungen!P14,1,0) -> 1 | Q15: =IF('04_Wirtschaftlichkeit'!$F$17>=Nebenrechnungen!Q14,1,0) -> 1 | R15: =IF('04_Wirtschaftlichkeit'!$F$17>=Nebenrechnungen!R14,1,0) -> 1 | S15: =IF('04_Wirtschaftlichkeit'!$F$17>=Nebenrechnungen!S14,1,0) -> 1 | T15: =IF('04_Wirtschaftlichkeit'!$F$17>=Nebenrechnungen!T14,1,0) -> 1 | U15: =IF('04_Wirtschaftlichkeit'!$F$17>=Nebenrechnungen!U14,1,0) -> 1 | V15: =IF('04_Wirtschaftlichkeit'!$F$17>=Nebenrechnungen!V14,1,0) -> 1 | W15: =IF('04_Wirtschaftlichkeit'!$F$17>=Nebenrechnungen!W14,1,0) -> 1 | X15: =IF('04_Wirtschaftlichkeit'!$F$17>=Nebenrechnungen!X14,1,0) -> 0 | Y15: =IF('04_Wirtschaftlichkeit'!$F$17>=Nebenrechnungen!Y14,1,0) -> 0 | Z15: =IF('04_Wirtschaftlichkeit'!$F$17>=Nebenrechnungen!Z14,1,0) -> 0 | AA15: =IF('04_Wirtschaftlichkeit'!$F$17>=Nebenrechnungen!AA14,1,0) -> 0 | AB15: =IF('04_Wirtschaftlichkeit'!$F$17>=Nebenrechnungen!AB14,1,0) -> 0 | AC15: =IF('04_Wirtschaftlichkeit'!$F$17>=Nebenrechnungen!AC14,1,0) -> 0 | AD15: =IF('04_Wirtschaftlichkeit'!$F$17>=Nebenrechnungen!AD14,1,0) -> 0 | AE15: =IF('04_Wirtschaftlichkeit'!$F$17>=Nebenrechnungen!AE14,1,0) -> 0 | AF15: =IF('04_Wirtschaftlichkeit'!$F$17>=Nebenrechnungen!AF14,1,0) -> 0 | AG15: =IF('04_Wirtschaftlichkeit'!$F$17>=Nebenrechnungen!AG14,1,0) -> 0 | AH15: =IF('04_Wirtschaftlichkeit'!$F$17>=Nebenrechnungen!AH14,1,0) -> 0 | AI15: =IF('04_Wirtschaftlichkeit'!$F$17>=Nebenrechnungen!AI14,1,0) -> 0 | AJ15: =IF('04_Wirtschaftlichkeit'!$F$17>=Nebenrechnungen!AJ14,1,0) -> 0 | AK15: =IF('04_Wirtschaftlichkeit'!$F$17>=Nebenrechnungen!AK14,1,0) -> 0 | AL15: =IF('04_Wirtschaftlichkeit'!$F$17>=Nebenrechnungen!AL14,1,0) -> 0 | AM15: =IF('04_Wirtschaftlichkeit'!$F$17>=Nebenrechnungen!AM14,1,0) -> 0 | AN15: =IF('04_Wirtschaftlichkeit'!$F$17>=Nebenrechnungen!AN14,1,0) -> 0 | AO15: =IF('04_Wirtschaftlichkeit'!$F$17>=Nebenrechnungen!AO14,1,0) -> 0 | AP15: =IF('04_Wirtschaftlichkeit'!$F$17>=Nebenrechnungen!AP14,1,0) -> 0 | AQ15: =IF('04_Wirtschaftlichkeit'!$F$17>=Nebenrechnungen!AQ14,1,0) -> 0 | AR15: =IF('04_Wirtschaftlichkeit'!$F$17>=Nebenrechnungen!AR14,1,0) -> 0 | AS15: =IF('04_Wirtschaftlichkeit'!$F$17>=Nebenrechnungen!AS14,1,0) -> 0 | AT15: =IF('04_Wirtschaftlichkeit'!$F$17>=Nebenrechnungen!AT14,1,0) -> 0 | AU15: =IF('04_Wirtschaftlichkeit'!$F$17>=Nebenrechnungen!AU14,1,0) -> 0 | AV15: =IF('04_Wirtschaftlichkeit'!$F$17>=Nebenrechnungen!AV14,1,0) -> 0 | AW15: =IF('04_Wirtschaftlichkeit'!$F$17>=Nebenrechnungen!AW14,1,0) -> 0 | AX15: =IF('04_Wirtschaftlichkeit'!$F$17>=Nebenrechnungen!AX14,1,0) -> 0 | AY15: =IF('04_Wirtschaftlichkeit'!$F$17>=Nebenrechnungen!AY14,1,0) -> 0 | AZ15: =IF('04_Wirtschaftlichkeit'!$F$17>=Nebenrechnungen!AZ14,1,0) -> 0 | BA15: =IF('04_Wirtschaftlichkeit'!$F$17>=Nebenrechnungen!BA14,1,0) -> 0
B16: Referenz
B17: Investition | C17: ='04_Wirtschaftlichkeit'!E49 -> 239307.3236
B18: Auszahlungen | D18: ='04_Wirtschaftlichkeit'!$E$50*D15 -> 27558 | E18: ='04_Wirtschaftlichkeit'!$E$50*E15 -> 27558 | F18: ='04_Wirtschaftlichkeit'!$E$50*F15 -> 27558 | G18: ='04_Wirtschaftlichkeit'!$E$50*G15 -> 27558 | H18: ='04_Wirtschaftlichkeit'!$E$50*H15 -> 27558 | I18: ='04_Wirtschaftlichkeit'!$E$50*I15 -> 27558 | J18: ='04_Wirtschaftlichkeit'!$E$50*J15 -> 27558 | K18: ='04_Wirtschaftlichkeit'!$E$50*K15 -> 27558 | L18: ='04_Wirtschaftlichkeit'!$E$50*L15 -> 27558 | M18: ='04_Wirtschaftlichkeit'!$E$50*M15 -> 27558 | N18: ='04_Wirtschaftlichkeit'!$E$50*N15 -> 27558 | O18: ='04_Wirtschaftlichkeit'!$E$50*O15 -> 27558 | P18: ='04_Wirtschaftlichkeit'!$E$50*P15 -> 27558 | Q18: ='04_Wirtschaftlichkeit'!$E$50*Q15 -> 27558 | R18: ='04_Wirtschaftlichkeit'!$E$50*R15 -> 27558 | S18: ='04_Wirtschaftlichkeit'!$E$50*S15 -> 27558 | T18: ='04_Wirtschaftlichkeit'!$E$50*T15 -> 27558 | U18: ='04_Wirtschaftlichkeit'!$E$50*U15 -> 27558 | V18: ='04_Wirtschaftlichkeit'!$E$50*V15 -> 27558 | W18: ='04_Wirtschaftlichkeit'!$E$50*W15 -> 27558 | X18: ='04_Wirtschaftlichkeit'!$E$50*X15 -> 0 | Y18: ='04_Wirtschaftlichkeit'!$E$50*Y15 -> 0 | Z18: ='04_Wirtschaftlichkeit'!$E$50*Z15 -> 0 | AA18: ='04_Wirtschaftlichkeit'!$E$50*AA15 -> 0 | AB18: ='04_Wirtschaftlichkeit'!$E$50*AB15 -> 0 | AC18: ='04_Wirtschaftlichkeit'!$E$50*AC15 -> 0 | AD18: ='04_Wirtschaftlichkeit'!$E$50*AD15 -> 0 | AE18: ='04_Wirtschaftlichkeit'!$E$50*AE15 -> 0 | AF18: ='04_Wirtschaftlichkeit'!$E$50*AF15 -> 0 | AG18: ='04_Wirtschaftlichkeit'!$E$50*AG15 -> 0 | AH18: ='04_Wirtschaftlichkeit'!$E$50*AH15 -> 0 | AI18: ='04_Wirtschaftlichkeit'!$E$50*AI15 -> 0 | AJ18: ='04_Wirtschaftlichkeit'!$E$50*AJ15 -> 0 | AK18: ='04_Wirtschaftlichkeit'!$E$50*AK15 -> 0 | AL18: ='04_Wirtschaftlichkeit'!$E$50*AL15 -> 0 | AM18: ='04_Wirtschaftlichkeit'!$E$50*AM15 -> 0 | AN18: ='04_Wirtschaftlichkeit'!$E$50*AN15 -> 0 | AO18: ='04_Wirtschaftlichkeit'!$E$50*AO15 -> 0 | AP18: ='04_Wirtschaftlichkeit'!$E$50*AP15 -> 0 | AQ18: ='04_Wirtschaftlichkeit'!$E$50*AQ15 -> 0 | AR18: ='04_Wirtschaftlichkeit'!$E$50*AR15 -> 0 | AS18: ='04_Wirtschaftlichkeit'!$E$50*AS15 -> 0 | AT18: ='04_Wirtschaftlichkeit'!$E$50*AT15 -> 0 | AU18: ='04_Wirtschaftlichkeit'!$E$50*AU15 -> 0 | AV18: ='04_Wirtschaftlichkeit'!$E$50*AV15 -> 0 | AW18: ='04_Wirtschaftlichkeit'!$E$50*AW15 -> 0 | AX18: ='04_Wirtschaftlichkeit'!$E$50*AX15 -> 0 | AY18: ='04_Wirtschaftlichkeit'!$E$50*AY15 -> 0 | AZ18: ='04_Wirtschaftlichkeit'!$E$50*AZ15 -> 0 | BA18: ='04_Wirtschaftlichkeit'!$E$50*BA15 -> 0
B19: CO2 Kosten | D19: ='04_Wirtschaftlichkeit'!$E$38*'04_Wirtschaftlichkeit'!$F$18*D15 -> 3253.025 | E19: ='04_Wirtschaftlichkeit'!$E$38*'04_Wirtschaftlichkeit'!$F$18*E15 -> 3253.025 | F19: ='04_Wirtschaftlichkeit'!$E$38*'04_Wirtschaftlichkeit'!$F$18*F15 -> 3253.025 | G19: ='04_Wirtschaftlichkeit'!$E$38*'04_Wirtschaftlichkeit'!$F$18*G15 -> 3253.025 | H19: ='04_Wirtschaftlichkeit'!$E$38*'04_Wirtschaftlichkeit'!$F$18*H15 -> 3253.025 | I19: ='04_Wirtschaftlichkeit'!$E$38*'04_Wirtschaftlichkeit'!$F$18*I15 -> 3253.025 | J19: ='04_Wirtschaftlichkeit'!$E$38*'04_Wirtschaftlichkeit'!$F$18*J15 -> 3253.025 | K19: ='04_Wirtschaftlichkeit'!$E$38*'04_Wirtschaftlichkeit'!$F$18*K15 -> 3253.025 | L19: ='04_Wirtschaftlichkeit'!$E$38*'04_Wirtschaftlichkeit'!$F$18*L15 -> 3253.025 | M19: ='04_Wirtschaftlichkeit'!$E$38*'04_Wirtschaftlichkeit'!$F$18*M15 -> 3253.025 | N19: ='04_Wirtschaftlichkeit'!$E$38*'04_Wirtschaftlichkeit'!$F$18*N15 -> 3253.025 | O19: ='04_Wirtschaftlichkeit'!$E$38*'04_Wirtschaftlichkeit'!$F$18*O15 -> 3253.025 | P19: ='04_Wirtschaftlichkeit'!$E$38*'04_Wirtschaftlichkeit'!$F$18*P15 -> 3253.025 | Q19: ='04_Wirtschaftlichkeit'!$E$38*'04_Wirtschaftlichkeit'!$F$18*Q15 -> 3253.025 | R19: ='04_Wirtschaftlichkeit'!$E$38*'04_Wirtschaftlichkeit'!$F$18*R15 -> 3253.025 | S19: ='04_Wirtschaftlichkeit'!$E$38*'04_Wirtschaftlichkeit'!$F$18*S15 -> 3253.025 | T19: ='04_Wirtschaftlichkeit'!$E$38*'04_Wirtschaftlichkeit'!$F$18*T15 -> 3253.025 | U19: ='04_Wirtschaftlichkeit'!$E$38*'04_Wirtschaftlichkeit'!$F$18*U15 -> 3253.025 | V19: ='04_Wirtschaftlichkeit'!$E$38*'04_Wirtschaftlichkeit'!$F$18*V15 -> 3253.025 | W19: ='04_Wirtschaftlichkeit'!$E$38*'04_Wirtschaftlichkeit'!$F$18*W15 -> 3253.025 | X19: ='04_Wirtschaftlichkeit'!$E$38*'04_Wirtschaftlichkeit'!$F$18*X15 -> 0 | Y19: ='04_Wirtschaftlichkeit'!$E$38*'04_Wirtschaftlichkeit'!$F$18*Y15 -> 0 | Z19: ='04_Wirtschaftlichkeit'!$E$38*'04_Wirtschaftlichkeit'!$F$18*Z15 -> 0 | AA19: ='04_Wirtschaftlichkeit'!$E$38*'04_Wirtschaftlichkeit'!$F$18*AA15 -> 0 | AB19: ='04_Wirtschaftlichkeit'!$E$38*'04_Wirtschaftlichkeit'!$F$18*AB15 -> 0 | AC19: ='04_Wirtschaftlichkeit'!$E$38*'04_Wirtschaftlichkeit'!$F$18*AC15 -> 0 | AD19: ='04_Wirtschaftlichkeit'!$E$38*'04_Wirtschaftlichkeit'!$F$18*AD15 -> 0 | AE19: ='04_Wirtschaftlichkeit'!$E$38*'04_Wirtschaftlichkeit'!$F$18*AE15 -> 0 | AF19: ='04_Wirtschaftlichkeit'!$E$38*'04_Wirtschaftlichkeit'!$F$18*AF15 -> 0 | AG19: ='04_Wirtschaftlichkeit'!$E$38*'04_Wirtschaftlichkeit'!$F$18*AG15 -> 0 | AH19: ='04_Wirtschaftlichkeit'!$E$38*'04_Wirtschaftlichkeit'!$F$18*AH15 -> 0 | AI19: ='04_Wirtschaftlichkeit'!$E$38*'04_Wirtschaftlichkeit'!$F$18*AI15 -> 0 | AJ19: ='04_Wirtschaftlichkeit'!$E$38*'04_Wirtschaftlichkeit'!$F$18*AJ15 -> 0 | AK19: ='04_Wirtschaftlichkeit'!$E$38*'04_Wirtschaftlichkeit'!$F$18*AK15 -> 0 | AL19: ='04_Wirtschaftlichkeit'!$E$38*'04_Wirtschaftlichkeit'!$F$18*AL15 -> 0 | AM19: ='04_Wirtschaftlichkeit'!$E$38*'04_Wirtschaftlichkeit'!$F$18*AM15 -> 0 | AN19: ='04_Wirtschaftlichkeit'!$E$38*'04_Wirtschaftlichkeit'!$F$18*AN15 -> 0 | AO19: ='04_Wirtschaftlichkeit'!$E$38*'04_Wirtschaftlichkeit'!$F$18*AO15 -> 0 | AP19: ='04_Wirtschaftlichkeit'!$E$38*'04_Wirtschaftlichkeit'!$F$18*AP15 -> 0 | AQ19: ='04_Wirtschaftlichkeit'!$E$38*'04_Wirtschaftlichkeit'!$F$18*AQ15 -> 0 | AR19: ='04_Wirtschaftlichkeit'!$E$38*'04_Wirtschaftlichkeit'!$F$18*AR15 -> 0 | AS19: ='04_Wirtschaftlichkeit'!$E$38*'04_Wirtschaftlichkeit'!$F$18*AS15 -> 0 | AT19: ='04_Wirtschaftlichkeit'!$E$38*'04_Wirtschaftlichkeit'!$F$18*AT15 -> 0 | AU19: ='04_Wirtschaftlichkeit'!$E$38*'04_Wirtschaftlichkeit'!$F$18*AU15 -> 0 | AV19: ='04_Wirtschaftlichkeit'!$E$38*'04_Wirtschaftlichkeit'!$F$18*AV15 -> 0 | AW19: ='04_Wirtschaftlichkeit'!$E$38*'04_Wirtschaftlichkeit'!$F$18*AW15 -> 0 | AX19: ='04_Wirtschaftlichkeit'!$E$38*'04_Wirtschaftlichkeit'!$F$18*AX15 -> 0 | AY19: ='04_Wirtschaftlichkeit'!$E$38*'04_Wirtschaftlichkeit'!$F$18*AY15 -> 0 | AZ19: ='04_Wirtschaftlichkeit'!$E$38*'04_Wirtschaftlichkeit'!$F$18*AZ15 -> 0 | BA19: ='04_Wirtschaftlichkeit'!$E$38*'04_Wirtschaftlichkeit'!$F$18*BA15 -> 0
B20: Einzahlungen | D20: 0 | E20: 0 | F20: 0 | G20: 0 | H20: 0 | I20: 0 | J20: 0 | K20: 0 | L20: 0 | M20: 0 | N20: 0 | O20: 0 | P20: 0 | Q20: 0 | R20: 0 | S20: 0 | T20: 0 | U20: 0 | V20: 0 | W20: 0 | X20: 0 | Y20: 0 | Z20: 0 | AA20: 0 | AB20: 0 | AC20: 0 | AD20: 0 | AE20: 0 | AF20: 0 | AG20: 0 | AH20: 0 | AI20: 0 | AJ20: 0 | AK20: 0 | AL20: 0 | AM20: 0 | AN20: 0 | AO20: 0 | AP20: 0 | AQ20: 0 | AR20: 0 | AS20: 0 | AT20: 0 | AU20: 0 | AV20: 0 | AW20: 0 | AX20: 0 | AY20: 0 | AZ20: 0 | BA20: 0
B21: Saldo je Periode | C21: =((C20-SUM(C17:C19))*C$15) -> -239307.3236 | D21: -30811.025 | E21: -30811.025 | F21: -30811.025 | G21: -30811.025 | H21: -30811.025 | I21: -30811.025 | J21: -30811.025 | K21: -30811.025 | L21: -30811.025 | M21: -30811.025 | N21: -30811.025 | O21: -30811.025 | P21: -30811.025 | Q21: -30811.025 | R21: -30811.025 | S21: -30811.025 | T21: -30811.025 | U21: -30811.025 | V21: -30811.025 | W21: -30811.025 | X21: 0 | Y21: 0 | Z21: 0 | AA21: 0 | AB21: 0 | AC21: 0 | AD21: 0 | AE21: 0 | AF21: 0 | AG21: 0 | AH21: 0 | AI21: =((AI20-SUM(AI17:AI19))*AI$15) -> 0 | AJ21: 0 | AK21: 0 | AL21: 0 | AM21: 0 | AN21: 0 | AO21: 0 | AP21: 0 | AQ21: 0 | AR21: 0 | AS21: 0 | AT21: 0 | AU21: 0 | AV21: 0 | AW21: 0 | AX21: 0 | AY21: 0 | AZ21: 0 | BA21: 0
B22: Periodenbarwert | C22: =((C20-SUM(C17:C19))*C$15)*(1+'04_Wirtschaftlichkeit'!$F$16)^-C$14 -> -239307.3236 | D22: =((D20-SUM(D17:D19))*D$15)*(1+'04_Wirtschaftlichkeit'!$F$16)^-D$14 -> -30430.64198 | E22: =((E20-SUM(E17:E19))*E$15)*(1+'04_Wirtschaftlichkeit'!$F$16)^-E$14 -> -30054.95504 | F22: =((F20-SUM(F17:F19))*F$15)*(1+'04_Wirtschaftlichkeit'!$F$16)^-F$14 -> -29683.90621 | G22: =((G20-SUM(G17:G19))*G$15)*(1+'04_Wirtschaftlichkeit'!$F$16)^-G$14 -> -29317.43823 | H22: =((H20-SUM(H17:H19))*H$15)*(1+'04_Wirtschaftlichkeit'!$F$16)^-H$14 -> -28955.49455 | I22: =((I20-SUM(I17:I19))*I$15)*(1+'04_Wirtschaftlichkeit'!$F$16)^-I$14 -> -28598.01931 | J22: =((J20-SUM(J17:J19))*J$15)*(1+'04_Wirtschaftlichkeit'!$F$16)^-J$14 -> -28244.95734 | K22: =((K20-SUM(K17:K19))*K$15)*(1+'04_Wirtschaftlichkeit'!$F$16)^-K$14 -> -27896.25416 | L22: =((L20-SUM(L17:L19))*L$15)*(1+'04_Wirtschaftlichkeit'!$F$16)^-L$14 -> -27551.85597 | M22: =((M20-SUM(M17:M19))*M$15)*(1+'04_Wirtschaftlichkeit'!$F$16)^-M$14 -> -27211.7096 | N22: =((N20-SUM(N17:N19))*N$15)*(1+'04_Wirtschaftlichkeit'!$F$16)^-N$14 -> -26875.76256 | O22: =((O20-SUM(O17:O19))*O$15)*(1+'04_Wirtschaftlichkeit'!$F$16)^-O$14 -> -26543.96303 | P22: =((P20-SUM(P17:P19))*P$15)*(1+'04_Wirtschaftlichkeit'!$F$16)^-P$14 -> -26216.25978 | Q22: =((Q20-SUM(Q17:Q19))*Q$15)*(1+'04_Wirtschaftlichkeit'!$F$16)^-Q$14 -> -25892.60225 | R22: =((R20-SUM(R17:R19))*R$15)*(1+'04_Wirtschaftlichkeit'!$F$16)^-R$14 -> -25572.94049 | S22: =((S20-SUM(S17:S19))*S$15)*(1+'04_Wirtschaftlichkeit'!$F$16)^-S$14 -> -25257.22518 | T22: =((T20-SUM(T17:T19))*T$15)*(1+'04_Wirtschaftlichkeit'!$F$16)^-T$14 -> -24945.40758 | U22: =((U20-SUM(U17:U19))*U$15)*(1+'04_Wirtschaftlichkeit'!$F$16)^-U$14 -> -24637.43959 | V22: =((V20-SUM(V17:V19))*V$15)*(1+'04_Wirtschaftlichkeit'!$F$16)^-V$14 -> -24333.27367 | W22: =((W20-SUM(W17:W19))*W$15)*(1+'04_Wirtschaftlichkeit'!$F$16)^-W$14 -> -24032.86288 | X22: =((X20-SUM(X17:X19))*X$15)*(1+'04_Wirtschaftlichkeit'!$F$16)^-X$14 -> 0 | Y22: =((Y20-SUM(Y17:Y19))*Y$15)*(1+'04_Wirtschaftlichkeit'!$F$16)^-Y$14 -> 0 | Z22: =((Z20-SUM(Z17:Z19))*Z$15)*(1+'04_Wirtschaftlichkeit'!$F$16)^-Z$14 -> 0 | AA22: =((AA20-SUM(AA17:AA19))*AA$15)*(1+'04_Wirtschaftlichkeit'!$F$16)^-AA$14 -> 0 | AB22: =((AB20-SUM(AB17:AB19))*AB$15)*(1+'04_Wirtschaftlichkeit'!$F$16)^-AB$14 -> 0 | AC22: =((AC20-SUM(AC17:AC19))*AC$15)*(1+'04_Wirtschaftlichkeit'!$F$16)^-AC$14 -> 0 | AD22: =((AD20-SUM(AD17:AD19))*AD$15)*(1+'04_Wirtschaftlichkeit'!$F$16)^-AD$14 -> 0 | AE22: =((AE20-SUM(AE17:AE19))*AE$15)*(1+'04_Wirtschaftlichkeit'!$F$16)^-AE$14 -> 0 | AF22: =((AF20-SUM(AF17:AF19))*AF$15)*(1+'04_Wirtschaftlichkeit'!$F$16)^-AF$14 -> 0 | AG22: =((AG20-SUM(AG17:AG19))*AG$15)*(1+'04_Wirtschaftlichkeit'!$F$16)^-AG$14 -> 0 | AH22: =((AH20-SUM(AH17:AH19))*AH$15)*(1+'04_Wirtschaftlichkeit'!$F$16)^-AH$14 -> 0 | AI22: =((AI20-SUM(AI17:AI19))*AI$15)*(1+'04_Wirtschaftlichkeit'!$F$16)^-AI$14 -> 0 | AJ22: =((AJ20-SUM(AJ17:AJ19))*AJ$15)*(1+'04_Wirtschaftlichkeit'!$F$16)^-AJ$14 -> 0 | AK22: =((AK20-SUM(AK17:AK19))*AK$15)*(1+'04_Wirtschaftlichkeit'!$F$16)^-AK$14 -> 0 | AL22: =((AL20-SUM(AL17:AL19))*AL$15)*(1+'04_Wirtschaftlichkeit'!$F$16)^-AL$14 -> 0 | AM22: =((AM20-SUM(AM17:AM19))*AM$15)*(1+'04_Wirtschaftlichkeit'!$F$16)^-AM$14 -> 0 | AN22: =((AN20-SUM(AN17:AN19))*AN$15)*(1+'04_Wirtschaftlichkeit'!$F$16)^-AN$14 -> 0 | AO22: =((AO20-SUM(AO17:AO19))*AO$15)*(1+'04_Wirtschaftlichkeit'!$F$16)^-AO$14 -> 0 | AP22: =((AP20-SUM(AP17:AP19))*AP$15)*(1+'04_Wirtschaftlichkeit'!$F$16)^-AP$14 -> 0 | AQ22: =((AQ20-SUM(AQ17:AQ19))*AQ$15)*(1+'04_Wirtschaftlichkeit'!$F$16)^-AQ$14 -> 0 | AR22: =((AR20-SUM(AR17:AR19))*AR$15)*(1+'04_Wirtschaftlichkeit'!$F$16)^-AR$14 -> 0 | AS22: =((AS20-SUM(AS17:AS19))*AS$15)*(1+'04_Wirtschaftlichkeit'!$F$16)^-AS$14 -> 0 | AT22: =((AT20-SUM(AT17:AT19))*AT$15)*(1+'04_Wirtschaftlichkeit'!$F$16)^-AT$14 -> 0 | AU22: =((AU20-SUM(AU17:AU19))*AU$15)*(1+'04_Wirtschaftlichkeit'!$F$16)^-AU$14 -> 0 | AV22: =((AV20-SUM(AV17:AV19))*AV$15)*(1+'04_Wirtschaftlichkeit'!$F$16)^-AV$14 -> 0 | AW22: =((AW20-SUM(AW17:AW19))*AW$15)*(1+'04_Wirtschaftlichkeit'!$F$16)^-AW$14 -> 0 | AX22: =((AX20-SUM(AX17:AX19))*AX$15)*(1+'04_Wirtschaftlichkeit'!$F$16)^-AX$14 -> 0 | AY22: =((AY20-SUM(AY17:AY19))*AY$15)*(1+'04_Wirtschaftlichkeit'!$F$16)^-AY$14 -> 0 | AZ22: =((AZ20-SUM(AZ17:AZ19))*AZ$15)*(1+'04_Wirtschaftlichkeit'!$F$16)^-AZ$14 -> 0 | BA22: =((BA20-SUM(BA17:BA19))*BA$15)*(1+'04_Wirtschaftlichkeit'!$F$16)^-BA$14 -> 0
B23: KW je Periode | C23: =SUM($C$22:C22)*C$15 -> -239307.3236 | D23: =SUM($C$22:D22)*D$15 -> -269737.9656 | E23: =SUM($C$22:E22)*E$15 -> -299792.9206 | F23: =SUM($C$22:F22)*F$15 -> -329476.8268 | G23: =SUM($C$22:G22)*G$15 -> -358794.265 | H23: =SUM($C$22:H22)*H$15 -> -387749.7596 | I23: =SUM($C$22:I22)*I$15 -> -416347.7789 | J23: =SUM($C$22:J22)*J$15 -> -444592.7362 | K23: =SUM($C$22:K22)*K$15 -> -472488.9904 | L23: =SUM($C$22:L22)*L$15 -> -500040.8464 | M23: =SUM($C$22:M22)*M$15 -> -527252.556 | N23: =SUM($C$22:N22)*N$15 -> -554128.3185 | O23: =SUM($C$22:O22)*O$15 -> -580672.2816 | P23: =SUM($C$22:P22)*P$15 -> -606888.5413 | Q23: =SUM($C$22:Q22)*Q$15 -> -632781.1436 | R23: =SUM($C$22:R22)*R$15 -> -658354.0841 | S23: =SUM($C$22:S22)*S$15 -> -683611.3093 | T23: =SUM($C$22:T22)*T$15 -> -708556.7168 | U23: =SUM($C$22:U22)*U$15 -> -733194.1564 | V23: =SUM($C$22:V22)*V$15 -> -757527.4301 | W23: =SUM($C$22:W22)*W$15 -> -781560.293 | X23: =SUM($C$22:X22)*X$15 -> 0 | Y23: =SUM($C$22:Y22)*Y$15 -> 0 | Z23: =SUM($C$22:Z22)*Z$15 -> 0 | AA23: =SUM($C$22:AA22)*AA$15 -> 0 | AB23: =SUM($C$22:AB22)*AB$15 -> 0 | AC23: =SUM($C$22:AC22)*AC$15 -> 0 | AD23: =SUM($C$22:AD22)*AD$15 -> 0 | AE23: =SUM($C$22:AE22)*AE$15 -> 0 | AF23: =SUM($C$22:AF22)*AF$15 -> 0 | AG23: =SUM($C$22:AG22)*AG$15 -> 0 | AH23: =SUM($C$22:AH22)*AH$15 -> 0 | AI23: =SUM($C$22:AI22)*AI$15 -> 0 | AJ23: =SUM($C$22:AJ22)*AJ$15 -> 0 | AK23: =SUM($C$22:AK22)*AK$15 -> 0 | AL23: =SUM($C$22:AL22)*AL$15 -> 0 | AM23: =SUM($C$22:AM22)*AM$15 -> 0 | AN23: =SUM($C$22:AN22)*AN$15 -> 0 | AO23: =SUM($C$22:AO22)*AO$15 -> 0 | AP23: =SUM($C$22:AP22)*AP$15 -> 0 | AQ23: =SUM($C$22:AQ22)*AQ$15 -> 0 | AR23: =SUM($C$22:AR22)*AR$15 -> 0 | AS23: =SUM($C$22:AS22)*AS$15 -> 0 | AT23: =SUM($C$22:AT22)*AT$15 -> 0 | AU23: =SUM($C$22:AU22)*AU$15 -> 0 | AV23: =SUM($C$22:AV22)*AV$15 -> 0 | AW23: =SUM($C$22:AW22)*AW$15 -> 0 | AX23: =SUM($C$22:AX22)*AX$15 -> 0 | AY23: =SUM($C$22:AY22)*AY$15 -> 0 | AZ23: =SUM($C$22:AZ22)*AZ$15 -> 0 | BA23: =SUM($C$22:BA22)*BA$15 -> 0
B24: Amortisation | C24: =IF(AND(C23<0,D23>0),C$14+C23/(C23-D23),0) -> 0 | D24: =IF(AND(D23<0,E23>0),D14+D23/(D23-E23),0) -> 0 | E24: 0 | F24: 0 | G24: 0 | H24: 0 | I24: 0 | J24: 0 | K24: 0 | L24: 0 | M24: 0 | N24: 0 | O24: 0 | P24: 0 | Q24: 0 | R24: 0 | S24: 0 | T24: 0 | U24: 0 | V24: 0 | W24: 0 | X24: 0 | Y24: 0 | Z24: 0 | AA24: 0 | AB24: 0 | AC24: 0 | AD24: 0 | AE24: 0 | AF24: 0 | AG24: 0 | AH24: 0 | AI24: 0 | AJ24: =IF(AND(AJ23<0,AK23>0),AJ14+AJ23/(AJ23-AK23),0) -> 0 | AK24: 0 | AL24: 0 | AM24: 0 | AN24: 0 | AO24: 0 | AP24: 0 | AQ24: 0 | AR24: 0 | AS24: 0 | AT24: 0 | AU24: 0 | AV24: 0 | AW24: 0 | AX24: 0 | AY24: 0 | AZ24: 0 | BA24: 0
B25: Top 1
B26: Investition | C26: ='04_Wirtschaftlichkeit'!G49 -> 1057830.717
B27: Auszahlungen | D27: ='04_Wirtschaftlichkeit'!$G$50*D15 -> 83689 | E27: ='04_Wirtschaftlichkeit'!$G$50*E15 -> 83689 | F27: ='04_Wirtschaftlichkeit'!$G$50*F15 -> 83689 | G27: ='04_Wirtschaftlichkeit'!$G$50*G15 -> 83689 | H27: ='04_Wirtschaftlichkeit'!$G$50*H15 -> 83689 | I27: ='04_Wirtschaftlichkeit'!$G$50*I15 -> 83689 | J27: ='04_Wirtschaftlichkeit'!$G$50*J15 -> 83689 | K27: ='04_Wirtschaftlichkeit'!$G$50*K15 -> 83689 | L27: ='04_Wirtschaftlichkeit'!$G$50*L15 -> 83689 | M27: ='04_Wirtschaftlichkeit'!$G$50*M15 -> 83689 | N27: ='04_Wirtschaftlichkeit'!$G$50*N15 -> 83689 | O27: ='04_Wirtschaftlichkeit'!$G$50*O15 -> 83689 | P27: ='04_Wirtschaftlichkeit'!$G$50*P15 -> 83689 | Q27: ='04_Wirtschaftlichkeit'!$G$50*Q15 -> 83689 | R27: ='04_Wirtschaftlichkeit'!$G$50*R15 -> 83689 | S27: ='04_Wirtschaftlichkeit'!$G$50*S15 -> 83689 | T27: ='04_Wirtschaftlichkeit'!$G$50*T15 -> 83689 | U27: ='04_Wirtschaftlichkeit'!$G$50*U15 -> 83689 | V27: ='04_Wirtschaftlichkeit'!$G$50*V15 -> 83689 | W27: ='04_Wirtschaftlichkeit'!$G$50*W15 -> 83689 | X27: ='04_Wirtschaftlichkeit'!$G$50*X15 -> 0 | Y27: ='04_Wirtschaftlichkeit'!$G$50*Y15 -> 0 | Z27: ='04_Wirtschaftlichkeit'!$G$50*Z15 -> 0 | AA27: ='04_Wirtschaftlichkeit'!$G$50*AA15 -> 0 | AB27: ='04_Wirtschaftlichkeit'!$G$50*AB15 -> 0 | AC27: ='04_Wirtschaftlichkeit'!$G$50*AC15 -> 0 | AD27: ='04_Wirtschaftlichkeit'!$G$50*AD15 -> 0 | AE27: ='04_Wirtschaftlichkeit'!$G$50*AE15 -> 0 | AF27: ='04_Wirtschaftlichkeit'!$G$50*AF15 -> 0 | AG27: ='04_Wirtschaftlichkeit'!$G$50*AG15 -> 0 | AH27: ='04_Wirtschaftlichkeit'!$G$50*AH15 -> 0 | AI27: ='04_Wirtschaftlichkeit'!$G$50*AI15 -> 0 | AJ27: ='04_Wirtschaftlichkeit'!$G$50*AJ15 -> 0 | AK27: ='04_Wirtschaftlichkeit'!$G$50*AK15 -> 0 | AL27: ='04_Wirtschaftlichkeit'!$G$50*AL15 -> 0 | AM27: ='04_Wirtschaftlichkeit'!$G$50*AM15 -> 0 | AN27: ='04_Wirtschaftlichkeit'!$G$50*AN15 -> 0 | AO27: ='04_Wirtschaftlichkeit'!$G$50*AO15 -> 0 | AP27: ='04_Wirtschaftlichkeit'!$G$50*AP15 -> 0 | AQ27: ='04_Wirtschaftlichkeit'!$G$50*AQ15 -> 0 | AR27: ='04_Wirtschaftlichkeit'!$G$50*AR15 -> 0 | AS27: ='04_Wirtschaftlichkeit'!$G$50*AS15 -> 0 | AT27: ='04_Wirtschaftlichkeit'!$G$50*AT15 -> 0 | AU27: ='04_Wirtschaftlichkeit'!$G$50*AU15 -> 0 | AV27: ='04_Wirtschaftlichkeit'!$G$50*AV15 -> 0 | AW27: ='04_Wirtschaftlichkeit'!$G$50*AW15 -> 0 | AX27: ='04_Wirtschaftlichkeit'!$G$50*AX15 -> 0 | AY27: ='04_Wirtschaftlichkeit'!$G$50*AY15 -> 0 | AZ27: ='04_Wirtschaftlichkeit'!$G$50*AZ15 -> 0 | BA27: ='04_Wirtschaftlichkeit'!$G$50*BA15 -> 0
B28: CO2 Kosten | D28: ='04_Wirtschaftlichkeit'!$H$38*'04_Wirtschaftlichkeit'!$F$18*Nebenrechnungen!D15 -> 518.9 | E28: ='04_Wirtschaftlichkeit'!$H$38*'04_Wirtschaftlichkeit'!$F$18*Nebenrechnungen!E15 -> 518.9 | F28: ='04_Wirtschaftlichkeit'!$H$38*'04_Wirtschaftlichkeit'!$F$18*Nebenrechnungen!F15 -> 518.9 | G28: ='04_Wirtschaftlichkeit'!$H$38*'04_Wirtschaftlichkeit'!$F$18*Nebenrechnungen!G15 -> 518.9 | H28: ='04_Wirtschaftlichkeit'!$H$38*'04_Wirtschaftlichkeit'!$F$18*Nebenrechnungen!H15 -> 518.9 | I28: ='04_Wirtschaftlichkeit'!$H$38*'04_Wirtschaftlichkeit'!$F$18*Nebenrechnungen!I15 -> 518.9 | J28: ='04_Wirtschaftlichkeit'!$H$38*'04_Wirtschaftlichkeit'!$F$18*Nebenrechnungen!J15 -> 518.9 | K28: ='04_Wirtschaftlichkeit'!$H$38*'04_Wirtschaftlichkeit'!$F$18*Nebenrechnungen!K15 -> 518.9 | L28: ='04_Wirtschaftlichkeit'!$H$38*'04_Wirtschaftlichkeit'!$F$18*Nebenrechnungen!L15 -> 518.9 | M28: ='04_Wirtschaftlichkeit'!$H$38*'04_Wirtschaftlichkeit'!$F$18*Nebenrechnungen!M15 -> 518.9 | N28: ='04_Wirtschaftlichkeit'!$H$38*'04_Wirtschaftlichkeit'!$F$18*Nebenrechnungen!N15 -> 518.9 | O28: ='04_Wirtschaftlichkeit'!$H$38*'04_Wirtschaftlichkeit'!$F$18*Nebenrechnungen!O15 -> 518.9 | P28: ='04_Wirtschaftlichkeit'!$H$38*'04_Wirtschaftlichkeit'!$F$18*Nebenrechnungen!P15 -> 518.9 | Q28: ='04_Wirtschaftlichkeit'!$H$38*'04_Wirtschaftlichkeit'!$F$18*Nebenrechnungen!Q15 -> 518.9 | R28: ='04_Wirtschaftlichkeit'!$H$38*'04_Wirtschaftlichkeit'!$F$18*Nebenrechnungen!R15 -> 518.9 | S28: ='04_Wirtschaftlichkeit'!$H$38*'04_Wirtschaftlichkeit'!$F$18*Nebenrechnungen!S15 -> 518.9 | T28: ='04_Wirtschaftlichkeit'!$H$38*'04_Wirtschaftlichkeit'!$F$18*Nebenrechnungen!T15 -> 518.9 | U28: ='04_Wirtschaftlichkeit'!$H$38*'04_Wirtschaftlichkeit'!$F$18*Nebenrechnungen!U15 -> 518.9 | V28: ='04_Wirtschaftlichkeit'!$H$38*'04_Wirtschaftlichkeit'!$F$18*Nebenrechnungen!V15 -> 518.9 | W28: ='04_Wirtschaftlichkeit'!$H$38*'04_Wirtschaftlichkeit'!$F$18*Nebenrechnungen!W15 -> 518.9 | X28: ='04_Wirtschaftlichkeit'!$H$38*'04_Wirtschaftlichkeit'!$F$18*Nebenrechnungen!X15 -> 0 | Y28: ='04_Wirtschaftlichkeit'!$H$38*'04_Wirtschaftlichkeit'!$F$18*Nebenrechnungen!Y15 -> 0 | Z28: ='04_Wirtschaftlichkeit'!$H$38*'04_Wirtschaftlichkeit'!$F$18*Nebenrechnungen!Z15 -> 0 | AA28: ='04_Wirtschaftlichkeit'!$H$38*'04_Wirtschaftlichkeit'!$F$18*Nebenrechnungen!AA15 -> 0 | AB28: ='04_Wirtschaftlichkeit'!$H$38*'04_Wirtschaftlichkeit'!$F$18*Nebenrechnungen!AB15 -> 0 | AC28: ='04_Wirtschaftlichkeit'!$H$38*'04_Wirtschaftlichkeit'!$F$18*Nebenrechnungen!AC15 -> 0 | AD28: ='04_Wirtschaftlichkeit'!$H$38*'04_Wirtschaftlichkeit'!$F$18*Nebenrechnungen!AD15 -> 0 | AE28: ='04_Wirtschaftlichkeit'!$H$38*'04_Wirtschaftlichkeit'!$F$18*Nebenrechnungen!AE15 -> 0 | AF28: ='04_Wirtschaftlichkeit'!$H$38*'04_Wirtschaftlichkeit'!$F$18*Nebenrechnungen!AF15 -> 0 | AG28: ='04_Wirtschaftlichkeit'!$H$38*'04_Wirtschaftlichkeit'!$F$18*Nebenrechnungen!AG15 -> 0 | AH28: ='04_Wirtschaftlichkeit'!$H$38*'04_Wirtschaftlichkeit'!$F$18*Nebenrechnungen!AH15 -> 0 | AI28: ='04_Wirtschaftlichkeit'!$H$38*'04_Wirtschaftlichkeit'!$F$18*Nebenrechnungen!AI15 -> 0 | AJ28: ='04_Wirtschaftlichkeit'!$H$38*'04_Wirtschaftlichkeit'!$F$18*Nebenrechnungen!AJ15 -> 0 | AK28: ='04_Wirtschaftlichkeit'!$H$38*'04_Wirtschaftlichkeit'!$F$18*Nebenrechnungen!AK15 -> 0 | AL28: ='04_Wirtschaftlichkeit'!$H$38*'04_Wirtschaftlichkeit'!$F$18*Nebenrechnungen!AL15 -> 0 | AM28: ='04_Wirtschaftlichkeit'!$H$38*'04_Wirtschaftlichkeit'!$F$18*Nebenrechnungen!AM15 -> 0 | AN28: ='04_Wirtschaftlichkeit'!$H$38*'04_Wirtschaftlichkeit'!$F$18*Nebenrechnungen!AN15 -> 0 | AO28: ='04_Wirtschaftlichkeit'!$H$38*'04_Wirtschaftlichkeit'!$F$18*Nebenrechnungen!AO15 -> 0 | AP28: ='04_Wirtschaftlichkeit'!$H$38*'04_Wirtschaftlichkeit'!$F$18*Nebenrechnungen!AP15 -> 0 | AQ28: ='04_Wirtschaftlichkeit'!$H$38*'04_Wirtschaftlichkeit'!$F$18*Nebenrechnungen!AQ15 -> 0 | AR28: ='04_Wirtschaftlichkeit'!$H$38*'04_Wirtschaftlichkeit'!$F$18*Nebenrechnungen!AR15 -> 0 | AS28: ='04_Wirtschaftlichkeit'!$H$38*'04_Wirtschaftlichkeit'!$F$18*Nebenrechnungen!AS15 -> 0 | AT28: ='04_Wirtschaftlichkeit'!$H$38*'04_Wirtschaftlichkeit'!$F$18*Nebenrechnungen!AT15 -> 0 | AU28: ='04_Wirtschaftlichkeit'!$H$38*'04_Wirtschaftlichkeit'!$F$18*Nebenrechnungen!AU15 -> 0 | AV28: ='04_Wirtschaftlichkeit'!$H$38*'04_Wirtschaftlichkeit'!$F$18*Nebenrechnungen!AV15 -> 0 | AW28: ='04_Wirtschaftlichkeit'!$H$38*'04_Wirtschaftlichkeit'!$F$18*Nebenrechnungen!AW15 -> 0 | AX28: ='04_Wirtschaftlichkeit'!$H$38*'04_Wirtschaftlichkeit'!$F$18*Nebenrechnungen!AX15 -> 0 | AY28: ='04_Wirtschaftlichkeit'!$H$38*'04_Wirtschaftlichkeit'!$F$18*Nebenrechnungen!AY15 -> 0 | AZ28: ='04_Wirtschaftlichkeit'!$H$38*'04_Wirtschaftlichkeit'!$F$18*Nebenrechnungen!AZ15 -> 0 | BA28: ='04_Wirtschaftlichkeit'!$H$38*'04_Wirtschaftlichkeit'!$F$18*Nebenrechnungen!BA15 -> 0
B29: Einzahlungen | C29: =-C$21 -> 239307.3236 | D29: 30811.025 | E29: 30811.025 | F29: 30811.025 | G29: 30811.025 | H29: 30811.025 | I29: 30811.025 | J29: 30811.025 | K29: 30811.025 | L29: 30811.025 | M29: 30811.025 | N29: 30811.025 | O29: 30811.025 | P29: 30811.025 | Q29: 30811.025 | R29: 30811.025 | S29: 30811.025 | T29: 30811.025 | U29: 30811.025 | V29: 30811.025 | W29: 30811.025 | X29: 0 | Y29: 0 | Z29: 0 | AA29: 0 | AB29: 0 | AC29: 0 | AD29: 0 | AE29: 0 | AF29: 0 | AG29: 0 | AH29: 0 | AI29: =-AI$21 -> 0 | AJ29: 0 | AK29: 0 | AL29: 0 | AM29: 0 | AN29: 0 | AO29: 0 | AP29: 0 | AQ29: 0 | AR29: 0 | AS29: 0 | AT29: 0 | AU29: 0 | AV29: 0 | AW29: 0 | AX29: 0 | AY29: 0 | AZ29: 0 | BA29: 0
B30: Saldo je Periode | C30: =((C29-SUM(C26:C28))*C$15) -> -818523.3933 | D30: -53396.875 | E30: -53396.875 | F30: -53396.875 | G30: -53396.875 | H30: -53396.875 | I30: -53396.875 | J30: -53396.875 | K30: -53396.875 | L30: -53396.875 | M30: -53396.875 | N30: -53396.875 | O30: -53396.875 | P30: -53396.875 | Q30: -53396.875 | R30: -53396.875 | S30: -53396.875 | T30: -53396.875 | U30: -53396.875 | V30: -53396.875 | W30: -53396.875 | X30: 0 | Y30: 0 | Z30: 0 | AA30: 0 | AB30: 0 | AC30: 0 | AD30: 0 | AE30: 0 | AF30: 0 | AG30: 0 | AH30: 0 | AI30: =((AI29-SUM(AI26:AI28))*AI$15) -> 0 | AJ30: 0 | AK30: 0 | AL30: 0 | AM30: 0 | AN30: 0 | AO30: 0 | AP30: 0 | AQ30: 0 | AR30: 0 | AS30: 0 | AT30: 0 | AU30: 0 | AV30: 0 | AW30: 0 | AX30: 0 | AY30: 0 | AZ30: 0 | BA30: 0
B31: Periodenbarwert | C31: =((C29-SUM(C26:C28))*C$15)*(1+'04_Wirtschaftlichkeit'!$F$16)^-C$14 -> -818523.3933 | D31: =((D29-SUM(D26:D28))*D$15)*(1+'04_Wirtschaftlichkeit'!$F$16)^-D$14 -> -52737.65432 | E31: =((E29-SUM(E26:E28))*E$15)*(1+'04_Wirtschaftlichkeit'!$F$16)^-E$14 -> -52086.57217 | F31: =((F29-SUM(F26:F28))*F$15)*(1+'04_Wirtschaftlichkeit'!$F$16)^-F$14 -> -51443.52807 | G31: =((G29-SUM(G26:G28))*G$15)*(1+'04_Wirtschaftlichkeit'!$F$16)^-G$14 -> -50808.42278 | H31: =((H29-SUM(H26:H28))*H$15)*(1+'04_Wirtschaftlichkeit'!$F$16)^-H$14 -> -50181.1583 | I31: =((I29-SUM(I26:I28))*I$15)*(1+'04_Wirtschaftlichkeit'!$F$16)^-I$14 -> -49561.63783 | J31: =((J29-SUM(J26:J28))*J$15)*(1+'04_Wirtschaftlichkeit'!$F$16)^-J$14 -> -48949.76576 | K31: =((K29-SUM(K26:K28))*K$15)*(1+'04_Wirtschaftlichkeit'!$F$16)^-K$14 -> -48345.44766 | L31: =((L29-SUM(L26:L28))*L$15)*(1+'04_Wirtschaftlichkeit'!$F$16)^-L$14 -> -47748.59029 | M31: =((M29-SUM(M26:M28))*M$15)*(1+'04_Wirtschaftlichkeit'!$F$16)^-M$14 -> -47159.10152 | N31: =((N29-SUM(N26:N28))*N$15)*(1+'04_Wirtschaftlichkeit'!$F$16)^-N$14 -> -46576.89039 | O31: =((O29-SUM(O26:O28))*O$15)*(1+'04_Wirtschaftlichkeit'!$F$16)^-O$14 -> -46001.86705 | P31: =((P29-SUM(P26:P28))*P$15)*(1+'04_Wirtschaftlichkeit'!$F$16)^-P$14 -> -45433.94276 | Q31: =((Q29-SUM(Q26:Q28))*Q$15)*(1+'04_Wirtschaftlichkeit'!$F$16)^-Q$14 -> -44873.02989 | R31: =((R29-SUM(R26:R28))*R$15)*(1+'04_Wirtschaftlichkeit'!$F$16)^-R$14 -> -44319.04187 | S31: =((S29-SUM(S26:S28))*S$15)*(1+'04_Wirtschaftlichkeit'!$F$16)^-S$14 -> -43771.8932 | T31: =((T29-SUM(T26:T28))*T$15)*(1+'04_Wirtschaftlichkeit'!$F$16)^-T$14 -> -43231.49946 | U31: =((U29-SUM(U26:U28))*U$15)*(1+'04_Wirtschaftlichkeit'!$F$16)^-U$14 -> -42697.77724 | V31: =((V29-SUM(V26:V28))*V$15)*(1+'04_Wirtschaftlichkeit'!$F$16)^-V$14 -> -42170.64419 | W31: =((W29-SUM(W26:W28))*W$15)*(1+'04_Wirtschaftlichkeit'!$F$16)^-W$14 -> -41650.01895 | X31: =((X29-SUM(X26:X28))*X$15)*(1+'04_Wirtschaftlichkeit'!$F$16)^-X$14 -> 0 | Y31: =((Y29-SUM(Y26:Y28))*Y$15)*(1+'04_Wirtschaftlichkeit'!$F$16)^-Y$14 -> 0 | Z31: =((Z29-SUM(Z26:Z28))*Z$15)*(1+'04_Wirtschaftlichkeit'!$F$16)^-Z$14 -> 0 | AA31: =((AA29-SUM(AA26:AA28))*AA$15)*(1+'04_Wirtschaftlichkeit'!$F$16)^-AA$14 -> 0 | AB31: =((AB29-SUM(AB26:AB28))*AB$15)*(1+'04_Wirtschaftlichkeit'!$F$16)^-AB$14 -> 0 | AC31: =((AC29-SUM(AC26:AC28))*AC$15)*(1+'04_Wirtschaftlichkeit'!$F$16)^-AC$14 -> 0 | AD31: =((AD29-SUM(AD26:AD28))*AD$15)*(1+'04_Wirtschaftlichkeit'!$F$16)^-AD$14 -> 0 | AE31: =((AE29-SUM(AE26:AE28))*AE$15)*(1+'04_Wirtschaftlichkeit'!$F$16)^-AE$14 -> 0 | AF31: =((AF29-SUM(AF26:AF28))*AF$15)*(1+'04_Wirtschaftlichkeit'!$F$16)^-AF$14 -> 0 | AG31: =((AG29-SUM(AG26:AG28))*AG$15)*(1+'04_Wirtschaftlichkeit'!$F$16)^-AG$14 -> 0 | AH31: =((AH29-SUM(AH26:AH28))*AH$15)*(1+'04_Wirtschaftlichkeit'!$F$16)^-AH$14 -> 0 | AI31: =((AI29-SUM(AI26:AI28))*AI$15)*(1+'04_Wirtschaftlichkeit'!$F$16)^-AI$14 -> 0 | AJ31: =((AJ29-SUM(AJ26:AJ28))*AJ$15)*(1+'04_Wirtschaftlichkeit'!$F$16)^-AJ$14 -> 0 | AK31: =((AK29-SUM(AK26:AK28))*AK$15)*(1+'04_Wirtschaftlichkeit'!$F$16)^-AK$14 -> 0 | AL31: =((AL29-SUM(AL26:AL28))*AL$15)*(1+'04_Wirtschaftlichkeit'!$F$16)^-AL$14 -> 0 | AM31: =((AM29-SUM(AM26:AM28))*AM$15)*(1+'04_Wirtschaftlichkeit'!$F$16)^-AM$14 -> 0 | AN31: =((AN29-SUM(AN26:AN28))*AN$15)*(1+'04_Wirtschaftlichkeit'!$F$16)^-AN$14 -> 0 | AO31: =((AO29-SUM(AO26:AO28))*AO$15)*(1+'04_Wirtschaftlichkeit'!$F$16)^-AO$14 -> 0 | AP31: =((AP29-SUM(AP26:AP28))*AP$15)*(1+'04_Wirtschaftlichkeit'!$F$16)^-AP$14 -> 0 | AQ31: =((AQ29-SUM(AQ26:AQ28))*AQ$15)*(1+'04_Wirtschaftlichkeit'!$F$16)^-AQ$14 -> 0 | AR31: =((AR29-SUM(AR26:AR28))*AR$15)*(1+'04_Wirtschaftlichkeit'!$F$16)^-AR$14 -> 0 | AS31: =((AS29-SUM(AS26:AS28))*AS$15)*(1+'04_Wirtschaftlichkeit'!$F$16)^-AS$14 -> 0 | AT31: =((AT29-SUM(AT26:AT28))*AT$15)*(1+'04_Wirtschaftlichkeit'!$F$16)^-AT$14 -> 0 | AU31: =((AU29-SUM(AU26:AU28))*AU$15)*(1+'04_Wirtschaftlichkeit'!$F$16)^-AU$14 -> 0 | AV31: =((AV29-SUM(AV26:AV28))*AV$15)*(1+'04_Wirtschaftlichkeit'!$F$16)^-AV$14 -> 0 | AW31: =((AW29-SUM(AW26:AW28))*AW$15)*(1+'04_Wirtschaftlichkeit'!$F$16)^-AW$14 -> 0 | AX31: =((AX29-SUM(AX26:AX28))*AX$15)*(1+'04_Wirtschaftlichkeit'!$F$16)^-AX$14 -> 0 | AY31: =((AY29-SUM(AY26:AY28))*AY$15)*(1+'04_Wirtschaftlichkeit'!$F$16)^-AY$14 -> 0 | AZ31: =((AZ29-SUM(AZ26:AZ28))*AZ$15)*(1+'04_Wirtschaftlichkeit'!$F$16)^-AZ$14 -> 0 | BA31: =((BA29-SUM(BA26:BA28))*BA$15)*(1+'04_Wirtschaftlichkeit'!$F$16)^-BA$14 -> 0
B32: KW je Periode | C32: =SUM($C$31:C31)*C$15 -> -818523.3933 | D32: =SUM($C$31:D31)*D$15 -> -871261.0476 | E32: =SUM($C$31:E31)*E$15 -> -923347.6198 | F32: =SUM($C$31:F31)*F$15 -> -974791.1478 | G32: =SUM($C$31:G31)*G$15 -> -1025599.571 | H32: =SUM($C$31:H31)*H$15 -> -1075780.729 | I32: =SUM($C$31:I31)*I$15 -> -1125342.367 | J32: =SUM($C$31:J31)*J$15 -> -1174292.133 | K32: =SUM($C$31:K31)*K$15 -> -1222637.58 | L32: =SUM($C$31:L31)*L$15 -> -1270386.17 | M32: =SUM($C$31:M31)*M$15 -> -1317545.272 | N32: =SUM($C$31:N31)*N$15 -> -1364122.162 | O32: =SUM($C$31:O31)*O$15 -> -1410124.029 | P32: =SUM($C$31:P31)*P$15 -> -1455557.972 | Q32: =SUM($C$31:Q31)*Q$15 -> -1500431.002 | R32: =SUM($C$31:R31)*R$15 -> -1544750.044 | S32: =SUM($C$31:S31)*S$15 -> -1588521.937 | T32: =SUM($C$31:T31)*T$15 -> -1631753.437 | U32: =SUM($C$31:U31)*U$15 -> -1674451.214 | V32: =SUM($C$31:V31)*V$15 -> -1716621.858 | W32: =SUM($C$31:W31)*W$15 -> -1758271.877 | X32: =SUM($C$31:X31)*X$15 -> 0 | Y32: =SUM($C$31:Y31)*Y$15 -> 0 | Z32: =SUM($C$31:Z31)*Z$15 -> 0 | AA32: =SUM($C$31:AA31)*AA$15 -> 0 | AB32: =SUM($C$31:AB31)*AB$15 -> 0 | AC32: =SUM($C$31:AC31)*AC$15 -> 0 | AD32: =SUM($C$31:AD31)*AD$15 -> 0 | AE32: =SUM($C$31:AE31)*AE$15 -> 0 | AF32: =SUM($C$31:AF31)*AF$15 -> 0 | AG32: =SUM($C$31:AG31)*AG$15 -> 0 | AH32: =SUM($C$31:AH31)*AH$15 -> 0 | AI32: =SUM($C$31:AI31)*AI$15 -> 0 | AJ32: =SUM($C$31:AJ31)*AJ$15 -> 0 | AK32: =SUM($C$31:AK31)*AK$15 -> 0 | AL32: =SUM($C$31:AL31)*AL$15 -> 0 | AM32: =SUM($C$31:AM31)*AM$15 -> 0 | AN32: =SUM($C$31:AN31)*AN$15 -> 0 | AO32: =SUM($C$31:AO31)*AO$15 -> 0 | AP32: =SUM($C$31:AP31)*AP$15 -> 0 | AQ32: =SUM($C$31:AQ31)*AQ$15 -> 0 | AR32: =SUM($C$31:AR31)*AR$15 -> 0 | AS32: =SUM($C$31:AS31)*AS$15 -> 0 | AT32: =SUM($C$31:AT31)*AT$15 -> 0 | AU32: =SUM($C$31:AU31)*AU$15 -> 0 | AV32: =SUM($C$31:AV31)*AV$15 -> 0 | AW32: =SUM($C$31:AW31)*AW$15 -> 0 | AX32: =SUM($C$31:AX31)*AX$15 -> 0 | AY32: =SUM($C$31:AY31)*AY$15 -> 0 | AZ32: =SUM($C$31:AZ31)*AZ$15 -> 0 | BA32: =SUM($C$31:BA31)*BA$15 -> 0
B33: Amortisation | C33: =IF(AND(C32<0,D32>0),C$14+C32/(C32-D32),0) -> 0 | D33: 0 | E33: 0 | F33: 0 | G33: 0 | H33: 0 | I33: 0 | J33: 0 | K33: 0 | L33: 0 | M33: 0 | N33: 0 | O33: 0 | P33: 0 | Q33: 0 | R33: 0 | S33: 0 | T33: 0 | U33: 0 | V33: 0 | W33: 0 | X33: 0 | Y33: 0 | Z33: 0 | AA33: 0 | AB33: 0 | AC33: 0 | AD33: 0 | AE33: 0 | AF33: 0 | AG33: 0 | AH33: 0 | AI33: =IF(AND(AI32<0,AJ32>0),AI$14+AI32/(AI32-AJ32),0) -> 0 | AJ33: 0 | AK33: 0 | AL33: 0 | AM33: 0 | AN33: 0 | AO33: 0 | AP33: 0 | AQ33: 0 | AR33: 0 | AS33: 0 | AT33: 0 | AU33: 0 | AV33: 0 | AW33: 0 | AX33: 0 | AY33: 0 | AZ33: 0 | BA33: 0
B34: Top 2
B35: Investition | C35: ='04_Wirtschaftlichkeit'!I49 -> 5534773.042
B36: Auszahlungen | D36: ='04_Wirtschaftlichkeit'!$I$50*D15 -> 83272 | E36: ='04_Wirtschaftlichkeit'!$I$50*E15 -> 83272 | F36: ='04_Wirtschaftlichkeit'!$I$50*F15 -> 83272 | G36: ='04_Wirtschaftlichkeit'!$I$50*G15 -> 83272 | H36: ='04_Wirtschaftlichkeit'!$I$50*H15 -> 83272 | I36: ='04_Wirtschaftlichkeit'!$I$50*I15 -> 83272 | J36: ='04_Wirtschaftlichkeit'!$I$50*J15 -> 83272 | K36: ='04_Wirtschaftlichkeit'!$I$50*K15 -> 83272 | L36: ='04_Wirtschaftlichkeit'!$I$50*L15 -> 83272 | M36: ='04_Wirtschaftlichkeit'!$I$50*M15 -> 83272 | N36: ='04_Wirtschaftlichkeit'!$I$50*N15 -> 83272 | O36: ='04_Wirtschaftlichkeit'!$I$50*O15 -> 83272 | P36: ='04_Wirtschaftlichkeit'!$I$50*P15 -> 83272 | Q36: ='04_Wirtschaftlichkeit'!$I$50*Q15 -> 83272 | R36: ='04_Wirtschaftlichkeit'!$I$50*R15 -> 83272 | S36: ='04_Wirtschaftlichkeit'!$I$50*S15 -> 83272 | T36: ='04_Wirtschaftlichkeit'!$I$50*T15 -> 83272 | U36: ='04_Wirtschaftlichkeit'!$I$50*U15 -> 83272 | V36: ='04_Wirtschaftlichkeit'!$I$50*V15 -> 83272 | W36: ='04_Wirtschaftlichkeit'!$I$50*W15 -> 83272 | X36: ='04_Wirtschaftlichkeit'!$I$50*X15 -> 0 | Y36: ='04_Wirtschaftlichkeit'!$I$50*Y15 -> 0 | Z36: ='04_Wirtschaftlichkeit'!$I$50*Z15 -> 0 | AA36: ='04_Wirtschaftlichkeit'!$I$50*AA15 -> 0 | AB36: ='04_Wirtschaftlichkeit'!$I$50*AB15 -> 0 | AC36: ='04_Wirtschaftlichkeit'!$I$50*AC15 -> 0 | AD36: ='04_Wirtschaftlichkeit'!$I$50*AD15 -> 0 | AE36: ='04_Wirtschaftlichkeit'!$I$50*AE15 -> 0 | AF36: ='04_Wirtschaftlichkeit'!$I$50*AF15 -> 0 | AG36: ='04_Wirtschaftlichkeit'!$I$50*AG15 -> 0 | AH36: ='04_Wirtschaftlichkeit'!$I$50*AH15 -> 0 | AI36: ='04_Wirtschaftlichkeit'!$I$50*AI15 -> 0 | AJ36: ='04_Wirtschaftlichkeit'!$I$50*AJ15 -> 0 | AK36: ='04_Wirtschaftlichkeit'!$I$50*AK15 -> 0 | AL36: ='04_Wirtschaftlichkeit'!$I$50*AL15 -> 0 | AM36: ='04_Wirtschaftlichkeit'!$I$50*AM15 -> 0 | AN36: ='04_Wirtschaftlichkeit'!$I$50*AN15 -> 0 | AO36: ='04_Wirtschaftlichkeit'!$I$50*AO15 -> 0 | AP36: ='04_Wirtschaftlichkeit'!$I$50*AP15 -> 0 | AQ36: ='04_Wirtschaftlichkeit'!$I$50*AQ15 -> 0 | AR36: ='04_Wirtschaftlichkeit'!$I$50*AR15 -> 0 | AS36: ='04_Wirtschaftlichkeit'!$I$50*AS15 -> 0 | AT36: ='04_Wirtschaftlichkeit'!$I$50*AT15 -> 0 | AU36: ='04_Wirtschaftlichkeit'!$I$50*AU15 -> 0 | AV36: ='04_Wirtschaftlichkeit'!$I$50*AV15 -> 0 | AW36: ='04_Wirtschaftlichkeit'!$I$50*AW15 -> 0 | AX36: ='04_Wirtschaftlichkeit'!$I$50*AX15 -> 0 | AY36: ='04_Wirtschaftlichkeit'!$I$50*AY15 -> 0 | AZ36: ='04_Wirtschaftlichkeit'!$I$50*AZ15 -> 0 | BA36: ='04_Wirtschaftlichkeit'!$I$50*BA15 -> 0
B37: CO2 Kosten | D37: ='04_Wirtschaftlichkeit'!$K$38*'04_Wirtschaftlichkeit'!$F$18*Nebenrechnungen!D15 -> 0 | E37: ='04_Wirtschaftlichkeit'!$K$38*'04_Wirtschaftlichkeit'!$F$18*Nebenrechnungen!E15 -> 0 | F37: ='04_Wirtschaftlichkeit'!$K$38*'04_Wirtschaftlichkeit'!$F$18*Nebenrechnungen!F15 -> 0 | G37: ='04_Wirtschaftlichkeit'!$K$38*'04_Wirtschaftlichkeit'!$F$18*Nebenrechnungen!G15 -> 0 | H37: ='04_Wirtschaftlichkeit'!$K$38*'04_Wirtschaftlichkeit'!$F$18*Nebenrechnungen!H15 -> 0 | I37: ='04_Wirtschaftlichkeit'!$K$38*'04_Wirtschaftlichkeit'!$F$18*Nebenrechnungen!I15 -> 0 | J37: ='04_Wirtschaftlichkeit'!$K$38*'04_Wirtschaftlichkeit'!$F$18*Nebenrechnungen!J15 -> 0 | K37: ='04_Wirtschaftlichkeit'!$K$38*'04_Wirtschaftlichkeit'!$F$18*Nebenrechnungen!K15 -> 0 | L37: ='04_Wirtschaftlichkeit'!$K$38*'04_Wirtschaftlichkeit'!$F$18*Nebenrechnungen!L15 -> 0 | M37: ='04_Wirtschaftlichkeit'!$K$38*'04_Wirtschaftlichkeit'!$F$18*Nebenrechnungen!M15 -> 0 | N37: ='04_Wirtschaftlichkeit'!$K$38*'04_Wirtschaftlichkeit'!$F$18*Nebenrechnungen!N15 -> 0 | O37: ='04_Wirtschaftlichkeit'!$K$38*'04_Wirtschaftlichkeit'!$F$18*Nebenrechnungen!O15 -> 0 | P37: ='04_Wirtschaftlichkeit'!$K$38*'04_Wirtschaftlichkeit'!$F$18*Nebenrechnungen!P15 -> 0 | Q37: ='04_Wirtschaftlichkeit'!$K$38*'04_Wirtschaftlichkeit'!$F$18*Nebenrechnungen!Q15 -> 0 | R37: ='04_Wirtschaftlichkeit'!$K$38*'04_Wirtschaftlichkeit'!$F$18*Nebenrechnungen!R15 -> 0 | S37: ='04_Wirtschaftlichkeit'!$K$38*'04_Wirtschaftlichkeit'!$F$18*Nebenrechnungen!S15 -> 0 | T37: ='04_Wirtschaftlichkeit'!$K$38*'04_Wirtschaftlichkeit'!$F$18*Nebenrechnungen!T15 -> 0 | U37: ='04_Wirtschaftlichkeit'!$K$38*'04_Wirtschaftlichkeit'!$F$18*Nebenrechnungen!U15 -> 0 | V37: ='04_Wirtschaftlichkeit'!$K$38*'04_Wirtschaftlichkeit'!$F$18*Nebenrechnungen!V15 -> 0 | W37: ='04_Wirtschaftlichkeit'!$K$38*'04_Wirtschaftlichkeit'!$F$18*Nebenrechnungen!W15 -> 0 | X37: ='04_Wirtschaftlichkeit'!$K$38*'04_Wirtschaftlichkeit'!$F$18*Nebenrechnungen!X15 -> 0 | Y37: ='04_Wirtschaftlichkeit'!$K$38*'04_Wirtschaftlichkeit'!$F$18*Nebenrechnungen!Y15 -> 0 | Z37: ='04_Wirtschaftlichkeit'!$K$38*'04_Wirtschaftlichkeit'!$F$18*Nebenrechnungen!Z15 -> 0 | AA37: ='04_Wirtschaftlichkeit'!$K$38*'04_Wirtschaftlichkeit'!$F$18*Nebenrechnungen!AA15 -> 0 | AB37: ='04_Wirtschaftlichkeit'!$K$38*'04_Wirtschaftlichkeit'!$F$18*Nebenrechnungen!AB15 -> 0 | AC37: ='04_Wirtschaftlichkeit'!$K$38*'04_Wirtschaftlichkeit'!$F$18*Nebenrechnungen!AC15 -> 0 | AD37: ='04_Wirtschaftlichkeit'!$K$38*'04_Wirtschaftlichkeit'!$F$18*Nebenrechnungen!AD15 -> 0 | AE37: ='04_Wirtschaftlichkeit'!$K$38*'04_Wirtschaftlichkeit'!$F$18*Nebenrechnungen!AE15 -> 0 | AF37: ='04_Wirtschaftlichkeit'!$K$38*'04_Wirtschaftlichkeit'!$F$18*Nebenrechnungen!AF15 -> 0 | AG37: ='04_Wirtschaftlichkeit'!$K$38*'04_Wirtschaftlichkeit'!$F$18*Nebenrechnungen!AG15 -> 0 | AH37: ='04_Wirtschaftlichkeit'!$K$38*'04_Wirtschaftlichkeit'!$F$18*Nebenrechnungen!AH15 -> 0 | AI37: ='04_Wirtschaftlichkeit'!$K$38*'04_Wirtschaftlichkeit'!$F$18*Nebenrechnungen!AI15 -> 0 | AJ37: ='04_Wirtschaftlichkeit'!$K$38*'04_Wirtschaftlichkeit'!$F$18*Nebenrechnungen!AJ15 -> 0 | AK37: ='04_Wirtschaftlichkeit'!$K$38*'04_Wirtschaftlichkeit'!$F$18*Nebenrechnungen!AK15 -> 0 | AL37: ='04_Wirtschaftlichkeit'!$K$38*'04_Wirtschaftlichkeit'!$F$18*Nebenrechnungen!AL15 -> 0 | AM37: ='04_Wirtschaftlichkeit'!$K$38*'04_Wirtschaftlichkeit'!$F$18*Nebenrechnungen!AM15 -> 0 | AN37: ='04_Wirtschaftlichkeit'!$K$38*'04_Wirtschaftlichkeit'!$F$18*Nebenrechnungen!AN15 -> 0 | AO37: ='04_Wirtschaftlichkeit'!$K$38*'04_Wirtschaftlichkeit'!$F$18*Nebenrechnungen!AO15 -> 0 | AP37: ='04_Wirtschaftlichkeit'!$K$38*'04_Wirtschaftlichkeit'!$F$18*Nebenrechnungen!AP15 -> 0 | AQ37: ='04_Wirtschaftlichkeit'!$K$38*'04_Wirtschaftlichkeit'!$F$18*Nebenrechnungen!AQ15 -> 0 | AR37: ='04_Wirtschaftlichkeit'!$K$38*'04_Wirtschaftlichkeit'!$F$18*Nebenrechnungen!AR15 -> 0 | AS37: ='04_Wirtschaftlichkeit'!$K$38*'04_Wirtschaftlichkeit'!$F$18*Nebenrechnungen!AS15 -> 0 | AT37: ='04_Wirtschaftlichkeit'!$K$38*'04_Wirtschaftlichkeit'!$F$18*Nebenrechnungen!AT15 -> 0 | AU37: ='04_Wirtschaftlichkeit'!$K$38*'04_Wirtschaftlichkeit'!$F$18*Nebenrechnungen!AU15 -> 0 | AV37: ='04_Wirtschaftlichkeit'!$K$38*'04_Wirtschaftlichkeit'!$F$18*Nebenrechnungen!AV15 -> 0 | AW37: ='04_Wirtschaftlichkeit'!$K$38*'04_Wirtschaftlichkeit'!$F$18*Nebenrechnungen!AW15 -> 0 | AX37: ='04_Wirtschaftlichkeit'!$K$38*'04_Wirtschaftlichkeit'!$F$18*Nebenrechnungen!AX15 -> 0 | AY37: ='04_Wirtschaftlichkeit'!$K$38*'04_Wirtschaftlichkeit'!$F$18*Nebenrechnungen!AY15 -> 0 | AZ37: ='04_Wirtschaftlichkeit'!$K$38*'04_Wirtschaftlichkeit'!$F$18*Nebenrechnungen!AZ15 -> 0 | BA37: ='04_Wirtschaftlichkeit'!$K$38*'04_Wirtschaftlichkeit'!$F$18*Nebenrechnungen!BA15 -> 0
B38: Einzahlungen | C38: =-C$21 -> 239307.3236 | D38: 30811.025 | E38: 30811.025 | F38: 30811.025 | G38: 30811.025 | H38: 30811.025 | I38: 30811.025 | J38: 30811.025 | K38: 30811.025 | L38: 30811.025 | M38: 30811.025 | N38: 30811.025 | O38: 30811.025 | P38: 30811.025 | Q38: 30811.025 | R38: 30811.025 | S38: 30811.025 | T38: 30811.025 | U38: 30811.025 | V38: 30811.025 | W38: 30811.025 | X38: 0 | Y38: 0 | Z38: 0 | AA38: 0 | AB38: 0 | AC38: 0 | AD38: 0 | AE38: 0 | AF38: 0 | AG38: 0 | AH38: 0 | AI38: =-AI$21 -> 0 | AJ38: 0 | AK38: 0 | AL38: 0 | AM38: 0 | AN38: 0 | AO38: 0 | AP38: 0 | AQ38: 0 | AR38: 0 | AS38: 0 | AT38: 0 | AU38: 0 | AV38: 0 | AW38: 0 | AX38: 0 | AY38: 0 | AZ38: 0 | BA38: 0
B39: Saldo je Periode | C39: =((C38-SUM(C35:C37))*C$15) -> -5295465.718 | D39: -52460.975 | E39: -52460.975 | F39: -52460.975 | G39: -52460.975 | H39: -52460.975 | I39: -52460.975 | J39: -52460.975 | K39: -52460.975 | L39: -52460.975 | M39: -52460.975 | N39: -52460.975 | O39: -52460.975 | P39: -52460.975 | Q39: -52460.975 | R39: -52460.975 | S39: -52460.975 | T39: -52460.975 | U39: -52460.975 | V39: -52460.975 | W39: -52460.975 | X39: 0 | Y39: 0 | Z39: 0 | AA39: 0 | AB39: 0 | AC39: 0 | AD39: 0 | AE39: 0 | AF39: 0 | AG39: 0 | AH39: 0 | AI39: =((AI38-SUM(AI35:AI37))*AI$15) -> 0 | AJ39: 0 | AK39: 0 | AL39: 0 | AM39: 0 | AN39: 0 | AO39: 0 | AP39: 0 | AQ39: 0 | AR39: 0 | AS39: 0 | AT39: 0 | AU39: 0 | AV39: 0 | AW39: 0 | AX39: 0 | AY39: 0 | AZ39: 0 | BA39: 0
B40: Periodenbarwert | C40: =((C38-SUM(C35:C37))*C$15)*(1+'04_Wirtschaftlichkeit'!$F$16)^-C$14 -> -5295465.718 | D40: =((D38-SUM(D35:D37))*D$15)*(1+'04_Wirtschaftlichkeit'!$F$16)^-D$14 -> -51813.30864 | E40: =((E38-SUM(E35:E37))*E$15)*(1+'04_Wirtschaftlichkeit'!$F$16)^-E$14 -> -51173.63816 | F40: =((F38-SUM(F35:F37))*F$15)*(1+'04_Wirtschaftlichkeit'!$F$16)^-F$14 -> -50541.86485 | G40: =((G38-SUM(G35:G37))*G$15)*(1+'04_Wirtschaftlichkeit'!$F$16)^-G$14 -> -49917.89121 | H40: =((H38-SUM(H35:H37))*H$15)*(1+'04_Wirtschaftlichkeit'!$F$16)^-H$14 -> -49301.62095 | I40: =((I38-SUM(I35:I37))*I$15)*(1+'04_Wirtschaftlichkeit'!$F$16)^-I$14 -> -48692.95897 | J40: =((J38-SUM(J35:J37))*J$15)*(1+'04_Wirtschaftlichkeit'!$F$16)^-J$14 -> -48091.81132 | K40: =((K38-SUM(K35:K37))*K$15)*(1+'04_Wirtschaftlichkeit'!$F$16)^-K$14 -> -47498.08526 | L40: =((L38-SUM(L35:L37))*L$15)*(1+'04_Wirtschaftlichkeit'!$F$16)^-L$14 -> -46911.68914 | M40: =((M38-SUM(M35:M37))*M$15)*(1+'04_Wirtschaftlichkeit'!$F$16)^-M$14 -> -46332.53249 | N40: =((N38-SUM(N35:N37))*N$15)*(1+'04_Wirtschaftlichkeit'!$F$16)^-N$14 -> -45760.52591 | O40: =((O38-SUM(O35:O37))*O$15)*(1+'04_Wirtschaftlichkeit'!$F$16)^-O$14 -> -45195.58115 | P40: =((P38-SUM(P35:P37))*P$15)*(1+'04_Wirtschaftlichkeit'!$F$16)^-P$14 -> -44637.61101 | Q40: =((Q38-SUM(Q35:Q37))*Q$15)*(1+'04_Wirtschaftlichkeit'!$F$16)^-Q$14 -> -44086.52939 | R40: =((R38-SUM(R35:R37))*R$15)*(1+'04_Wirtschaftlichkeit'!$F$16)^-R$14 -> -43542.25125 | S40: =((S38-SUM(S35:S37))*S$15)*(1+'04_Wirtschaftlichkeit'!$F$16)^-S$14 -> -43004.6926 | T40: =((T38-SUM(T35:T37))*T$15)*(1+'04_Wirtschaftlichkeit'!$F$16)^-T$14 -> -42473.77047 | U40: =((U38-SUM(U35:U37))*U$15)*(1+'04_Wirtschaftlichkeit'!$F$16)^-U$14 -> -41949.40293 | V40: =((V38-SUM(V35:V37))*V$15)*(1+'04_Wirtschaftlichkeit'!$F$16)^-V$14 -> -41431.50907 | W40: =((W38-SUM(W35:W37))*W$15)*(1+'04_Wirtschaftlichkeit'!$F$16)^-W$14 -> -40920.00895 | X40: =((X38-SUM(X35:X37))*X$15)*(1+'04_Wirtschaftlichkeit'!$F$16)^-X$14 -> 0 | Y40: =((Y38-SUM(Y35:Y37))*Y$15)*(1+'04_Wirtschaftlichkeit'!$F$16)^-Y$14 -> 0 | Z40: =((Z38-SUM(Z35:Z37))*Z$15)*(1+'04_Wirtschaftlichkeit'!$F$16)^-Z$14 -> 0 | AA40: =((AA38-SUM(AA35:AA37))*AA$15)*(1+'04_Wirtschaftlichkeit'!$F$16)^-AA$14 -> 0 | AB40: =((AB38-SUM(AB35:AB37))*AB$15)*(1+'04_Wirtschaftlichkeit'!$F$16)^-AB$14 -> 0 | AC40: =((AC38-SUM(AC35:AC37))*AC$15)*(1+'04_Wirtschaftlichkeit'!$F$16)^-AC$14 -> 0 | AD40: =((AD38-SUM(AD35:AD37))*AD$15)*(1+'04_Wirtschaftlichkeit'!$F$16)^-AD$14 -> 0 | AE40: =((AE38-SUM(AE35:AE37))*AE$15)*(1+'04_Wirtschaftlichkeit'!$F$16)^-AE$14 -> 0 | AF40: =((AF38-SUM(AF35:AF37))*AF$15)*(1+'04_Wirtschaftlichkeit'!$F$16)^-AF$14 -> 0 | AG40: =((AG38-SUM(AG35:AG37))*AG$15)*(1+'04_Wirtschaftlichkeit'!$F$16)^-AG$14 -> 0 | AH40: =((AH38-SUM(AH35:AH37))*AH$15)*(1+'04_Wirtschaftlichkeit'!$F$16)^-AH$14 -> 0 | AI40: =((AI38-SUM(AI35:AI37))*AI$15)*(1+'04_Wirtschaftlichkeit'!$F$16)^-AI$14 -> 0 | AJ40: =((AJ38-SUM(AJ35:AJ37))*AJ$15)*(1+'04_Wirtschaftlichkeit'!$F$16)^-AJ$14 -> 0 | AK40: =((AK38-SUM(AK35:AK37))*AK$15)*(1+'04_Wirtschaftlichkeit'!$F$16)^-AK$14 -> 0 | AL40: =((AL38-SUM(AL35:AL37))*AL$15)*(1+'04_Wirtschaftlichkeit'!$F$16)^-AL$14 -> 0 | AM40: =((AM38-SUM(AM35:AM37))*AM$15)*(1+'04_Wirtschaftlichkeit'!$F$16)^-AM$14 -> 0 | AN40: =((AN38-SUM(AN35:AN37))*AN$15)*(1+'04_Wirtschaftlichkeit'!$F$16)^-AN$14 -> 0 | AO40: =((AO38-SUM(AO35:AO37))*AO$15)*(1+'04_Wirtschaftlichkeit'!$F$16)^-AO$14 -> 0 | AP40: =((AP38-SUM(AP35:AP37))*AP$15)*(1+'04_Wirtschaftlichkeit'!$F$16)^-AP$14 -> 0 | AQ40: =((AQ38-SUM(AQ35:AQ37))*AQ$15)*(1+'04_Wirtschaftlichkeit'!$F$16)^-AQ$14 -> 0 | AR40: =((AR38-SUM(AR35:AR37))*AR$15)*(1+'04_Wirtschaftlichkeit'!$F$16)^-AR$14 -> 0 | AS40: =((AS38-SUM(AS35:AS37))*AS$15)*(1+'04_Wirtschaftlichkeit'!$F$16)^-AS$14 -> 0 | AT40: =((AT38-SUM(AT35:AT37))*AT$15)*(1+'04_Wirtschaftlichkeit'!$F$16)^-AT$14 -> 0 | AU40: =((AU38-SUM(AU35:AU37))*AU$15)*(1+'04_Wirtschaftlichkeit'!$F$16)^-AU$14 -> 0 | AV40: =((AV38-SUM(AV35:AV37))*AV$15)*(1+'04_Wirtschaftlichkeit'!$F$16)^-AV$14 -> 0 | AW40: =((AW38-SUM(AW35:AW37))*AW$15)*(1+'04_Wirtschaftlichkeit'!$F$16)^-AW$14 -> 0 | AX40: =((AX38-SUM(AX35:AX37))*AX$15)*(1+'04_Wirtschaftlichkeit'!$F$16)^-AX$14 -> 0 | AY40: =((AY38-SUM(AY35:AY37))*AY$15)*(1+'04_Wirtschaftlichkeit'!$F$16)^-AY$14 -> 0 | AZ40: =((AZ38-SUM(AZ35:AZ37))*AZ$15)*(1+'04_Wirtschaftlichkeit'!$F$16)^-AZ$14 -> 0 | BA40: =((BA38-SUM(BA35:BA37))*BA$15)*(1+'04_Wirtschaftlichkeit'!$F$16)^-BA$14 -> 0
B41: KW je Periode | C41: =SUM($C$40:C40)*C$15 -> -5295465.718 | D41: =SUM($C$40:D40)*D$15 -> -5347279.027 | E41: =SUM($C$40:E40)*E$15 -> -5398452.665 | F41: =SUM($C$40:F40)*F$15 -> -5448994.53 | G41: =SUM($C$40:G40)*G$15 -> -5498912.421 | H41: =SUM($C$40:H40)*H$15 -> -5548214.042 | I41: =SUM($C$40:I40)*I$15 -> -5596907.001 | J41: =SUM($C$40:J40)*J$15 -> -5644998.812 | K41: =SUM($C$40:K40)*K$15 -> -5692496.897 | L41: =SUM($C$40:L40)*L$15 -> -5739408.586 | M41: =SUM($C$40:M40)*M$15 -> -5785741.119 | N41: =SUM($C$40:N40)*N$15 -> -5831501.645 | O41: =SUM($C$40:O40)*O$15 -> -5876697.226 | P41: =SUM($C$40:P40)*P$15 -> -5921334.837 | Q41: =SUM($C$40:Q40)*Q$15 -> -5965421.366 | R41: =SUM($C$40:R40)*R$15 -> -6008963.618 | S41: =SUM($C$40:S40)*S$15 -> -6051968.31 | T41: =SUM($C$40:T40)*T$15 -> -6094442.081 | U41: =SUM($C$40:U40)*U$15 -> -6136391.484 | V41: =SUM($C$40:V40)*V$15 -> -6177822.993 | W41: =SUM($C$40:W40)*W$15 -> -6218743.002 | X41: =SUM($C$40:X40)*X$15 -> 0 | Y41: =SUM($C$40:Y40)*Y$15 -> 0 | Z41: =SUM($C$40:Z40)*Z$15 -> 0 | AA41: =SUM($C$40:AA40)*AA$15 -> 0 | AB41: =SUM($C$40:AB40)*AB$15 -> 0 | AC41: =SUM($C$40:AC40)*AC$15 -> 0 | AD41: =SUM($C$40:AD40)*AD$15 -> 0 | AE41: =SUM($C$40:AE40)*AE$15 -> 0 | AF41: =SUM($C$40:AF40)*AF$15 -> 0 | AG41: =SUM($C$40:AG40)*AG$15 -> 0 | AH41: =SUM($C$40:AH40)*AH$15 -> 0 | AI41: =SUM($C$40:AI40)*AI$15 -> 0 | AJ41: =SUM($C$40:AJ40)*AJ$15 -> 0 | AK41: =SUM($C$40:AK40)*AK$15 -> 0 | AL41: =SUM($C$40:AL40)*AL$15 -> 0 | AM41: =SUM($C$40:AM40)*AM$15 -> 0 | AN41: =SUM($C$40:AN40)*AN$15 -> 0 | AO41: =SUM($C$40:AO40)*AO$15 -> 0 | AP41: =SUM($C$40:AP40)*AP$15 -> 0 | AQ41: =SUM($C$40:AQ40)*AQ$15 -> 0 | AR41: =SUM($C$40:AR40)*AR$15 -> 0 | AS41: =SUM($C$40:AS40)*AS$15 -> 0 | AT41: =SUM($C$40:AT40)*AT$15 -> 0 | AU41: =SUM($C$40:AU40)*AU$15 -> 0 | AV41: =SUM($C$40:AV40)*AV$15 -> 0 | AW41: =SUM($C$40:AW40)*AW$15 -> 0 | AX41: =SUM($C$40:AX40)*AX$15 -> 0 | AY41: =SUM($C$40:AY40)*AY$15 -> 0 | AZ41: =SUM($C$40:AZ40)*AZ$15 -> 0 | BA41: =SUM($C$40:BA40)*BA$15 -> 0
B42: Amortisation | C42: =IF(AND(C41<0,D41>0),C$14+C41/(C41-D41),0) -> 0 | D42: 0 | E42: 0 | F42: 0 | G42: 0 | H42: 0 | I42: 0 | J42: 0 | K42: 0 | L42: 0 | M42: 0 | N42: 0 | O42: 0 | P42: 0 | Q42: 0 | R42: 0 | S42: 0 | T42: 0 | U42: 0 | V42: 0 | W42: 0 | X42: 0 | Y42: 0 | Z42: 0 | AA42: 0 | AB42: 0 | AC42: 0 | AD42: 0 | AE42: 0 | AF42: 0 | AG42: 0 | AH42: 0 | AI42: =IF(AND(AI41<0,AJ41>0),AI$14+AI41/(AI41-AJ41),0) -> 0 | AJ42: 0 | AK42: 0 | AL42: 0 | AM42: 0 | AN42: 0 | AO42: 0 | AP42: 0 | AQ42: 0 | AR42: 0 | AS42: 0 | AT42: 0 | AU42: 0 | AV42: 0 | AW42: 0 | AX42: 0 | AY42: 0 | AZ42: 0 | BA42: 0
B43: Top 3
B44: Investition | C44: ='04_Wirtschaftlichkeit'!K49 -> 1219800.673
B45: Auszahlungen | D45: ='04_Wirtschaftlichkeit'!$K$50*D15 -> 112403 | E45: ='04_Wirtschaftlichkeit'!$K$50*E15 -> 112403 | F45: ='04_Wirtschaftlichkeit'!$K$50*F15 -> 112403 | G45: ='04_Wirtschaftlichkeit'!$K$50*G15 -> 112403 | H45: ='04_Wirtschaftlichkeit'!$K$50*H15 -> 112403 | I45: ='04_Wirtschaftlichkeit'!$K$50*I15 -> 112403 | J45: ='04_Wirtschaftlichkeit'!$K$50*J15 -> 112403 | K45: ='04_Wirtschaftlichkeit'!$K$50*K15 -> 112403 | L45: ='04_Wirtschaftlichkeit'!$K$50*L15 -> 112403 | M45: ='04_Wirtschaftlichkeit'!$K$50*M15 -> 112403 | N45: ='04_Wirtschaftlichkeit'!$K$50*N15 -> 112403 | O45: ='04_Wirtschaftlichkeit'!$K$50*O15 -> 112403 | P45: ='04_Wirtschaftlichkeit'!$K$50*P15 -> 112403 | Q45: ='04_Wirtschaftlichkeit'!$K$50*Q15 -> 112403 | R45: ='04_Wirtschaftlichkeit'!$K$50*R15 -> 112403 | S45: ='04_Wirtschaftlichkeit'!$K$50*S15 -> 112403 | T45: ='04_Wirtschaftlichkeit'!$K$50*T15 -> 112403 | U45: ='04_Wirtschaftlichkeit'!$K$50*U15 -> 112403 | V45: ='04_Wirtschaftlichkeit'!$K$50*V15 -> 112403 | W45: ='04_Wirtschaftlichkeit'!$K$50*W15 -> 112403 | X45: ='04_Wirtschaftlichkeit'!$K$50*X15 -> 0 | Y45: ='04_Wirtschaftlichkeit'!$K$50*Y15 -> 0 | Z45: ='04_Wirtschaftlichkeit'!$K$50*Z15 -> 0 | AA45: ='04_Wirtschaftlichkeit'!$K$50*AA15 -> 0 | AB45: ='04_Wirtschaftlichkeit'!$K$50*AB15 -> 0 | AC45: ='04_Wirtschaftlichkeit'!$K$50*AC15 -> 0 | AD45: ='04_Wirtschaftlichkeit'!$K$50*AD15 -> 0 | AE45: ='04_Wirtschaftlichkeit'!$K$50*AE15 -> 0 | AF45: ='04_Wirtschaftlichkeit'!$K$50*AF15 -> 0 | AG45: ='04_Wirtschaftlichkeit'!$K$50*AG15 -> 0 | AH45: ='04_Wirtschaftlichkeit'!$K$50*AH15 -> 0 | AI45: ='04_Wirtschaftlichkeit'!$K$50*AI15 -> 0 | AJ45: ='04_Wirtschaftlichkeit'!$K$50*AJ15 -> 0 | AK45: ='04_Wirtschaftlichkeit'!$K$50*AK15 -> 0 | AL45: ='04_Wirtschaftlichkeit'!$K$50*AL15 -> 0 | AM45: ='04_Wirtschaftlichkeit'!$K$50*AM15 -> 0 | AN45: ='04_Wirtschaftlichkeit'!$K$50*AN15 -> 0 | AO45: ='04_Wirtschaftlichkeit'!$K$50*AO15 -> 0 | AP45: ='04_Wirtschaftlichkeit'!$K$50*AP15 -> 0 | AQ45: ='04_Wirtschaftlichkeit'!$K$50*AQ15 -> 0 | AR45: ='04_Wirtschaftlichkeit'!$K$50*AR15 -> 0 | AS45: ='04_Wirtschaftlichkeit'!$K$50*AS15 -> 0 | AT45: ='04_Wirtschaftlichkeit'!$K$50*AT15 -> 0 | AU45: ='04_Wirtschaftlichkeit'!$K$50*AU15 -> 0 | AV45: ='04_Wirtschaftlichkeit'!$K$50*AV15 -> 0 | AW45: ='04_Wirtschaftlichkeit'!$K$50*AW15 -> 0 | AX45: ='04_Wirtschaftlichkeit'!$K$50*AX15 -> 0 | AY45: ='04_Wirtschaftlichkeit'!$K$50*AY15 -> 0 | AZ45: ='04_Wirtschaftlichkeit'!$K$50*AZ15 -> 0 | BA45: ='04_Wirtschaftlichkeit'!$K$50*BA15 -> 0
B46: CO2 Kosten | D46: ='04_Wirtschaftlichkeit'!$N$38*'04_Wirtschaftlichkeit'!$F$18*Nebenrechnungen!D15 -> 488.375 | E46: ='04_Wirtschaftlichkeit'!$N$38*'04_Wirtschaftlichkeit'!$F$18*Nebenrechnungen!E15 -> 488.375 | F46: ='04_Wirtschaftlichkeit'!$N$38*'04_Wirtschaftlichkeit'!$F$18*Nebenrechnungen!F15 -> 488.375 | G46: ='04_Wirtschaftlichkeit'!$N$38*'04_Wirtschaftlichkeit'!$F$18*Nebenrechnungen!G15 -> 488.375 | H46: ='04_Wirtschaftlichkeit'!$N$38*'04_Wirtschaftlichkeit'!$F$18*Nebenrechnungen!H15 -> 488.375 | I46: ='04_Wirtschaftlichkeit'!$N$38*'04_Wirtschaftlichkeit'!$F$18*Nebenrechnungen!I15 -> 488.375 | J46: ='04_Wirtschaftlichkeit'!$N$38*'04_Wirtschaftlichkeit'!$F$18*Nebenrechnungen!J15 -> 488.375 | K46: ='04_Wirtschaftlichkeit'!$N$38*'04_Wirtschaftlichkeit'!$F$18*Nebenrechnungen!K15 -> 488.375 | L46: ='04_Wirtschaftlichkeit'!$N$38*'04_Wirtschaftlichkeit'!$F$18*Nebenrechnungen!L15 -> 488.375 | M46: ='04_Wirtschaftlichkeit'!$N$38*'04_Wirtschaftlichkeit'!$F$18*Nebenrechnungen!M15 -> 488.375 | N46: ='04_Wirtschaftlichkeit'!$N$38*'04_Wirtschaftlichkeit'!$F$18*Nebenrechnungen!N15 -> 488.375 | O46: ='04_Wirtschaftlichkeit'!$N$38*'04_Wirtschaftlichkeit'!$F$18*Nebenrechnungen!O15 -> 488.375 | P46: ='04_Wirtschaftlichkeit'!$N$38*'04_Wirtschaftlichkeit'!$F$18*Nebenrechnungen!P15 -> 488.375 | Q46: ='04_Wirtschaftlichkeit'!$N$38*'04_Wirtschaftlichkeit'!$F$18*Nebenrechnungen!Q15 -> 488.375 | R46: ='04_Wirtschaftlichkeit'!$N$38*'04_Wirtschaftlichkeit'!$F$18*Nebenrechnungen!R15 -> 488.375 | S46: ='04_Wirtschaftlichkeit'!$N$38*'04_Wirtschaftlichkeit'!$F$18*Nebenrechnungen!S15 -> 488.375 | T46: ='04_Wirtschaftlichkeit'!$N$38*'04_Wirtschaftlichkeit'!$F$18*Nebenrechnungen!T15 -> 488.375 | U46: ='04_Wirtschaftlichkeit'!$N$38*'04_Wirtschaftlichkeit'!$F$18*Nebenrechnungen!U15 -> 488.375 | V46: ='04_Wirtschaftlichkeit'!$N$38*'04_Wirtschaftlichkeit'!$F$18*Nebenrechnungen!V15 -> 488.375 | W46: ='04_Wirtschaftlichkeit'!$N$38*'04_Wirtschaftlichkeit'!$F$18*Nebenrechnungen!W15 -> 488.375 | X46: ='04_Wirtschaftlichkeit'!$N$38*'04_Wirtschaftlichkeit'!$F$18*Nebenrechnungen!X15 -> 0 | Y46: ='04_Wirtschaftlichkeit'!$N$38*'04_Wirtschaftlichkeit'!$F$18*Nebenrechnungen!Y15 -> 0 | Z46: ='04_Wirtschaftlichkeit'!$N$38*'04_Wirtschaftlichkeit'!$F$18*Nebenrechnungen!Z15 -> 0 | AA46: ='04_Wirtschaftlichkeit'!$N$38*'04_Wirtschaftlichkeit'!$F$18*Nebenrechnungen!AA15 -> 0 | AB46: ='04_Wirtschaftlichkeit'!$N$38*'04_Wirtschaftlichkeit'!$F$18*Nebenrechnungen!AB15 -> 0 | AC46: ='04_Wirtschaftlichkeit'!$N$38*'04_Wirtschaftlichkeit'!$F$18*Nebenrechnungen!AC15 -> 0 | AD46: ='04_Wirtschaftlichkeit'!$N$38*'04_Wirtschaftlichkeit'!$F$18*Nebenrechnungen!AD15 -> 0 | AE46: ='04_Wirtschaftlichkeit'!$N$38*'04_Wirtschaftlichkeit'!$F$18*Nebenrechnungen!AE15 -> 0 | AF46: ='04_Wirtschaftlichkeit'!$N$38*'04_Wirtschaftlichkeit'!$F$18*Nebenrechnungen!AF15 -> 0 | AG46: ='04_Wirtschaftlichkeit'!$N$38*'04_Wirtschaftlichkeit'!$F$18*Nebenrechnungen!AG15 -> 0 | AH46: ='04_Wirtschaftlichkeit'!$N$38*'04_Wirtschaftlichkeit'!$F$18*Nebenrechnungen!AH15 -> 0 | AI46: ='04_Wirtschaftlichkeit'!$N$38*'04_Wirtschaftlichkeit'!$F$18*Nebenrechnungen!AI15 -> 0 | AJ46: ='04_Wirtschaftlichkeit'!$N$38*'04_Wirtschaftlichkeit'!$F$18*Nebenrechnungen!AJ15 -> 0 | AK46: ='04_Wirtschaftlichkeit'!$N$38*'04_Wirtschaftlichkeit'!$F$18*Nebenrechnungen!AK15 -> 0 | AL46: ='04_Wirtschaftlichkeit'!$N$38*'04_Wirtschaftlichkeit'!$F$18*Nebenrechnungen!AL15 -> 0 | AM46: ='04_Wirtschaftlichkeit'!$N$38*'04_Wirtschaftlichkeit'!$F$18*Nebenrechnungen!AM15 -> 0 | AN46: ='04_Wirtschaftlichkeit'!$N$38*'04_Wirtschaftlichkeit'!$F$18*Nebenrechnungen!AN15 -> 0 | AO46: ='04_Wirtschaftlichkeit'!$N$38*'04_Wirtschaftlichkeit'!$F$18*Nebenrechnungen!AO15 -> 0 | AP46: ='04_Wirtschaftlichkeit'!$N$38*'04_Wirtschaftlichkeit'!$F$18*Nebenrechnungen!AP15 -> 0 | AQ46: ='04_Wirtschaftlichkeit'!$N$38*'04_Wirtschaftlichkeit'!$F$18*Nebenrechnungen!AQ15 -> 0 | AR46: ='04_Wirtschaftlichkeit'!$N$38*'04_Wirtschaftlichkeit'!$F$18*Nebenrechnungen!AR15 -> 0 | AS46: ='04_Wirtschaftlichkeit'!$N$38*'04_Wirtschaftlichkeit'!$F$18*Nebenrechnungen!AS15 -> 0 | AT46: ='04_Wirtschaftlichkeit'!$N$38*'04_Wirtschaftlichkeit'!$F$18*Nebenrechnungen!AT15 -> 0 | AU46: ='04_Wirtschaftlichkeit'!$N$38*'04_Wirtschaftlichkeit'!$F$18*Nebenrechnungen!AU15 -> 0 | AV46: ='04_Wirtschaftlichkeit'!$N$38*'04_Wirtschaftlichkeit'!$F$18*Nebenrechnungen!AV15 -> 0 | AW46: ='04_Wirtschaftlichkeit'!$N$38*'04_Wirtschaftlichkeit'!$F$18*Nebenrechnungen!AW15 -> 0 | AX46: ='04_Wirtschaftlichkeit'!$N$38*'04_Wirtschaftlichkeit'!$F$18*Nebenrechnungen!AX15 -> 0 | AY46: ='04_Wirtschaftlichkeit'!$N$38*'04_Wirtschaftlichkeit'!$F$18*Nebenrechnungen!AY15 -> 0 | AZ46: ='04_Wirtschaftlichkeit'!$N$38*'04_Wirtschaftlichkeit'!$F$18*Nebenrechnungen!AZ15 -> 0 | BA46: ='04_Wirtschaftlichkeit'!$N$38*'04_Wirtschaftlichkeit'!$F$18*Nebenrechnungen!BA15 -> 0
B47: Einzahlungen | C47: =-C$21 -> 239307.3236 | D47: 30811.025 | E47: 30811.025 | F47: 30811.025 | G47: 30811.025 | H47: 30811.025 | I47: 30811.025 | J47: 30811.025 | K47: 30811.025 | L47: 30811.025 | M47: 30811.025 | N47: 30811.025 | O47: 30811.025 | P47: 30811.025 | Q47: 30811.025 | R47: 30811.025 | S47: 30811.025 | T47: 30811.025 | U47: 30811.025 | V47: 30811.025 | W47: 30811.025 | X47: 0 | Y47: 0 | Z47: 0 | AA47: 0 | AB47: 0 | AC47: 0 | AD47: 0 | AE47: 0 | AF47: 0 | AG47: 0 | AH47: 0 | AI47: =-AI$21 -> 0 | AJ47: 0 | AK47: 0 | AL47: 0 | AM47: 0 | AN47: 0 | AO47: 0 | AP47: 0 | AQ47: 0 | AR47: 0 | AS47: 0 | AT47: 0 | AU47: 0 | AV47: 0 | AW47: 0 | AX47: 0 | AY47: 0 | AZ47: 0 | BA47: 0
B48: Saldo je Periode | C48: =((C47-SUM(C44:C46))*C$15) -> -980493.3491 | D48: -82080.35 | E48: -82080.35 | F48: -82080.35 | G48: -82080.35 | H48: -82080.35 | I48: -82080.35 | J48: -82080.35 | K48: -82080.35 | L48: -82080.35 | M48: -82080.35 | N48: -82080.35 | O48: -82080.35 | P48: -82080.35 | Q48: -82080.35 | R48: -82080.35 | S48: -82080.35 | T48: -82080.35 | U48: -82080.35 | V48: -82080.35 | W48: -82080.35 | X48: 0 | Y48: 0 | Z48: 0 | AA48: 0 | AB48: 0 | AC48: 0 | AD48: 0 | AE48: 0 | AF48: 0 | AG48: 0 | AH48: 0 | AI48: =((AI47-SUM(AI44:AI46))*AI$15) -> 0 | AJ48: 0 | AK48: 0 | AL48: 0 | AM48: 0 | AN48: 0 | AO48: 0 | AP48: 0 | AQ48: 0 | AR48: 0 | AS48: 0 | AT48: 0 | AU48: 0 | AV48: 0 | AW48: 0 | AX48: 0 | AY48: 0 | AZ48: 0 | BA48: 0
B49: Periodenbarwert | C49: =((C47-SUM(C44:C46))*C$15)*(1+'04_Wirtschaftlichkeit'!$F$16)^-C$14 -> -980493.3491 | D49: =((D47-SUM(D44:D46))*D$15)*(1+'04_Wirtschaftlichkeit'!$F$16)^-D$14 -> -81067.01235 | E49: =((E47-SUM(E44:E46))*E$15)*(1+'04_Wirtschaftlichkeit'!$F$16)^-E$14 -> -80066.18503 | F49: =((F47-SUM(F44:F46))*F$15)*(1+'04_Wirtschaftlichkeit'!$F$16)^-F$14 -> -79077.71361 | G49: =((G47-SUM(G44:G46))*G$15)*(1+'04_Wirtschaftlichkeit'!$F$16)^-G$14 -> -78101.44554 | H49: =((H47-SUM(H44:H46))*H$15)*(1+'04_Wirtschaftlichkeit'!$F$16)^-H$14 -> -77137.23017 | I49: =((I47-SUM(I44:I46))*I$15)*(1+'04_Wirtschaftlichkeit'!$F$16)^-I$14 -> -76184.91868 | J49: =((J47-SUM(J44:J46))*J$15)*(1+'04_Wirtschaftlichkeit'!$F$16)^-J$14 -> -75244.36413 | K49: =((K47-SUM(K44:K46))*K$15)*(1+'04_Wirtschaftlichkeit'!$F$16)^-K$14 -> -74315.42136 | L49: =((L47-SUM(L44:L46))*L$15)*(1+'04_Wirtschaftlichkeit'!$F$16)^-L$14 -> -73397.94703 | M49: =((M47-SUM(M44:M46))*M$15)*(1+'04_Wirtschaftlichkeit'!$F$16)^-M$14 -> -72491.79953 | N49: =((N47-SUM(N44:N46))*N$15)*(1+'04_Wirtschaftlichkeit'!$F$16)^-N$14 -> -71596.83904 | O49: =((O47-SUM(O44:O46))*O$15)*(1+'04_Wirtschaftlichkeit'!$F$16)^-O$14 -> -70712.92745 | P49: =((P47-SUM(P44:P46))*P$15)*(1+'04_Wirtschaftlichkeit'!$F$16)^-P$14 -> -69839.92835 | Q49: =((Q47-SUM(Q44:Q46))*Q$15)*(1+'04_Wirtschaftlichkeit'!$F$16)^-Q$14 -> -68977.70701 | R49: =((R47-SUM(R44:R46))*R$15)*(1+'04_Wirtschaftlichkeit'!$F$16)^-R$14 -> -68126.13038 | S49: =((S47-SUM(S44:S46))*S$15)*(1+'04_Wirtschaftlichkeit'!$F$16)^-S$14 -> -67285.06704 | T49: =((T47-SUM(T44:T46))*T$15)*(1+'04_Wirtschaftlichkeit'!$F$16)^-T$14 -> -66454.3872 | U49: =((U47-SUM(U44:U46))*U$15)*(1+'04_Wirtschaftlichkeit'!$F$16)^-U$14 -> -65633.96267 | V49: =((V47-SUM(V44:V46))*V$15)*(1+'04_Wirtschaftlichkeit'!$F$16)^-V$14 -> -64823.66683 | W49: =((W47-SUM(W44:W46))*W$15)*(1+'04_Wirtschaftlichkeit'!$F$16)^-W$14 -> -64023.37465 | X49: =((X47-SUM(X44:X46))*X$15)*(1+'04_Wirtschaftlichkeit'!$F$16)^-X$14 -> 0 | Y49: =((Y47-SUM(Y44:Y46))*Y$15)*(1+'04_Wirtschaftlichkeit'!$F$16)^-Y$14 -> 0 | Z49: =((Z47-SUM(Z44:Z46))*Z$15)*(1+'04_Wirtschaftlichkeit'!$F$16)^-Z$14 -> 0 | AA49: =((AA47-SUM(AA44:AA46))*AA$15)*(1+'04_Wirtschaftlichkeit'!$F$16)^-AA$14 -> 0 | AB49: =((AB47-SUM(AB44:AB46))*AB$15)*(1+'04_Wirtschaftlichkeit'!$F$16)^-AB$14 -> 0 | AC49: =((AC47-SUM(AC44:AC46))*AC$15)*(1+'04_Wirtschaftlichkeit'!$F$16)^-AC$14 -> 0 | AD49: =((AD47-SUM(AD44:AD46))*AD$15)*(1+'04_Wirtschaftlichkeit'!$F$16)^-AD$14 -> 0 | AE49: =((AE47-SUM(AE44:AE46))*AE$15)*(1+'04_Wirtschaftlichkeit'!$F$16)^-AE$14 -> 0 | AF49: =((AF47-SUM(AF44:AF46))*AF$15)*(1+'04_Wirtschaftlichkeit'!$F$16)^-AF$14 -> 0 | AG49: =((AG47-SUM(AG44:AG46))*AG$15)*(1+'04_Wirtschaftlichkeit'!$F$16)^-AG$14 -> 0 | AH49: =((AH47-SUM(AH44:AH46))*AH$15)*(1+'04_Wirtschaftlichkeit'!$F$16)^-AH$14 -> 0 | AI49: =((AI47-SUM(AI44:AI46))*AI$15)*(1+'04_Wirtschaftlichkeit'!$F$16)^-AI$14 -> 0 | AJ49: =((AJ47-SUM(AJ44:AJ46))*AJ$15)*(1+'04_Wirtschaftlichkeit'!$F$16)^-AJ$14 -> 0 | AK49: =((AK47-SUM(AK44:AK46))*AK$15)*(1+'04_Wirtschaftlichkeit'!$F$16)^-AK$14 -> 0 | AL49: =((AL47-SUM(AL44:AL46))*AL$15)*(1+'04_Wirtschaftlichkeit'!$F$16)^-AL$14 -> 0 | AM49: =((AM47-SUM(AM44:AM46))*AM$15)*(1+'04_Wirtschaftlichkeit'!$F$16)^-AM$14 -> 0 | AN49: =((AN47-SUM(AN44:AN46))*AN$15)*(1+'04_Wirtschaftlichkeit'!$F$16)^-AN$14 -> 0 | AO49: =((AO47-SUM(AO44:AO46))*AO$15)*(1+'04_Wirtschaftlichkeit'!$F$16)^-AO$14 -> 0 | AP49: =((AP47-SUM(AP44:AP46))*AP$15)*(1+'04_Wirtschaftlichkeit'!$F$16)^-AP$14 -> 0 | AQ49: =((AQ47-SUM(AQ44:AQ46))*AQ$15)*(1+'04_Wirtschaftlichkeit'!$F$16)^-AQ$14 -> 0 | AR49: =((AR47-SUM(AR44:AR46))*AR$15)*(1+'04_Wirtschaftlichkeit'!$F$16)^-AR$14 -> 0 | AS49: =((AS47-SUM(AS44:AS46))*AS$15)*(1+'04_Wirtschaftlichkeit'!$F$16)^-AS$14 -> 0 | AT49: =((AT47-SUM(AT44:AT46))*AT$15)*(1+'04_Wirtschaftlichkeit'!$F$16)^-AT$14 -> 0 | AU49: =((AU47-SUM(AU44:AU46))*AU$15)*(1+'04_Wirtschaftlichkeit'!$F$16)^-AU$14 -> 0 | AV49: =((AV47-SUM(AV44:AV46))*AV$15)*(1+'04_Wirtschaftlichkeit'!$F$16)^-AV$14 -> 0 | AW49: =((AW47-SUM(AW44:AW46))*AW$15)*(1+'04_Wirtschaftlichkeit'!$F$16)^-AW$14 -> 0 | AX49: =((AX47-SUM(AX44:AX46))*AX$15)*(1+'04_Wirtschaftlichkeit'!$F$16)^-AX$14 -> 0 | AY49: =((AY47-SUM(AY44:AY46))*AY$15)*(1+'04_Wirtschaftlichkeit'!$F$16)^-AY$14 -> 0 | AZ49: =((AZ47-SUM(AZ44:AZ46))*AZ$15)*(1+'04_Wirtschaftlichkeit'!$F$16)^-AZ$14 -> 0 | BA49: =((BA47-SUM(BA44:BA46))*BA$15)*(1+'04_Wirtschaftlichkeit'!$F$16)^-BA$14 -> 0
B50: KW je Periode | C50: =SUM($C$49:C49)*C$15 -> -980493.3491 | D50: =SUM($C$49:D49)*D$15 -> -1061560.361 | E50: =SUM($C$49:E49)*E$15 -> -1141626.547 | F50: =SUM($C$49:F49)*F$15 -> -1220704.26 | G50: =SUM($C$49:G49)*G$15 -> -1298805.706 | H50: =SUM($C$49:H49)*H$15 -> -1375942.936 | I50: =SUM($C$49:I49)*I$15 -> -1452127.855 | J50: =SUM($C$49:J49)*J$15 -> -1527372.219 | K50: =SUM($C$49:K49)*K$15 -> -1601687.64 | L50: =SUM($C$49:L49)*L$15 -> -1675085.587 | M50: =SUM($C$49:M49)*M$15 -> -1747577.387 | N50: =SUM($C$49:N49)*N$15 -> -1819174.226 | O50: =SUM($C$49:O49)*O$15 -> -1889887.153 | P50: =SUM($C$49:P49)*P$15 -> -1959727.081 | Q50: =SUM($C$49:Q49)*Q$15 -> -2028704.788 | R50: =SUM($C$49:R49)*R$15 -> -2096830.919 | S50: =SUM($C$49:S49)*S$15 -> -2164115.986 | T50: =SUM($C$49:T49)*T$15 -> -2230570.373 | U50: =SUM($C$49:U49)*U$15 -> -2296204.336 | V50: =SUM($C$49:V49)*V$15 -> -2361028.003 | W50: =SUM($C$49:W49)*W$15 -> -2425051.377 | X50: =SUM($C$49:X49)*X$15 -> 0 | Y50: =SUM($C$49:Y49)*Y$15 -> 0 | Z50: =SUM($C$49:Z49)*Z$15 -> 0 | AA50: =SUM($C$49:AA49)*AA$15 -> 0 | AB50: =SUM($C$49:AB49)*AB$15 -> 0 | AC50: =SUM($C$49:AC49)*AC$15 -> 0 | AD50: =SUM($C$49:AD49)*AD$15 -> 0 | AE50: =SUM($C$49:AE49)*AE$15 -> 0 | AF50: =SUM($C$49:AF49)*AF$15 -> 0 | AG50: =SUM($C$49:AG49)*AG$15 -> 0 | AH50: =SUM($C$49:AH49)*AH$15 -> 0 | AI50: =SUM($C$49:AI49)*AI$15 -> 0 | AJ50: =SUM($C$49:AJ49)*AJ$15 -> 0 | AK50: =SUM($C$49:AK49)*AK$15 -> 0 | AL50: =SUM($C$49:AL49)*AL$15 -> 0 | AM50: =SUM($C$49:AM49)*AM$15 -> 0 | AN50: =SUM($C$49:AN49)*AN$15 -> 0 | AO50: =SUM($C$49:AO49)*AO$15 -> 0 | AP50: =SUM($C$49:AP49)*AP$15 -> 0 | AQ50: =SUM($C$49:AQ49)*AQ$15 -> 0 | AR50: =SUM($C$49:AR49)*AR$15 -> 0 | AS50: =SUM($C$49:AS49)*AS$15 -> 0 | AT50: =SUM($C$49:AT49)*AT$15 -> 0 | AU50: =SUM($C$49:AU49)*AU$15 -> 0 | AV50: =SUM($C$49:AV49)*AV$15 -> 0 | AW50: =SUM($C$49:AW49)*AW$15 -> 0 | AX50: =SUM($C$49:AX49)*AX$15 -> 0 | AY50: =SUM($C$49:AY49)*AY$15 -> 0 | AZ50: =SUM($C$49:AZ49)*AZ$15 -> 0 | BA50: =SUM($C$49:BA49)*BA$15 -> 0
B51: Amortisation | C51: =IF(AND(C50<0,D50>0),C$14+C50/(C50-D50),0) -> 0 | D51: 0 | E51: 0 | F51: 0 | G51: 0 | H51: 0 | I51: 0 | J51: 0 | K51: 0 | L51: 0 | M51: 0 | N51: 0 | O51: 0 | P51: 0 | Q51: 0 | R51: 0 | S51: 0 | T51: 0 | U51: 0 | V51: 0 | W51: 0 | X51: 0 | Y51: 0 | Z51: 0 | AA51: 0 | AB51: 0 | AC51: 0 | AD51: 0 | AE51: 0 | AF51: 0 | AG51: 0 | AH51: 0 | AI51: =IF(AND(AI50<0,AJ50>0),AI$14+AI50/(AI50-AJ50),0) -> 0 | AJ51: 0 | AK51: 0 | AL51: 0 | AM51: 0 | AN51: 0 | AO51: 0 | AP51: 0 | AQ51: 0 | AR51: 0 | AS51: 0 | AT51: 0 | AU51: 0 | AV51: 0 | AW51: 0 | AX51: 0 | AY51: 0 | AZ51: 0 | BA51: 0
B53: Hilfsrechnung für Sensitivitätsanalyse
B54: ='04_Wirtschaftlichkeit'!B79 -> Top 1
B55: Periode | C55: 0 | D55: 1 | E55: 2 | F55: 3 | G55: 4 | H55: 5 | I55: 6 | J55: 7 | K55: 8 | L55: 9 | M55: 10 | N55: 11 | O55: 12 | P55: 13 | Q55: 14 | R55: 15 | S55: 16 | T55: 17 | U55: 18 | V55: 19 | W55: 20 | X55: 21 | Y55: 22 | Z55: 23 | AA55: 24 | AB55: 25 | AC55: 26 | AD55: 27 | AE55: 28 | AF55: 29 | AG55: 30 | AH55: 31 | AI55: 32 | AJ55: 33 | AK55: 34 | AL55: 35 | AM55: 36 | AN55: 37 | AO55: 38 | AP55: 39 | AQ55: 40 | AR55: 41 | AS55: 42 | AT55: 43 | AU55: 44 | AV55: 45 | AW55: 46 | AX55: 47 | AY55: 48 | AZ55: 49 | BA55: 50
B56: Betr.-Dauer | C56: =IF('04_Wirtschaftlichkeit'!$F$17>=Nebenrechnungen!C$55,1,0) -> 1 | D56: =IF('04_Wirtschaftlichkeit'!$F$17>=Nebenrechnungen!D$55,1,0) -> 1 | E56: =IF('04_Wirtschaftlichkeit'!$F$17>=Nebenrechnungen!E$55,1,0) -> 1 | F56: =IF('04_Wirtschaftlichkeit'!$F$17>=Nebenrechnungen!F$55,1,0) -> 1 | G56: =IF('04_Wirtschaftlichkeit'!$F$17>=Nebenrechnungen!G$55,1,0) -> 1 | H56: =IF('04_Wirtschaftlichkeit'!$F$17>=Nebenrechnungen!H$55,1,0) -> 1 | I56: =IF('04_Wirtschaftlichkeit'!$F$17>=Nebenrechnungen!I$55,1,0) -> 1 | J56: =IF('04_Wirtschaftlichkeit'!$F$17>=Nebenrechnungen!J$55,1,0) -> 1 | K56: =IF('04_Wirtschaftlichkeit'!$F$17>=Nebenrechnungen!K$55,1,0) -> 1 | L56: =IF('04_Wirtschaftlichkeit'!$F$17>=Nebenrechnungen!L$55,1,0) -> 1 | M56: =IF('04_Wirtschaftlichkeit'!$F$17>=Nebenrechnungen!M$55,1,0) -> 1 | N56: =IF('04_Wirtschaftlichkeit'!$F$17>=Nebenrechnungen!N$55,1,0) -> 1 | O56: =IF('04_Wirtschaftlichkeit'!$F$17>=Nebenrechnungen!O$55,1,0) -> 1 | P56: =IF('04_Wirtschaftlichkeit'!$F$17>=Nebenrechnungen!P$55,1,0) -> 1 | Q56: =IF('04_Wirtschaftlichkeit'!$F$17>=Nebenrechnungen!Q$55,1,0) -> 1 | R56: =IF('04_Wirtschaftlichkeit'!$F$17>=Nebenrechnungen!R$55,1,0) -> 1 | S56: =IF('04_Wirtschaftlichkeit'!$F$17>=Nebenrechnungen!S$55,1,0) -> 1 | T56: =IF('04_Wirtschaftlichkeit'!$F$17>=Nebenrechnungen!T$55,1,0) -> 1 | U56: =IF('04_Wirtschaftlichkeit'!$F$17>=Nebenrechnungen!U$55,1,0) -> 1 | V56: =IF('04_Wirtschaftlichkeit'!$F$17>=Nebenrechnungen!V$55,1,0) -> 1 | W56: =IF('04_Wirtschaftlichkeit'!$F$17>=Nebenrechnungen!W$55,1,0) -> 1 | X56: =IF('04_Wirtschaftlichkeit'!$F$17>=Nebenrechnungen!X$55,1,0) -> 0 | Y56: =IF('04_Wirtschaftlichkeit'!$F$17>=Nebenrechnungen!Y$55,1,0) -> 0 | Z56: =IF('04_Wirtschaftlichkeit'!$F$17>=Nebenrechnungen!Z$55,1,0) -> 0 | AA56: =IF('04_Wirtschaftlichkeit'!$F$17>=Nebenrechnungen!AA$55,1,0) -> 0 | AB56: =IF('04_Wirtschaftlichkeit'!$F$17>=Nebenrechnungen!AB$55,1,0) -> 0 | AC56: =IF('04_Wirtschaftlichkeit'!$F$17>=Nebenrechnungen!AC$55,1,0) -> 0 | AD56: =IF('04_Wirtschaftlichkeit'!$F$17>=Nebenrechnungen!AD$55,1,0) -> 0 | AE56: =IF('04_Wirtschaftlichkeit'!$F$17>=Nebenrechnungen!AE$55,1,0) -> 0 | AF56: =IF('04_Wirtschaftlichkeit'!$F$17>=Nebenrechnungen!AF$55,1,0) -> 0 | AG56: =IF('04_Wirtschaftlichkeit'!$F$17>=Nebenrechnungen!AG$55,1,0) -> 0 | AH56: =IF('04_Wirtschaftlichkeit'!$F$17>=Nebenrechnungen!AH$55,1,0) -> 0 | AI56: =IF('04_Wirtschaftlichkeit'!$F$17>=Nebenrechnungen!AI$55,1,0) -> 0 | AJ56: =IF('04_Wirtschaftlichkeit'!$F$17>=Nebenrechnungen!AJ$55,1,0) -> 0 | AK56: =IF('04_Wirtschaftlichkeit'!$F$17>=Nebenrechnungen!AK$55,1,0) -> 0 | AL56: =IF('04_Wirtschaftlichkeit'!$F$17>=Nebenrechnungen!AL$55,1,0) -> 0 | AM56: =IF('04_Wirtschaftlichkeit'!$F$17>=Nebenrechnungen!AM$55,1,0) -> 0 | AN56: =IF('04_Wirtschaftlichkeit'!$F$17>=Nebenrechnungen!AN$55,1,0) -> 0 | AO56: =IF('04_Wirtschaftlichkeit'!$F$17>=Nebenrechnungen!AO$55,1,0) -> 0 | AP56: =IF('04_Wirtschaftlichkeit'!$F$17>=Nebenrechnungen!AP$55,1,0) -> 0 | AQ56: =IF('04_Wirtschaftlichkeit'!$F$17>=Nebenrechnungen!AQ$55,1,0) -> 0 | AR56: =IF('04_Wirtschaftlichkeit'!$F$17>=Nebenrechnungen!AR$55,1,0) -> 0 | AS56: =IF('04_Wirtschaftlichkeit'!$F$17>=Nebenrechnungen!AS$55,1,0) -> 0 | AT56: =IF('04_Wirtschaftlichkeit'!$F$17>=Nebenrechnungen!AT$55,1,0) -> 0 | AU56: =IF('04_Wirtschaftlichkeit'!$F$17>=Nebenrechnungen!AU$55,1,0) -> 0 | AV56: =IF('04_Wirtschaftlichkeit'!$F$17>=Nebenrechnungen!AV$55,1,0) -> 0 | AW56: =IF('04_Wirtschaftlichkeit'!$F$17>=Nebenrechnungen!AW$55,1,0) -> 0 | AX56: =IF('04_Wirtschaftlichkeit'!$F$17>=Nebenrechnungen!AX$55,1,0) -> 0 | AY56: =IF('04_Wirtschaftlichkeit'!$F$17>=Nebenrechnungen!AY$55,1,0) -> 0 | AZ56: =IF('04_Wirtschaftlichkeit'!$F$17>=Nebenrechnungen!AZ$55,1,0) -> 0 | BA56: =IF('04_Wirtschaftlichkeit'!$F$17>=Nebenrechnungen!BA$55,1,0) -> 0
B57: Investition
B58: -0.5 | C58: =-HLOOKUP($B$54,'04_Wirtschaftlichkeit'!$E$44:$L$57,6,FALSE)*(1+B58) -> -528915.3584 | D58: =D$56*(-HLOOKUP($B$54,'04_Wirtschaftlichkeit'!$E$44:$L$57,7,FALSE)-HLOOKUP($B$54,'04_Wirtschaftlichkeit'!$E$44:$L$57,5,FALSE)) -> -84207.9 | E58: =E$56*(-HLOOKUP($B$54,'04_Wirtschaftlichkeit'!$E$44:$L$57,7,FALSE)-HLOOKUP($B$54,'04_Wirtschaftlichkeit'!$E$44:$L$57,5,FALSE)) -> -84207.9 | F58: =F$56*(-HLOOKUP($B$54,'04_Wirtschaftlichkeit'!$E$44:$L$57,7,FALSE)-HLOOKUP($B$54,'04_Wirtschaftlichkeit'!$E$44:$L$57,5,FALSE)) -> -84207.9 | G58: =G$56*(-HLOOKUP($B$54,'04_Wirtschaftlichkeit'!$E$44:$L$57,7,FALSE)-HLOOKUP($B$54,'04_Wirtschaftlichkeit'!$E$44:$L$57,5,FALSE)) -> -84207.9 | H58: =H$56*(-HLOOKUP($B$54,'04_Wirtschaftlichkeit'!$E$44:$L$57,7,FALSE)-HLOOKUP($B$54,'04_Wirtschaftlichkeit'!$E$44:$L$57,5,FALSE)) -> -84207.9 | I58: =I$56*(-HLOOKUP($B$54,'04_Wirtschaftlichkeit'!$E$44:$L$57,7,FALSE)-HLOOKUP($B$54,'04_Wirtschaftlichkeit'!$E$44:$L$57,5,FALSE)) -> -84207.9 | J58: =J$56*(-HLOOKUP($B$54,'04_Wirtschaftlichkeit'!$E$44:$L$57,7,FALSE)-HLOOKUP($B$54,'04_Wirtschaftlichkeit'!$E$44:$L$57,5,FALSE)) -> -84207.9 | K58: =K$56*(-HLOOKUP($B$54,'04_Wirtschaftlichkeit'!$E$44:$L$57,7,FALSE)-HLOOKUP($B$54,'04_Wirtschaftlichkeit'!$E$44:$L$57,5,FALSE)) -> -84207.9 | L58: =L$56*(-HLOOKUP($B$54,'04_Wirtschaftlichkeit'!$E$44:$L$57,7,FALSE)-HLOOKUP($B$54,'04_Wirtschaftlichkeit'!$E$44:$L$57,5,FALSE)) -> -84207.9 | M58: =M$56*(-HLOOKUP($B$54,'04_Wirtschaftlichkeit'!$E$44:$L$57,7,FALSE)-HLOOKUP($B$54,'04_Wirtschaftlichkeit'!$E$44:$L$57,5,FALSE)) -> -84207.9 | N58: =N$56*(-HLOOKUP($B$54,'04_Wirtschaftlichkeit'!$E$44:$L$57,7,FALSE)-HLOOKUP($B$54,'04_Wirtschaftlichkeit'!$E$44:$L$57,5,FALSE)) -> -84207.9 | O58: =O$56*(-HLOOKUP($B$54,'04_Wirtschaftlichkeit'!$E$44:$L$57,7,FALSE)-HLOOKUP($B$54,'04_Wirtschaftlichkeit'!$E$44:$L$57,5,FALSE)) -> -84207.9 | P58: =P$56*(-HLOOKUP($B$54,'04_Wirtschaftlichkeit'!$E$44:$L$57,7,FALSE)-HLOOKUP($B$54,'04_Wirtschaftlichkeit'!$E$44:$L$57,5,FALSE)) -> -84207.9 | Q58: =Q$56*(-HLOOKUP($B$54,'04_Wirtschaftlichkeit'!$E$44:$L$57,7,FALSE)-HLOOKUP($B$54,'04_Wirtschaftlichkeit'!$E$44:$L$57,5,FALSE)) -> -84207.9 | R58: =R$56*(-HLOOKUP($B$54,'04_Wirtschaftlichkeit'!$E$44:$L$57,7,FALSE)-HLOOKUP($B$54,'04_Wirtschaftlichkeit'!$E$44:$L$57,5,FALSE)) -> -84207.9 | S58: =S$56*(-HLOOKUP($B$54,'04_Wirtschaftlichkeit'!$E$44:$L$57,7,FALSE)-HLOOKUP($B$54,'04_Wirtschaftlichkeit'!$E$44:$L$57,5,FALSE)) -> -84207.9 | T58: =T$56*(-HLOOKUP($B$54,'04_Wirtschaftlichkeit'!$E$44:$L$57,7,FALSE)-HLOOKUP($B$54,'04_Wirtschaftlichkeit'!$E$44:$L$57,5,FALSE)) -> -84207.9 | U58: =U$56*(-HLOOKUP($B$54,'04_Wirtschaftlichkeit'!$E$44:$L$57,7,FALSE)-HLOOKUP($B$54,'04_Wirtschaftlichkeit'!$E$44:$L$57,5,FALSE)) -> -84207.9 | V58: =V$56*(-HLOOKUP($B$54,'04_Wirtschaftlichkeit'!$E$44:$L$57,7,FALSE)-HLOOKUP($B$54,'04_Wirtschaftlichkeit'!$E$44:$L$57,5,FALSE)) -> -84207.9 | W58: =W$56*(-HLOOKUP($B$54,'04_Wirtschaftlichkeit'!$E$44:$L$57,7,FALSE)-HLOOKUP($B$54,'04_Wirtschaftlichkeit'!$E$44:$L$57,5,FALSE)) -> -84207.9 | X58: =X$56*(-HLOOKUP($B$54,'04_Wirtschaftlichkeit'!$E$44:$L$57,7,FALSE)-HLOOKUP($B$54,'04_Wirtschaftlichkeit'!$E$44:$L$57,5,FALSE)) -> 0 | Y58: =Y$56*(-HLOOKUP($B$54,'04_Wirtschaftlichkeit'!$E$44:$L$57,7,FALSE)-HLOOKUP($B$54,'04_Wirtschaftlichkeit'!$E$44:$L$57,5,FALSE)) -> 0 | Z58: =Z$56*(-HLOOKUP($B$54,'04_Wirtschaftlichkeit'!$E$44:$L$57,7,FALSE)-HLOOKUP($B$54,'04_Wirtschaftlichkeit'!$E$44:$L$57,5,FALSE)) -> 0 | AA58: =AA$56*(-HLOOKUP($B$54,'04_Wirtschaftlichkeit'!$E$44:$L$57,7,FALSE)-HLOOKUP($B$54,'04_Wirtschaftlichkeit'!$E$44:$L$57,5,FALSE)) -> 0 | AB58: =AB$56*(-HLOOKUP($B$54,'04_Wirtschaftlichkeit'!$E$44:$L$57,7,FALSE)-HLOOKUP($B$54,'04_Wirtschaftlichkeit'!$E$44:$L$57,5,FALSE)) -> 0 | AC58: =AC$56*(-HLOOKUP($B$54,'04_Wirtschaftlichkeit'!$E$44:$L$57,7,FALSE)-HLOOKUP($B$54,'04_Wirtschaftlichkeit'!$E$44:$L$57,5,FALSE)) -> 0 | AD58: =AD$56*(-HLOOKUP($B$54,'04_Wirtschaftlichkeit'!$E$44:$L$57,7,FALSE)-HLOOKUP($B$54,'04_Wirtschaftlichkeit'!$E$44:$L$57,5,FALSE)) -> 0 | AE58: =AE$56*(-HLOOKUP($B$54,'04_Wirtschaftlichkeit'!$E$44:$L$57,7,FALSE)-HLOOKUP($B$54,'04_Wirtschaftlichkeit'!$E$44:$L$57,5,FALSE)) -> 0 | AF58: =AF$56*(-HLOOKUP($B$54,'04_Wirtschaftlichkeit'!$E$44:$L$57,7,FALSE)-HLOOKUP($B$54,'04_Wirtschaftlichkeit'!$E$44:$L$57,5,FALSE)) -> 0 | AG58: =AG$56*(-HLOOKUP($B$54,'04_Wirtschaftlichkeit'!$E$44:$L$57,7,FALSE)-HLOOKUP($B$54,'04_Wirtschaftlichkeit'!$E$44:$L$57,5,FALSE)) -> 0 | AH58: =AH$56*(-HLOOKUP($B$54,'04_Wirtschaftlichkeit'!$E$44:$L$57,7,FALSE)-HLOOKUP($B$54,'04_Wirtschaftlichkeit'!$E$44:$L$57,5,FALSE)) -> 0 | AI58: =AI$56*(-HLOOKUP($B$54,'04_Wirtschaftlichkeit'!$E$44:$L$57,7,FALSE)-HLOOKUP($B$54,'04_Wirtschaftlichkeit'!$E$44:$L$57,5,FALSE)) -> 0 | AJ58: =AJ$56*(-HLOOKUP($B$54,'04_Wirtschaftlichkeit'!$E$44:$L$57,7,FALSE)-HLOOKUP($B$54,'04_Wirtschaftlichkeit'!$E$44:$L$57,5,FALSE)) -> 0 | AK58: =AK$56*(-HLOOKUP($B$54,'04_Wirtschaftlichkeit'!$E$44:$L$57,7,FALSE)-HLOOKUP($B$54,'04_Wirtschaftlichkeit'!$E$44:$L$57,5,FALSE)) -> 0 | AL58: =AL$56*(-HLOOKUP($B$54,'04_Wirtschaftlichkeit'!$E$44:$L$57,7,FALSE)-HLOOKUP($B$54,'04_Wirtschaftlichkeit'!$E$44:$L$57,5,FALSE)) -> 0 | AM58: =AM$56*(-HLOOKUP($B$54,'04_Wirtschaftlichkeit'!$E$44:$L$57,7,FALSE)-HLOOKUP($B$54,'04_Wirtschaftlichkeit'!$E$44:$L$57,5,FALSE)) -> 0 | AN58: =AN$56*(-HLOOKUP($B$54,'04_Wirtschaftlichkeit'!$E$44:$L$57,7,FALSE)-HLOOKUP($B$54,'04_Wirtschaftlichkeit'!$E$44:$L$57,5,FALSE)) -> 0 | AO58: =AO$56*(-HLOOKUP($B$54,'04_Wirtschaftlichkeit'!$E$44:$L$57,7,FALSE)-HLOOKUP($B$54,'04_Wirtschaftlichkeit'!$E$44:$L$57,5,FALSE)) -> 0 | AP58: =AP$56*(-HLOOKUP($B$54,'04_Wirtschaftlichkeit'!$E$44:$L$57,7,FALSE)-HLOOKUP($B$54,'04_Wirtschaftlichkeit'!$E$44:$L$57,5,FALSE)) -> 0 | AQ58: =AQ$56*(-HLOOKUP($B$54,'04_Wirtschaftlichkeit'!$E$44:$L$57,7,FALSE)-HLOOKUP($B$54,'04_Wirtschaftlichkeit'!$E$44:$L$57,5,FALSE)) -> 0 | AR58: =AR$56*(-HLOOKUP($B$54,'04_Wirtschaftlichkeit'!$E$44:$L$57,7,FALSE)-HLOOKUP($B$54,'04_Wirtschaftlichkeit'!$E$44:$L$57,5,FALSE)) -> 0 | AS58: =AS$56*(-HLOOKUP($B$54,'04_Wirtschaftlichkeit'!$E$44:$L$57,7,FALSE)-HLOOKUP($B$54,'04_Wirtschaftlichkeit'!$E$44:$L$57,5,FALSE)) -> 0 | AT58: =AT$56*(-HLOOKUP($B$54,'04_Wirtschaftlichkeit'!$E$44:$L$57,7,FALSE)-HLOOKUP($B$54,'04_Wirtschaftlichkeit'!$E$44:$L$57,5,FALSE)) -> 0 | AU58: =AU$56*(-HLOOKUP($B$54,'04_Wirtschaftlichkeit'!$E$44:$L$57,7,FALSE)-HLOOKUP($B$54,'04_Wirtschaftlichkeit'!$E$44:$L$57,5,FALSE)) -> 0 | AV58: =AV$56*(-HLOOKUP($B$54,'04_Wirtschaftlichkeit'!$E$44:$L$57,7,FALSE)-HLOOKUP($B$54,'04_Wirtschaftlichkeit'!$E$44:$L$57,5,FALSE)) -> 0 | AW58: =AW$56*(-HLOOKUP($B$54,'04_Wirtschaftlichkeit'!$E$44:$L$57,7,FALSE)-HLOOKUP($B$54,'04_Wirtschaftlichkeit'!$E$44:$L$57,5,FALSE)) -> 0 | AX58: =AX$56*(-HLOOKUP($B$54,'04_Wirtschaftlichkeit'!$E$44:$L$57,7,FALSE)-HLOOKUP($B$54,'04_Wirtschaftlichkeit'!$E$44:$L$57,5,FALSE)) -> 0 | AY58: =AY$56*(-HLOOKUP($B$54,'04_Wirtschaftlichkeit'!$E$44:$L$57,7,FALSE)-HLOOKUP($B$54,'04_Wirtschaftlichkeit'!$E$44:$L$57,5,FALSE)) -> 0 | AZ58: =AZ$56*(-HLOOKUP($B$54,'04_Wirtschaftlichkeit'!$E$44:$L$57,7,FALSE)-HLOOKUP($B$54,'04_Wirtschaftlichkeit'!$E$44:$L$57,5,FALSE)) -> 0 | BA58: =BA$56*(-HLOOKUP($B$54,'04_Wirtschaftlichkeit'!$E$44:$L$57,7,FALSE)-HLOOKUP($B$54,'04_Wirtschaftlichkeit'!$E$44:$L$57,5,FALSE)) -> 0
B59: -0.4 | C59: =-HLOOKUP($B$54,'04_Wirtschaftlichkeit'!$E$44:$L$57,6,FALSE)*(1+B59) -> -634698.4301 | D59: =D$56*(-HLOOKUP($B$54,'04_Wirtschaftlichkeit'!$E$44:$L$57,7,FALSE)-HLOOKUP($B$54,'04_Wirtschaftlichkeit'!$E$44:$L$57,5,FALSE)) -> -84207.9 | E59: =E$56*(-HLOOKUP($B$54,'04_Wirtschaftlichkeit'!$E$44:$L$57,7,FALSE)-HLOOKUP($B$54,'04_Wirtschaftlichkeit'!$E$44:$L$57,5,FALSE)) -> -84207.9 | F59: =F$56*(-HLOOKUP($B$54,'04_Wirtschaftlichkeit'!$E$44:$L$57,7,FALSE)-HLOOKUP($B$54,'04_Wirtschaftlichkeit'!$E$44:$L$57,5,FALSE)) -> -84207.9 | G59: =G$56*(-HLOOKUP($B$54,'04_Wirtschaftlichkeit'!$E$44:$L$57,7,FALSE)-HLOOKUP($B$54,'04_Wirtschaftlichkeit'!$E$44:$L$57,5,FALSE)) -> -84207.9 | H59: =H$56*(-HLOOKUP($B$54,'04_Wirtschaftlichkeit'!$E$44:$L$57,7,FALSE)-HLOOKUP($B$54,'04_Wirtschaftlichkeit'!$E$44:$L$57,5,FALSE)) -> -84207.9 | I59: =I$56*(-HLOOKUP($B$54,'04_Wirtschaftlichkeit'!$E$44:$L$57,7,FALSE)-HLOOKUP($B$54,'04_Wirtschaftlichkeit'!$E$44:$L$57,5,FALSE)) -> -84207.9 | J59: =J$56*(-HLOOKUP($B$54,'04_Wirtschaftlichkeit'!$E$44:$L$57,7,FALSE)-HLOOKUP($B$54,'04_Wirtschaftlichkeit'!$E$44:$L$57,5,FALSE)) -> -84207.9 | K59: =K$56*(-HLOOKUP($B$54,'04_Wirtschaftlichkeit'!$E$44:$L$57,7,FALSE)-HLOOKUP($B$54,'04_Wirtschaftlichkeit'!$E$44:$L$57,5,FALSE)) -> -84207.9 | L59: =L$56*(-HLOOKUP($B$54,'04_Wirtschaftlichkeit'!$E$44:$L$57,7,FALSE)-HLOOKUP($B$54,'04_Wirtschaftlichkeit'!$E$44:$L$57,5,FALSE)) -> -84207.9 | M59: =M$56*(-HLOOKUP($B$54,'04_Wirtschaftlichkeit'!$E$44:$L$57,7,FALSE)-HLOOKUP($B$54,'04_Wirtschaftlichkeit'!$E$44:$L$57,5,FALSE)) -> -84207.9 | N59: =N$56*(-HLOOKUP($B$54,'04_Wirtschaftlichkeit'!$E$44:$L$57,7,FALSE)-HLOOKUP($B$54,'04_Wirtschaftlichkeit'!$E$44:$L$57,5,FALSE)) -> -84207.9 | O59: =O$56*(-HLOOKUP($B$54,'04_Wirtschaftlichkeit'!$E$44:$L$57,7,FALSE)-HLOOKUP($B$54,'04_Wirtschaftlichkeit'!$E$44:$L$57,5,FALSE)) -> -84207.9 | P59: =P$56*(-HLOOKUP($B$54,'04_Wirtschaftlichkeit'!$E$44:$L$57,7,FALSE)-HLOOKUP($B$54,'04_Wirtschaftlichkeit'!$E$44:$L$57,5,FALSE)) -> -84207.9 | Q59: =Q$56*(-HLOOKUP($B$54,'04_Wirtschaftlichkeit'!$E$44:$L$57,7,FALSE)-HLOOKUP($B$54,'04_Wirtschaftlichkeit'!$E$44:$L$57,5,FALSE)) -> -84207.9 | R59: =R$56*(-HLOOKUP($B$54,'04_Wirtschaftlichkeit'!$E$44:$L$57,7,FALSE)-HLOOKUP($B$54,'04_Wirtschaftlichkeit'!$E$44:$L$57,5,FALSE)) -> -84207.9 | S59: =S$56*(-HLOOKUP($B$54,'04_Wirtschaftlichkeit'!$E$44:$L$57,7,FALSE)-HLOOKUP($B$54,'04_Wirtschaftlichkeit'!$E$44:$L$57,5,FALSE)) -> -84207.9 | T59: =T$56*(-HLOOKUP($B$54,'04_Wirtschaftlichkeit'!$E$44:$L$57,7,FALSE)-HLOOKUP($B$54,'04_Wirtschaftlichkeit'!$E$44:$L$57,5,FALSE)) -> -84207.9 | U59: =U$56*(-HLOOKUP($B$54,'04_Wirtschaftlichkeit'!$E$44:$L$57,7,FALSE)-HLOOKUP($B$54,'04_Wirtschaftlichkeit'!$E$44:$L$57,5,FALSE)) -> -84207.9 | V59: =V$56*(-HLOOKUP($B$54,'04_Wirtschaftlichkeit'!$E$44:$L$57,7,FALSE)-HLOOKUP($B$54,'04_Wirtschaftlichkeit'!$E$44:$L$57,5,FALSE)) -> -84207.9 | W59: =W$56*(-HLOOKUP($B$54,'04_Wirtschaftlichkeit'!$E$44:$L$57,7,FALSE)-HLOOKUP($B$54,'04_Wirtschaftlichkeit'!$E$44:$L$57,5,FALSE)) -> -84207.9 | X59: =X$56*(-HLOOKUP($B$54,'04_Wirtschaftlichkeit'!$E$44:$L$57,7,FALSE)-HLOOKUP($B$54,'04_Wirtschaftlichkeit'!$E$44:$L$57,5,FALSE)) -> 0 | Y59: =Y$56*(-HLOOKUP($B$54,'04_Wirtschaftlichkeit'!$E$44:$L$57,7,FALSE)-HLOOKUP($B$54,'04_Wirtschaftlichkeit'!$E$44:$L$57,5,FALSE)) -> 0 | Z59: =Z$56*(-HLOOKUP($B$54,'04_Wirtschaftlichkeit'!$E$44:$L$57,7,FALSE)-HLOOKUP($B$54,'04_Wirtschaftlichkeit'!$E$44:$L$57,5,FALSE)) -> 0 | AA59: =AA$56*(-HLOOKUP($B$54,'04_Wirtschaftlichkeit'!$E$44:$L$57,7,FALSE)-HLOOKUP($B$54,'04_Wirtschaftlichkeit'!$E$44:$L$57,5,FALSE)) -> 0 | AB59: =AB$56*(-HLOOKUP($B$54,'04_Wirtschaftlichkeit'!$E$44:$L$57,7,FALSE)-HLOOKUP($B$54,'04_Wirtschaftlichkeit'!$E$44:$L$57,5,FALSE)) -> 0 | AC59: =AC$56*(-HLOOKUP($B$54,'04_Wirtschaftlichkeit'!$E$44:$L$57,7,FALSE)-HLOOKUP($B$54,'04_Wirtschaftlichkeit'!$E$44:$L$57,5,FALSE)) -> 0 | AD59: =AD$56*(-HLOOKUP($B$54,'04_Wirtschaftlichkeit'!$E$44:$L$57,7,FALSE)-HLOOKUP($B$54,'04_Wirtschaftlichkeit'!$E$44:$L$57,5,FALSE)) -> 0 | AE59: =AE$56*(-HLOOKUP($B$54,'04_Wirtschaftlichkeit'!$E$44:$L$57,7,FALSE)-HLOOKUP($B$54,'04_Wirtschaftlichkeit'!$E$44:$L$57,5,FALSE)) -> 0 | AF59: =AF$56*(-HLOOKUP($B$54,'04_Wirtschaftlichkeit'!$E$44:$L$57,7,FALSE)-HLOOKUP($B$54,'04_Wirtschaftlichkeit'!$E$44:$L$57,5,FALSE)) -> 0 | AG59: =AG$56*(-HLOOKUP($B$54,'04_Wirtschaftlichkeit'!$E$44:$L$57,7,FALSE)-HLOOKUP($B$54,'04_Wirtschaftlichkeit'!$E$44:$L$57,5,FALSE)) -> 0 | AH59: =AH$56*(-HLOOKUP($B$54,'04_Wirtschaftlichkeit'!$E$44:$L$57,7,FALSE)-HLOOKUP($B$54,'04_Wirtschaftlichkeit'!$E$44:$L$57,5,FALSE)) -> 0 | AI59: =AI$56*(-HLOOKUP($B$54,'04_Wirtschaftlichkeit'!$E$44:$L$57,7,FALSE)-HLOOKUP($B$54,'04_Wirtschaftlichkeit'!$E$44:$L$57,5,FALSE)) -> 0 | AJ59: =AJ$56*(-HLOOKUP($B$54,'04_Wirtschaftlichkeit'!$E$44:$L$57,7,FALSE)-HLOOKUP($B$54,'04_Wirtschaftlichkeit'!$E$44:$L$57,5,FALSE)) -> 0 | AK59: =AK$56*(-HLOOKUP($B$54,'04_Wirtschaftlichkeit'!$E$44:$L$57,7,FALSE)-HLOOKUP($B$54,'04_Wirtschaftlichkeit'!$E$44:$L$57,5,FALSE)) -> 0 | AL59: =AL$56*(-HLOOKUP($B$54,'04_Wirtschaftlichkeit'!$E$44:$L$57,7,FALSE)-HLOOKUP($B$54,'04_Wirtschaftlichkeit'!$E$44:$L$57,5,FALSE)) -> 0 | AM59: =AM$56*(-HLOOKUP($B$54,'04_Wirtschaftlichkeit'!$E$44:$L$57,7,FALSE)-HLOOKUP($B$54,'04_Wirtschaftlichkeit'!$E$44:$L$57,5,FALSE)) -> 0 | AN59: =AN$56*(-HLOOKUP($B$54,'04_Wirtschaftlichkeit'!$E$44:$L$57,7,FALSE)-HLOOKUP($B$54,'04_Wirtschaftlichkeit'!$E$44:$L$57,5,FALSE)) -> 0 | AO59: =AO$56*(-HLOOKUP($B$54,'04_Wirtschaftlichkeit'!$E$44:$L$57,7,FALSE)-HLOOKUP($B$54,'04_Wirtschaftlichkeit'!$E$44:$L$57,5,FALSE)) -> 0 | AP59: =AP$56*(-HLOOKUP($B$54,'04_Wirtschaftlichkeit'!$E$44:$L$57,7,FALSE)-HLOOKUP($B$54,'04_Wirtschaftlichkeit'!$E$44:$L$57,5,FALSE)) -> 0 | AQ59: =AQ$56*(-HLOOKUP($B$54,'04_Wirtschaftlichkeit'!$E$44:$L$57,7,FALSE)-HLOOKUP($B$54,'04_Wirtschaftlichkeit'!$E$44:$L$57,5,FALSE)) -> 0 | AR59: =AR$56*(-HLOOKUP($B$54,'04_Wirtschaftlichkeit'!$E$44:$L$57,7,FALSE)-HLOOKUP($B$54,'04_Wirtschaftlichkeit'!$E$44:$L$57,5,FALSE)) -> 0 | AS59: =AS$56*(-HLOOKUP($B$54,'04_Wirtschaftlichkeit'!$E$44:$L$57,7,FALSE)-HLOOKUP($B$54,'04_Wirtschaftlichkeit'!$E$44:$L$57,5,FALSE)) -> 0 | AT59: =AT$56*(-HLOOKUP($B$54,'04_Wirtschaftlichkeit'!$E$44:$L$57,7,FALSE)-HLOOKUP($B$54,'04_Wirtschaftlichkeit'!$E$44:$L$57,5,FALSE)) -> 0 | AU59: =AU$56*(-HLOOKUP($B$54,'04_Wirtschaftlichkeit'!$E$44:$L$57,7,FALSE)-HLOOKUP($B$54,'04_Wirtschaftlichkeit'!$E$44:$L$57,5,FALSE)) -> 0 | AV59: =AV$56*(-HLOOKUP($B$54,'04_Wirtschaftlichkeit'!$E$44:$L$57,7,FALSE)-HLOOKUP($B$54,'04_Wirtschaftlichkeit'!$E$44:$L$57,5,FALSE)) -> 0 | AW59: =AW$56*(-HLOOKUP($B$54,'04_Wirtschaftlichkeit'!$E$44:$L$57,7,FALSE)-HLOOKUP($B$54,'04_Wirtschaftlichkeit'!$E$44:$L$57,5,FALSE)) -> 0 | AX59: =AX$56*(-HLOOKUP($B$54,'04_Wirtschaftlichkeit'!$E$44:$L$57,7,FALSE)-HLOOKUP($B$54,'04_Wirtschaftlichkeit'!$E$44:$L$57,5,FALSE)) -> 0 | AY59: =AY$56*(-HLOOKUP($B$54,'04_Wirtschaftlichkeit'!$E$44:$L$57,7,FALSE)-HLOOKUP($B$54,'04_Wirtschaftlichkeit'!$E$44:$L$57,5,FALSE)) -> 0 | AZ59: =AZ$56*(-HLOOKUP($B$54,'04_Wirtschaftlichkeit'!$E$44:$L$57,7,FALSE)-HLOOKUP($B$54,'04_Wirtschaftlichkeit'!$E$44:$L$57,5,FALSE)) -> 0 | BA59: =BA$56*(-HLOOKUP($B$54,'04_Wirtschaftlichkeit'!$E$44:$L$57,7,FALSE)-HLOOKUP($B$54,'04_Wirtschaftlichkeit'!$E$44:$L$57,5,FALSE)) -> 0
B60: -0.3 | C60: =-HLOOKUP($B$54,'04_Wirtschaftlichkeit'!$E$44:$L$57,6,FALSE)*(1+B60) -> -740481.5018 | D60: =D$56*(-HLOOKUP($B$54,'04_Wirtschaftlichkeit'!$E$44:$L$57,7,FALSE)-HLOOKUP($B$54,'04_Wirtschaftlichkeit'!$E$44:$L$57,5,FALSE)) -> -84207.9 | E60: =E$56*(-HLOOKUP($B$54,'04_Wirtschaftlichkeit'!$E$44:$L$57,7,FALSE)-HLOOKUP($B$54,'04_Wirtschaftlichkeit'!$E$44:$L$57,5,FALSE)) -> -84207.9 | F60: =F$56*(-HLOOKUP($B$54,'04_Wirtschaftlichkeit'!$E$44:$L$57,7,FALSE)-HLOOKUP($B$54,'04_Wirtschaftlichkeit'!$E$44:$L$57,5,FALSE)) -> -84207.9 | G60: =G$56*(-HLOOKUP($B$54,'04_Wirtschaftlichkeit'!$E$44:$L$57,7,FALSE)-HLOOKUP($B$54,'04_Wirtschaftlichkeit'!$E$44:$L$57,5,FALSE)) -> -84207.9 | H60: =H$56*(-HLOOKUP($B$54,'04_Wirtschaftlichkeit'!$E$44:$L$57,7,FALSE)-HLOOKUP($B$54,'04_Wirtschaftlichkeit'!$E$44:$L$57,5,FALSE)) -> -84207.9 | I60: =I$56*(-HLOOKUP($B$54,'04_Wirtschaftlichkeit'!$E$44:$L$57,7,FALSE)-HLOOKUP($B$54,'04_Wirtschaftlichkeit'!$E$44:$L$57,5,FALSE)) -> -84207.9 | J60: =J$56*(-HLOOKUP($B$54,'04_Wirtschaftlichkeit'!$E$44:$L$57,7,FALSE)-HLOOKUP($B$54,'04_Wirtschaftlichkeit'!$E$44:$L$57,5,FALSE)) -> -84207.9 | K60: =K$56*(-HLOOKUP($B$54,'04_Wirtschaftlichkeit'!$E$44:$L$57,7,FALSE)-HLOOKUP($B$54,'04_Wirtschaftlichkeit'!$E$44:$L$57,5,FALSE)) -> -84207.9 | L60: =L$56*(-HLOOKUP($B$54,'04_Wirtschaftlichkeit'!$E$44:$L$57,7,FALSE)-HLOOKUP($B$54,'04_Wirtschaftlichkeit'!$E$44:$L$57,5,FALSE)) -> -84207.9 | M60: =M$56*(-HLOOKUP($B$54,'04_Wirtschaftlichkeit'!$E$44:$L$57,7,FALSE)-HLOOKUP($B$54,'04_Wirtschaftlichkeit'!$E$44:$L$57,5,FALSE)) -> -84207.9 | N60: =N$56*(-HLOOKUP($B$54,'04_Wirtschaftlichkeit'!$E$44:$L$57,7,FALSE)-HLOOKUP($B$54,'04_Wirtschaftlichkeit'!$E$44:$L$57,5,FALSE)) -> -84207.9 | O60: =O$56*(-HLOOKUP($B$54,'04_Wirtschaftlichkeit'!$E$44:$L$57,7,FALSE)-HLOOKUP($B$54,'04_Wirtschaftlichkeit'!$E$44:$L$57,5,FALSE)) -> -84207.9 | P60: =P$56*(-HLOOKUP($B$54,'04_Wirtschaftlichkeit'!$E$44:$L$57,7,FALSE)-HLOOKUP($B$54,'04_Wirtschaftlichkeit'!$E$44:$L$57,5,FALSE)) -> -84207.9 | Q60: =Q$56*(-HLOOKUP($B$54,'04_Wirtschaftlichkeit'!$E$44:$L$57,7,FALSE)-HLOOKUP($B$54,'04_Wirtschaftlichkeit'!$E$44:$L$57,5,FALSE)) -> -84207.9 | R60: =R$56*(-HLOOKUP($B$54,'04_Wirtschaftlichkeit'!$E$44:$L$57,7,FALSE)-HLOOKUP($B$54,'04_Wirtschaftlichkeit'!$E$44:$L$57,5,FALSE)) -> -84207.9 | S60: =S$56*(-HLOOKUP($B$54,'04_Wirtschaftlichkeit'!$E$44:$L$57,7,FALSE)-HLOOKUP($B$54,'04_Wirtschaftlichkeit'!$E$44:$L$57,5,FALSE)) -> -84207.9 | T60: =T$56*(-HLOOKUP($B$54,'04_Wirtschaftlichkeit'!$E$44:$L$57,7,FALSE)-HLOOKUP($B$54,'04_Wirtschaftlichkeit'!$E$44:$L$57,5,FALSE)) -> -84207.9 | U60: =U$56*(-HLOOKUP($B$54,'04_Wirtschaftlichkeit'!$E$44:$L$57,7,FALSE)-HLOOKUP($B$54,'04_Wirtschaftlichkeit'!$E$44:$L$57,5,FALSE)) -> -84207.9 | V60: =V$56*(-HLOOKUP($B$54,'04_Wirtschaftlichkeit'!$E$44:$L$57,7,FALSE)-HLOOKUP($B$54,'04_Wirtschaftlichkeit'!$E$44:$L$57,5,FALSE)) -> -84207.9 | W60: =W$56*(-HLOOKUP($B$54,'04_Wirtschaftlichkeit'!$E$44:$L$57,7,FALSE)-HLOOKUP($B$54,'04_Wirtschaftlichkeit'!$E$44:$L$57,5,FALSE)) -> -84207.9 | X60: =X$56*(-HLOOKUP($B$54,'04_Wirtschaftlichkeit'!$E$44:$L$57,7,FALSE)-HLOOKUP($B$54,'04_Wirtschaftlichkeit'!$E$44:$L$57,5,FALSE)) -> 0 | Y60: =Y$56*(-HLOOKUP($B$54,'04_Wirtschaftlichkeit'!$E$44:$L$57,7,FALSE)-HLOOKUP($B$54,'04_Wirtschaftlichkeit'!$E$44:$L$57,5,FALSE)) -> 0 | Z60: =Z$56*(-HLOOKUP($B$54,'04_Wirtschaftlichkeit'!$E$44:$L$57,7,FALSE)-HLOOKUP($B$54,'04_Wirtschaftlichkeit'!$E$44:$L$57,5,FALSE)) -> 0 | AA60: =AA$56*(-HLOOKUP($B$54,'04_Wirtschaftlichkeit'!$E$44:$L$57,7,FALSE)-HLOOKUP($B$54,'04_Wirtschaftlichkeit'!$E$44:$L$57,5,FALSE)) -> 0 | AB60: =AB$56*(-HLOOKUP($B$54,'04_Wirtschaftlichkeit'!$E$44:$L$57,7,FALSE)-HLOOKUP($B$54,'04_Wirtschaftlichkeit'!$E$44:$L$57,5,FALSE)) -> 0 | AC60: =AC$56*(-HLOOKUP($B$54,'04_Wirtschaftlichkeit'!$E$44:$L$57,7,FALSE)-HLOOKUP($B$54,'04_Wirtschaftlichkeit'!$E$44:$L$57,5,FALSE)) -> 0 | AD60: =AD$56*(-HLOOKUP($B$54,'04_Wirtschaftlichkeit'!$E$44:$L$57,7,FALSE)-HLOOKUP($B$54,'04_Wirtschaftlichkeit'!$E$44:$L$57,5,FALSE)) -> 0 | AE60: =AE$56*(-HLOOKUP($B$54,'04_Wirtschaftlichkeit'!$E$44:$L$57,7,FALSE)-HLOOKUP($B$54,'04_Wirtschaftlichkeit'!$E$44:$L$57,5,FALSE)) -> 0 | AF60: =AF$56*(-HLOOKUP($B$54,'04_Wirtschaftlichkeit'!$E$44:$L$57,7,FALSE)-HLOOKUP($B$54,'04_Wirtschaftlichkeit'!$E$44:$L$57,5,FALSE)) -> 0 | AG60: =AG$56*(-HLOOKUP($B$54,'04_Wirtschaftlichkeit'!$E$44:$L$57,7,FALSE)-HLOOKUP($B$54,'04_Wirtschaftlichkeit'!$E$44:$L$57,5,FALSE)) -> 0 | AH60: =AH$56*(-HLOOKUP($B$54,'04_Wirtschaftlichkeit'!$E$44:$L$57,7,FALSE)-HLOOKUP($B$54,'04_Wirtschaftlichkeit'!$E$44:$L$57,5,FALSE)) -> 0 | AI60: =AI$56*(-HLOOKUP($B$54,'04_Wirtschaftlichkeit'!$E$44:$L$57,7,FALSE)-HLOOKUP($B$54,'04_Wirtschaftlichkeit'!$E$44:$L$57,5,FALSE)) -> 0 | AJ60: =AJ$56*(-HLOOKUP($B$54,'04_Wirtschaftlichkeit'!$E$44:$L$57,7,FALSE)-HLOOKUP($B$54,'04_Wirtschaftlichkeit'!$E$44:$L$57,5,FALSE)) -> 0 | AK60: =AK$56*(-HLOOKUP($B$54,'04_Wirtschaftlichkeit'!$E$44:$L$57,7,FALSE)-HLOOKUP($B$54,'04_Wirtschaftlichkeit'!$E$44:$L$57,5,FALSE)) -> 0 | AL60: =AL$56*(-HLOOKUP($B$54,'04_Wirtschaftlichkeit'!$E$44:$L$57,7,FALSE)-HLOOKUP($B$54,'04_Wirtschaftlichkeit'!$E$44:$L$57,5,FALSE)) -> 0 | AM60: =AM$56*(-HLOOKUP($B$54,'04_Wirtschaftlichkeit'!$E$44:$L$57,7,FALSE)-HLOOKUP($B$54,'04_Wirtschaftlichkeit'!$E$44:$L$57,5,FALSE)) -> 0 | AN60: =AN$56*(-HLOOKUP($B$54,'04_Wirtschaftlichkeit'!$E$44:$L$57,7,FALSE)-HLOOKUP($B$54,'04_Wirtschaftlichkeit'!$E$44:$L$57,5,FALSE)) -> 0 | AO60: =AO$56*(-HLOOKUP($B$54,'04_Wirtschaftlichkeit'!$E$44:$L$57,7,FALSE)-HLOOKUP($B$54,'04_Wirtschaftlichkeit'!$E$44:$L$57,5,FALSE)) -> 0 | AP60: =AP$56*(-HLOOKUP($B$54,'04_Wirtschaftlichkeit'!$E$44:$L$57,7,FALSE)-HLOOKUP($B$54,'04_Wirtschaftlichkeit'!$E$44:$L$57,5,FALSE)) -> 0 | AQ60: =AQ$56*(-HLOOKUP($B$54,'04_Wirtschaftlichkeit'!$E$44:$L$57,7,FALSE)-HLOOKUP($B$54,'04_Wirtschaftlichkeit'!$E$44:$L$57,5,FALSE)) -> 0 | AR60: =AR$56*(-HLOOKUP($B$54,'04_Wirtschaftlichkeit'!$E$44:$L$57,7,FALSE)-HLOOKUP($B$54,'04_Wirtschaftlichkeit'!$E$44:$L$57,5,FALSE)) -> 0 | AS60: =AS$56*(-HLOOKUP($B$54,'04_Wirtschaftlichkeit'!$E$44:$L$57,7,FALSE)-HLOOKUP($B$54,'04_Wirtschaftlichkeit'!$E$44:$L$57,5,FALSE)) -> 0 | AT60: =AT$56*(-HLOOKUP($B$54,'04_Wirtschaftlichkeit'!$E$44:$L$57,7,FALSE)-HLOOKUP($B$54,'04_Wirtschaftlichkeit'!$E$44:$L$57,5,FALSE)) -> 0 | AU60: =AU$56*(-HLOOKUP($B$54,'04_Wirtschaftlichkeit'!$E$44:$L$57,7,FALSE)-HLOOKUP($B$54,'04_Wirtschaftlichkeit'!$E$44:$L$57,5,FALSE)) -> 0 | AV60: =AV$56*(-HLOOKUP($B$54,'04_Wirtschaftlichkeit'!$E$44:$L$57,7,FALSE)-HLOOKUP($B$54,'04_Wirtschaftlichkeit'!$E$44:$L$57,5,FALSE)) -> 0 | AW60: =AW$56*(-HLOOKUP($B$54,'04_Wirtschaftlichkeit'!$E$44:$L$57,7,FALSE)-HLOOKUP($B$54,'04_Wirtschaftlichkeit'!$E$44:$L$57,5,FALSE)) -> 0 | AX60: =AX$56*(-HLOOKUP($B$54,'04_Wirtschaftlichkeit'!$E$44:$L$57,7,FALSE)-HLOOKUP($B$54,'04_Wirtschaftlichkeit'!$E$44:$L$57,5,FALSE)) -> 0 | AY60: =AY$56*(-HLOOKUP($B$54,'04_Wirtschaftlichkeit'!$E$44:$L$57,7,FALSE)-HLOOKUP($B$54,'04_Wirtschaftlichkeit'!$E$44:$L$57,5,FALSE)) -> 0 | AZ60: =AZ$56*(-HLOOKUP($B$54,'04_Wirtschaftlichkeit'!$E$44:$L$57,7,FALSE)-HLOOKUP($B$54,'04_Wirtschaftlichkeit'!$E$44:$L$57,5,FALSE)) -> 0 | BA60: =BA$56*(-HLOOKUP($B$54,'04_Wirtschaftlichkeit'!$E$44:$L$57,7,FALSE)-HLOOKUP($B$54,'04_Wirtschaftlichkeit'!$E$44:$L$57,5,FALSE)) -> 0
B61: -0.2 | C61: =-HLOOKUP($B$54,'04_Wirtschaftlichkeit'!$E$44:$L$57,6,FALSE)*(1+B61) -> -846264.5735 | D61: =D$56*(-HLOOKUP($B$54,'04_Wirtschaftlichkeit'!$E$44:$L$57,7,FALSE)-HLOOKUP($B$54,'04_Wirtschaftlichkeit'!$E$44:$L$57,5,FALSE)) -> -84207.9 | E61: =E$56*(-HLOOKUP($B$54,'04_Wirtschaftlichkeit'!$E$44:$L$57,7,FALSE)-HLOOKUP($B$54,'04_Wirtschaftlichkeit'!$E$44:$L$57,5,FALSE)) -> -84207.9 | F61: =F$56*(-HLOOKUP($B$54,'04_Wirtschaftlichkeit'!$E$44:$L$57,7,FALSE)-HLOOKUP($B$54,'04_Wirtschaftlichkeit'!$E$44:$L$57,5,FALSE)) -> -84207.9 | G61: =G$56*(-HLOOKUP($B$54,'04_Wirtschaftlichkeit'!$E$44:$L$57,7,FALSE)-HLOOKUP($B$54,'04_Wirtschaftlichkeit'!$E$44:$L$57,5,FALSE)) -> -84207.9 | H61: =H$56*(-HLOOKUP($B$54,'04_Wirtschaftlichkeit'!$E$44:$L$57,7,FALSE)-HLOOKUP($B$54,'04_Wirtschaftlichkeit'!$E$44:$L$57,5,FALSE)) -> -84207.9 | I61: =I$56*(-HLOOKUP($B$54,'04_Wirtschaftlichkeit'!$E$44:$L$57,7,FALSE)-HLOOKUP($B$54,'04_Wirtschaftlichkeit'!$E$44:$L$57,5,FALSE)) -> -84207.9 | J61: =J$56*(-HLOOKUP($B$54,'04_Wirtschaftlichkeit'!$E$44:$L$57,7,FALSE)-HLOOKUP($B$54,'04_Wirtschaftlichkeit'!$E$44:$L$57,5,FALSE)) -> -84207.9 | K61: =K$56*(-HLOOKUP($B$54,'04_Wirtschaftlichkeit'!$E$44:$L$57,7,FALSE)-HLOOKUP($B$54,'04_Wirtschaftlichkeit'!$E$44:$L$57,5,FALSE)) -> -84207.9 | L61: =L$56*(-HLOOKUP($B$54,'04_Wirtschaftlichkeit'!$E$44:$L$57,7,FALSE)-HLOOKUP($B$54,'04_Wirtschaftlichkeit'!$E$44:$L$57,5,FALSE)) -> -84207.9 | M61: =M$56*(-HLOOKUP($B$54,'04_Wirtschaftlichkeit'!$E$44:$L$57,7,FALSE)-HLOOKUP($B$54,'04_Wirtschaftlichkeit'!$E$44:$L$57,5,FALSE)) -> -84207.9 | N61: =N$56*(-HLOOKUP($B$54,'04_Wirtschaftlichkeit'!$E$44:$L$57,7,FALSE)-HLOOKUP($B$54,'04_Wirtschaftlichkeit'!$E$44:$L$57,5,FALSE)) -> -84207.9 | O61: =O$56*(-HLOOKUP($B$54,'04_Wirtschaftlichkeit'!$E$44:$L$57,7,FALSE)-HLOOKUP($B$54,'04_Wirtschaftlichkeit'!$E$44:$L$57,5,FALSE)) -> -84207.9 | P61: =P$56*(-HLOOKUP($B$54,'04_Wirtschaftlichkeit'!$E$44:$L$57,7,FALSE)-HLOOKUP($B$54,'04_Wirtschaftlichkeit'!$E$44:$L$57,5,FALSE)) -> -84207.9 | Q61: =Q$56*(-HLOOKUP($B$54,'04_Wirtschaftlichkeit'!$E$44:$L$57,7,FALSE)-HLOOKUP($B$54,'04_Wirtschaftlichkeit'!$E$44:$L$57,5,FALSE)) -> -84207.9 | R61: =R$56*(-HLOOKUP($B$54,'04_Wirtschaftlichkeit'!$E$44:$L$57,7,FALSE)-HLOOKUP($B$54,'04_Wirtschaftlichkeit'!$E$44:$L$57,5,FALSE)) -> -84207.9 | S61: =S$56*(-HLOOKUP($B$54,'04_Wirtschaftlichkeit'!$E$44:$L$57,7,FALSE)-HLOOKUP($B$54,'04_Wirtschaftlichkeit'!$E$44:$L$57,5,FALSE)) -> -84207.9 | T61: =T$56*(-HLOOKUP($B$54,'04_Wirtschaftlichkeit'!$E$44:$L$57,7,FALSE)-HLOOKUP($B$54,'04_Wirtschaftlichkeit'!$E$44:$L$57,5,FALSE)) -> -84207.9 | U61: =U$56*(-HLOOKUP($B$54,'04_Wirtschaftlichkeit'!$E$44:$L$57,7,FALSE)-HLOOKUP($B$54,'04_Wirtschaftlichkeit'!$E$44:$L$57,5,FALSE)) -> -84207.9 | V61: =V$56*(-HLOOKUP($B$54,'04_Wirtschaftlichkeit'!$E$44:$L$57,7,FALSE)-HLOOKUP($B$54,'04_Wirtschaftlichkeit'!$E$44:$L$57,5,FALSE)) -> -84207.9 | W61: =W$56*(-HLOOKUP($B$54,'04_Wirtschaftlichkeit'!$E$44:$L$57,7,FALSE)-HLOOKUP($B$54,'04_Wirtschaftlichkeit'!$E$44:$L$57,5,FALSE)) -> -84207.9 | X61: =X$56*(-HLOOKUP($B$54,'04_Wirtschaftlichkeit'!$E$44:$L$57,7,FALSE)-HLOOKUP($B$54,'04_Wirtschaftlichkeit'!$E$44:$L$57,5,FALSE)) -> 0 | Y61: =Y$56*(-HLOOKUP($B$54,'04_Wirtschaftlichkeit'!$E$44:$L$57,7,FALSE)-HLOOKUP($B$54,'04_Wirtschaftlichkeit'!$E$44:$L$57,5,FALSE)) -> 0 | Z61: =Z$56*(-HLOOKUP($B$54,'04_Wirtschaftlichkeit'!$E$44:$L$57,7,FALSE)-HLOOKUP($B$54,'04_Wirtschaftlichkeit'!$E$44:$L$57,5,FALSE)) -> 0 | AA61: =AA$56*(-HLOOKUP($B$54,'04_Wirtschaftlichkeit'!$E$44:$L$57,7,FALSE)-HLOOKUP($B$54,'04_Wirtschaftlichkeit'!$E$44:$L$57,5,FALSE)) -> 0 | AB61: =AB$56*(-HLOOKUP($B$54,'04_Wirtschaftlichkeit'!$E$44:$L$57,7,FALSE)-HLOOKUP($B$54,'04_Wirtschaftlichkeit'!$E$44:$L$57,5,FALSE)) -> 0 | AC61: =AC$56*(-HLOOKUP($B$54,'04_Wirtschaftlichkeit'!$E$44:$L$57,7,FALSE)-HLOOKUP($B$54,'04_Wirtschaftlichkeit'!$E$44:$L$57,5,FALSE)) -> 0 | AD61: =AD$56*(-HLOOKUP($B$54,'04_Wirtschaftlichkeit'!$E$44:$L$57,7,FALSE)-HLOOKUP($B$54,'04_Wirtschaftlichkeit'!$E$44:$L$57,5,FALSE)) -> 0 | AE61: =AE$56*(-HLOOKUP($B$54,'04_Wirtschaftlichkeit'!$E$44:$L$57,7,FALSE)-HLOOKUP($B$54,'04_Wirtschaftlichkeit'!$E$44:$L$57,5,FALSE)) -> 0 | AF61: =AF$56*(-HLOOKUP($B$54,'04_Wirtschaftlichkeit'!$E$44:$L$57,7,FALSE)-HLOOKUP($B$54,'04_Wirtschaftlichkeit'!$E$44:$L$57,5,FALSE)) -> 0 | AG61: =AG$56*(-HLOOKUP($B$54,'04_Wirtschaftlichkeit'!$E$44:$L$57,7,FALSE)-HLOOKUP($B$54,'04_Wirtschaftlichkeit'!$E$44:$L$57,5,FALSE)) -> 0 | AH61: =AH$56*(-HLOOKUP($B$54,'04_Wirtschaftlichkeit'!$E$44:$L$57,7,FALSE)-HLOOKUP($B$54,'04_Wirtschaftlichkeit'!$E$44:$L$57,5,FALSE)) -> 0 | AI61: =AI$56*(-HLOOKUP($B$54,'04_Wirtschaftlichkeit'!$E$44:$L$57,7,FALSE)-HLOOKUP($B$54,'04_Wirtschaftlichkeit'!$E$44:$L$57,5,FALSE)) -> 0 | AJ61: =AJ$56*(-HLOOKUP($B$54,'04_Wirtschaftlichkeit'!$E$44:$L$57,7,FALSE)-HLOOKUP($B$54,'04_Wirtschaftlichkeit'!$E$44:$L$57,5,FALSE)) -> 0 | AK61: =AK$56*(-HLOOKUP($B$54,'04_Wirtschaftlichkeit'!$E$44:$L$57,7,FALSE)-HLOOKUP($B$54,'04_Wirtschaftlichkeit'!$E$44:$L$57,5,FALSE)) -> 0 | AL61: =AL$56*(-HLOOKUP($B$54,'04_Wirtschaftlichkeit'!$E$44:$L$57,7,FALSE)-HLOOKUP($B$54,'04_Wirtschaftlichkeit'!$E$44:$L$57,5,FALSE)) -> 0 | AM61: =AM$56*(-HLOOKUP($B$54,'04_Wirtschaftlichkeit'!$E$44:$L$57,7,FALSE)-HLOOKUP($B$54,'04_Wirtschaftlichkeit'!$E$44:$L$57,5,FALSE)) -> 0 | AN61: =AN$56*(-HLOOKUP($B$54,'04_Wirtschaftlichkeit'!$E$44:$L$57,7,FALSE)-HLOOKUP($B$54,'04_Wirtschaftlichkeit'!$E$44:$L$57,5,FALSE)) -> 0 | AO61: =AO$56*(-HLOOKUP($B$54,'04_Wirtschaftlichkeit'!$E$44:$L$57,7,FALSE)-HLOOKUP($B$54,'04_Wirtschaftlichkeit'!$E$44:$L$57,5,FALSE)) -> 0 | AP61: =AP$56*(-HLOOKUP($B$54,'04_Wirtschaftlichkeit'!$E$44:$L$57,7,FALSE)-HLOOKUP($B$54,'04_Wirtschaftlichkeit'!$E$44:$L$57,5,FALSE)) -> 0 | AQ61: =AQ$56*(-HLOOKUP($B$54,'04_Wirtschaftlichkeit'!$E$44:$L$57,7,FALSE)-HLOOKUP($B$54,'04_Wirtschaftlichkeit'!$E$44:$L$57,5,FALSE)) -> 0 | AR61: =AR$56*(-HLOOKUP($B$54,'04_Wirtschaftlichkeit'!$E$44:$L$57,7,FALSE)-HLOOKUP($B$54,'04_Wirtschaftlichkeit'!$E$44:$L$57,5,FALSE)) -> 0 | AS61: =AS$56*(-HLOOKUP($B$54,'04_Wirtschaftlichkeit'!$E$44:$L$57,7,FALSE)-HLOOKUP($B$54,'04_Wirtschaftlichkeit'!$E$44:$L$57,5,FALSE)) -> 0 | AT61: =AT$56*(-HLOOKUP($B$54,'04_Wirtschaftlichkeit'!$E$44:$L$57,7,FALSE)-HLOOKUP($B$54,'04_Wirtschaftlichkeit'!$E$44:$L$57,5,FALSE)) -> 0 | AU61: =AU$56*(-HLOOKUP($B$54,'04_Wirtschaftlichkeit'!$E$44:$L$57,7,FALSE)-HLOOKUP($B$54,'04_Wirtschaftlichkeit'!$E$44:$L$57,5,FALSE)) -> 0 | AV61: =AV$56*(-HLOOKUP($B$54,'04_Wirtschaftlichkeit'!$E$44:$L$57,7,FALSE)-HLOOKUP($B$54,'04_Wirtschaftlichkeit'!$E$44:$L$57,5,FALSE)) -> 0 | AW61: =AW$56*(-HLOOKUP($B$54,'04_Wirtschaftlichkeit'!$E$44:$L$57,7,FALSE)-HLOOKUP($B$54,'04_Wirtschaftlichkeit'!$E$44:$L$57,5,FALSE)) -> 0 | AX61: =AX$56*(-HLOOKUP($B$54,'04_Wirtschaftlichkeit'!$E$44:$L$57,7,FALSE)-HLOOKUP($B$54,'04_Wirtschaftlichkeit'!$E$44:$L$57,5,FALSE)) -> 0 | AY61: =AY$56*(-HLOOKUP($B$54,'04_Wirtschaftlichkeit'!$E$44:$L$57,7,FALSE)-HLOOKUP($B$54,'04_Wirtschaftlichkeit'!$E$44:$L$57,5,FALSE)) -> 0 | AZ61: =AZ$56*(-HLOOKUP($B$54,'04_Wirtschaftlichkeit'!$E$44:$L$57,7,FALSE)-HLOOKUP($B$54,'04_Wirtschaftlichkeit'!$E$44:$L$57,5,FALSE)) -> 0 | BA61: =BA$56*(-HLOOKUP($B$54,'04_Wirtschaftlichkeit'!$E$44:$L$57,7,FALSE)-HLOOKUP($B$54,'04_Wirtschaftlichkeit'!$E$44:$L$57,5,FALSE)) -> 0
B62: -0.1 | C62: =-HLOOKUP($B$54,'04_Wirtschaftlichkeit'!$E$44:$L$57,6,FALSE)*(1+B62) -> -952047.6452 | D62: =D$56*(-HLOOKUP($B$54,'04_Wirtschaftlichkeit'!$E$44:$L$57,7,FALSE)-HLOOKUP($B$54,'04_Wirtschaftlichkeit'!$E$44:$L$57,5,FALSE)) -> -84207.9 | E62: =E$56*(-HLOOKUP($B$54,'04_Wirtschaftlichkeit'!$E$44:$L$57,7,FALSE)-HLOOKUP($B$54,'04_Wirtschaftlichkeit'!$E$44:$L$57,5,FALSE)) -> -84207.9 | F62: =F$56*(-HLOOKUP($B$54,'04_Wirtschaftlichkeit'!$E$44:$L$57,7,FALSE)-HLOOKUP($B$54,'04_Wirtschaftlichkeit'!$E$44:$L$57,5,FALSE)) -> -84207.9 | G62: =G$56*(-HLOOKUP($B$54,'04_Wirtschaftlichkeit'!$E$44:$L$57,7,FALSE)-HLOOKUP($B$54,'04_Wirtschaftlichkeit'!$E$44:$L$57,5,FALSE)) -> -84207.9 | H62: =H$56*(-HLOOKUP($B$54,'04_Wirtschaftlichkeit'!$E$44:$L$57,7,FALSE)-HLOOKUP($B$54,'04_Wirtschaftlichkeit'!$E$44:$L$57,5,FALSE)) -> -84207.9 | I62: =I$56*(-HLOOKUP($B$54,'04_Wirtschaftlichkeit'!$E$44:$L$57,7,FALSE)-HLOOKUP($B$54,'04_Wirtschaftlichkeit'!$E$44:$L$57,5,FALSE)) -> -84207.9 | J62: =J$56*(-HLOOKUP($B$54,'04_Wirtschaftlichkeit'!$E$44:$L$57,7,FALSE)-HLOOKUP($B$54,'04_Wirtschaftlichkeit'!$E$44:$L$57,5,FALSE)) -> -84207.9 | K62: =K$56*(-HLOOKUP($B$54,'04_Wirtschaftlichkeit'!$E$44:$L$57,7,FALSE)-HLOOKUP($B$54,'04_Wirtschaftlichkeit'!$E$44:$L$57,5,FALSE)) -> -84207.9 | L62: =L$56*(-HLOOKUP($B$54,'04_Wirtschaftlichkeit'!$E$44:$L$57,7,FALSE)-HLOOKUP($B$54,'04_Wirtschaftlichkeit'!$E$44:$L$57,5,FALSE)) -> -84207.9 | M62: =M$56*(-HLOOKUP($B$54,'04_Wirtschaftlichkeit'!$E$44:$L$57,7,FALSE)-HLOOKUP($B$54,'04_Wirtschaftlichkeit'!$E$44:$L$57,5,FALSE)) -> -84207.9 | N62: =N$56*(-HLOOKUP($B$54,'04_Wirtschaftlichkeit'!$E$44:$L$57,7,FALSE)-HLOOKUP($B$54,'04_Wirtschaftlichkeit'!$E$44:$L$57,5,FALSE)) -> -84207.9 | O62: =O$56*(-HLOOKUP($B$54,'04_Wirtschaftlichkeit'!$E$44:$L$57,7,FALSE)-HLOOKUP($B$54,'04_Wirtschaftlichkeit'!$E$44:$L$57,5,FALSE)) -> -84207.9 | P62: =P$56*(-HLOOKUP($B$54,'04_Wirtschaftlichkeit'!$E$44:$L$57,7,FALSE)-HLOOKUP($B$54,'04_Wirtschaftlichkeit'!$E$44:$L$57,5,FALSE)) -> -84207.9 | Q62: =Q$56*(-HLOOKUP($B$54,'04_Wirtschaftlichkeit'!$E$44:$L$57,7,FALSE)-HLOOKUP($B$54,'04_Wirtschaftlichkeit'!$E$44:$L$57,5,FALSE)) -> -84207.9 | R62: =R$56*(-HLOOKUP($B$54,'04_Wirtschaftlichkeit'!$E$44:$L$57,7,FALSE)-HLOOKUP($B$54,'04_Wirtschaftlichkeit'!$E$44:$L$57,5,FALSE)) -> -84207.9 | S62: =S$56*(-HLOOKUP($B$54,'04_Wirtschaftlichkeit'!$E$44:$L$57,7,FALSE)-HLOOKUP($B$54,'04_Wirtschaftlichkeit'!$E$44:$L$57,5,FALSE)) -> -84207.9 | T62: =T$56*(-HLOOKUP($B$54,'04_Wirtschaftlichkeit'!$E$44:$L$57,7,FALSE)-HLOOKUP($B$54,'04_Wirtschaftlichkeit'!$E$44:$L$57,5,FALSE)) -> -84207.9 | U62: =U$56*(-HLOOKUP($B$54,'04_Wirtschaftlichkeit'!$E$44:$L$57,7,FALSE)-HLOOKUP($B$54,'04_Wirtschaftlichkeit'!$E$44:$L$57,5,FALSE)) -> -84207.9 | V62: =V$56*(-HLOOKUP($B$54,'04_Wirtschaftlichkeit'!$E$44:$L$57,7,FALSE)-HLOOKUP($B$54,'04_Wirtschaftlichkeit'!$E$44:$L$57,5,FALSE)) -> -84207.9 | W62: =W$56*(-HLOOKUP($B$54,'04_Wirtschaftlichkeit'!$E$44:$L$57,7,FALSE)-HLOOKUP($B$54,'04_Wirtschaftlichkeit'!$E$44:$L$57,5,FALSE)) -> -84207.9 | X62: =X$56*(-HLOOKUP($B$54,'04_Wirtschaftlichkeit'!$E$44:$L$57,7,FALSE)-HLOOKUP($B$54,'04_Wirtschaftlichkeit'!$E$44:$L$57,5,FALSE)) -> 0 | Y62: =Y$56*(-HLOOKUP($B$54,'04_Wirtschaftlichkeit'!$E$44:$L$57,7,FALSE)-HLOOKUP($B$54,'04_Wirtschaftlichkeit'!$E$44:$L$57,5,FALSE)) -> 0 | Z62: =Z$56*(-HLOOKUP($B$54,'04_Wirtschaftlichkeit'!$E$44:$L$57,7,FALSE)-HLOOKUP($B$54,'04_Wirtschaftlichkeit'!$E$44:$L$57,5,FALSE)) -> 0 | AA62: =AA$56*(-HLOOKUP($B$54,'04_Wirtschaftlichkeit'!$E$44:$L$57,7,FALSE)-HLOOKUP($B$54,'04_Wirtschaftlichkeit'!$E$44:$L$57,5,FALSE)) -> 0 | AB62: =AB$56*(-HLOOKUP($B$54,'04_Wirtschaftlichkeit'!$E$44:$L$57,7,FALSE)-HLOOKUP($B$54,'04_Wirtschaftlichkeit'!$E$44:$L$57,5,FALSE)) -> 0 | AC62: =AC$56*(-HLOOKUP($B$54,'04_Wirtschaftlichkeit'!$E$44:$L$57,7,FALSE)-HLOOKUP($B$54,'04_Wirtschaftlichkeit'!$E$44:$L$57,5,FALSE)) -> 0 | AD62: =AD$56*(-HLOOKUP($B$54,'04_Wirtschaftlichkeit'!$E$44:$L$57,7,FALSE)-HLOOKUP($B$54,'04_Wirtschaftlichkeit'!$E$44:$L$57,5,FALSE)) -> 0 | AE62: =AE$56*(-HLOOKUP($B$54,'04_Wirtschaftlichkeit'!$E$44:$L$57,7,FALSE)-HLOOKUP($B$54,'04_Wirtschaftlichkeit'!$E$44:$L$57,5,FALSE)) -> 0 | AF62: =AF$56*(-HLOOKUP($B$54,'04_Wirtschaftlichkeit'!$E$44:$L$57,7,FALSE)-HLOOKUP($B$54,'04_Wirtschaftlichkeit'!$E$44:$L$57,5,FALSE)) -> 0 | AG62: =AG$56*(-HLOOKUP($B$54,'04_Wirtschaftlichkeit'!$E$44:$L$57,7,FALSE)-HLOOKUP($B$54,'04_Wirtschaftlichkeit'!$E$44:$L$57,5,FALSE)) -> 0 | AH62: =AH$56*(-HLOOKUP($B$54,'04_Wirtschaftlichkeit'!$E$44:$L$57,7,FALSE)-HLOOKUP($B$54,'04_Wirtschaftlichkeit'!$E$44:$L$57,5,FALSE)) -> 0 | AI62: =AI$56*(-HLOOKUP($B$54,'04_Wirtschaftlichkeit'!$E$44:$L$57,7,FALSE)-HLOOKUP($B$54,'04_Wirtschaftlichkeit'!$E$44:$L$57,5,FALSE)) -> 0 | AJ62: =AJ$56*(-HLOOKUP($B$54,'04_Wirtschaftlichkeit'!$E$44:$L$57,7,FALSE)-HLOOKUP($B$54,'04_Wirtschaftlichkeit'!$E$44:$L$57,5,FALSE)) -> 0 | AK62: =AK$56*(-HLOOKUP($B$54,'04_Wirtschaftlichkeit'!$E$44:$L$57,7,FALSE)-HLOOKUP($B$54,'04_Wirtschaftlichkeit'!$E$44:$L$57,5,FALSE)) -> 0 | AL62: =AL$56*(-HLOOKUP($B$54,'04_Wirtschaftlichkeit'!$E$44:$L$57,7,FALSE)-HLOOKUP($B$54,'04_Wirtschaftlichkeit'!$E$44:$L$57,5,FALSE)) -> 0 | AM62: =AM$56*(-HLOOKUP($B$54,'04_Wirtschaftlichkeit'!$E$44:$L$57,7,FALSE)-HLOOKUP($B$54,'04_Wirtschaftlichkeit'!$E$44:$L$57,5,FALSE)) -> 0 | AN62: =AN$56*(-HLOOKUP($B$54,'04_Wirtschaftlichkeit'!$E$44:$L$57,7,FALSE)-HLOOKUP($B$54,'04_Wirtschaftlichkeit'!$E$44:$L$57,5,FALSE)) -> 0 | AO62: =AO$56*(-HLOOKUP($B$54,'04_Wirtschaftlichkeit'!$E$44:$L$57,7,FALSE)-HLOOKUP($B$54,'04_Wirtschaftlichkeit'!$E$44:$L$57,5,FALSE)) -> 0 | AP62: =AP$56*(-HLOOKUP($B$54,'04_Wirtschaftlichkeit'!$E$44:$L$57,7,FALSE)-HLOOKUP($B$54,'04_Wirtschaftlichkeit'!$E$44:$L$57,5,FALSE)) -> 0 | AQ62: =AQ$56*(-HLOOKUP($B$54,'04_Wirtschaftlichkeit'!$E$44:$L$57,7,FALSE)-HLOOKUP($B$54,'04_Wirtschaftlichkeit'!$E$44:$L$57,5,FALSE)) -> 0 | AR62: =AR$56*(-HLOOKUP($B$54,'04_Wirtschaftlichkeit'!$E$44:$L$57,7,FALSE)-HLOOKUP($B$54,'04_Wirtschaftlichkeit'!$E$44:$L$57,5,FALSE)) -> 0 | AS62: =AS$56*(-HLOOKUP($B$54,'04_Wirtschaftlichkeit'!$E$44:$L$57,7,FALSE)-HLOOKUP($B$54,'04_Wirtschaftlichkeit'!$E$44:$L$57,5,FALSE)) -> 0 | AT62: =AT$56*(-HLOOKUP($B$54,'04_Wirtschaftlichkeit'!$E$44:$L$57,7,FALSE)-HLOOKUP($B$54,'04_Wirtschaftlichkeit'!$E$44:$L$57,5,FALSE)) -> 0 | AU62: =AU$56*(-HLOOKUP($B$54,'04_Wirtschaftlichkeit'!$E$44:$L$57,7,FALSE)-HLOOKUP($B$54,'04_Wirtschaftlichkeit'!$E$44:$L$57,5,FALSE)) -> 0 | AV62: =AV$56*(-HLOOKUP($B$54,'04_Wirtschaftlichkeit'!$E$44:$L$57,7,FALSE)-HLOOKUP($B$54,'04_Wirtschaftlichkeit'!$E$44:$L$57,5,FALSE)) -> 0 | AW62: =AW$56*(-HLOOKUP($B$54,'04_Wirtschaftlichkeit'!$E$44:$L$57,7,FALSE)-HLOOKUP($B$54,'04_Wirtschaftlichkeit'!$E$44:$L$57,5,FALSE)) -> 0 | AX62: =AX$56*(-HLOOKUP($B$54,'04_Wirtschaftlichkeit'!$E$44:$L$57,7,FALSE)-HLOOKUP($B$54,'04_Wirtschaftlichkeit'!$E$44:$L$57,5,FALSE)) -> 0 | AY62: =AY$56*(-HLOOKUP($B$54,'04_Wirtschaftlichkeit'!$E$44:$L$57,7,FALSE)-HLOOKUP($B$54,'04_Wirtschaftlichkeit'!$E$44:$L$57,5,FALSE)) -> 0 | AZ62: =AZ$56*(-HLOOKUP($B$54,'04_Wirtschaftlichkeit'!$E$44:$L$57,7,FALSE)-HLOOKUP($B$54,'04_Wirtschaftlichkeit'!$E$44:$L$57,5,FALSE)) -> 0 | BA62: =BA$56*(-HLOOKUP($B$54,'04_Wirtschaftlichkeit'!$E$44:$L$57,7,FALSE)-HLOOKUP($B$54,'04_Wirtschaftlichkeit'!$E$44:$L$57,5,FALSE)) -> 0
B63: 0 | C63: =-HLOOKUP($B$54,'04_Wirtschaftlichkeit'!$E$44:$L$57,6,FALSE)*(1+B63) -> -1057830.717 | D63: =D$56*(-HLOOKUP($B$54,'04_Wirtschaftlichkeit'!$E$44:$L$57,7,FALSE)-HLOOKUP($B$54,'04_Wirtschaftlichkeit'!$E$44:$L$57,5,FALSE)) -> -84207.9 | E63: =E$56*(-HLOOKUP($B$54,'04_Wirtschaftlichkeit'!$E$44:$L$57,7,FALSE)-HLOOKUP($B$54,'04_Wirtschaftlichkeit'!$E$44:$L$57,5,FALSE)) -> -84207.9 | F63: =F$56*(-HLOOKUP($B$54,'04_Wirtschaftlichkeit'!$E$44:$L$57,7,FALSE)-HLOOKUP($B$54,'04_Wirtschaftlichkeit'!$E$44:$L$57,5,FALSE)) -> -84207.9 | G63: =G$56*(-HLOOKUP($B$54,'04_Wirtschaftlichkeit'!$E$44:$L$57,7,FALSE)-HLOOKUP($B$54,'04_Wirtschaftlichkeit'!$E$44:$L$57,5,FALSE)) -> -84207.9 | H63: =H$56*(-HLOOKUP($B$54,'04_Wirtschaftlichkeit'!$E$44:$L$57,7,FALSE)-HLOOKUP($B$54,'04_Wirtschaftlichkeit'!$E$44:$L$57,5,FALSE)) -> -84207.9 | I63: =I$56*(-HLOOKUP($B$54,'04_Wirtschaftlichkeit'!$E$44:$L$57,7,FALSE)-HLOOKUP($B$54,'04_Wirtschaftlichkeit'!$E$44:$L$57,5,FALSE)) -> -84207.9 | J63: =J$56*(-HLOOKUP($B$54,'04_Wirtschaftlichkeit'!$E$44:$L$57,7,FALSE)-HLOOKUP($B$54,'04_Wirtschaftlichkeit'!$E$44:$L$57,5,FALSE)) -> -84207.9 | K63: =K$56*(-HLOOKUP($B$54,'04_Wirtschaftlichkeit'!$E$44:$L$57,7,FALSE)-HLOOKUP($B$54,'04_Wirtschaftlichkeit'!$E$44:$L$57,5,FALSE)) -> -84207.9 | L63: =L$56*(-HLOOKUP($B$54,'04_Wirtschaftlichkeit'!$E$44:$L$57,7,FALSE)-HLOOKUP($B$54,'04_Wirtschaftlichkeit'!$E$44:$L$57,5,FALSE)) -> -84207.9 | M63: =M$56*(-HLOOKUP($B$54,'04_Wirtschaftlichkeit'!$E$44:$L$57,7,FALSE)-HLOOKUP($B$54,'04_Wirtschaftlichkeit'!$E$44:$L$57,5,FALSE)) -> -84207.9 | N63: =N$56*(-HLOOKUP($B$54,'04_Wirtschaftlichkeit'!$E$44:$L$57,7,FALSE)-HLOOKUP($B$54,'04_Wirtschaftlichkeit'!$E$44:$L$57,5,FALSE)) -> -84207.9 | O63: =O$56*(-HLOOKUP($B$54,'04_Wirtschaftlichkeit'!$E$44:$L$57,7,FALSE)-HLOOKUP($B$54,'04_Wirtschaftlichkeit'!$E$44:$L$57,5,FALSE)) -> -84207.9 | P63: =P$56*(-HLOOKUP($B$54,'04_Wirtschaftlichkeit'!$E$44:$L$57,7,FALSE)-HLOOKUP($B$54,'04_Wirtschaftlichkeit'!$E$44:$L$57,5,FALSE)) -> -84207.9 | Q63: =Q$56*(-HLOOKUP($B$54,'04_Wirtschaftlichkeit'!$E$44:$L$57,7,FALSE)-HLOOKUP($B$54,'04_Wirtschaftlichkeit'!$E$44:$L$57,5,FALSE)) -> -84207.9 | R63: =R$56*(-HLOOKUP($B$54,'04_Wirtschaftlichkeit'!$E$44:$L$57,7,FALSE)-HLOOKUP($B$54,'04_Wirtschaftlichkeit'!$E$44:$L$57,5,FALSE)) -> -84207.9 | S63: =S$56*(-HLOOKUP($B$54,'04_Wirtschaftlichkeit'!$E$44:$L$57,7,FALSE)-HLOOKUP($B$54,'04_Wirtschaftlichkeit'!$E$44:$L$57,5,FALSE)) -> -84207.9 | T63: =T$56*(-HLOOKUP($B$54,'04_Wirtschaftlichkeit'!$E$44:$L$57,7,FALSE)-HLOOKUP($B$54,'04_Wirtschaftlichkeit'!$E$44:$L$57,5,FALSE)) -> -84207.9 | U63: =U$56*(-HLOOKUP($B$54,'04_Wirtschaftlichkeit'!$E$44:$L$57,7,FALSE)-HLOOKUP($B$54,'04_Wirtschaftlichkeit'!$E$44:$L$57,5,FALSE)) -> -84207.9 | V63: =V$56*(-HLOOKUP($B$54,'04_Wirtschaftlichkeit'!$E$44:$L$57,7,FALSE)-HLOOKUP($B$54,'04_Wirtschaftlichkeit'!$E$44:$L$57,5,FALSE)) -> -84207.9 | W63: =W$56*(-HLOOKUP($B$54,'04_Wirtschaftlichkeit'!$E$44:$L$57,7,FALSE)-HLOOKUP($B$54,'04_Wirtschaftlichkeit'!$E$44:$L$57,5,FALSE)) -> -84207.9 | X63: =X$56*(-HLOOKUP($B$54,'04_Wirtschaftlichkeit'!$E$44:$L$57,7,FALSE)-HLOOKUP($B$54,'04_Wirtschaftlichkeit'!$E$44:$L$57,5,FALSE)) -> 0 | Y63: =Y$56*(-HLOOKUP($B$54,'04_Wirtschaftlichkeit'!$E$44:$L$57,7,FALSE)-HLOOKUP($B$54,'04_Wirtschaftlichkeit'!$E$44:$L$57,5,FALSE)) -> 0 | Z63: =Z$56*(-HLOOKUP($B$54,'04_Wirtschaftlichkeit'!$E$44:$L$57,7,FALSE)-HLOOKUP($B$54,'04_Wirtschaftlichkeit'!$E$44:$L$57,5,FALSE)) -> 0 | AA63: =AA$56*(-HLOOKUP($B$54,'04_Wirtschaftlichkeit'!$E$44:$L$57,7,FALSE)-HLOOKUP($B$54,'04_Wirtschaftlichkeit'!$E$44:$L$57,5,FALSE)) -> 0 | AB63: =AB$56*(-HLOOKUP($B$54,'04_Wirtschaftlichkeit'!$E$44:$L$57,7,FALSE)-HLOOKUP($B$54,'04_Wirtschaftlichkeit'!$E$44:$L$57,5,FALSE)) -> 0 | AC63: =AC$56*(-HLOOKUP($B$54,'04_Wirtschaftlichkeit'!$E$44:$L$57,7,FALSE)-HLOOKUP($B$54,'04_Wirtschaftlichkeit'!$E$44:$L$57,5,FALSE)) -> 0 | AD63: =AD$56*(-HLOOKUP($B$54,'04_Wirtschaftlichkeit'!$E$44:$L$57,7,FALSE)-HLOOKUP($B$54,'04_Wirtschaftlichkeit'!$E$44:$L$57,5,FALSE)) -> 0 | AE63: =AE$56*(-HLOOKUP($B$54,'04_Wirtschaftlichkeit'!$E$44:$L$57,7,FALSE)-HLOOKUP($B$54,'04_Wirtschaftlichkeit'!$E$44:$L$57,5,FALSE)) -> 0 | AF63: =AF$56*(-HLOOKUP($B$54,'04_Wirtschaftlichkeit'!$E$44:$L$57,7,FALSE)-HLOOKUP($B$54,'04_Wirtschaftlichkeit'!$E$44:$L$57,5,FALSE)) -> 0 | AG63: =AG$56*(-HLOOKUP($B$54,'04_Wirtschaftlichkeit'!$E$44:$L$57,7,FALSE)-HLOOKUP($B$54,'04_Wirtschaftlichkeit'!$E$44:$L$57,5,FALSE)) -> 0 | AH63: =AH$56*(-HLOOKUP($B$54,'04_Wirtschaftlichkeit'!$E$44:$L$57,7,FALSE)-HLOOKUP($B$54,'04_Wirtschaftlichkeit'!$E$44:$L$57,5,FALSE)) -> 0 | AI63: =AI$56*(-HLOOKUP($B$54,'04_Wirtschaftlichkeit'!$E$44:$L$57,7,FALSE)-HLOOKUP($B$54,'04_Wirtschaftlichkeit'!$E$44:$L$57,5,FALSE)) -> 0 | AJ63: =AJ$56*(-HLOOKUP($B$54,'04_Wirtschaftlichkeit'!$E$44:$L$57,7,FALSE)-HLOOKUP($B$54,'04_Wirtschaftlichkeit'!$E$44:$L$57,5,FALSE)) -> 0 | AK63: =AK$56*(-HLOOKUP($B$54,'04_Wirtschaftlichkeit'!$E$44:$L$57,7,FALSE)-HLOOKUP($B$54,'04_Wirtschaftlichkeit'!$E$44:$L$57,5,FALSE)) -> 0 | AL63: =AL$56*(-HLOOKUP($B$54,'04_Wirtschaftlichkeit'!$E$44:$L$57,7,FALSE)-HLOOKUP($B$54,'04_Wirtschaftlichkeit'!$E$44:$L$57,5,FALSE)) -> 0 | AM63: =AM$56*(-HLOOKUP($B$54,'04_Wirtschaftlichkeit'!$E$44:$L$57,7,FALSE)-HLOOKUP($B$54,'04_Wirtschaftlichkeit'!$E$44:$L$57,5,FALSE)) -> 0 | AN63: =AN$56*(-HLOOKUP($B$54,'04_Wirtschaftlichkeit'!$E$44:$L$57,7,FALSE)-HLOOKUP($B$54,'04_Wirtschaftlichkeit'!$E$44:$L$57,5,FALSE)) -> 0 | AO63: =AO$56*(-HLOOKUP($B$54,'04_Wirtschaftlichkeit'!$E$44:$L$57,7,FALSE)-HLOOKUP($B$54,'04_Wirtschaftlichkeit'!$E$44:$L$57,5,FALSE)) -> 0 | AP63: =AP$56*(-HLOOKUP($B$54,'04_Wirtschaftlichkeit'!$E$44:$L$57,7,FALSE)-HLOOKUP($B$54,'04_Wirtschaftlichkeit'!$E$44:$L$57,5,FALSE)) -> 0 | AQ63: =AQ$56*(-HLOOKUP($B$54,'04_Wirtschaftlichkeit'!$E$44:$L$57,7,FALSE)-HLOOKUP($B$54,'04_Wirtschaftlichkeit'!$E$44:$L$57,5,FALSE)) -> 0 | AR63: =AR$56*(-HLOOKUP($B$54,'04_Wirtschaftlichkeit'!$E$44:$L$57,7,FALSE)-HLOOKUP($B$54,'04_Wirtschaftlichkeit'!$E$44:$L$57,5,FALSE)) -> 0 | AS63: =AS$56*(-HLOOKUP($B$54,'04_Wirtschaftlichkeit'!$E$44:$L$57,7,FALSE)-HLOOKUP($B$54,'04_Wirtschaftlichkeit'!$E$44:$L$57,5,FALSE)) -> 0 | AT63: =AT$56*(-HLOOKUP($B$54,'04_Wirtschaftlichkeit'!$E$44:$L$57,7,FALSE)-HLOOKUP($B$54,'04_Wirtschaftlichkeit'!$E$44:$L$57,5,FALSE)) -> 0 | AU63: =AU$56*(-HLOOKUP($B$54,'04_Wirtschaftlichkeit'!$E$44:$L$57,7,FALSE)-HLOOKUP($B$54,'04_Wirtschaftlichkeit'!$E$44:$L$57,5,FALSE)) -> 0 | AV63: =AV$56*(-HLOOKUP($B$54,'04_Wirtschaftlichkeit'!$E$44:$L$57,7,FALSE)-HLOOKUP($B$54,'04_Wirtschaftlichkeit'!$E$44:$L$57,5,FALSE)) -> 0 | AW63: =AW$56*(-HLOOKUP($B$54,'04_Wirtschaftlichkeit'!$E$44:$L$57,7,FALSE)-HLOOKUP($B$54,'04_Wirtschaftlichkeit'!$E$44:$L$57,5,FALSE)) -> 0 | AX63: =AX$56*(-HLOOKUP($B$54,'04_Wirtschaftlichkeit'!$E$44:$L$57,7,FALSE)-HLOOKUP($B$54,'04_Wirtschaftlichkeit'!$E$44:$L$57,5,FALSE)) -> 0 | AY63: =AY$56*(-HLOOKUP($B$54,'04_Wirtschaftlichkeit'!$E$44:$L$57,7,FALSE)-HLOOKUP($B$54,'04_Wirtschaftlichkeit'!$E$44:$L$57,5,FALSE)) -> 0 | AZ63: =AZ$56*(-HLOOKUP($B$54,'04_Wirtschaftlichkeit'!$E$44:$L$57,7,FALSE)-HLOOKUP($B$54,'04_Wirtschaftlichkeit'!$E$44:$L$57,5,FALSE)) -> 0 | BA63: =BA$56*(-HLOOKUP($B$54,'04_Wirtschaftlichkeit'!$E$44:$L$57,7,FALSE)-HLOOKUP($B$54,'04_Wirtschaftlichkeit'!$E$44:$L$57,5,FALSE)) -> 0
B64: 0.1 | C64: =-HLOOKUP($B$54,'04_Wirtschaftlichkeit'!$E$44:$L$57,6,FALSE)*(1+B64) -> -1163613.789 | D64: =D$56*(-HLOOKUP($B$54,'04_Wirtschaftlichkeit'!$E$44:$L$57,7,FALSE)-HLOOKUP($B$54,'04_Wirtschaftlichkeit'!$E$44:$L$57,5,FALSE)) -> -84207.9 | E64: =E$56*(-HLOOKUP($B$54,'04_Wirtschaftlichkeit'!$E$44:$L$57,7,FALSE)-HLOOKUP($B$54,'04_Wirtschaftlichkeit'!$E$44:$L$57,5,FALSE)) -> -84207.9 | F64: =F$56*(-HLOOKUP($B$54,'04_Wirtschaftlichkeit'!$E$44:$L$57,7,FALSE)-HLOOKUP($B$54,'04_Wirtschaftlichkeit'!$E$44:$L$57,5,FALSE)) -> -84207.9 | G64: =G$56*(-HLOOKUP($B$54,'04_Wirtschaftlichkeit'!$E$44:$L$57,7,FALSE)-HLOOKUP($B$54,'04_Wirtschaftlichkeit'!$E$44:$L$57,5,FALSE)) -> -84207.9 | H64: =H$56*(-HLOOKUP($B$54,'04_Wirtschaftlichkeit'!$E$44:$L$57,7,FALSE)-HLOOKUP($B$54,'04_Wirtschaftlichkeit'!$E$44:$L$57,5,FALSE)) -> -84207.9 | I64: =I$56*(-HLOOKUP($B$54,'04_Wirtschaftlichkeit'!$E$44:$L$57,7,FALSE)-HLOOKUP($B$54,'04_Wirtschaftlichkeit'!$E$44:$L$57,5,FALSE)) -> -84207.9 | J64: =J$56*(-HLOOKUP($B$54,'04_Wirtschaftlichkeit'!$E$44:$L$57,7,FALSE)-HLOOKUP($B$54,'04_Wirtschaftlichkeit'!$E$44:$L$57,5,FALSE)) -> -84207.9 | K64: =K$56*(-HLOOKUP($B$54,'04_Wirtschaftlichkeit'!$E$44:$L$57,7,FALSE)-HLOOKUP($B$54,'04_Wirtschaftlichkeit'!$E$44:$L$57,5,FALSE)) -> -84207.9 | L64: =L$56*(-HLOOKUP($B$54,'04_Wirtschaftlichkeit'!$E$44:$L$57,7,FALSE)-HLOOKUP($B$54,'04_Wirtschaftlichkeit'!$E$44:$L$57,5,FALSE)) -> -84207.9 | M64: =M$56*(-HLOOKUP($B$54,'04_Wirtschaftlichkeit'!$E$44:$L$57,7,FALSE)-HLOOKUP($B$54,'04_Wirtschaftlichkeit'!$E$44:$L$57,5,FALSE)) -> -84207.9 | N64: =N$56*(-HLOOKUP($B$54,'04_Wirtschaftlichkeit'!$E$44:$L$57,7,FALSE)-HLOOKUP($B$54,'04_Wirtschaftlichkeit'!$E$44:$L$57,5,FALSE)) -> -84207.9 | O64: =O$56*(-HLOOKUP($B$54,'04_Wirtschaftlichkeit'!$E$44:$L$57,7,FALSE)-HLOOKUP($B$54,'04_Wirtschaftlichkeit'!$E$44:$L$57,5,FALSE)) -> -84207.9 | P64: =P$56*(-HLOOKUP($B$54,'04_Wirtschaftlichkeit'!$E$44:$L$57,7,FALSE)-HLOOKUP($B$54,'04_Wirtschaftlichkeit'!$E$44:$L$57,5,FALSE)) -> -84207.9 | Q64: =Q$56*(-HLOOKUP($B$54,'04_Wirtschaftlichkeit'!$E$44:$L$57,7,FALSE)-HLOOKUP($B$54,'04_Wirtschaftlichkeit'!$E$44:$L$57,5,FALSE)) -> -84207.9 | R64: =R$56*(-HLOOKUP($B$54,'04_Wirtschaftlichkeit'!$E$44:$L$57,7,FALSE)-HLOOKUP($B$54,'04_Wirtschaftlichkeit'!$E$44:$L$57,5,FALSE)) -> -84207.9 | S64: =S$56*(-HLOOKUP($B$54,'04_Wirtschaftlichkeit'!$E$44:$L$57,7,FALSE)-HLOOKUP($B$54,'04_Wirtschaftlichkeit'!$E$44:$L$57,5,FALSE)) -> -84207.9 | T64: =T$56*(-HLOOKUP($B$54,'04_Wirtschaftlichkeit'!$E$44:$L$57,7,FALSE)-HLOOKUP($B$54,'04_Wirtschaftlichkeit'!$E$44:$L$57,5,FALSE)) -> -84207.9 | U64: =U$56*(-HLOOKUP($B$54,'04_Wirtschaftlichkeit'!$E$44:$L$57,7,FALSE)-HLOOKUP($B$54,'04_Wirtschaftlichkeit'!$E$44:$L$57,5,FALSE)) -> -84207.9 | V64: =V$56*(-HLOOKUP($B$54,'04_Wirtschaftlichkeit'!$E$44:$L$57,7,FALSE)-HLOOKUP($B$54,'04_Wirtschaftlichkeit'!$E$44:$L$57,5,FALSE)) -> -84207.9 | W64: =W$56*(-HLOOKUP($B$54,'04_Wirtschaftlichkeit'!$E$44:$L$57,7,FALSE)-HLOOKUP($B$54,'04_Wirtschaftlichkeit'!$E$44:$L$57,5,FALSE)) -> -84207.9 | X64: =X$56*(-HLOOKUP($B$54,'04_Wirtschaftlichkeit'!$E$44:$L$57,7,FALSE)-HLOOKUP($B$54,'04_Wirtschaftlichkeit'!$E$44:$L$57,5,FALSE)) -> 0 | Y64: =Y$56*(-HLOOKUP($B$54,'04_Wirtschaftlichkeit'!$E$44:$L$57,7,FALSE)-HLOOKUP($B$54,'04_Wirtschaftlichkeit'!$E$44:$L$57,5,FALSE)) -> 0 | Z64: =Z$56*(-HLOOKUP($B$54,'04_Wirtschaftlichkeit'!$E$44:$L$57,7,FALSE)-HLOOKUP($B$54,'04_Wirtschaftlichkeit'!$E$44:$L$57,5,FALSE)) -> 0 | AA64: =AA$56*(-HLOOKUP($B$54,'04_Wirtschaftlichkeit'!$E$44:$L$57,7,FALSE)-HLOOKUP($B$54,'04_Wirtschaftlichkeit'!$E$44:$L$57,5,FALSE)) -> 0 | AB64: =AB$56*(-HLOOKUP($B$54,'04_Wirtschaftlichkeit'!$E$44:$L$57,7,FALSE)-HLOOKUP($B$54,'04_Wirtschaftlichkeit'!$E$44:$L$57,5,FALSE)) -> 0 | AC64: =AC$56*(-HLOOKUP($B$54,'04_Wirtschaftlichkeit'!$E$44:$L$57,7,FALSE)-HLOOKUP($B$54,'04_Wirtschaftlichkeit'!$E$44:$L$57,5,FALSE)) -> 0 | AD64: =AD$56*(-HLOOKUP($B$54,'04_Wirtschaftlichkeit'!$E$44:$L$57,7,FALSE)-HLOOKUP($B$54,'04_Wirtschaftlichkeit'!$E$44:$L$57,5,FALSE)) -> 0 | AE64: =AE$56*(-HLOOKUP($B$54,'04_Wirtschaftlichkeit'!$E$44:$L$57,7,FALSE)-HLOOKUP($B$54,'04_Wirtschaftlichkeit'!$E$44:$L$57,5,FALSE)) -> 0 | AF64: =AF$56*(-HLOOKUP($B$54,'04_Wirtschaftlichkeit'!$E$44:$L$57,7,FALSE)-HLOOKUP($B$54,'04_Wirtschaftlichkeit'!$E$44:$L$57,5,FALSE)) -> 0 | AG64: =AG$56*(-HLOOKUP($B$54,'04_Wirtschaftlichkeit'!$E$44:$L$57,7,FALSE)-HLOOKUP($B$54,'04_Wirtschaftlichkeit'!$E$44:$L$57,5,FALSE)) -> 0 | AH64: =AH$56*(-HLOOKUP($B$54,'04_Wirtschaftlichkeit'!$E$44:$L$57,7,FALSE)-HLOOKUP($B$54,'04_Wirtschaftlichkeit'!$E$44:$L$57,5,FALSE)) -> 0 | AI64: =AI$56*(-HLOOKUP($B$54,'04_Wirtschaftlichkeit'!$E$44:$L$57,7,FALSE)-HLOOKUP($B$54,'04_Wirtschaftlichkeit'!$E$44:$L$57,5,FALSE)) -> 0 | AJ64: =AJ$56*(-HLOOKUP($B$54,'04_Wirtschaftlichkeit'!$E$44:$L$57,7,FALSE)-HLOOKUP($B$54,'04_Wirtschaftlichkeit'!$E$44:$L$57,5,FALSE)) -> 0 | AK64: =AK$56*(-HLOOKUP($B$54,'04_Wirtschaftlichkeit'!$E$44:$L$57,7,FALSE)-HLOOKUP($B$54,'04_Wirtschaftlichkeit'!$E$44:$L$57,5,FALSE)) -> 0 | AL64: =AL$56*(-HLOOKUP($B$54,'04_Wirtschaftlichkeit'!$E$44:$L$57,7,FALSE)-HLOOKUP($B$54,'04_Wirtschaftlichkeit'!$E$44:$L$57,5,FALSE)) -> 0 | AM64: =AM$56*(-HLOOKUP($B$54,'04_Wirtschaftlichkeit'!$E$44:$L$57,7,FALSE)-HLOOKUP($B$54,'04_Wirtschaftlichkeit'!$E$44:$L$57,5,FALSE)) -> 0 | AN64: =AN$56*(-HLOOKUP($B$54,'04_Wirtschaftlichkeit'!$E$44:$L$57,7,FALSE)-HLOOKUP($B$54,'04_Wirtschaftlichkeit'!$E$44:$L$57,5,FALSE)) -> 0 | AO64: =AO$56*(-HLOOKUP($B$54,'04_Wirtschaftlichkeit'!$E$44:$L$57,7,FALSE)-HLOOKUP($B$54,'04_Wirtschaftlichkeit'!$E$44:$L$57,5,FALSE)) -> 0 | AP64: =AP$56*(-HLOOKUP($B$54,'04_Wirtschaftlichkeit'!$E$44:$L$57,7,FALSE)-HLOOKUP($B$54,'04_Wirtschaftlichkeit'!$E$44:$L$57,5,FALSE)) -> 0 | AQ64: =AQ$56*(-HLOOKUP($B$54,'04_Wirtschaftlichkeit'!$E$44:$L$57,7,FALSE)-HLOOKUP($B$54,'04_Wirtschaftlichkeit'!$E$44:$L$57,5,FALSE)) -> 0 | AR64: =AR$56*(-HLOOKUP($B$54,'04_Wirtschaftlichkeit'!$E$44:$L$57,7,FALSE)-HLOOKUP($B$54,'04_Wirtschaftlichkeit'!$E$44:$L$57,5,FALSE)) -> 0 | AS64: =AS$56*(-HLOOKUP($B$54,'04_Wirtschaftlichkeit'!$E$44:$L$57,7,FALSE)-HLOOKUP($B$54,'04_Wirtschaftlichkeit'!$E$44:$L$57,5,FALSE)) -> 0 | AT64: =AT$56*(-HLOOKUP($B$54,'04_Wirtschaftlichkeit'!$E$44:$L$57,7,FALSE)-HLOOKUP($B$54,'04_Wirtschaftlichkeit'!$E$44:$L$57,5,FALSE)) -> 0 | AU64: =AU$56*(-HLOOKUP($B$54,'04_Wirtschaftlichkeit'!$E$44:$L$57,7,FALSE)-HLOOKUP($B$54,'04_Wirtschaftlichkeit'!$E$44:$L$57,5,FALSE)) -> 0 | AV64: =AV$56*(-HLOOKUP($B$54,'04_Wirtschaftlichkeit'!$E$44:$L$57,7,FALSE)-HLOOKUP($B$54,'04_Wirtschaftlichkeit'!$E$44:$L$57,5,FALSE)) -> 0 | AW64: =AW$56*(-HLOOKUP($B$54,'04_Wirtschaftlichkeit'!$E$44:$L$57,7,FALSE)-HLOOKUP($B$54,'04_Wirtschaftlichkeit'!$E$44:$L$57,5,FALSE)) -> 0 | AX64: =AX$56*(-HLOOKUP($B$54,'04_Wirtschaftlichkeit'!$E$44:$L$57,7,FALSE)-HLOOKUP($B$54,'04_Wirtschaftlichkeit'!$E$44:$L$57,5,FALSE)) -> 0 | AY64: =AY$56*(-HLOOKUP($B$54,'04_Wirtschaftlichkeit'!$E$44:$L$57,7,FALSE)-HLOOKUP($B$54,'04_Wirtschaftlichkeit'!$E$44:$L$57,5,FALSE)) -> 0 | AZ64: =AZ$56*(-HLOOKUP($B$54,'04_Wirtschaftlichkeit'!$E$44:$L$57,7,FALSE)-HLOOKUP($B$54,'04_Wirtschaftlichkeit'!$E$44:$L$57,5,FALSE)) -> 0 | BA64: =BA$56*(-HLOOKUP($B$54,'04_Wirtschaftlichkeit'!$E$44:$L$57,7,FALSE)-HLOOKUP($B$54,'04_Wirtschaftlichkeit'!$E$44:$L$57,5,FALSE)) -> 0
B65: 0.2 | C65: =-HLOOKUP($B$54,'04_Wirtschaftlichkeit'!$E$44:$L$57,6,FALSE)*(1+B65) -> -1269396.86 | D65: =D$56*(-HLOOKUP($B$54,'04_Wirtschaftlichkeit'!$E$44:$L$57,7,FALSE)-HLOOKUP($B$54,'04_Wirtschaftlichkeit'!$E$44:$L$57,5,FALSE)) -> -84207.9 | E65: =E$56*(-HLOOKUP($B$54,'04_Wirtschaftlichkeit'!$E$44:$L$57,7,FALSE)-HLOOKUP($B$54,'04_Wirtschaftlichkeit'!$E$44:$L$57,5,FALSE)) -> -84207.9 | F65: =F$56*(-HLOOKUP($B$54,'04_Wirtschaftlichkeit'!$E$44:$L$57,7,FALSE)-HLOOKUP($B$54,'04_Wirtschaftlichkeit'!$E$44:$L$57,5,FALSE)) -> -84207.9 | G65: =G$56*(-HLOOKUP($B$54,'04_Wirtschaftlichkeit'!$E$44:$L$57,7,FALSE)-HLOOKUP($B$54,'04_Wirtschaftlichkeit'!$E$44:$L$57,5,FALSE)) -> -84207.9 | H65: =H$56*(-HLOOKUP($B$54,'04_Wirtschaftlichkeit'!$E$44:$L$57,7,FALSE)-HLOOKUP($B$54,'04_Wirtschaftlichkeit'!$E$44:$L$57,5,FALSE)) -> -84207.9 | I65: =I$56*(-HLOOKUP($B$54,'04_Wirtschaftlichkeit'!$E$44:$L$57,7,FALSE)-HLOOKUP($B$54,'04_Wirtschaftlichkeit'!$E$44:$L$57,5,FALSE)) -> -84207.9 | J65: =J$56*(-HLOOKUP($B$54,'04_Wirtschaftlichkeit'!$E$44:$L$57,7,FALSE)-HLOOKUP($B$54,'04_Wirtschaftlichkeit'!$E$44:$L$57,5,FALSE)) -> -84207.9 | K65: =K$56*(-HLOOKUP($B$54,'04_Wirtschaftlichkeit'!$E$44:$L$57,7,FALSE)-HLOOKUP($B$54,'04_Wirtschaftlichkeit'!$E$44:$L$57,5,FALSE)) -> -84207.9 | L65: =L$56*(-HLOOKUP($B$54,'04_Wirtschaftlichkeit'!$E$44:$L$57,7,FALSE)-HLOOKUP($B$54,'04_Wirtschaftlichkeit'!$E$44:$L$57,5,FALSE)) -> -84207.9 | M65: =M$56*(-HLOOKUP($B$54,'04_Wirtschaftlichkeit'!$E$44:$L$57,7,FALSE)-HLOOKUP($B$54,'04_Wirtschaftlichkeit'!$E$44:$L$57,5,FALSE)) -> -84207.9 | N65: =N$56*(-HLOOKUP($B$54,'04_Wirtschaftlichkeit'!$E$44:$L$57,7,FALSE)-HLOOKUP($B$54,'04_Wirtschaftlichkeit'!$E$44:$L$57,5,FALSE)) -> -84207.9 | O65: =O$56*(-HLOOKUP($B$54,'04_Wirtschaftlichkeit'!$E$44:$L$57,7,FALSE)-HLOOKUP($B$54,'04_Wirtschaftlichkeit'!$E$44:$L$57,5,FALSE)) -> -84207.9 | P65: =P$56*(-HLOOKUP($B$54,'04_Wirtschaftlichkeit'!$E$44:$L$57,7,FALSE)-HLOOKUP($B$54,'04_Wirtschaftlichkeit'!$E$44:$L$57,5,FALSE)) -> -84207.9 | Q65: =Q$56*(-HLOOKUP($B$54,'04_Wirtschaftlichkeit'!$E$44:$L$57,7,FALSE)-HLOOKUP($B$54,'04_Wirtschaftlichkeit'!$E$44:$L$57,5,FALSE)) -> -84207.9 | R65: =R$56*(-HLOOKUP($B$54,'04_Wirtschaftlichkeit'!$E$44:$L$57,7,FALSE)-HLOOKUP($B$54,'04_Wirtschaftlichkeit'!$E$44:$L$57,5,FALSE)) -> -84207.9 | S65: =S$56*(-HLOOKUP($B$54,'04_Wirtschaftlichkeit'!$E$44:$L$57,7,FALSE)-HLOOKUP($B$54,'04_Wirtschaftlichkeit'!$E$44:$L$57,5,FALSE)) -> -84207.9 | T65: =T$56*(-HLOOKUP($B$54,'04_Wirtschaftlichkeit'!$E$44:$L$57,7,FALSE)-HLOOKUP($B$54,'04_Wirtschaftlichkeit'!$E$44:$L$57,5,FALSE)) -> -84207.9 | U65: =U$56*(-HLOOKUP($B$54,'04_Wirtschaftlichkeit'!$E$44:$L$57,7,FALSE)-HLOOKUP($B$54,'04_Wirtschaftlichkeit'!$E$44:$L$57,5,FALSE)) -> -84207.9 | V65: =V$56*(-HLOOKUP($B$54,'04_Wirtschaftlichkeit'!$E$44:$L$57,7,FALSE)-HLOOKUP($B$54,'04_Wirtschaftlichkeit'!$E$44:$L$57,5,FALSE)) -> -84207.9 | W65: =W$56*(-HLOOKUP($B$54,'04_Wirtschaftlichkeit'!$E$44:$L$57,7,FALSE)-HLOOKUP($B$54,'04_Wirtschaftlichkeit'!$E$44:$L$57,5,FALSE)) -> -84207.9 | X65: =X$56*(-HLOOKUP($B$54,'04_Wirtschaftlichkeit'!$E$44:$L$57,7,FALSE)-HLOOKUP($B$54,'04_Wirtschaftlichkeit'!$E$44:$L$57,5,FALSE)) -> 0 | Y65: =Y$56*(-HLOOKUP($B$54,'04_Wirtschaftlichkeit'!$E$44:$L$57,7,FALSE)-HLOOKUP($B$54,'04_Wirtschaftlichkeit'!$E$44:$L$57,5,FALSE)) -> 0 | Z65: =Z$56*(-HLOOKUP($B$54,'04_Wirtschaftlichkeit'!$E$44:$L$57,7,FALSE)-HLOOKUP($B$54,'04_Wirtschaftlichkeit'!$E$44:$L$57,5,FALSE)) -> 0 | AA65: =AA$56*(-HLOOKUP($B$54,'04_Wirtschaftlichkeit'!$E$44:$L$57,7,FALSE)-HLOOKUP($B$54,'04_Wirtschaftlichkeit'!$E$44:$L$57,5,FALSE)) -> 0 | AB65: =AB$56*(-HLOOKUP($B$54,'04_Wirtschaftlichkeit'!$E$44:$L$57,7,FALSE)-HLOOKUP($B$54,'04_Wirtschaftlichkeit'!$E$44:$L$57,5,FALSE)) -> 0 | AC65: =AC$56*(-HLOOKUP($B$54,'04_Wirtschaftlichkeit'!$E$44:$L$57,7,FALSE)-HLOOKUP($B$54,'04_Wirtschaftlichkeit'!$E$44:$L$57,5,FALSE)) -> 0 | AD65: =AD$56*(-HLOOKUP($B$54,'04_Wirtschaftlichkeit'!$E$44:$L$57,7,FALSE)-HLOOKUP($B$54,'04_Wirtschaftlichkeit'!$E$44:$L$57,5,FALSE)) -> 0 | AE65: =AE$56*(-HLOOKUP($B$54,'04_Wirtschaftlichkeit'!$E$44:$L$57,7,FALSE)-HLOOKUP($B$54,'04_Wirtschaftlichkeit'!$E$44:$L$57,5,FALSE)) -> 0 | AF65: =AF$56*(-HLOOKUP($B$54,'04_Wirtschaftlichkeit'!$E$44:$L$57,7,FALSE)-HLOOKUP($B$54,'04_Wirtschaftlichkeit'!$E$44:$L$57,5,FALSE)) -> 0 | AG65: =AG$56*(-HLOOKUP($B$54,'04_Wirtschaftlichkeit'!$E$44:$L$57,7,FALSE)-HLOOKUP($B$54,'04_Wirtschaftlichkeit'!$E$44:$L$57,5,FALSE)) -> 0 | AH65: =AH$56*(-HLOOKUP($B$54,'04_Wirtschaftlichkeit'!$E$44:$L$57,7,FALSE)-HLOOKUP($B$54,'04_Wirtschaftlichkeit'!$E$44:$L$57,5,FALSE)) -> 0 | AI65: =AI$56*(-HLOOKUP($B$54,'04_Wirtschaftlichkeit'!$E$44:$L$57,7,FALSE)-HLOOKUP($B$54,'04_Wirtschaftlichkeit'!$E$44:$L$57,5,FALSE)) -> 0 | AJ65: =AJ$56*(-HLOOKUP($B$54,'04_Wirtschaftlichkeit'!$E$44:$L$57,7,FALSE)-HLOOKUP($B$54,'04_Wirtschaftlichkeit'!$E$44:$L$57,5,FALSE)) -> 0 | AK65: =AK$56*(-HLOOKUP($B$54,'04_Wirtschaftlichkeit'!$E$44:$L$57,7,FALSE)-HLOOKUP($B$54,'04_Wirtschaftlichkeit'!$E$44:$L$57,5,FALSE)) -> 0 | AL65: =AL$56*(-HLOOKUP($B$54,'04_Wirtschaftlichkeit'!$E$44:$L$57,7,FALSE)-HLOOKUP($B$54,'04_Wirtschaftlichkeit'!$E$44:$L$57,5,FALSE)) -> 0 | AM65: =AM$56*(-HLOOKUP($B$54,'04_Wirtschaftlichkeit'!$E$44:$L$57,7,FALSE)-HLOOKUP($B$54,'04_Wirtschaftlichkeit'!$E$44:$L$57,5,FALSE)) -> 0 | AN65: =AN$56*(-HLOOKUP($B$54,'04_Wirtschaftlichkeit'!$E$44:$L$57,7,FALSE)-HLOOKUP($B$54,'04_Wirtschaftlichkeit'!$E$44:$L$57,5,FALSE)) -> 0 | AO65: =AO$56*(-HLOOKUP($B$54,'04_Wirtschaftlichkeit'!$E$44:$L$57,7,FALSE)-HLOOKUP($B$54,'04_Wirtschaftlichkeit'!$E$44:$L$57,5,FALSE)) -> 0 | AP65: =AP$56*(-HLOOKUP($B$54,'04_Wirtschaftlichkeit'!$E$44:$L$57,7,FALSE)-HLOOKUP($B$54,'04_Wirtschaftlichkeit'!$E$44:$L$57,5,FALSE)) -> 0 | AQ65: =AQ$56*(-HLOOKUP($B$54,'04_Wirtschaftlichkeit'!$E$44:$L$57,7,FALSE)-HLOOKUP($B$54,'04_Wirtschaftlichkeit'!$E$44:$L$57,5,FALSE)) -> 0 | AR65: =AR$56*(-HLOOKUP($B$54,'04_Wirtschaftlichkeit'!$E$44:$L$57,7,FALSE)-HLOOKUP($B$54,'04_Wirtschaftlichkeit'!$E$44:$L$57,5,FALSE)) -> 0 | AS65: =AS$56*(-HLOOKUP($B$54,'04_Wirtschaftlichkeit'!$E$44:$L$57,7,FALSE)-HLOOKUP($B$54,'04_Wirtschaftlichkeit'!$E$44:$L$57,5,FALSE)) -> 0 | AT65: =AT$56*(-HLOOKUP($B$54,'04_Wirtschaftlichkeit'!$E$44:$L$57,7,FALSE)-HLOOKUP($B$54,'04_Wirtschaftlichkeit'!$E$44:$L$57,5,FALSE)) -> 0 | AU65: =AU$56*(-HLOOKUP($B$54,'04_Wirtschaftlichkeit'!$E$44:$L$57,7,FALSE)-HLOOKUP($B$54,'04_Wirtschaftlichkeit'!$E$44:$L$57,5,FALSE)) -> 0 | AV65: =AV$56*(-HLOOKUP($B$54,'04_Wirtschaftlichkeit'!$E$44:$L$57,7,FALSE)-HLOOKUP($B$54,'04_Wirtschaftlichkeit'!$E$44:$L$57,5,FALSE)) -> 0 | AW65: =AW$56*(-HLOOKUP($B$54,'04_Wirtschaftlichkeit'!$E$44:$L$57,7,FALSE)-HLOOKUP($B$54,'04_Wirtschaftlichkeit'!$E$44:$L$57,5,FALSE)) -> 0 | AX65: =AX$56*(-HLOOKUP($B$54,'04_Wirtschaftlichkeit'!$E$44:$L$57,7,FALSE)-HLOOKUP($B$54,'04_Wirtschaftlichkeit'!$E$44:$L$57,5,FALSE)) -> 0 | AY65: =AY$56*(-HLOOKUP($B$54,'04_Wirtschaftlichkeit'!$E$44:$L$57,7,FALSE)-HLOOKUP($B$54,'04_Wirtschaftlichkeit'!$E$44:$L$57,5,FALSE)) -> 0 | AZ65: =AZ$56*(-HLOOKUP($B$54,'04_Wirtschaftlichkeit'!$E$44:$L$57,7,FALSE)-HLOOKUP($B$54,'04_Wirtschaftlichkeit'!$E$44:$L$57,5,FALSE)) -> 0 | BA65: =BA$56*(-HLOOKUP($B$54,'04_Wirtschaftlichkeit'!$E$44:$L$57,7,FALSE)-HLOOKUP($B$54,'04_Wirtschaftlichkeit'!$E$44:$L$57,5,FALSE)) -> 0
B66: 0.3 | C66: =-HLOOKUP($B$54,'04_Wirtschaftlichkeit'!$E$44:$L$57,6,FALSE)*(1+B66) -> -1375179.932 | D66: =D$56*(-HLOOKUP($B$54,'04_Wirtschaftlichkeit'!$E$44:$L$57,7,FALSE)-HLOOKUP($B$54,'04_Wirtschaftlichkeit'!$E$44:$L$57,5,FALSE)) -> -84207.9 | E66: =E$56*(-HLOOKUP($B$54,'04_Wirtschaftlichkeit'!$E$44:$L$57,7,FALSE)-HLOOKUP($B$54,'04_Wirtschaftlichkeit'!$E$44:$L$57,5,FALSE)) -> -84207.9 | F66: =F$56*(-HLOOKUP($B$54,'04_Wirtschaftlichkeit'!$E$44:$L$57,7,FALSE)-HLOOKUP($B$54,'04_Wirtschaftlichkeit'!$E$44:$L$57,5,FALSE)) -> -84207.9 | G66: =G$56*(-HLOOKUP($B$54,'04_Wirtschaftlichkeit'!$E$44:$L$57,7,FALSE)-HLOOKUP($B$54,'04_Wirtschaftlichkeit'!$E$44:$L$57,5,FALSE)) -> -84207.9 | H66: =H$56*(-HLOOKUP($B$54,'04_Wirtschaftlichkeit'!$E$44:$L$57,7,FALSE)-HLOOKUP($B$54,'04_Wirtschaftlichkeit'!$E$44:$L$57,5,FALSE)) -> -84207.9 | I66: =I$56*(-HLOOKUP($B$54,'04_Wirtschaftlichkeit'!$E$44:$L$57,7,FALSE)-HLOOKUP($B$54,'04_Wirtschaftlichkeit'!$E$44:$L$57,5,FALSE)) -> -84207.9 | J66: =J$56*(-HLOOKUP($B$54,'04_Wirtschaftlichkeit'!$E$44:$L$57,7,FALSE)-HLOOKUP($B$54,'04_Wirtschaftlichkeit'!$E$44:$L$57,5,FALSE)) -> -84207.9 | K66: =K$56*(-HLOOKUP($B$54,'04_Wirtschaftlichkeit'!$E$44:$L$57,7,FALSE)-HLOOKUP($B$54,'04_Wirtschaftlichkeit'!$E$44:$L$57,5,FALSE)) -> -84207.9 | L66: =L$56*(-HLOOKUP($B$54,'04_Wirtschaftlichkeit'!$E$44:$L$57,7,FALSE)-HLOOKUP($B$54,'04_Wirtschaftlichkeit'!$E$44:$L$57,5,FALSE)) -> -84207.9 | M66: =M$56*(-HLOOKUP($B$54,'04_Wirtschaftlichkeit'!$E$44:$L$57,7,FALSE)-HLOOKUP($B$54,'04_Wirtschaftlichkeit'!$E$44:$L$57,5,FALSE)) -> -84207.9 | N66: =N$56*(-HLOOKUP($B$54,'04_Wirtschaftlichkeit'!$E$44:$L$57,7,FALSE)-HLOOKUP($B$54,'04_Wirtschaftlichkeit'!$E$44:$L$57,5,FALSE)) -> -84207.9 | O66: =O$56*(-HLOOKUP($B$54,'04_Wirtschaftlichkeit'!$E$44:$L$57,7,FALSE)-HLOOKUP($B$54,'04_Wirtschaftlichkeit'!$E$44:$L$57,5,FALSE)) -> -84207.9 | P66: =P$56*(-HLOOKUP($B$54,'04_Wirtschaftlichkeit'!$E$44:$L$57,7,FALSE)-HLOOKUP($B$54,'04_Wirtschaftlichkeit'!$E$44:$L$57,5,FALSE)) -> -84207.9 | Q66: =Q$56*(-HLOOKUP($B$54,'04_Wirtschaftlichkeit'!$E$44:$L$57,7,FALSE)-HLOOKUP($B$54,'04_Wirtschaftlichkeit'!$E$44:$L$57,5,FALSE)) -> -84207.9 | R66: =R$56*(-HLOOKUP($B$54,'04_Wirtschaftlichkeit'!$E$44:$L$57,7,FALSE)-HLOOKUP($B$54,'04_Wirtschaftlichkeit'!$E$44:$L$57,5,FALSE)) -> -84207.9 | S66: =S$56*(-HLOOKUP($B$54,'04_Wirtschaftlichkeit'!$E$44:$L$57,7,FALSE)-HLOOKUP($B$54,'04_Wirtschaftlichkeit'!$E$44:$L$57,5,FALSE)) -> -84207.9 | T66: =T$56*(-HLOOKUP($B$54,'04_Wirtschaftlichkeit'!$E$44:$L$57,7,FALSE)-HLOOKUP($B$54,'04_Wirtschaftlichkeit'!$E$44:$L$57,5,FALSE)) -> -84207.9 | U66: =U$56*(-HLOOKUP($B$54,'04_Wirtschaftlichkeit'!$E$44:$L$57,7,FALSE)-HLOOKUP($B$54,'04_Wirtschaftlichkeit'!$E$44:$L$57,5,FALSE)) -> -84207.9 | V66: =V$56*(-HLOOKUP($B$54,'04_Wirtschaftlichkeit'!$E$44:$L$57,7,FALSE)-HLOOKUP($B$54,'04_Wirtschaftlichkeit'!$E$44:$L$57,5,FALSE)) -> -84207.9 | W66: =W$56*(-HLOOKUP($B$54,'04_Wirtschaftlichkeit'!$E$44:$L$57,7,FALSE)-HLOOKUP($B$54,'04_Wirtschaftlichkeit'!$E$44:$L$57,5,FALSE)) -> -84207.9 | X66: =X$56*(-HLOOKUP($B$54,'04_Wirtschaftlichkeit'!$E$44:$L$57,7,FALSE)-HLOOKUP($B$54,'04_Wirtschaftlichkeit'!$E$44:$L$57,5,FALSE)) -> 0 | Y66: =Y$56*(-HLOOKUP($B$54,'04_Wirtschaftlichkeit'!$E$44:$L$57,7,FALSE)-HLOOKUP($B$54,'04_Wirtschaftlichkeit'!$E$44:$L$57,5,FALSE)) -> 0 | Z66: =Z$56*(-HLOOKUP($B$54,'04_Wirtschaftlichkeit'!$E$44:$L$57,7,FALSE)-HLOOKUP($B$54,'04_Wirtschaftlichkeit'!$E$44:$L$57,5,FALSE)) -> 0 | AA66: =AA$56*(-HLOOKUP($B$54,'04_Wirtschaftlichkeit'!$E$44:$L$57,7,FALSE)-HLOOKUP($B$54,'04_Wirtschaftlichkeit'!$E$44:$L$57,5,FALSE)) -> 0 | AB66: =AB$56*(-HLOOKUP($B$54,'04_Wirtschaftlichkeit'!$E$44:$L$57,7,FALSE)-HLOOKUP($B$54,'04_Wirtschaftlichkeit'!$E$44:$L$57,5,FALSE)) -> 0 | AC66: =AC$56*(-HLOOKUP($B$54,'04_Wirtschaftlichkeit'!$E$44:$L$57,7,FALSE)-HLOOKUP($B$54,'04_Wirtschaftlichkeit'!$E$44:$L$57,5,FALSE)) -> 0 | AD66: =AD$56*(-HLOOKUP($B$54,'04_Wirtschaftlichkeit'!$E$44:$L$57,7,FALSE)-HLOOKUP($B$54,'04_Wirtschaftlichkeit'!$E$44:$L$57,5,FALSE)) -> 0 | AE66: =AE$56*(-HLOOKUP($B$54,'04_Wirtschaftlichkeit'!$E$44:$L$57,7,FALSE)-HLOOKUP($B$54,'04_Wirtschaftlichkeit'!$E$44:$L$57,5,FALSE)) -> 0 | AF66: =AF$56*(-HLOOKUP($B$54,'04_Wirtschaftlichkeit'!$E$44:$L$57,7,FALSE)-HLOOKUP($B$54,'04_Wirtschaftlichkeit'!$E$44:$L$57,5,FALSE)) -> 0 | AG66: =AG$56*(-HLOOKUP($B$54,'04_Wirtschaftlichkeit'!$E$44:$L$57,7,FALSE)-HLOOKUP($B$54,'04_Wirtschaftlichkeit'!$E$44:$L$57,5,FALSE)) -> 0 | AH66: =AH$56*(-HLOOKUP($B$54,'04_Wirtschaftlichkeit'!$E$44:$L$57,7,FALSE)-HLOOKUP($B$54,'04_Wirtschaftlichkeit'!$E$44:$L$57,5,FALSE)) -> 0 | AI66: =AI$56*(-HLOOKUP($B$54,'04_Wirtschaftlichkeit'!$E$44:$L$57,7,FALSE)-HLOOKUP($B$54,'04_Wirtschaftlichkeit'!$E$44:$L$57,5,FALSE)) -> 0 | AJ66: =AJ$56*(-HLOOKUP($B$54,'04_Wirtschaftlichkeit'!$E$44:$L$57,7,FALSE)-HLOOKUP($B$54,'04_Wirtschaftlichkeit'!$E$44:$L$57,5,FALSE)) -> 0 | AK66: =AK$56*(-HLOOKUP($B$54,'04_Wirtschaftlichkeit'!$E$44:$L$57,7,FALSE)-HLOOKUP($B$54,'04_Wirtschaftlichkeit'!$E$44:$L$57,5,FALSE)) -> 0 | AL66: =AL$56*(-HLOOKUP($B$54,'04_Wirtschaftlichkeit'!$E$44:$L$57,7,FALSE)-HLOOKUP($B$54,'04_Wirtschaftlichkeit'!$E$44:$L$57,5,FALSE)) -> 0 | AM66: =AM$56*(-HLOOKUP($B$54,'04_Wirtschaftlichkeit'!$E$44:$L$57,7,FALSE)-HLOOKUP($B$54,'04_Wirtschaftlichkeit'!$E$44:$L$57,5,FALSE)) -> 0 | AN66: =AN$56*(-HLOOKUP($B$54,'04_Wirtschaftlichkeit'!$E$44:$L$57,7,FALSE)-HLOOKUP($B$54,'04_Wirtschaftlichkeit'!$E$44:$L$57,5,FALSE)) -> 0 | AO66: =AO$56*(-HLOOKUP($B$54,'04_Wirtschaftlichkeit'!$E$44:$L$57,7,FALSE)-HLOOKUP($B$54,'04_Wirtschaftlichkeit'!$E$44:$L$57,5,FALSE)) -> 0 | AP66: =AP$56*(-HLOOKUP($B$54,'04_Wirtschaftlichkeit'!$E$44:$L$57,7,FALSE)-HLOOKUP($B$54,'04_Wirtschaftlichkeit'!$E$44:$L$57,5,FALSE)) -> 0 | AQ66: =AQ$56*(-HLOOKUP($B$54,'04_Wirtschaftlichkeit'!$E$44:$L$57,7,FALSE)-HLOOKUP($B$54,'04_Wirtschaftlichkeit'!$E$44:$L$57,5,FALSE)) -> 0 | AR66: =AR$56*(-HLOOKUP($B$54,'04_Wirtschaftlichkeit'!$E$44:$L$57,7,FALSE)-HLOOKUP($B$54,'04_Wirtschaftlichkeit'!$E$44:$L$57,5,FALSE)) -> 0 | AS66: =AS$56*(-HLOOKUP($B$54,'04_Wirtschaftlichkeit'!$E$44:$L$57,7,FALSE)-HLOOKUP($B$54,'04_Wirtschaftlichkeit'!$E$44:$L$57,5,FALSE)) -> 0 | AT66: =AT$56*(-HLOOKUP($B$54,'04_Wirtschaftlichkeit'!$E$44:$L$57,7,FALSE)-HLOOKUP($B$54,'04_Wirtschaftlichkeit'!$E$44:$L$57,5,FALSE)) -> 0 | AU66: =AU$56*(-HLOOKUP($B$54,'04_Wirtschaftlichkeit'!$E$44:$L$57,7,FALSE)-HLOOKUP($B$54,'04_Wirtschaftlichkeit'!$E$44:$L$57,5,FALSE)) -> 0 | AV66: =AV$56*(-HLOOKUP($B$54,'04_Wirtschaftlichkeit'!$E$44:$L$57,7,FALSE)-HLOOKUP($B$54,'04_Wirtschaftlichkeit'!$E$44:$L$57,5,FALSE)) -> 0 | AW66: =AW$56*(-HLOOKUP($B$54,'04_Wirtschaftlichkeit'!$E$44:$L$57,7,FALSE)-HLOOKUP($B$54,'04_Wirtschaftlichkeit'!$E$44:$L$57,5,FALSE)) -> 0 | AX66: =AX$56*(-HLOOKUP($B$54,'04_Wirtschaftlichkeit'!$E$44:$L$57,7,FALSE)-HLOOKUP($B$54,'04_Wirtschaftlichkeit'!$E$44:$L$57,5,FALSE)) -> 0 | AY66: =AY$56*(-HLOOKUP($B$54,'04_Wirtschaftlichkeit'!$E$44:$L$57,7,FALSE)-HLOOKUP($B$54,'04_Wirtschaftlichkeit'!$E$44:$L$57,5,FALSE)) -> 0 | AZ66: =AZ$56*(-HLOOKUP($B$54,'04_Wirtschaftlichkeit'!$E$44:$L$57,7,FALSE)-HLOOKUP($B$54,'04_Wirtschaftlichkeit'!$E$44:$L$57,5,FALSE)) -> 0 | BA66: =BA$56*(-HLOOKUP($B$54,'04_Wirtschaftlichkeit'!$E$44:$L$57,7,FALSE)-HLOOKUP($B$54,'04_Wirtschaftlichkeit'!$E$44:$L$57,5,FALSE)) -> 0
B67: 0.4 | C67: =-HLOOKUP($B$54,'04_Wirtschaftlichkeit'!$E$44:$L$57,6,FALSE)*(1+B67) -> -1480963.004 | D67: =D$56*(-HLOOKUP($B$54,'04_Wirtschaftlichkeit'!$E$44:$L$57,7,FALSE)-HLOOKUP($B$54,'04_Wirtschaftlichkeit'!$E$44:$L$57,5,FALSE)) -> -84207.9 | E67: =E$56*(-HLOOKUP($B$54,'04_Wirtschaftlichkeit'!$E$44:$L$57,7,FALSE)-HLOOKUP($B$54,'04_Wirtschaftlichkeit'!$E$44:$L$57,5,FALSE)) -> -84207.9 | F67: =F$56*(-HLOOKUP($B$54,'04_Wirtschaftlichkeit'!$E$44:$L$57,7,FALSE)-HLOOKUP($B$54,'04_Wirtschaftlichkeit'!$E$44:$L$57,5,FALSE)) -> -84207.9 | G67: =G$56*(-HLOOKUP($B$54,'04_Wirtschaftlichkeit'!$E$44:$L$57,7,FALSE)-HLOOKUP($B$54,'04_Wirtschaftlichkeit'!$E$44:$L$57,5,FALSE)) -> -84207.9 | H67: =H$56*(-HLOOKUP($B$54,'04_Wirtschaftlichkeit'!$E$44:$L$57,7,FALSE)-HLOOKUP($B$54,'04_Wirtschaftlichkeit'!$E$44:$L$57,5,FALSE)) -> -84207.9 | I67: =I$56*(-HLOOKUP($B$54,'04_Wirtschaftlichkeit'!$E$44:$L$57,7,FALSE)-HLOOKUP($B$54,'04_Wirtschaftlichkeit'!$E$44:$L$57,5,FALSE)) -> -84207.9 | J67: =J$56*(-HLOOKUP($B$54,'04_Wirtschaftlichkeit'!$E$44:$L$57,7,FALSE)-HLOOKUP($B$54,'04_Wirtschaftlichkeit'!$E$44:$L$57,5,FALSE)) -> -84207.9 | K67: =K$56*(-HLOOKUP($B$54,'04_Wirtschaftlichkeit'!$E$44:$L$57,7,FALSE)-HLOOKUP($B$54,'04_Wirtschaftlichkeit'!$E$44:$L$57,5,FALSE)) -> -84207.9 | L67: =L$56*(-HLOOKUP($B$54,'04_Wirtschaftlichkeit'!$E$44:$L$57,7,FALSE)-HLOOKUP($B$54,'04_Wirtschaftlichkeit'!$E$44:$L$57,5,FALSE)) -> -84207.9 | M67: =M$56*(-HLOOKUP($B$54,'04_Wirtschaftlichkeit'!$E$44:$L$57,7,FALSE)-HLOOKUP($B$54,'04_Wirtschaftlichkeit'!$E$44:$L$57,5,FALSE)) -> -84207.9 | N67: =N$56*(-HLOOKUP($B$54,'04_Wirtschaftlichkeit'!$E$44:$L$57,7,FALSE)-HLOOKUP($B$54,'04_Wirtschaftlichkeit'!$E$44:$L$57,5,FALSE)) -> -84207.9 | O67: =O$56*(-HLOOKUP($B$54,'04_Wirtschaftlichkeit'!$E$44:$L$57,7,FALSE)-HLOOKUP($B$54,'04_Wirtschaftlichkeit'!$E$44:$L$57,5,FALSE)) -> -84207.9 | P67: =P$56*(-HLOOKUP($B$54,'04_Wirtschaftlichkeit'!$E$44:$L$57,7,FALSE)-HLOOKUP($B$54,'04_Wirtschaftlichkeit'!$E$44:$L$57,5,FALSE)) -> -84207.9 | Q67: =Q$56*(-HLOOKUP($B$54,'04_Wirtschaftlichkeit'!$E$44:$L$57,7,FALSE)-HLOOKUP($B$54,'04_Wirtschaftlichkeit'!$E$44:$L$57,5,FALSE)) -> -84207.9 | R67: =R$56*(-HLOOKUP($B$54,'04_Wirtschaftlichkeit'!$E$44:$L$57,7,FALSE)-HLOOKUP($B$54,'04_Wirtschaftlichkeit'!$E$44:$L$57,5,FALSE)) -> -84207.9 | S67: =S$56*(-HLOOKUP($B$54,'04_Wirtschaftlichkeit'!$E$44:$L$57,7,FALSE)-HLOOKUP($B$54,'04_Wirtschaftlichkeit'!$E$44:$L$57,5,FALSE)) -> -84207.9 | T67: =T$56*(-HLOOKUP($B$54,'04_Wirtschaftlichkeit'!$E$44:$L$57,7,FALSE)-HLOOKUP($B$54,'04_Wirtschaftlichkeit'!$E$44:$L$57,5,FALSE)) -> -84207.9 | U67: =U$56*(-HLOOKUP($B$54,'04_Wirtschaftlichkeit'!$E$44:$L$57,7,FALSE)-HLOOKUP($B$54,'04_Wirtschaftlichkeit'!$E$44:$L$57,5,FALSE)) -> -84207.9 | V67: =V$56*(-HLOOKUP($B$54,'04_Wirtschaftlichkeit'!$E$44:$L$57,7,FALSE)-HLOOKUP($B$54,'04_Wirtschaftlichkeit'!$E$44:$L$57,5,FALSE)) -> -84207.9 | W67: =W$56*(-HLOOKUP($B$54,'04_Wirtschaftlichkeit'!$E$44:$L$57,7,FALSE)-HLOOKUP($B$54,'04_Wirtschaftlichkeit'!$E$44:$L$57,5,FALSE)) -> -84207.9 | X67: =X$56*(-HLOOKUP($B$54,'04_Wirtschaftlichkeit'!$E$44:$L$57,7,FALSE)-HLOOKUP($B$54,'04_Wirtschaftlichkeit'!$E$44:$L$57,5,FALSE)) -> 0 | Y67: =Y$56*(-HLOOKUP($B$54,'04_Wirtschaftlichkeit'!$E$44:$L$57,7,FALSE)-HLOOKUP($B$54,'04_Wirtschaftlichkeit'!$E$44:$L$57,5,FALSE)) -> 0 | Z67: =Z$56*(-HLOOKUP($B$54,'04_Wirtschaftlichkeit'!$E$44:$L$57,7,FALSE)-HLOOKUP($B$54,'04_Wirtschaftlichkeit'!$E$44:$L$57,5,FALSE)) -> 0 | AA67: =AA$56*(-HLOOKUP($B$54,'04_Wirtschaftlichkeit'!$E$44:$L$57,7,FALSE)-HLOOKUP($B$54,'04_Wirtschaftlichkeit'!$E$44:$L$57,5,FALSE)) -> 0 | AB67: =AB$56*(-HLOOKUP($B$54,'04_Wirtschaftlichkeit'!$E$44:$L$57,7,FALSE)-HLOOKUP($B$54,'04_Wirtschaftlichkeit'!$E$44:$L$57,5,FALSE)) -> 0 | AC67: =AC$56*(-HLOOKUP($B$54,'04_Wirtschaftlichkeit'!$E$44:$L$57,7,FALSE)-HLOOKUP($B$54,'04_Wirtschaftlichkeit'!$E$44:$L$57,5,FALSE)) -> 0 | AD67: =AD$56*(-HLOOKUP($B$54,'04_Wirtschaftlichkeit'!$E$44:$L$57,7,FALSE)-HLOOKUP($B$54,'04_Wirtschaftlichkeit'!$E$44:$L$57,5,FALSE)) -> 0 | AE67: =AE$56*(-HLOOKUP($B$54,'04_Wirtschaftlichkeit'!$E$44:$L$57,7,FALSE)-HLOOKUP($B$54,'04_Wirtschaftlichkeit'!$E$44:$L$57,5,FALSE)) -> 0 | AF67: =AF$56*(-HLOOKUP($B$54,'04_Wirtschaftlichkeit'!$E$44:$L$57,7,FALSE)-HLOOKUP($B$54,'04_Wirtschaftlichkeit'!$E$44:$L$57,5,FALSE)) -> 0 | AG67: =AG$56*(-HLOOKUP($B$54,'04_Wirtschaftlichkeit'!$E$44:$L$57,7,FALSE)-HLOOKUP($B$54,'04_Wirtschaftlichkeit'!$E$44:$L$57,5,FALSE)) -> 0 | AH67: =AH$56*(-HLOOKUP($B$54,'04_Wirtschaftlichkeit'!$E$44:$L$57,7,FALSE)-HLOOKUP($B$54,'04_Wirtschaftlichkeit'!$E$44:$L$57,5,FALSE)) -> 0 | AI67: =AI$56*(-HLOOKUP($B$54,'04_Wirtschaftlichkeit'!$E$44:$L$57,7,FALSE)-HLOOKUP($B$54,'04_Wirtschaftlichkeit'!$E$44:$L$57,5,FALSE)) -> 0 | AJ67: =AJ$56*(-HLOOKUP($B$54,'04_Wirtschaftlichkeit'!$E$44:$L$57,7,FALSE)-HLOOKUP($B$54,'04_Wirtschaftlichkeit'!$E$44:$L$57,5,FALSE)) -> 0 | AK67: =AK$56*(-HLOOKUP($B$54,'04_Wirtschaftlichkeit'!$E$44:$L$57,7,FALSE)-HLOOKUP($B$54,'04_Wirtschaftlichkeit'!$E$44:$L$57,5,FALSE)) -> 0 | AL67: =AL$56*(-HLOOKUP($B$54,'04_Wirtschaftlichkeit'!$E$44:$L$57,7,FALSE)-HLOOKUP($B$54,'04_Wirtschaftlichkeit'!$E$44:$L$57,5,FALSE)) -> 0 | AM67: =AM$56*(-HLOOKUP($B$54,'04_Wirtschaftlichkeit'!$E$44:$L$57,7,FALSE)-HLOOKUP($B$54,'04_Wirtschaftlichkeit'!$E$44:$L$57,5,FALSE)) -> 0 | AN67: =AN$56*(-HLOOKUP($B$54,'04_Wirtschaftlichkeit'!$E$44:$L$57,7,FALSE)-HLOOKUP($B$54,'04_Wirtschaftlichkeit'!$E$44:$L$57,5,FALSE)) -> 0 | AO67: =AO$56*(-HLOOKUP($B$54,'04_Wirtschaftlichkeit'!$E$44:$L$57,7,FALSE)-HLOOKUP($B$54,'04_Wirtschaftlichkeit'!$E$44:$L$57,5,FALSE)) -> 0 | AP67: =AP$56*(-HLOOKUP($B$54,'04_Wirtschaftlichkeit'!$E$44:$L$57,7,FALSE)-HLOOKUP($B$54,'04_Wirtschaftlichkeit'!$E$44:$L$57,5,FALSE)) -> 0 | AQ67: =AQ$56*(-HLOOKUP($B$54,'04_Wirtschaftlichkeit'!$E$44:$L$57,7,FALSE)-HLOOKUP($B$54,'04_Wirtschaftlichkeit'!$E$44:$L$57,5,FALSE)) -> 0 | AR67: =AR$56*(-HLOOKUP($B$54,'04_Wirtschaftlichkeit'!$E$44:$L$57,7,FALSE)-HLOOKUP($B$54,'04_Wirtschaftlichkeit'!$E$44:$L$57,5,FALSE)) -> 0 | AS67: =AS$56*(-HLOOKUP($B$54,'04_Wirtschaftlichkeit'!$E$44:$L$57,7,FALSE)-HLOOKUP($B$54,'04_Wirtschaftlichkeit'!$E$44:$L$57,5,FALSE)) -> 0 | AT67: =AT$56*(-HLOOKUP($B$54,'04_Wirtschaftlichkeit'!$E$44:$L$57,7,FALSE)-HLOOKUP($B$54,'04_Wirtschaftlichkeit'!$E$44:$L$57,5,FALSE)) -> 0 | AU67: =AU$56*(-HLOOKUP($B$54,'04_Wirtschaftlichkeit'!$E$44:$L$57,7,FALSE)-HLOOKUP($B$54,'04_Wirtschaftlichkeit'!$E$44:$L$57,5,FALSE)) -> 0 | AV67: =AV$56*(-HLOOKUP($B$54,'04_Wirtschaftlichkeit'!$E$44:$L$57,7,FALSE)-HLOOKUP($B$54,'04_Wirtschaftlichkeit'!$E$44:$L$57,5,FALSE)) -> 0 | AW67: =AW$56*(-HLOOKUP($B$54,'04_Wirtschaftlichkeit'!$E$44:$L$57,7,FALSE)-HLOOKUP($B$54,'04_Wirtschaftlichkeit'!$E$44:$L$57,5,FALSE)) -> 0 | AX67: =AX$56*(-HLOOKUP($B$54,'04_Wirtschaftlichkeit'!$E$44:$L$57,7,FALSE)-HLOOKUP($B$54,'04_Wirtschaftlichkeit'!$E$44:$L$57,5,FALSE)) -> 0 | AY67: =AY$56*(-HLOOKUP($B$54,'04_Wirtschaftlichkeit'!$E$44:$L$57,7,FALSE)-HLOOKUP($B$54,'04_Wirtschaftlichkeit'!$E$44:$L$57,5,FALSE)) -> 0 | AZ67: =AZ$56*(-HLOOKUP($B$54,'04_Wirtschaftlichkeit'!$E$44:$L$57,7,FALSE)-HLOOKUP($B$54,'04_Wirtschaftlichkeit'!$E$44:$L$57,5,FALSE)) -> 0 | BA67: =BA$56*(-HLOOKUP($B$54,'04_Wirtschaftlichkeit'!$E$44:$L$57,7,FALSE)-HLOOKUP($B$54,'04_Wirtschaftlichkeit'!$E$44:$L$57,5,FALSE)) -> 0
B68: 0.5 | C68: =-HLOOKUP($B$54,'04_Wirtschaftlichkeit'!$E$44:$L$57,6,FALSE)*(1+B68) -> -1586746.075 | D68: =D$56*(-HLOOKUP($B$54,'04_Wirtschaftlichkeit'!$E$44:$L$57,7,FALSE)-HLOOKUP($B$54,'04_Wirtschaftlichkeit'!$E$44:$L$57,5,FALSE)) -> -84207.9 | E68: =E$56*(-HLOOKUP($B$54,'04_Wirtschaftlichkeit'!$E$44:$L$57,7,FALSE)-HLOOKUP($B$54,'04_Wirtschaftlichkeit'!$E$44:$L$57,5,FALSE)) -> -84207.9 | F68: =F$56*(-HLOOKUP($B$54,'04_Wirtschaftlichkeit'!$E$44:$L$57,7,FALSE)-HLOOKUP($B$54,'04_Wirtschaftlichkeit'!$E$44:$L$57,5,FALSE)) -> -84207.9 | G68: =G$56*(-HLOOKUP($B$54,'04_Wirtschaftlichkeit'!$E$44:$L$57,7,FALSE)-HLOOKUP($B$54,'04_Wirtschaftlichkeit'!$E$44:$L$57,5,FALSE)) -> -84207.9 | H68: =H$56*(-HLOOKUP($B$54,'04_Wirtschaftlichkeit'!$E$44:$L$57,7,FALSE)-HLOOKUP($B$54,'04_Wirtschaftlichkeit'!$E$44:$L$57,5,FALSE)) -> -84207.9 | I68: =I$56*(-HLOOKUP($B$54,'04_Wirtschaftlichkeit'!$E$44:$L$57,7,FALSE)-HLOOKUP($B$54,'04_Wirtschaftlichkeit'!$E$44:$L$57,5,FALSE)) -> -84207.9 | J68: =J$56*(-HLOOKUP($B$54,'04_Wirtschaftlichkeit'!$E$44:$L$57,7,FALSE)-HLOOKUP($B$54,'04_Wirtschaftlichkeit'!$E$44:$L$57,5,FALSE)) -> -84207.9 | K68: =K$56*(-HLOOKUP($B$54,'04_Wirtschaftlichkeit'!$E$44:$L$57,7,FALSE)-HLOOKUP($B$54,'04_Wirtschaftlichkeit'!$E$44:$L$57,5,FALSE)) -> -84207.9 | L68: =L$56*(-HLOOKUP($B$54,'04_Wirtschaftlichkeit'!$E$44:$L$57,7,FALSE)-HLOOKUP($B$54,'04_Wirtschaftlichkeit'!$E$44:$L$57,5,FALSE)) -> -84207.9 | M68: =M$56*(-HLOOKUP($B$54,'04_Wirtschaftlichkeit'!$E$44:$L$57,7,FALSE)-HLOOKUP($B$54,'04_Wirtschaftlichkeit'!$E$44:$L$57,5,FALSE)) -> -84207.9 | N68: =N$56*(-HLOOKUP($B$54,'04_Wirtschaftlichkeit'!$E$44:$L$57,7,FALSE)-HLOOKUP($B$54,'04_Wirtschaftlichkeit'!$E$44:$L$57,5,FALSE)) -> -84207.9 | O68: =O$56*(-HLOOKUP($B$54,'04_Wirtschaftlichkeit'!$E$44:$L$57,7,FALSE)-HLOOKUP($B$54,'04_Wirtschaftlichkeit'!$E$44:$L$57,5,FALSE)) -> -84207.9 | P68: =P$56*(-HLOOKUP($B$54,'04_Wirtschaftlichkeit'!$E$44:$L$57,7,FALSE)-HLOOKUP($B$54,'04_Wirtschaftlichkeit'!$E$44:$L$57,5,FALSE)) -> -84207.9 | Q68: =Q$56*(-HLOOKUP($B$54,'04_Wirtschaftlichkeit'!$E$44:$L$57,7,FALSE)-HLOOKUP($B$54,'04_Wirtschaftlichkeit'!$E$44:$L$57,5,FALSE)) -> -84207.9 | R68: =R$56*(-HLOOKUP($B$54,'04_Wirtschaftlichkeit'!$E$44:$L$57,7,FALSE)-HLOOKUP($B$54,'04_Wirtschaftlichkeit'!$E$44:$L$57,5,FALSE)) -> -84207.9 | S68: =S$56*(-HLOOKUP($B$54,'04_Wirtschaftlichkeit'!$E$44:$L$57,7,FALSE)-HLOOKUP($B$54,'04_Wirtschaftlichkeit'!$E$44:$L$57,5,FALSE)) -> -84207.9 | T68: =T$56*(-HLOOKUP($B$54,'04_Wirtschaftlichkeit'!$E$44:$L$57,7,FALSE)-HLOOKUP($B$54,'04_Wirtschaftlichkeit'!$E$44:$L$57,5,FALSE)) -> -84207.9 | U68: =U$56*(-HLOOKUP($B$54,'04_Wirtschaftlichkeit'!$E$44:$L$57,7,FALSE)-HLOOKUP($B$54,'04_Wirtschaftlichkeit'!$E$44:$L$57,5,FALSE)) -> -84207.9 | V68: =V$56*(-HLOOKUP($B$54,'04_Wirtschaftlichkeit'!$E$44:$L$57,7,FALSE)-HLOOKUP($B$54,'04_Wirtschaftlichkeit'!$E$44:$L$57,5,FALSE)) -> -84207.9 | W68: =W$56*(-HLOOKUP($B$54,'04_Wirtschaftlichkeit'!$E$44:$L$57,7,FALSE)-HLOOKUP($B$54,'04_Wirtschaftlichkeit'!$E$44:$L$57,5,FALSE)) -> -84207.9 | X68: =X$56*(-HLOOKUP($B$54,'04_Wirtschaftlichkeit'!$E$44:$L$57,7,FALSE)-HLOOKUP($B$54,'04_Wirtschaftlichkeit'!$E$44:$L$57,5,FALSE)) -> 0 | Y68: =Y$56*(-HLOOKUP($B$54,'04_Wirtschaftlichkeit'!$E$44:$L$57,7,FALSE)-HLOOKUP($B$54,'04_Wirtschaftlichkeit'!$E$44:$L$57,5,FALSE)) -> 0 | Z68: =Z$56*(-HLOOKUP($B$54,'04_Wirtschaftlichkeit'!$E$44:$L$57,7,FALSE)-HLOOKUP($B$54,'04_Wirtschaftlichkeit'!$E$44:$L$57,5,FALSE)) -> 0 | AA68: =AA$56*(-HLOOKUP($B$54,'04_Wirtschaftlichkeit'!$E$44:$L$57,7,FALSE)-HLOOKUP($B$54,'04_Wirtschaftlichkeit'!$E$44:$L$57,5,FALSE)) -> 0 | AB68: =AB$56*(-HLOOKUP($B$54,'04_Wirtschaftlichkeit'!$E$44:$L$57,7,FALSE)-HLOOKUP($B$54,'04_Wirtschaftlichkeit'!$E$44:$L$57,5,FALSE)) -> 0 | AC68: =AC$56*(-HLOOKUP($B$54,'04_Wirtschaftlichkeit'!$E$44:$L$57,7,FALSE)-HLOOKUP($B$54,'04_Wirtschaftlichkeit'!$E$44:$L$57,5,FALSE)) -> 0 | AD68: =AD$56*(-HLOOKUP($B$54,'04_Wirtschaftlichkeit'!$E$44:$L$57,7,FALSE)-HLOOKUP($B$54,'04_Wirtschaftlichkeit'!$E$44:$L$57,5,FALSE)) -> 0 | AE68: =AE$56*(-HLOOKUP($B$54,'04_Wirtschaftlichkeit'!$E$44:$L$57,7,FALSE)-HLOOKUP($B$54,'04_Wirtschaftlichkeit'!$E$44:$L$57,5,FALSE)) -> 0 | AF68: =AF$56*(-HLOOKUP($B$54,'04_Wirtschaftlichkeit'!$E$44:$L$57,7,FALSE)-HLOOKUP($B$54,'04_Wirtschaftlichkeit'!$E$44:$L$57,5,FALSE)) -> 0 | AG68: =AG$56*(-HLOOKUP($B$54,'04_Wirtschaftlichkeit'!$E$44:$L$57,7,FALSE)-HLOOKUP($B$54,'04_Wirtschaftlichkeit'!$E$44:$L$57,5,FALSE)) -> 0 | AH68: =AH$56*(-HLOOKUP($B$54,'04_Wirtschaftlichkeit'!$E$44:$L$57,7,FALSE)-HLOOKUP($B$54,'04_Wirtschaftlichkeit'!$E$44:$L$57,5,FALSE)) -> 0 | AI68: =AI$56*(-HLOOKUP($B$54,'04_Wirtschaftlichkeit'!$E$44:$L$57,7,FALSE)-HLOOKUP($B$54,'04_Wirtschaftlichkeit'!$E$44:$L$57,5,FALSE)) -> 0 | AJ68: =AJ$56*(-HLOOKUP($B$54,'04_Wirtschaftlichkeit'!$E$44:$L$57,7,FALSE)-HLOOKUP($B$54,'04_Wirtschaftlichkeit'!$E$44:$L$57,5,FALSE)) -> 0 | AK68: =AK$56*(-HLOOKUP($B$54,'04_Wirtschaftlichkeit'!$E$44:$L$57,7,FALSE)-HLOOKUP($B$54,'04_Wirtschaftlichkeit'!$E$44:$L$57,5,FALSE)) -> 0 | AL68: =AL$56*(-HLOOKUP($B$54,'04_Wirtschaftlichkeit'!$E$44:$L$57,7,FALSE)-HLOOKUP($B$54,'04_Wirtschaftlichkeit'!$E$44:$L$57,5,FALSE)) -> 0 | AM68: =AM$56*(-HLOOKUP($B$54,'04_Wirtschaftlichkeit'!$E$44:$L$57,7,FALSE)-HLOOKUP($B$54,'04_Wirtschaftlichkeit'!$E$44:$L$57,5,FALSE)) -> 0 | AN68: =AN$56*(-HLOOKUP($B$54,'04_Wirtschaftlichkeit'!$E$44:$L$57,7,FALSE)-HLOOKUP($B$54,'04_Wirtschaftlichkeit'!$E$44:$L$57,5,FALSE)) -> 0 | AO68: =AO$56*(-HLOOKUP($B$54,'04_Wirtschaftlichkeit'!$E$44:$L$57,7,FALSE)-HLOOKUP($B$54,'04_Wirtschaftlichkeit'!$E$44:$L$57,5,FALSE)) -> 0 | AP68: =AP$56*(-HLOOKUP($B$54,'04_Wirtschaftlichkeit'!$E$44:$L$57,7,FALSE)-HLOOKUP($B$54,'04_Wirtschaftlichkeit'!$E$44:$L$57,5,FALSE)) -> 0 | AQ68: =AQ$56*(-HLOOKUP($B$54,'04_Wirtschaftlichkeit'!$E$44:$L$57,7,FALSE)-HLOOKUP($B$54,'04_Wirtschaftlichkeit'!$E$44:$L$57,5,FALSE)) -> 0 | AR68: =AR$56*(-HLOOKUP($B$54,'04_Wirtschaftlichkeit'!$E$44:$L$57,7,FALSE)-HLOOKUP($B$54,'04_Wirtschaftlichkeit'!$E$44:$L$57,5,FALSE)) -> 0 | AS68: =AS$56*(-HLOOKUP($B$54,'04_Wirtschaftlichkeit'!$E$44:$L$57,7,FALSE)-HLOOKUP($B$54,'04_Wirtschaftlichkeit'!$E$44:$L$57,5,FALSE)) -> 0 | AT68: =AT$56*(-HLOOKUP($B$54,'04_Wirtschaftlichkeit'!$E$44:$L$57,7,FALSE)-HLOOKUP($B$54,'04_Wirtschaftlichkeit'!$E$44:$L$57,5,FALSE)) -> 0 | AU68: =AU$56*(-HLOOKUP($B$54,'04_Wirtschaftlichkeit'!$E$44:$L$57,7,FALSE)-HLOOKUP($B$54,'04_Wirtschaftlichkeit'!$E$44:$L$57,5,FALSE)) -> 0 | AV68: =AV$56*(-HLOOKUP($B$54,'04_Wirtschaftlichkeit'!$E$44:$L$57,7,FALSE)-HLOOKUP($B$54,'04_Wirtschaftlichkeit'!$E$44:$L$57,5,FALSE)) -> 0 | AW68: =AW$56*(-HLOOKUP($B$54,'04_Wirtschaftlichkeit'!$E$44:$L$57,7,FALSE)-HLOOKUP($B$54,'04_Wirtschaftlichkeit'!$E$44:$L$57,5,FALSE)) -> 0 | AX68: =AX$56*(-HLOOKUP($B$54,'04_Wirtschaftlichkeit'!$E$44:$L$57,7,FALSE)-HLOOKUP($B$54,'04_Wirtschaftlichkeit'!$E$44:$L$57,5,FALSE)) -> 0 | AY68: =AY$56*(-HLOOKUP($B$54,'04_Wirtschaftlichkeit'!$E$44:$L$57,7,FALSE)-HLOOKUP($B$54,'04_Wirtschaftlichkeit'!$E$44:$L$57,5,FALSE)) -> 0 | AZ68: =AZ$56*(-HLOOKUP($B$54,'04_Wirtschaftlichkeit'!$E$44:$L$57,7,FALSE)-HLOOKUP($B$54,'04_Wirtschaftlichkeit'!$E$44:$L$57,5,FALSE)) -> 0 | BA68: =BA$56*(-HLOOKUP($B$54,'04_Wirtschaftlichkeit'!$E$44:$L$57,7,FALSE)-HLOOKUP($B$54,'04_Wirtschaftlichkeit'!$E$44:$L$57,5,FALSE)) -> 0
B69: Zinssatz
B70: 0 | C70: =-HLOOKUP($B$54,'04_Wirtschaftlichkeit'!$E$44:$L$57,6,FALSE)*(1+B70) -> -1057830.717 | D70: =D$56*(-HLOOKUP($B$54,'04_Wirtschaftlichkeit'!$E$44:$L$57,7,FALSE)-HLOOKUP($B$54,'04_Wirtschaftlichkeit'!$E$44:$L$57,5,FALSE)) -> -84207.9 | E70: =E$56*(-HLOOKUP($B$54,'04_Wirtschaftlichkeit'!$E$44:$L$57,7,FALSE)-HLOOKUP($B$54,'04_Wirtschaftlichkeit'!$E$44:$L$57,5,FALSE)) -> -84207.9 | F70: =F$56*(-HLOOKUP($B$54,'04_Wirtschaftlichkeit'!$E$44:$L$57,7,FALSE)-HLOOKUP($B$54,'04_Wirtschaftlichkeit'!$E$44:$L$57,5,FALSE)) -> -84207.9 | G70: =G$56*(-HLOOKUP($B$54,'04_Wirtschaftlichkeit'!$E$44:$L$57,7,FALSE)-HLOOKUP($B$54,'04_Wirtschaftlichkeit'!$E$44:$L$57,5,FALSE)) -> -84207.9 | H70: =H$56*(-HLOOKUP($B$54,'04_Wirtschaftlichkeit'!$E$44:$L$57,7,FALSE)-HLOOKUP($B$54,'04_Wirtschaftlichkeit'!$E$44:$L$57,5,FALSE)) -> -84207.9 | I70: =I$56*(-HLOOKUP($B$54,'04_Wirtschaftlichkeit'!$E$44:$L$57,7,FALSE)-HLOOKUP($B$54,'04_Wirtschaftlichkeit'!$E$44:$L$57,5,FALSE)) -> -84207.9 | J70: =J$56*(-HLOOKUP($B$54,'04_Wirtschaftlichkeit'!$E$44:$L$57,7,FALSE)-HLOOKUP($B$54,'04_Wirtschaftlichkeit'!$E$44:$L$57,5,FALSE)) -> -84207.9 | K70: =K$56*(-HLOOKUP($B$54,'04_Wirtschaftlichkeit'!$E$44:$L$57,7,FALSE)-HLOOKUP($B$54,'04_Wirtschaftlichkeit'!$E$44:$L$57,5,FALSE)) -> -84207.9 | L70: =L$56*(-HLOOKUP($B$54,'04_Wirtschaftlichkeit'!$E$44:$L$57,7,FALSE)-HLOOKUP($B$54,'04_Wirtschaftlichkeit'!$E$44:$L$57,5,FALSE)) -> -84207.9 | M70: =M$56*(-HLOOKUP($B$54,'04_Wirtschaftlichkeit'!$E$44:$L$57,7,FALSE)-HLOOKUP($B$54,'04_Wirtschaftlichkeit'!$E$44:$L$57,5,FALSE)) -> -84207.9 | N70: =N$56*(-HLOOKUP($B$54,'04_Wirtschaftlichkeit'!$E$44:$L$57,7,FALSE)-HLOOKUP($B$54,'04_Wirtschaftlichkeit'!$E$44:$L$57,5,FALSE)) -> -84207.9 | O70: =O$56*(-HLOOKUP($B$54,'04_Wirtschaftlichkeit'!$E$44:$L$57,7,FALSE)-HLOOKUP($B$54,'04_Wirtschaftlichkeit'!$E$44:$L$57,5,FALSE)) -> -84207.9 | P70: =P$56*(-HLOOKUP($B$54,'04_Wirtschaftlichkeit'!$E$44:$L$57,7,FALSE)-HLOOKUP($B$54,'04_Wirtschaftlichkeit'!$E$44:$L$57,5,FALSE)) -> -84207.9 | Q70: =Q$56*(-HLOOKUP($B$54,'04_Wirtschaftlichkeit'!$E$44:$L$57,7,FALSE)-HLOOKUP($B$54,'04_Wirtschaftlichkeit'!$E$44:$L$57,5,FALSE)) -> -84207.9 | R70: =R$56*(-HLOOKUP($B$54,'04_Wirtschaftlichkeit'!$E$44:$L$57,7,FALSE)-HLOOKUP($B$54,'04_Wirtschaftlichkeit'!$E$44:$L$57,5,FALSE)) -> -84207.9 | S70: =S$56*(-HLOOKUP($B$54,'04_Wirtschaftlichkeit'!$E$44:$L$57,7,FALSE)-HLOOKUP($B$54,'04_Wirtschaftlichkeit'!$E$44:$L$57,5,FALSE)) -> -84207.9 | T70: =T$56*(-HLOOKUP($B$54,'04_Wirtschaftlichkeit'!$E$44:$L$57,7,FALSE)-HLOOKUP($B$54,'04_Wirtschaftlichkeit'!$E$44:$L$57,5,FALSE)) -> -84207.9 | U70: =U$56*(-HLOOKUP($B$54,'04_Wirtschaftlichkeit'!$E$44:$L$57,7,FALSE)-HLOOKUP($B$54,'04_Wirtschaftlichkeit'!$E$44:$L$57,5,FALSE)) -> -84207.9 | V70: =V$56*(-HLOOKUP($B$54,'04_Wirtschaftlichkeit'!$E$44:$L$57,7,FALSE)-HLOOKUP($B$54,'04_Wirtschaftlichkeit'!$E$44:$L$57,5,FALSE)) -> -84207.9 | W70: =W$56*(-HLOOKUP($B$54,'04_Wirtschaftlichkeit'!$E$44:$L$57,7,FALSE)-HLOOKUP($B$54,'04_Wirtschaftlichkeit'!$E$44:$L$57,5,FALSE)) -> -84207.9 | X70: =X$56*(-HLOOKUP($B$54,'04_Wirtschaftlichkeit'!$E$44:$L$57,7,FALSE)-HLOOKUP($B$54,'04_Wirtschaftlichkeit'!$E$44:$L$57,5,FALSE)) -> 0 | Y70: =Y$56*(-HLOOKUP($B$54,'04_Wirtschaftlichkeit'!$E$44:$L$57,7,FALSE)-HLOOKUP($B$54,'04_Wirtschaftlichkeit'!$E$44:$L$57,5,FALSE)) -> 0 | Z70: =Z$56*(-HLOOKUP($B$54,'04_Wirtschaftlichkeit'!$E$44:$L$57,7,FALSE)-HLOOKUP($B$54,'04_Wirtschaftlichkeit'!$E$44:$L$57,5,FALSE)) -> 0 | AA70: =AA$56*(-HLOOKUP($B$54,'04_Wirtschaftlichkeit'!$E$44:$L$57,7,FALSE)-HLOOKUP($B$54,'04_Wirtschaftlichkeit'!$E$44:$L$57,5,FALSE)) -> 0 | AB70: =AB$56*(-HLOOKUP($B$54,'04_Wirtschaftlichkeit'!$E$44:$L$57,7,FALSE)-HLOOKUP($B$54,'04_Wirtschaftlichkeit'!$E$44:$L$57,5,FALSE)) -> 0 | AC70: =AC$56*(-HLOOKUP($B$54,'04_Wirtschaftlichkeit'!$E$44:$L$57,7,FALSE)-HLOOKUP($B$54,'04_Wirtschaftlichkeit'!$E$44:$L$57,5,FALSE)) -> 0 | AD70: =AD$56*(-HLOOKUP($B$54,'04_Wirtschaftlichkeit'!$E$44:$L$57,7,FALSE)-HLOOKUP($B$54,'04_Wirtschaftlichkeit'!$E$44:$L$57,5,FALSE)) -> 0 | AE70: =AE$56*(-HLOOKUP($B$54,'04_Wirtschaftlichkeit'!$E$44:$L$57,7,FALSE)-HLOOKUP($B$54,'04_Wirtschaftlichkeit'!$E$44:$L$57,5,FALSE)) -> 0 | AF70: =AF$56*(-HLOOKUP($B$54,'04_Wirtschaftlichkeit'!$E$44:$L$57,7,FALSE)-HLOOKUP($B$54,'04_Wirtschaftlichkeit'!$E$44:$L$57,5,FALSE)) -> 0 | AG70: =AG$56*(-HLOOKUP($B$54,'04_Wirtschaftlichkeit'!$E$44:$L$57,7,FALSE)-HLOOKUP($B$54,'04_Wirtschaftlichkeit'!$E$44:$L$57,5,FALSE)) -> 0 | AH70: =AH$56*(-HLOOKUP($B$54,'04_Wirtschaftlichkeit'!$E$44:$L$57,7,FALSE)-HLOOKUP($B$54,'04_Wirtschaftlichkeit'!$E$44:$L$57,5,FALSE)) -> 0 | AI70: =AI$56*(-HLOOKUP($B$54,'04_Wirtschaftlichkeit'!$E$44:$L$57,7,FALSE)-HLOOKUP($B$54,'04_Wirtschaftlichkeit'!$E$44:$L$57,5,FALSE)) -> 0 | AJ70: =AJ$56*(-HLOOKUP($B$54,'04_Wirtschaftlichkeit'!$E$44:$L$57,7,FALSE)-HLOOKUP($B$54,'04_Wirtschaftlichkeit'!$E$44:$L$57,5,FALSE)) -> 0 | AK70: =AK$56*(-HLOOKUP($B$54,'04_Wirtschaftlichkeit'!$E$44:$L$57,7,FALSE)-HLOOKUP($B$54,'04_Wirtschaftlichkeit'!$E$44:$L$57,5,FALSE)) -> 0 | AL70: =AL$56*(-HLOOKUP($B$54,'04_Wirtschaftlichkeit'!$E$44:$L$57,7,FALSE)-HLOOKUP($B$54,'04_Wirtschaftlichkeit'!$E$44:$L$57,5,FALSE)) -> 0 | AM70: =AM$56*(-HLOOKUP($B$54,'04_Wirtschaftlichkeit'!$E$44:$L$57,7,FALSE)-HLOOKUP($B$54,'04_Wirtschaftlichkeit'!$E$44:$L$57,5,FALSE)) -> 0 | AN70: =AN$56*(-HLOOKUP($B$54,'04_Wirtschaftlichkeit'!$E$44:$L$57,7,FALSE)-HLOOKUP($B$54,'04_Wirtschaftlichkeit'!$E$44:$L$57,5,FALSE)) -> 0 | AO70: =AO$56*(-HLOOKUP($B$54,'04_Wirtschaftlichkeit'!$E$44:$L$57,7,FALSE)-HLOOKUP($B$54,'04_Wirtschaftlichkeit'!$E$44:$L$57,5,FALSE)) -> 0 | AP70: =AP$56*(-HLOOKUP($B$54,'04_Wirtschaftlichkeit'!$E$44:$L$57,7,FALSE)-HLOOKUP($B$54,'04_Wirtschaftlichkeit'!$E$44:$L$57,5,FALSE)) -> 0 | AQ70: =AQ$56*(-HLOOKUP($B$54,'04_Wirtschaftlichkeit'!$E$44:$L$57,7,FALSE)-HLOOKUP($B$54,'04_Wirtschaftlichkeit'!$E$44:$L$57,5,FALSE)) -> 0 | AR70: =AR$56*(-HLOOKUP($B$54,'04_Wirtschaftlichkeit'!$E$44:$L$57,7,FALSE)-HLOOKUP($B$54,'04_Wirtschaftlichkeit'!$E$44:$L$57,5,FALSE)) -> 0 | AS70: =AS$56*(-HLOOKUP($B$54,'04_Wirtschaftlichkeit'!$E$44:$L$57,7,FALSE)-HLOOKUP($B$54,'04_Wirtschaftlichkeit'!$E$44:$L$57,5,FALSE)) -> 0 | AT70: =AT$56*(-HLOOKUP($B$54,'04_Wirtschaftlichkeit'!$E$44:$L$57,7,FALSE)-HLOOKUP($B$54,'04_Wirtschaftlichkeit'!$E$44:$L$57,5,FALSE)) -> 0 | AU70: =AU$56*(-HLOOKUP($B$54,'04_Wirtschaftlichkeit'!$E$44:$L$57,7,FALSE)-HLOOKUP($B$54,'04_Wirtschaftlichkeit'!$E$44:$L$57,5,FALSE)) -> 0 | AV70: =AV$56*(-HLOOKUP($B$54,'04_Wirtschaftlichkeit'!$E$44:$L$57,7,FALSE)-HLOOKUP($B$54,'04_Wirtschaftlichkeit'!$E$44:$L$57,5,FALSE)) -> 0 | AW70: =AW$56*(-HLOOKUP($B$54,'04_Wirtschaftlichkeit'!$E$44:$L$57,7,FALSE)-HLOOKUP($B$54,'04_Wirtschaftlichkeit'!$E$44:$L$57,5,FALSE)) -> 0 | AX70: =AX$56*(-HLOOKUP($B$54,'04_Wirtschaftlichkeit'!$E$44:$L$57,7,FALSE)-HLOOKUP($B$54,'04_Wirtschaftlichkeit'!$E$44:$L$57,5,FALSE)) -> 0 | AY70: =AY$56*(-HLOOKUP($B$54,'04_Wirtschaftlichkeit'!$E$44:$L$57,7,FALSE)-HLOOKUP($B$54,'04_Wirtschaftlichkeit'!$E$44:$L$57,5,FALSE)) -> 0 | AZ70: =AZ$56*(-HLOOKUP($B$54,'04_Wirtschaftlichkeit'!$E$44:$L$57,7,FALSE)-HLOOKUP($B$54,'04_Wirtschaftlichkeit'!$E$44:$L$57,5,FALSE)) -> 0 | BA70: =BA$56*(-HLOOKUP($B$54,'04_Wirtschaftlichkeit'!$E$44:$L$57,7,FALSE)-HLOOKUP($B$54,'04_Wirtschaftlichkeit'!$E$44:$L$57,5,FALSE)) -> 0
B71: CO2 Kosten
B72: -0.5 | C72: =-HLOOKUP($B$54,'04_Wirtschaftlichkeit'!$E$44:$L$57,6,FALSE) -> -1057830.717 | D72: =D$56*(-HLOOKUP($B$54,'04_Wirtschaftlichkeit'!$E$44:$L$57,7,FALSE)-HLOOKUP($B$54,'04_Wirtschaftlichkeit'!$E$44:$L$57,5,FALSE)*(1+$B72)) -> -83948.45 | E72: =E$56*(-HLOOKUP($B$54,'04_Wirtschaftlichkeit'!$E$44:$L$57,7,FALSE)-HLOOKUP($B$54,'04_Wirtschaftlichkeit'!$E$44:$L$57,5,FALSE)*(1+$B72)) -> -83948.45 | F72: =F$56*(-HLOOKUP($B$54,'04_Wirtschaftlichkeit'!$E$44:$L$57,7,FALSE)-HLOOKUP($B$54,'04_Wirtschaftlichkeit'!$E$44:$L$57,5,FALSE)*(1+$B72)) -> -83948.45 | G72: =G$56*(-HLOOKUP($B$54,'04_Wirtschaftlichkeit'!$E$44:$L$57,7,FALSE)-HLOOKUP($B$54,'04_Wirtschaftlichkeit'!$E$44:$L$57,5,FALSE)*(1+$B72)) -> -83948.45 | H72: =H$56*(-HLOOKUP($B$54,'04_Wirtschaftlichkeit'!$E$44:$L$57,7,FALSE)-HLOOKUP($B$54,'04_Wirtschaftlichkeit'!$E$44:$L$57,5,FALSE)*(1+$B72)) -> -83948.45 | I72: =I$56*(-HLOOKUP($B$54,'04_Wirtschaftlichkeit'!$E$44:$L$57,7,FALSE)-HLOOKUP($B$54,'04_Wirtschaftlichkeit'!$E$44:$L$57,5,FALSE)*(1+$B72)) -> -83948.45 | J72: =J$56*(-HLOOKUP($B$54,'04_Wirtschaftlichkeit'!$E$44:$L$57,7,FALSE)-HLOOKUP($B$54,'04_Wirtschaftlichkeit'!$E$44:$L$57,5,FALSE)*(1+$B72)) -> -83948.45 | K72: =K$56*(-HLOOKUP($B$54,'04_Wirtschaftlichkeit'!$E$44:$L$57,7,FALSE)-HLOOKUP($B$54,'04_Wirtschaftlichkeit'!$E$44:$L$57,5,FALSE)*(1+$B72)) -> -83948.45 | L72: =L$56*(-HLOOKUP($B$54,'04_Wirtschaftlichkeit'!$E$44:$L$57,7,FALSE)-HLOOKUP($B$54,'04_Wirtschaftlichkeit'!$E$44:$L$57,5,FALSE)*(1+$B72)) -> -83948.45 | M72: =M$56*(-HLOOKUP($B$54,'04_Wirtschaftlichkeit'!$E$44:$L$57,7,FALSE)-HLOOKUP($B$54,'04_Wirtschaftlichkeit'!$E$44:$L$57,5,FALSE)*(1+$B72)) -> -83948.45 | N72: =N$56*(-HLOOKUP($B$54,'04_Wirtschaftlichkeit'!$E$44:$L$57,7,FALSE)-HLOOKUP($B$54,'04_Wirtschaftlichkeit'!$E$44:$L$57,5,FALSE)*(1+$B72)) -> -83948.45 | O72: =O$56*(-HLOOKUP($B$54,'04_Wirtschaftlichkeit'!$E$44:$L$57,7,FALSE)-HLOOKUP($B$54,'04_Wirtschaftlichkeit'!$E$44:$L$57,5,FALSE)*(1+$B72)) -> -83948.45 | P72: =P$56*(-HLOOKUP($B$54,'04_Wirtschaftlichkeit'!$E$44:$L$57,7,FALSE)-HLOOKUP($B$54,'04_Wirtschaftlichkeit'!$E$44:$L$57,5,FALSE)*(1+$B72)) -> -83948.45 | Q72: =Q$56*(-HLOOKUP($B$54,'04_Wirtschaftlichkeit'!$E$44:$L$57,7,FALSE)-HLOOKUP($B$54,'04_Wirtschaftlichkeit'!$E$44:$L$57,5,FALSE)*(1+$B72)) -> -83948.45 | R72: =R$56*(-HLOOKUP($B$54,'04_Wirtschaftlichkeit'!$E$44:$L$57,7,FALSE)-HLOOKUP($B$54,'04_Wirtschaftlichkeit'!$E$44:$L$57,5,FALSE)*(1+$B72)) -> -83948.45 | S72: =S$56*(-HLOOKUP($B$54,'04_Wirtschaftlichkeit'!$E$44:$L$57,7,FALSE)-HLOOKUP($B$54,'04_Wirtschaftlichkeit'!$E$44:$L$57,5,FALSE)*(1+$B72)) -> -83948.45 | T72: =T$56*(-HLOOKUP($B$54,'04_Wirtschaftlichkeit'!$E$44:$L$57,7,FALSE)-HLOOKUP($B$54,'04_Wirtschaftlichkeit'!$E$44:$L$57,5,FALSE)*(1+$B72)) -> -83948.45 | U72: =U$56*(-HLOOKUP($B$54,'04_Wirtschaftlichkeit'!$E$44:$L$57,7,FALSE)-HLOOKUP($B$54,'04_Wirtschaftlichkeit'!$E$44:$L$57,5,FALSE)*(1+$B72)) -> -83948.45 | V72: =V$56*(-HLOOKUP($B$54,'04_Wirtschaftlichkeit'!$E$44:$L$57,7,FALSE)-HLOOKUP($B$54,'04_Wirtschaftlichkeit'!$E$44:$L$57,5,FALSE)*(1+$B72)) -> -83948.45 | W72: =W$56*(-HLOOKUP($B$54,'04_Wirtschaftlichkeit'!$E$44:$L$57,7,FALSE)-HLOOKUP($B$54,'04_Wirtschaftlichkeit'!$E$44:$L$57,5,FALSE)*(1+$B72)) -> -83948.45 | X72: =X$56*(-HLOOKUP($B$54,'04_Wirtschaftlichkeit'!$E$44:$L$57,7,FALSE)-HLOOKUP($B$54,'04_Wirtschaftlichkeit'!$E$44:$L$57,5,FALSE)*(1+$B72)) -> 0 | Y72: =Y$56*(-HLOOKUP($B$54,'04_Wirtschaftlichkeit'!$E$44:$L$57,7,FALSE)-HLOOKUP($B$54,'04_Wirtschaftlichkeit'!$E$44:$L$57,5,FALSE)*(1+$B72)) -> 0 | Z72: =Z$56*(-HLOOKUP($B$54,'04_Wirtschaftlichkeit'!$E$44:$L$57,7,FALSE)-HLOOKUP($B$54,'04_Wirtschaftlichkeit'!$E$44:$L$57,5,FALSE)*(1+$B72)) -> 0 | AA72: =AA$56*(-HLOOKUP($B$54,'04_Wirtschaftlichkeit'!$E$44:$L$57,7,FALSE)-HLOOKUP($B$54,'04_Wirtschaftlichkeit'!$E$44:$L$57,5,FALSE)*(1+$B72)) -> 0 | AB72: =AB$56*(-HLOOKUP($B$54,'04_Wirtschaftlichkeit'!$E$44:$L$57,7,FALSE)-HLOOKUP($B$54,'04_Wirtschaftlichkeit'!$E$44:$L$57,5,FALSE)*(1+$B72)) -> 0 | AC72: =AC$56*(-HLOOKUP($B$54,'04_Wirtschaftlichkeit'!$E$44:$L$57,7,FALSE)-HLOOKUP($B$54,'04_Wirtschaftlichkeit'!$E$44:$L$57,5,FALSE)*(1+$B72)) -> 0 | AD72: =AD$56*(-HLOOKUP($B$54,'04_Wirtschaftlichkeit'!$E$44:$L$57,7,FALSE)-HLOOKUP($B$54,'04_Wirtschaftlichkeit'!$E$44:$L$57,5,FALSE)*(1+$B72)) -> 0 | AE72: =AE$56*(-HLOOKUP($B$54,'04_Wirtschaftlichkeit'!$E$44:$L$57,7,FALSE)-HLOOKUP($B$54,'04_Wirtschaftlichkeit'!$E$44:$L$57,5,FALSE)*(1+$B72)) -> 0 | AF72: =AF$56*(-HLOOKUP($B$54,'04_Wirtschaftlichkeit'!$E$44:$L$57,7,FALSE)-HLOOKUP($B$54,'04_Wirtschaftlichkeit'!$E$44:$L$57,5,FALSE)*(1+$B72)) -> 0 | AG72: =AG$56*(-HLOOKUP($B$54,'04_Wirtschaftlichkeit'!$E$44:$L$57,7,FALSE)-HLOOKUP($B$54,'04_Wirtschaftlichkeit'!$E$44:$L$57,5,FALSE)*(1+$B72)) -> 0 | AH72: =AH$56*(-HLOOKUP($B$54,'04_Wirtschaftlichkeit'!$E$44:$L$57,7,FALSE)-HLOOKUP($B$54,'04_Wirtschaftlichkeit'!$E$44:$L$57,5,FALSE)*(1+$B72)) -> 0 | AI72: =AI$56*(-HLOOKUP($B$54,'04_Wirtschaftlichkeit'!$E$44:$L$57,7,FALSE)-HLOOKUP($B$54,'04_Wirtschaftlichkeit'!$E$44:$L$57,5,FALSE)*(1+$B72)) -> 0 | AJ72: =AJ$56*(-HLOOKUP($B$54,'04_Wirtschaftlichkeit'!$E$44:$L$57,7,FALSE)-HLOOKUP($B$54,'04_Wirtschaftlichkeit'!$E$44:$L$57,5,FALSE)*(1+$B72)) -> 0 | AK72: =AK$56*(-HLOOKUP($B$54,'04_Wirtschaftlichkeit'!$E$44:$L$57,7,FALSE)-HLOOKUP($B$54,'04_Wirtschaftlichkeit'!$E$44:$L$57,5,FALSE)*(1+$B72)) -> 0 | AL72: =AL$56*(-HLOOKUP($B$54,'04_Wirtschaftlichkeit'!$E$44:$L$57,7,FALSE)-HLOOKUP($B$54,'04_Wirtschaftlichkeit'!$E$44:$L$57,5,FALSE)*(1+$B72)) -> 0 | AM72: =AM$56*(-HLOOKUP($B$54,'04_Wirtschaftlichkeit'!$E$44:$L$57,7,FALSE)-HLOOKUP($B$54,'04_Wirtschaftlichkeit'!$E$44:$L$57,5,FALSE)*(1+$B72)) -> 0 | AN72: =AN$56*(-HLOOKUP($B$54,'04_Wirtschaftlichkeit'!$E$44:$L$57,7,FALSE)-HLOOKUP($B$54,'04_Wirtschaftlichkeit'!$E$44:$L$57,5,FALSE)*(1+$B72)) -> 0 | AO72: =AO$56*(-HLOOKUP($B$54,'04_Wirtschaftlichkeit'!$E$44:$L$57,7,FALSE)-HLOOKUP($B$54,'04_Wirtschaftlichkeit'!$E$44:$L$57,5,FALSE)*(1+$B72)) -> 0 | AP72: =AP$56*(-HLOOKUP($B$54,'04_Wirtschaftlichkeit'!$E$44:$L$57,7,FALSE)-HLOOKUP($B$54,'04_Wirtschaftlichkeit'!$E$44:$L$57,5,FALSE)*(1+$B72)) -> 0 | AQ72: =AQ$56*(-HLOOKUP($B$54,'04_Wirtschaftlichkeit'!$E$44:$L$57,7,FALSE)-HLOOKUP($B$54,'04_Wirtschaftlichkeit'!$E$44:$L$57,5,FALSE)*(1+$B72)) -> 0 | AR72: =AR$56*(-HLOOKUP($B$54,'04_Wirtschaftlichkeit'!$E$44:$L$57,7,FALSE)-HLOOKUP($B$54,'04_Wirtschaftlichkeit'!$E$44:$L$57,5,FALSE)*(1+$B72)) -> 0 | AS72: =AS$56*(-HLOOKUP($B$54,'04_Wirtschaftlichkeit'!$E$44:$L$57,7,FALSE)-HLOOKUP($B$54,'04_Wirtschaftlichkeit'!$E$44:$L$57,5,FALSE)*(1+$B72)) -> 0 | AT72: =AT$56*(-HLOOKUP($B$54,'04_Wirtschaftlichkeit'!$E$44:$L$57,7,FALSE)-HLOOKUP($B$54,'04_Wirtschaftlichkeit'!$E$44:$L$57,5,FALSE)*(1+$B72)) -> 0 | AU72: =AU$56*(-HLOOKUP($B$54,'04_Wirtschaftlichkeit'!$E$44:$L$57,7,FALSE)-HLOOKUP($B$54,'04_Wirtschaftlichkeit'!$E$44:$L$57,5,FALSE)*(1+$B72)) -> 0 | AV72: =AV$56*(-HLOOKUP($B$54,'04_Wirtschaftlichkeit'!$E$44:$L$57,7,FALSE)-HLOOKUP($B$54,'04_Wirtschaftlichkeit'!$E$44:$L$57,5,FALSE)*(1+$B72)) -> 0 | AW72: =AW$56*(-HLOOKUP($B$54,'04_Wirtschaftlichkeit'!$E$44:$L$57,7,FALSE)-HLOOKUP($B$54,'04_Wirtschaftlichkeit'!$E$44:$L$57,5,FALSE)*(1+$B72)) -> 0 | AX72: =AX$56*(-HLOOKUP($B$54,'04_Wirtschaftlichkeit'!$E$44:$L$57,7,FALSE)-HLOOKUP($B$54,'04_Wirtschaftlichkeit'!$E$44:$L$57,5,FALSE)*(1+$B72)) -> 0 | AY72: =AY$56*(-HLOOKUP($B$54,'04_Wirtschaftlichkeit'!$E$44:$L$57,7,FALSE)-HLOOKUP($B$54,'04_Wirtschaftlichkeit'!$E$44:$L$57,5,FALSE)*(1+$B72)) -> 0 | AZ72: =AZ$56*(-HLOOKUP($B$54,'04_Wirtschaftlichkeit'!$E$44:$L$57,7,FALSE)-HLOOKUP($B$54,'04_Wirtschaftlichkeit'!$E$44:$L$57,5,FALSE)*(1+$B72)) -> 0 | BA72: =BA$56*(-HLOOKUP($B$54,'04_Wirtschaftlichkeit'!$E$44:$L$57,7,FALSE)-HLOOKUP($B$54,'04_Wirtschaftlichkeit'!$E$44:$L$57,5,FALSE)*(1+$B72)) -> 0
B73: -0.4 | C73: =-HLOOKUP($B$54,'04_Wirtschaftlichkeit'!$E$44:$L$57,6,FALSE) -> -1057830.717 | D73: =D$56*(-HLOOKUP($B$54,'04_Wirtschaftlichkeit'!$E$44:$L$57,7,FALSE)-HLOOKUP($B$54,'04_Wirtschaftlichkeit'!$E$44:$L$57,5,FALSE)*(1+$B73)) -> -84000.34 | E73: =E$56*(-HLOOKUP($B$54,'04_Wirtschaftlichkeit'!$E$44:$L$57,7,FALSE)-HLOOKUP($B$54,'04_Wirtschaftlichkeit'!$E$44:$L$57,5,FALSE)*(1+$B73)) -> -84000.34 | F73: =F$56*(-HLOOKUP($B$54,'04_Wirtschaftlichkeit'!$E$44:$L$57,7,FALSE)-HLOOKUP($B$54,'04_Wirtschaftlichkeit'!$E$44:$L$57,5,FALSE)*(1+$B73)) -> -84000.34 | G73: =G$56*(-HLOOKUP($B$54,'04_Wirtschaftlichkeit'!$E$44:$L$57,7,FALSE)-HLOOKUP($B$54,'04_Wirtschaftlichkeit'!$E$44:$L$57,5,FALSE)*(1+$B73)) -> -84000.34 | H73: =H$56*(-HLOOKUP($B$54,'04_Wirtschaftlichkeit'!$E$44:$L$57,7,FALSE)-HLOOKUP($B$54,'04_Wirtschaftlichkeit'!$E$44:$L$57,5,FALSE)*(1+$B73)) -> -84000.34 | I73: =I$56*(-HLOOKUP($B$54,'04_Wirtschaftlichkeit'!$E$44:$L$57,7,FALSE)-HLOOKUP($B$54,'04_Wirtschaftlichkeit'!$E$44:$L$57,5,FALSE)*(1+$B73)) -> -84000.34 | J73: =J$56*(-HLOOKUP($B$54,'04_Wirtschaftlichkeit'!$E$44:$L$57,7,FALSE)-HLOOKUP($B$54,'04_Wirtschaftlichkeit'!$E$44:$L$57,5,FALSE)*(1+$B73)) -> -84000.34 | K73: =K$56*(-HLOOKUP($B$54,'04_Wirtschaftlichkeit'!$E$44:$L$57,7,FALSE)-HLOOKUP($B$54,'04_Wirtschaftlichkeit'!$E$44:$L$57,5,FALSE)*(1+$B73)) -> -84000.34 | L73: =L$56*(-HLOOKUP($B$54,'04_Wirtschaftlichkeit'!$E$44:$L$57,7,FALSE)-HLOOKUP($B$54,'04_Wirtschaftlichkeit'!$E$44:$L$57,5,FALSE)*(1+$B73)) -> -84000.34 | M73: =M$56*(-HLOOKUP($B$54,'04_Wirtschaftlichkeit'!$E$44:$L$57,7,FALSE)-HLOOKUP($B$54,'04_Wirtschaftlichkeit'!$E$44:$L$57,5,FALSE)*(1+$B73)) -> -84000.34 | N73: =N$56*(-HLOOKUP($B$54,'04_Wirtschaftlichkeit'!$E$44:$L$57,7,FALSE)-HLOOKUP($B$54,'04_Wirtschaftlichkeit'!$E$44:$L$57,5,FALSE)*(1+$B73)) -> -84000.34 | O73: =O$56*(-HLOOKUP($B$54,'04_Wirtschaftlichkeit'!$E$44:$L$57,7,FALSE)-HLOOKUP($B$54,'04_Wirtschaftlichkeit'!$E$44:$L$57,5,FALSE)*(1+$B73)) -> -84000.34 | P73: =P$56*(-HLOOKUP($B$54,'04_Wirtschaftlichkeit'!$E$44:$L$57,7,FALSE)-HLOOKUP($B$54,'04_Wirtschaftlichkeit'!$E$44:$L$57,5,FALSE)*(1+$B73)) -> -84000.34 | Q73: =Q$56*(-HLOOKUP($B$54,'04_Wirtschaftlichkeit'!$E$44:$L$57,7,FALSE)-HLOOKUP($B$54,'04_Wirtschaftlichkeit'!$E$44:$L$57,5,FALSE)*(1+$B73)) -> -84000.34 | R73: =R$56*(-HLOOKUP($B$54,'04_Wirtschaftlichkeit'!$E$44:$L$57,7,FALSE)-HLOOKUP($B$54,'04_Wirtschaftlichkeit'!$E$44:$L$57,5,FALSE)*(1+$B73)) -> -84000.34 | S73: =S$56*(-HLOOKUP($B$54,'04_Wirtschaftlichkeit'!$E$44:$L$57,7,FALSE)-HLOOKUP($B$54,'04_Wirtschaftlichkeit'!$E$44:$L$57,5,FALSE)*(1+$B73)) -> -84000.34 | T73: =T$56*(-HLOOKUP($B$54,'04_Wirtschaftlichkeit'!$E$44:$L$57,7,FALSE)-HLOOKUP($B$54,'04_Wirtschaftlichkeit'!$E$44:$L$57,5,FALSE)*(1+$B73)) -> -84000.34 | U73: =U$56*(-HLOOKUP($B$54,'04_Wirtschaftlichkeit'!$E$44:$L$57,7,FALSE)-HLOOKUP($B$54,'04_Wirtschaftlichkeit'!$E$44:$L$57,5,FALSE)*(1+$B73)) -> -84000.34 | V73: =V$56*(-HLOOKUP($B$54,'04_Wirtschaftlichkeit'!$E$44:$L$57,7,FALSE)-HLOOKUP($B$54,'04_Wirtschaftlichkeit'!$E$44:$L$57,5,FALSE)*(1+$B73)) -> -84000.34 | W73: =W$56*(-HLOOKUP($B$54,'04_Wirtschaftlichkeit'!$E$44:$L$57,7,FALSE)-HLOOKUP($B$54,'04_Wirtschaftlichkeit'!$E$44:$L$57,5,FALSE)*(1+$B73)) -> -84000.34 | X73: =X$56*(-HLOOKUP($B$54,'04_Wirtschaftlichkeit'!$E$44:$L$57,7,FALSE)-HLOOKUP($B$54,'04_Wirtschaftlichkeit'!$E$44:$L$57,5,FALSE)*(1+$B73)) -> 0 | Y73: =Y$56*(-HLOOKUP($B$54,'04_Wirtschaftlichkeit'!$E$44:$L$57,7,FALSE)-HLOOKUP($B$54,'04_Wirtschaftlichkeit'!$E$44:$L$57,5,FALSE)*(1+$B73)) -> 0 | Z73: =Z$56*(-HLOOKUP($B$54,'04_Wirtschaftlichkeit'!$E$44:$L$57,7,FALSE)-HLOOKUP($B$54,'04_Wirtschaftlichkeit'!$E$44:$L$57,5,FALSE)*(1+$B73)) -> 0 | AA73: =AA$56*(-HLOOKUP($B$54,'04_Wirtschaftlichkeit'!$E$44:$L$57,7,FALSE)-HLOOKUP($B$54,'04_Wirtschaftlichkeit'!$E$44:$L$57,5,FALSE)*(1+$B73)) -> 0 | AB73: =AB$56*(-HLOOKUP($B$54,'04_Wirtschaftlichkeit'!$E$44:$L$57,7,FALSE)-HLOOKUP($B$54,'04_Wirtschaftlichkeit'!$E$44:$L$57,5,FALSE)*(1+$B73)) -> 0 | AC73: =AC$56*(-HLOOKUP($B$54,'04_Wirtschaftlichkeit'!$E$44:$L$57,7,FALSE)-HLOOKUP($B$54,'04_Wirtschaftlichkeit'!$E$44:$L$57,5,FALSE)*(1+$B73)) -> 0 | AD73: =AD$56*(-HLOOKUP($B$54,'04_Wirtschaftlichkeit'!$E$44:$L$57,7,FALSE)-HLOOKUP($B$54,'04_Wirtschaftlichkeit'!$E$44:$L$57,5,FALSE)*(1+$B73)) -> 0 | AE73: =AE$56*(-HLOOKUP($B$54,'04_Wirtschaftlichkeit'!$E$44:$L$57,7,FALSE)-HLOOKUP($B$54,'04_Wirtschaftlichkeit'!$E$44:$L$57,5,FALSE)*(1+$B73)) -> 0 | AF73: =AF$56*(-HLOOKUP($B$54,'04_Wirtschaftlichkeit'!$E$44:$L$57,7,FALSE)-HLOOKUP($B$54,'04_Wirtschaftlichkeit'!$E$44:$L$57,5,FALSE)*(1+$B73)) -> 0 | AG73: =AG$56*(-HLOOKUP($B$54,'04_Wirtschaftlichkeit'!$E$44:$L$57,7,FALSE)-HLOOKUP($B$54,'04_Wirtschaftlichkeit'!$E$44:$L$57,5,FALSE)*(1+$B73)) -> 0 | AH73: =AH$56*(-HLOOKUP($B$54,'04_Wirtschaftlichkeit'!$E$44:$L$57,7,FALSE)-HLOOKUP($B$54,'04_Wirtschaftlichkeit'!$E$44:$L$57,5,FALSE)*(1+$B73)) -> 0 | AI73: =AI$56*(-HLOOKUP($B$54,'04_Wirtschaftlichkeit'!$E$44:$L$57,7,FALSE)-HLOOKUP($B$54,'04_Wirtschaftlichkeit'!$E$44:$L$57,5,FALSE)*(1+$B73)) -> 0 | AJ73: =AJ$56*(-HLOOKUP($B$54,'04_Wirtschaftlichkeit'!$E$44:$L$57,7,FALSE)-HLOOKUP($B$54,'04_Wirtschaftlichkeit'!$E$44:$L$57,5,FALSE)*(1+$B73)) -> 0 | AK73: =AK$56*(-HLOOKUP($B$54,'04_Wirtschaftlichkeit'!$E$44:$L$57,7,FALSE)-HLOOKUP($B$54,'04_Wirtschaftlichkeit'!$E$44:$L$57,5,FALSE)*(1+$B73)) -> 0 | AL73: =AL$56*(-HLOOKUP($B$54,'04_Wirtschaftlichkeit'!$E$44:$L$57,7,FALSE)-HLOOKUP($B$54,'04_Wirtschaftlichkeit'!$E$44:$L$57,5,FALSE)*(1+$B73)) -> 0 | AM73: =AM$56*(-HLOOKUP($B$54,'04_Wirtschaftlichkeit'!$E$44:$L$57,7,FALSE)-HLOOKUP($B$54,'04_Wirtschaftlichkeit'!$E$44:$L$57,5,FALSE)*(1+$B73)) -> 0 | AN73: =AN$56*(-HLOOKUP($B$54,'04_Wirtschaftlichkeit'!$E$44:$L$57,7,FALSE)-HLOOKUP($B$54,'04_Wirtschaftlichkeit'!$E$44:$L$57,5,FALSE)*(1+$B73)) -> 0 | AO73: =AO$56*(-HLOOKUP($B$54,'04_Wirtschaftlichkeit'!$E$44:$L$57,7,FALSE)-HLOOKUP($B$54,'04_Wirtschaftlichkeit'!$E$44:$L$57,5,FALSE)*(1+$B73)) -> 0 | AP73: =AP$56*(-HLOOKUP($B$54,'04_Wirtschaftlichkeit'!$E$44:$L$57,7,FALSE)-HLOOKUP($B$54,'04_Wirtschaftlichkeit'!$E$44:$L$57,5,FALSE)*(1+$B73)) -> 0 | AQ73: =AQ$56*(-HLOOKUP($B$54,'04_Wirtschaftlichkeit'!$E$44:$L$57,7,FALSE)-HLOOKUP($B$54,'04_Wirtschaftlichkeit'!$E$44:$L$57,5,FALSE)*(1+$B73)) -> 0 | AR73: =AR$56*(-HLOOKUP($B$54,'04_Wirtschaftlichkeit'!$E$44:$L$57,7,FALSE)-HLOOKUP($B$54,'04_Wirtschaftlichkeit'!$E$44:$L$57,5,FALSE)*(1+$B73)) -> 0 | AS73: =AS$56*(-HLOOKUP($B$54,'04_Wirtschaftlichkeit'!$E$44:$L$57,7,FALSE)-HLOOKUP($B$54,'04_Wirtschaftlichkeit'!$E$44:$L$57,5,FALSE)*(1+$B73)) -> 0 | AT73: =AT$56*(-HLOOKUP($B$54,'04_Wirtschaftlichkeit'!$E$44:$L$57,7,FALSE)-HLOOKUP($B$54,'04_Wirtschaftlichkeit'!$E$44:$L$57,5,FALSE)*(1+$B73)) -> 0 | AU73: =AU$56*(-HLOOKUP($B$54,'04_Wirtschaftlichkeit'!$E$44:$L$57,7,FALSE)-HLOOKUP($B$54,'04_Wirtschaftlichkeit'!$E$44:$L$57,5,FALSE)*(1+$B73)) -> 0 | AV73: =AV$56*(-HLOOKUP($B$54,'04_Wirtschaftlichkeit'!$E$44:$L$57,7,FALSE)-HLOOKUP($B$54,'04_Wirtschaftlichkeit'!$E$44:$L$57,5,FALSE)*(1+$B73)) -> 0 | AW73: =AW$56*(-HLOOKUP($B$54,'04_Wirtschaftlichkeit'!$E$44:$L$57,7,FALSE)-HLOOKUP($B$54,'04_Wirtschaftlichkeit'!$E$44:$L$57,5,FALSE)*(1+$B73)) -> 0 | AX73: =AX$56*(-HLOOKUP($B$54,'04_Wirtschaftlichkeit'!$E$44:$L$57,7,FALSE)-HLOOKUP($B$54,'04_Wirtschaftlichkeit'!$E$44:$L$57,5,FALSE)*(1+$B73)) -> 0 | AY73: =AY$56*(-HLOOKUP($B$54,'04_Wirtschaftlichkeit'!$E$44:$L$57,7,FALSE)-HLOOKUP($B$54,'04_Wirtschaftlichkeit'!$E$44:$L$57,5,FALSE)*(1+$B73)) -> 0 | AZ73: =AZ$56*(-HLOOKUP($B$54,'04_Wirtschaftlichkeit'!$E$44:$L$57,7,FALSE)-HLOOKUP($B$54,'04_Wirtschaftlichkeit'!$E$44:$L$57,5,FALSE)*(1+$B73)) -> 0 | BA73: =BA$56*(-HLOOKUP($B$54,'04_Wirtschaftlichkeit'!$E$44:$L$57,7,FALSE)-HLOOKUP($B$54,'04_Wirtschaftlichkeit'!$E$44:$L$57,5,FALSE)*(1+$B73)) -> 0
B74: -0.3 | C74: =-HLOOKUP($B$54,'04_Wirtschaftlichkeit'!$E$44:$L$57,6,FALSE) -> -1057830.717 | D74: =D$56*(-HLOOKUP($B$54,'04_Wirtschaftlichkeit'!$E$44:$L$57,7,FALSE)-HLOOKUP($B$54,'04_Wirtschaftlichkeit'!$E$44:$L$57,5,FALSE)*(1+$B74)) -> -84052.23 | E74: =E$56*(-HLOOKUP($B$54,'04_Wirtschaftlichkeit'!$E$44:$L$57,7,FALSE)-HLOOKUP($B$54,'04_Wirtschaftlichkeit'!$E$44:$L$57,5,FALSE)*(1+$B74)) -> -84052.23 | F74: =F$56*(-HLOOKUP($B$54,'04_Wirtschaftlichkeit'!$E$44:$L$57,7,FALSE)-HLOOKUP($B$54,'04_Wirtschaftlichkeit'!$E$44:$L$57,5,FALSE)*(1+$B74)) -> -84052.23 | G74: =G$56*(-HLOOKUP($B$54,'04_Wirtschaftlichkeit'!$E$44:$L$57,7,FALSE)-HLOOKUP($B$54,'04_Wirtschaftlichkeit'!$E$44:$L$57,5,FALSE)*(1+$B74)) -> -84052.23 | H74: =H$56*(-HLOOKUP($B$54,'04_Wirtschaftlichkeit'!$E$44:$L$57,7,FALSE)-HLOOKUP($B$54,'04_Wirtschaftlichkeit'!$E$44:$L$57,5,FALSE)*(1+$B74)) -> -84052.23 | I74: =I$56*(-HLOOKUP($B$54,'04_Wirtschaftlichkeit'!$E$44:$L$57,7,FALSE)-HLOOKUP($B$54,'04_Wirtschaftlichkeit'!$E$44:$L$57,5,FALSE)*(1+$B74)) -> -84052.23 | J74: =J$56*(-HLOOKUP($B$54,'04_Wirtschaftlichkeit'!$E$44:$L$57,7,FALSE)-HLOOKUP($B$54,'04_Wirtschaftlichkeit'!$E$44:$L$57,5,FALSE)*(1+$B74)) -> -84052.23 | K74: =K$56*(-HLOOKUP($B$54,'04_Wirtschaftlichkeit'!$E$44:$L$57,7,FALSE)-HLOOKUP($B$54,'04_Wirtschaftlichkeit'!$E$44:$L$57,5,FALSE)*(1+$B74)) -> -84052.23 | L74: =L$56*(-HLOOKUP($B$54,'04_Wirtschaftlichkeit'!$E$44:$L$57,7,FALSE)-HLOOKUP($B$54,'04_Wirtschaftlichkeit'!$E$44:$L$57,5,FALSE)*(1+$B74)) -> -84052.23 | M74: =M$56*(-HLOOKUP($B$54,'04_Wirtschaftlichkeit'!$E$44:$L$57,7,FALSE)-HLOOKUP($B$54,'04_Wirtschaftlichkeit'!$E$44:$L$57,5,FALSE)*(1+$B74)) -> -84052.23 | N74: =N$56*(-HLOOKUP($B$54,'04_Wirtschaftlichkeit'!$E$44:$L$57,7,FALSE)-HLOOKUP($B$54,'04_Wirtschaftlichkeit'!$E$44:$L$57,5,FALSE)*(1+$B74)) -> -84052.23 | O74: =O$56*(-HLOOKUP($B$54,'04_Wirtschaftlichkeit'!$E$44:$L$57,7,FALSE)-HLOOKUP($B$54,'04_Wirtschaftlichkeit'!$E$44:$L$57,5,FALSE)*(1+$B74)) -> -84052.23 | P74: =P$56*(-HLOOKUP($B$54,'04_Wirtschaftlichkeit'!$E$44:$L$57,7,FALSE)-HLOOKUP($B$54,'04_Wirtschaftlichkeit'!$E$44:$L$57,5,FALSE)*(1+$B74)) -> -84052.23 | Q74: =Q$56*(-HLOOKUP($B$54,'04_Wirtschaftlichkeit'!$E$44:$L$57,7,FALSE)-HLOOKUP($B$54,'04_Wirtschaftlichkeit'!$E$44:$L$57,5,FALSE)*(1+$B74)) -> -84052.23 | R74: =R$56*(-HLOOKUP($B$54,'04_Wirtschaftlichkeit'!$E$44:$L$57,7,FALSE)-HLOOKUP($B$54,'04_Wirtschaftlichkeit'!$E$44:$L$57,5,FALSE)*(1+$B74)) -> -84052.23 | S74: =S$56*(-HLOOKUP($B$54,'04_Wirtschaftlichkeit'!$E$44:$L$57,7,FALSE)-HLOOKUP($B$54,'04_Wirtschaftlichkeit'!$E$44:$L$57,5,FALSE)*(1+$B74)) -> -84052.23 | T74: =T$56*(-HLOOKUP($B$54,'04_Wirtschaftlichkeit'!$E$44:$L$57,7,FALSE)-HLOOKUP($B$54,'04_Wirtschaftlichkeit'!$E$44:$L$57,5,FALSE)*(1+$B74)) -> -84052.23 | U74: =U$56*(-HLOOKUP($B$54,'04_Wirtschaftlichkeit'!$E$44:$L$57,7,FALSE)-HLOOKUP($B$54,'04_Wirtschaftlichkeit'!$E$44:$L$57,5,FALSE)*(1+$B74)) -> -84052.23 | V74: =V$56*(-HLOOKUP($B$54,'04_Wirtschaftlichkeit'!$E$44:$L$57,7,FALSE)-HLOOKUP($B$54,'04_Wirtschaftlichkeit'!$E$44:$L$57,5,FALSE)*(1+$B74)) -> -84052.23 | W74: =W$56*(-HLOOKUP($B$54,'04_Wirtschaftlichkeit'!$E$44:$L$57,7,FALSE)-HLOOKUP($B$54,'04_Wirtschaftlichkeit'!$E$44:$L$57,5,FALSE)*(1+$B74)) -> -84052.23 | X74: =X$56*(-HLOOKUP($B$54,'04_Wirtschaftlichkeit'!$E$44:$L$57,7,FALSE)-HLOOKUP($B$54,'04_Wirtschaftlichkeit'!$E$44:$L$57,5,FALSE)*(1+$B74)) -> 0 | Y74: =Y$56*(-HLOOKUP($B$54,'04_Wirtschaftlichkeit'!$E$44:$L$57,7,FALSE)-HLOOKUP($B$54,'04_Wirtschaftlichkeit'!$E$44:$L$57,5,FALSE)*(1+$B74)) -> 0 | Z74: =Z$56*(-HLOOKUP($B$54,'04_Wirtschaftlichkeit'!$E$44:$L$57,7,FALSE)-HLOOKUP($B$54,'04_Wirtschaftlichkeit'!$E$44:$L$57,5,FALSE)*(1+$B74)) -> 0 | AA74: =AA$56*(-HLOOKUP($B$54,'04_Wirtschaftlichkeit'!$E$44:$L$57,7,FALSE)-HLOOKUP($B$54,'04_Wirtschaftlichkeit'!$E$44:$L$57,5,FALSE)*(1+$B74)) -> 0 | AB74: =AB$56*(-HLOOKUP($B$54,'04_Wirtschaftlichkeit'!$E$44:$L$57,7,FALSE)-HLOOKUP($B$54,'04_Wirtschaftlichkeit'!$E$44:$L$57,5,FALSE)*(1+$B74)) -> 0 | AC74: =AC$56*(-HLOOKUP($B$54,'04_Wirtschaftlichkeit'!$E$44:$L$57,7,FALSE)-HLOOKUP($B$54,'04_Wirtschaftlichkeit'!$E$44:$L$57,5,FALSE)*(1+$B74)) -> 0 | AD74: =AD$56*(-HLOOKUP($B$54,'04_Wirtschaftlichkeit'!$E$44:$L$57,7,FALSE)-HLOOKUP($B$54,'04_Wirtschaftlichkeit'!$E$44:$L$57,5,FALSE)*(1+$B74)) -> 0 | AE74: =AE$56*(-HLOOKUP($B$54,'04_Wirtschaftlichkeit'!$E$44:$L$57,7,FALSE)-HLOOKUP($B$54,'04_Wirtschaftlichkeit'!$E$44:$L$57,5,FALSE)*(1+$B74)) -> 0 | AF74: =AF$56*(-HLOOKUP($B$54,'04_Wirtschaftlichkeit'!$E$44:$L$57,7,FALSE)-HLOOKUP($B$54,'04_Wirtschaftlichkeit'!$E$44:$L$57,5,FALSE)*(1+$B74)) -> 0 | AG74: =AG$56*(-HLOOKUP($B$54,'04_Wirtschaftlichkeit'!$E$44:$L$57,7,FALSE)-HLOOKUP($B$54,'04_Wirtschaftlichkeit'!$E$44:$L$57,5,FALSE)*(1+$B74)) -> 0 | AH74: =AH$56*(-HLOOKUP($B$54,'04_Wirtschaftlichkeit'!$E$44:$L$57,7,FALSE)-HLOOKUP($B$54,'04_Wirtschaftlichkeit'!$E$44:$L$57,5,FALSE)*(1+$B74)) -> 0 | AI74: =AI$56*(-HLOOKUP($B$54,'04_Wirtschaftlichkeit'!$E$44:$L$57,7,FALSE)-HLOOKUP($B$54,'04_Wirtschaftlichkeit'!$E$44:$L$57,5,FALSE)*(1+$B74)) -> 0 | AJ74: =AJ$56*(-HLOOKUP($B$54,'04_Wirtschaftlichkeit'!$E$44:$L$57,7,FALSE)-HLOOKUP($B$54,'04_Wirtschaftlichkeit'!$E$44:$L$57,5,FALSE)*(1+$B74)) -> 0 | AK74: =AK$56*(-HLOOKUP($B$54,'04_Wirtschaftlichkeit'!$E$44:$L$57,7,FALSE)-HLOOKUP($B$54,'04_Wirtschaftlichkeit'!$E$44:$L$57,5,FALSE)*(1+$B74)) -> 0 | AL74: =AL$56*(-HLOOKUP($B$54,'04_Wirtschaftlichkeit'!$E$44:$L$57,7,FALSE)-HLOOKUP($B$54,'04_Wirtschaftlichkeit'!$E$44:$L$57,5,FALSE)*(1+$B74)) -> 0 | AM74: =AM$56*(-HLOOKUP($B$54,'04_Wirtschaftlichkeit'!$E$44:$L$57,7,FALSE)-HLOOKUP($B$54,'04_Wirtschaftlichkeit'!$E$44:$L$57,5,FALSE)*(1+$B74)) -> 0 | AN74: =AN$56*(-HLOOKUP($B$54,'04_Wirtschaftlichkeit'!$E$44:$L$57,7,FALSE)-HLOOKUP($B$54,'04_Wirtschaftlichkeit'!$E$44:$L$57,5,FALSE)*(1+$B74)) -> 0 | AO74: =AO$56*(-HLOOKUP($B$54,'04_Wirtschaftlichkeit'!$E$44:$L$57,7,FALSE)-HLOOKUP($B$54,'04_Wirtschaftlichkeit'!$E$44:$L$57,5,FALSE)*(1+$B74)) -> 0 | AP74: =AP$56*(-HLOOKUP($B$54,'04_Wirtschaftlichkeit'!$E$44:$L$57,7,FALSE)-HLOOKUP($B$54,'04_Wirtschaftlichkeit'!$E$44:$L$57,5,FALSE)*(1+$B74)) -> 0 | AQ74: =AQ$56*(-HLOOKUP($B$54,'04_Wirtschaftlichkeit'!$E$44:$L$57,7,FALSE)-HLOOKUP($B$54,'04_Wirtschaftlichkeit'!$E$44:$L$57,5,FALSE)*(1+$B74)) -> 0 | AR74: =AR$56*(-HLOOKUP($B$54,'04_Wirtschaftlichkeit'!$E$44:$L$57,7,FALSE)-HLOOKUP($B$54,'04_Wirtschaftlichkeit'!$E$44:$L$57,5,FALSE)*(1+$B74)) -> 0 | AS74: =AS$56*(-HLOOKUP($B$54,'04_Wirtschaftlichkeit'!$E$44:$L$57,7,FALSE)-HLOOKUP($B$54,'04_Wirtschaftlichkeit'!$E$44:$L$57,5,FALSE)*(1+$B74)) -> 0 | AT74: =AT$56*(-HLOOKUP($B$54,'04_Wirtschaftlichkeit'!$E$44:$L$57,7,FALSE)-HLOOKUP($B$54,'04_Wirtschaftlichkeit'!$E$44:$L$57,5,FALSE)*(1+$B74)) -> 0 | AU74: =AU$56*(-HLOOKUP($B$54,'04_Wirtschaftlichkeit'!$E$44:$L$57,7,FALSE)-HLOOKUP($B$54,'04_Wirtschaftlichkeit'!$E$44:$L$57,5,FALSE)*(1+$B74)) -> 0 | AV74: =AV$56*(-HLOOKUP($B$54,'04_Wirtschaftlichkeit'!$E$44:$L$57,7,FALSE)-HLOOKUP($B$54,'04_Wirtschaftlichkeit'!$E$44:$L$57,5,FALSE)*(1+$B74)) -> 0 | AW74: =AW$56*(-HLOOKUP($B$54,'04_Wirtschaftlichkeit'!$E$44:$L$57,7,FALSE)-HLOOKUP($B$54,'04_Wirtschaftlichkeit'!$E$44:$L$57,5,FALSE)*(1+$B74)) -> 0 | AX74: =AX$56*(-HLOOKUP($B$54,'04_Wirtschaftlichkeit'!$E$44:$L$57,7,FALSE)-HLOOKUP($B$54,'04_Wirtschaftlichkeit'!$E$44:$L$57,5,FALSE)*(1+$B74)) -> 0 | AY74: =AY$56*(-HLOOKUP($B$54,'04_Wirtschaftlichkeit'!$E$44:$L$57,7,FALSE)-HLOOKUP($B$54,'04_Wirtschaftlichkeit'!$E$44:$L$57,5,FALSE)*(1+$B74)) -> 0 | AZ74: =AZ$56*(-HLOOKUP($B$54,'04_Wirtschaftlichkeit'!$E$44:$L$57,7,FALSE)-HLOOKUP($B$54,'04_Wirtschaftlichkeit'!$E$44:$L$57,5,FALSE)*(1+$B74)) -> 0 | BA74: =BA$56*(-HLOOKUP($B$54,'04_Wirtschaftlichkeit'!$E$44:$L$57,7,FALSE)-HLOOKUP($B$54,'04_Wirtschaftlichkeit'!$E$44:$L$57,5,FALSE)*(1+$B74)) -> 0
B75: -0.2 | C75: =-HLOOKUP($B$54,'04_Wirtschaftlichkeit'!$E$44:$L$57,6,FALSE) -> -1057830.717 | D75: =D$56*(-HLOOKUP($B$54,'04_Wirtschaftlichkeit'!$E$44:$L$57,7,FALSE)-HLOOKUP($B$54,'04_Wirtschaftlichkeit'!$E$44:$L$57,5,FALSE)*(1+$B75)) -> -84104.12 | E75: =E$56*(-HLOOKUP($B$54,'04_Wirtschaftlichkeit'!$E$44:$L$57,7,FALSE)-HLOOKUP($B$54,'04_Wirtschaftlichkeit'!$E$44:$L$57,5,FALSE)*(1+$B75)) -> -84104.12 | F75: =F$56*(-HLOOKUP($B$54,'04_Wirtschaftlichkeit'!$E$44:$L$57,7,FALSE)-HLOOKUP($B$54,'04_Wirtschaftlichkeit'!$E$44:$L$57,5,FALSE)*(1+$B75)) -> -84104.12 | G75: =G$56*(-HLOOKUP($B$54,'04_Wirtschaftlichkeit'!$E$44:$L$57,7,FALSE)-HLOOKUP($B$54,'04_Wirtschaftlichkeit'!$E$44:$L$57,5,FALSE)*(1+$B75)) -> -84104.12 | H75: =H$56*(-HLOOKUP($B$54,'04_Wirtschaftlichkeit'!$E$44:$L$57,7,FALSE)-HLOOKUP($B$54,'04_Wirtschaftlichkeit'!$E$44:$L$57,5,FALSE)*(1+$B75)) -> -84104.12 | I75: =I$56*(-HLOOKUP($B$54,'04_Wirtschaftlichkeit'!$E$44:$L$57,7,FALSE)-HLOOKUP($B$54,'04_Wirtschaftlichkeit'!$E$44:$L$57,5,FALSE)*(1+$B75)) -> -84104.12 | J75: =J$56*(-HLOOKUP($B$54,'04_Wirtschaftlichkeit'!$E$44:$L$57,7,FALSE)-HLOOKUP($B$54,'04_Wirtschaftlichkeit'!$E$44:$L$57,5,FALSE)*(1+$B75)) -> -84104.12 | K75: =K$56*(-HLOOKUP($B$54,'04_Wirtschaftlichkeit'!$E$44:$L$57,7,FALSE)-HLOOKUP($B$54,'04_Wirtschaftlichkeit'!$E$44:$L$57,5,FALSE)*(1+$B75)) -> -84104.12 | L75: =L$56*(-HLOOKUP($B$54,'04_Wirtschaftlichkeit'!$E$44:$L$57,7,FALSE)-HLOOKUP($B$54,'04_Wirtschaftlichkeit'!$E$44:$L$57,5,FALSE)*(1+$B75)) -> -84104.12 | M75: =M$56*(-HLOOKUP($B$54,'04_Wirtschaftlichkeit'!$E$44:$L$57,7,FALSE)-HLOOKUP($B$54,'04_Wirtschaftlichkeit'!$E$44:$L$57,5,FALSE)*(1+$B75)) -> -84104.12 | N75: =N$56*(-HLOOKUP($B$54,'04_Wirtschaftlichkeit'!$E$44:$L$57,7,FALSE)-HLOOKUP($B$54,'04_Wirtschaftlichkeit'!$E$44:$L$57,5,FALSE)*(1+$B75)) -> -84104.12 | O75: =O$56*(-HLOOKUP($B$54,'04_Wirtschaftlichkeit'!$E$44:$L$57,7,FALSE)-HLOOKUP($B$54,'04_Wirtschaftlichkeit'!$E$44:$L$57,5,FALSE)*(1+$B75)) -> -84104.12 | P75: =P$56*(-HLOOKUP($B$54,'04_Wirtschaftlichkeit'!$E$44:$L$57,7,FALSE)-HLOOKUP($B$54,'04_Wirtschaftlichkeit'!$E$44:$L$57,5,FALSE)*(1+$B75)) -> -84104.12 | Q75: =Q$56*(-HLOOKUP($B$54,'04_Wirtschaftlichkeit'!$E$44:$L$57,7,FALSE)-HLOOKUP($B$54,'04_Wirtschaftlichkeit'!$E$44:$L$57,5,FALSE)*(1+$B75)) -> -84104.12 | R75: =R$56*(-HLOOKUP($B$54,'04_Wirtschaftlichkeit'!$E$44:$L$57,7,FALSE)-HLOOKUP($B$54,'04_Wirtschaftlichkeit'!$E$44:$L$57,5,FALSE)*(1+$B75)) -> -84104.12 | S75: =S$56*(-HLOOKUP($B$54,'04_Wirtschaftlichkeit'!$E$44:$L$57,7,FALSE)-HLOOKUP($B$54,'04_Wirtschaftlichkeit'!$E$44:$L$57,5,FALSE)*(1+$B75)) -> -84104.12 | T75: =T$56*(-HLOOKUP($B$54,'04_Wirtschaftlichkeit'!$E$44:$L$57,7,FALSE)-HLOOKUP($B$54,'04_Wirtschaftlichkeit'!$E$44:$L$57,5,FALSE)*(1+$B75)) -> -84104.12 | U75: =U$56*(-HLOOKUP($B$54,'04_Wirtschaftlichkeit'!$E$44:$L$57,7,FALSE)-HLOOKUP($B$54,'04_Wirtschaftlichkeit'!$E$44:$L$57,5,FALSE)*(1+$B75)) -> -84104.12 | V75: =V$56*(-HLOOKUP($B$54,'04_Wirtschaftlichkeit'!$E$44:$L$57,7,FALSE)-HLOOKUP($B$54,'04_Wirtschaftlichkeit'!$E$44:$L$57,5,FALSE)*(1+$B75)) -> -84104.12 | W75: =W$56*(-HLOOKUP($B$54,'04_Wirtschaftlichkeit'!$E$44:$L$57,7,FALSE)-HLOOKUP($B$54,'04_Wirtschaftlichkeit'!$E$44:$L$57,5,FALSE)*(1+$B75)) -> -84104.12 | X75: =X$56*(-HLOOKUP($B$54,'04_Wirtschaftlichkeit'!$E$44:$L$57,7,FALSE)-HLOOKUP($B$54,'04_Wirtschaftlichkeit'!$E$44:$L$57,5,FALSE)*(1+$B75)) -> 0 | Y75: =Y$56*(-HLOOKUP($B$54,'04_Wirtschaftlichkeit'!$E$44:$L$57,7,FALSE)-HLOOKUP($B$54,'04_Wirtschaftlichkeit'!$E$44:$L$57,5,FALSE)*(1+$B75)) -> 0 | Z75: =Z$56*(-HLOOKUP($B$54,'04_Wirtschaftlichkeit'!$E$44:$L$57,7,FALSE)-HLOOKUP($B$54,'04_Wirtschaftlichkeit'!$E$44:$L$57,5,FALSE)*(1+$B75)) -> 0 | AA75: =AA$56*(-HLOOKUP($B$54,'04_Wirtschaftlichkeit'!$E$44:$L$57,7,FALSE)-HLOOKUP($B$54,'04_Wirtschaftlichkeit'!$E$44:$L$57,5,FALSE)*(1+$B75)) -> 0 | AB75: =AB$56*(-HLOOKUP($B$54,'04_Wirtschaftlichkeit'!$E$44:$L$57,7,FALSE)-HLOOKUP($B$54,'04_Wirtschaftlichkeit'!$E$44:$L$57,5,FALSE)*(1+$B75)) -> 0 | AC75: =AC$56*(-HLOOKUP($B$54,'04_Wirtschaftlichkeit'!$E$44:$L$57,7,FALSE)-HLOOKUP($B$54,'04_Wirtschaftlichkeit'!$E$44:$L$57,5,FALSE)*(1+$B75)) -> 0 | AD75: =AD$56*(-HLOOKUP($B$54,'04_Wirtschaftlichkeit'!$E$44:$L$57,7,FALSE)-HLOOKUP($B$54,'04_Wirtschaftlichkeit'!$E$44:$L$57,5,FALSE)*(1+$B75)) -> 0 | AE75: =AE$56*(-HLOOKUP($B$54,'04_Wirtschaftlichkeit'!$E$44:$L$57,7,FALSE)-HLOOKUP($B$54,'04_Wirtschaftlichkeit'!$E$44:$L$57,5,FALSE)*(1+$B75)) -> 0 | AF75: =AF$56*(-HLOOKUP($B$54,'04_Wirtschaftlichkeit'!$E$44:$L$57,7,FALSE)-HLOOKUP($B$54,'04_Wirtschaftlichkeit'!$E$44:$L$57,5,FALSE)*(1+$B75)) -> 0 | AG75: =AG$56*(-HLOOKUP($B$54,'04_Wirtschaftlichkeit'!$E$44:$L$57,7,FALSE)-HLOOKUP($B$54,'04_Wirtschaftlichkeit'!$E$44:$L$57,5,FALSE)*(1+$B75)) -> 0 | AH75: =AH$56*(-HLOOKUP($B$54,'04_Wirtschaftlichkeit'!$E$44:$L$57,7,FALSE)-HLOOKUP($B$54,'04_Wirtschaftlichkeit'!$E$44:$L$57,5,FALSE)*(1+$B75)) -> 0 | AI75: =AI$56*(-HLOOKUP($B$54,'04_Wirtschaftlichkeit'!$E$44:$L$57,7,FALSE)-HLOOKUP($B$54,'04_Wirtschaftlichkeit'!$E$44:$L$57,5,FALSE)*(1+$B75)) -> 0 | AJ75: =AJ$56*(-HLOOKUP($B$54,'04_Wirtschaftlichkeit'!$E$44:$L$57,7,FALSE)-HLOOKUP($B$54,'04_Wirtschaftlichkeit'!$E$44:$L$57,5,FALSE)*(1+$B75)) -> 0 | AK75: =AK$56*(-HLOOKUP($B$54,'04_Wirtschaftlichkeit'!$E$44:$L$57,7,FALSE)-HLOOKUP($B$54,'04_Wirtschaftlichkeit'!$E$44:$L$57,5,FALSE)*(1+$B75)) -> 0 | AL75: =AL$56*(-HLOOKUP($B$54,'04_Wirtschaftlichkeit'!$E$44:$L$57,7,FALSE)-HLOOKUP($B$54,'04_Wirtschaftlichkeit'!$E$44:$L$57,5,FALSE)*(1+$B75)) -> 0 | AM75: =AM$56*(-HLOOKUP($B$54,'04_Wirtschaftlichkeit'!$E$44:$L$57,7,FALSE)-HLOOKUP($B$54,'04_Wirtschaftlichkeit'!$E$44:$L$57,5,FALSE)*(1+$B75)) -> 0 | AN75: =AN$56*(-HLOOKUP($B$54,'04_Wirtschaftlichkeit'!$E$44:$L$57,7,FALSE)-HLOOKUP($B$54,'04_Wirtschaftlichkeit'!$E$44:$L$57,5,FALSE)*(1+$B75)) -> 0 | AO75: =AO$56*(-HLOOKUP($B$54,'04_Wirtschaftlichkeit'!$E$44:$L$57,7,FALSE)-HLOOKUP($B$54,'04_Wirtschaftlichkeit'!$E$44:$L$57,5,FALSE)*(1+$B75)) -> 0 | AP75: =AP$56*(-HLOOKUP($B$54,'04_Wirtschaftlichkeit'!$E$44:$L$57,7,FALSE)-HLOOKUP($B$54,'04_Wirtschaftlichkeit'!$E$44:$L$57,5,FALSE)*(1+$B75)) -> 0 | AQ75: =AQ$56*(-HLOOKUP($B$54,'04_Wirtschaftlichkeit'!$E$44:$L$57,7,FALSE)-HLOOKUP($B$54,'04_Wirtschaftlichkeit'!$E$44:$L$57,5,FALSE)*(1+$B75)) -> 0 | AR75: =AR$56*(-HLOOKUP($B$54,'04_Wirtschaftlichkeit'!$E$44:$L$57,7,FALSE)-HLOOKUP($B$54,'04_Wirtschaftlichkeit'!$E$44:$L$57,5,FALSE)*(1+$B75)) -> 0 | AS75: =AS$56*(-HLOOKUP($B$54,'04_Wirtschaftlichkeit'!$E$44:$L$57,7,FALSE)-HLOOKUP($B$54,'04_Wirtschaftlichkeit'!$E$44:$L$57,5,FALSE)*(1+$B75)) -> 0 | AT75: =AT$56*(-HLOOKUP($B$54,'04_Wirtschaftlichkeit'!$E$44:$L$57,7,FALSE)-HLOOKUP($B$54,'04_Wirtschaftlichkeit'!$E$44:$L$57,5,FALSE)*(1+$B75)) -> 0 | AU75: =AU$56*(-HLOOKUP($B$54,'04_Wirtschaftlichkeit'!$E$44:$L$57,7,FALSE)-HLOOKUP($B$54,'04_Wirtschaftlichkeit'!$E$44:$L$57,5,FALSE)*(1+$B75)) -> 0 | AV75: =AV$56*(-HLOOKUP($B$54,'04_Wirtschaftlichkeit'!$E$44:$L$57,7,FALSE)-HLOOKUP($B$54,'04_Wirtschaftlichkeit'!$E$44:$L$57,5,FALSE)*(1+$B75)) -> 0 | AW75: =AW$56*(-HLOOKUP($B$54,'04_Wirtschaftlichkeit'!$E$44:$L$57,7,FALSE)-HLOOKUP($B$54,'04_Wirtschaftlichkeit'!$E$44:$L$57,5,FALSE)*(1+$B75)) -> 0 | AX75: =AX$56*(-HLOOKUP($B$54,'04_Wirtschaftlichkeit'!$E$44:$L$57,7,FALSE)-HLOOKUP($B$54,'04_Wirtschaftlichkeit'!$E$44:$L$57,5,FALSE)*(1+$B75)) -> 0 | AY75: =AY$56*(-HLOOKUP($B$54,'04_Wirtschaftlichkeit'!$E$44:$L$57,7,FALSE)-HLOOKUP($B$54,'04_Wirtschaftlichkeit'!$E$44:$L$57,5,FALSE)*(1+$B75)) -> 0 | AZ75: =AZ$56*(-HLOOKUP($B$54,'04_Wirtschaftlichkeit'!$E$44:$L$57,7,FALSE)-HLOOKUP($B$54,'04_Wirtschaftlichkeit'!$E$44:$L$57,5,FALSE)*(1+$B75)) -> 0 | BA75: =BA$56*(-HLOOKUP($B$54,'04_Wirtschaftlichkeit'!$E$44:$L$57,7,FALSE)-HLOOKUP($B$54,'04_Wirtschaftlichkeit'!$E$44:$L$57,5,FALSE)*(1+$B75)) -> 0
B76: -0.1 | C76: =-HLOOKUP($B$54,'04_Wirtschaftlichkeit'!$E$44:$L$57,6,FALSE) -> -1057830.717 | D76: =D$56*(-HLOOKUP($B$54,'04_Wirtschaftlichkeit'!$E$44:$L$57,7,FALSE)-HLOOKUP($B$54,'04_Wirtschaftlichkeit'!$E$44:$L$57,5,FALSE)*(1+$B76)) -> -84156.01 | E76: =E$56*(-HLOOKUP($B$54,'04_Wirtschaftlichkeit'!$E$44:$L$57,7,FALSE)-HLOOKUP($B$54,'04_Wirtschaftlichkeit'!$E$44:$L$57,5,FALSE)*(1+$B76)) -> -84156.01 | F76: =F$56*(-HLOOKUP($B$54,'04_Wirtschaftlichkeit'!$E$44:$L$57,7,FALSE)-HLOOKUP($B$54,'04_Wirtschaftlichkeit'!$E$44:$L$57,5,FALSE)*(1+$B76)) -> -84156.01 | G76: =G$56*(-HLOOKUP($B$54,'04_Wirtschaftlichkeit'!$E$44:$L$57,7,FALSE)-HLOOKUP($B$54,'04_Wirtschaftlichkeit'!$E$44:$L$57,5,FALSE)*(1+$B76)) -> -84156.01 | H76: =H$56*(-HLOOKUP($B$54,'04_Wirtschaftlichkeit'!$E$44:$L$57,7,FALSE)-HLOOKUP($B$54,'04_Wirtschaftlichkeit'!$E$44:$L$57,5,FALSE)*(1+$B76)) -> -84156.01 | I76: =I$56*(-HLOOKUP($B$54,'04_Wirtschaftlichkeit'!$E$44:$L$57,7,FALSE)-HLOOKUP($B$54,'04_Wirtschaftlichkeit'!$E$44:$L$57,5,FALSE)*(1+$B76)) -> -84156.01 | J76: =J$56*(-HLOOKUP($B$54,'04_Wirtschaftlichkeit'!$E$44:$L$57,7,FALSE)-HLOOKUP($B$54,'04_Wirtschaftlichkeit'!$E$44:$L$57,5,FALSE)*(1+$B76)) -> -84156.01 | K76: =K$56*(-HLOOKUP($B$54,'04_Wirtschaftlichkeit'!$E$44:$L$57,7,FALSE)-HLOOKUP($B$54,'04_Wirtschaftlichkeit'!$E$44:$L$57,5,FALSE)*(1+$B76)) -> -84156.01 | L76: =L$56*(-HLOOKUP($B$54,'04_Wirtschaftlichkeit'!$E$44:$L$57,7,FALSE)-HLOOKUP($B$54,'04_Wirtschaftlichkeit'!$E$44:$L$57,5,FALSE)*(1+$B76)) -> -84156.01 | M76: =M$56*(-HLOOKUP($B$54,'04_Wirtschaftlichkeit'!$E$44:$L$57,7,FALSE)-HLOOKUP($B$54,'04_Wirtschaftlichkeit'!$E$44:$L$57,5,FALSE)*(1+$B76)) -> -84156.01 | N76: =N$56*(-HLOOKUP($B$54,'04_Wirtschaftlichkeit'!$E$44:$L$57,7,FALSE)-HLOOKUP($B$54,'04_Wirtschaftlichkeit'!$E$44:$L$57,5,FALSE)*(1+$B76)) -> -84156.01 | O76: =O$56*(-HLOOKUP($B$54,'04_Wirtschaftlichkeit'!$E$44:$L$57,7,FALSE)-HLOOKUP($B$54,'04_Wirtschaftlichkeit'!$E$44:$L$57,5,FALSE)*(1+$B76)) -> -84156.01 | P76: =P$56*(-HLOOKUP($B$54,'04_Wirtschaftlichkeit'!$E$44:$L$57,7,FALSE)-HLOOKUP($B$54,'04_Wirtschaftlichkeit'!$E$44:$L$57,5,FALSE)*(1+$B76)) -> -84156.01 | Q76: =Q$56*(-HLOOKUP($B$54,'04_Wirtschaftlichkeit'!$E$44:$L$57,7,FALSE)-HLOOKUP($B$54,'04_Wirtschaftlichkeit'!$E$44:$L$57,5,FALSE)*(1+$B76)) -> -84156.01 | R76: =R$56*(-HLOOKUP($B$54,'04_Wirtschaftlichkeit'!$E$44:$L$57,7,FALSE)-HLOOKUP($B$54,'04_Wirtschaftlichkeit'!$E$44:$L$57,5,FALSE)*(1+$B76)) -> -84156.01 | S76: =S$56*(-HLOOKUP($B$54,'04_Wirtschaftlichkeit'!$E$44:$L$57,7,FALSE)-HLOOKUP($B$54,'04_Wirtschaftlichkeit'!$E$44:$L$57,5,FALSE)*(1+$B76)) -> -84156.01 | T76: =T$56*(-HLOOKUP($B$54,'04_Wirtschaftlichkeit'!$E$44:$L$57,7,FALSE)-HLOOKUP($B$54,'04_Wirtschaftlichkeit'!$E$44:$L$57,5,FALSE)*(1+$B76)) -> -84156.01 | U76: =U$56*(-HLOOKUP($B$54,'04_Wirtschaftlichkeit'!$E$44:$L$57,7,FALSE)-HLOOKUP($B$54,'04_Wirtschaftlichkeit'!$E$44:$L$57,5,FALSE)*(1+$B76)) -> -84156.01 | V76: =V$56*(-HLOOKUP($B$54,'04_Wirtschaftlichkeit'!$E$44:$L$57,7,FALSE)-HLOOKUP($B$54,'04_Wirtschaftlichkeit'!$E$44:$L$57,5,FALSE)*(1+$B76)) -> -84156.01 | W76: =W$56*(-HLOOKUP($B$54,'04_Wirtschaftlichkeit'!$E$44:$L$57,7,FALSE)-HLOOKUP($B$54,'04_Wirtschaftlichkeit'!$E$44:$L$57,5,FALSE)*(1+$B76)) -> -84156.01 | X76: =X$56*(-HLOOKUP($B$54,'04_Wirtschaftlichkeit'!$E$44:$L$57,7,FALSE)-HLOOKUP($B$54,'04_Wirtschaftlichkeit'!$E$44:$L$57,5,FALSE)*(1+$B76)) -> 0 | Y76: =Y$56*(-HLOOKUP($B$54,'04_Wirtschaftlichkeit'!$E$44:$L$57,7,FALSE)-HLOOKUP($B$54,'04_Wirtschaftlichkeit'!$E$44:$L$57,5,FALSE)*(1+$B76)) -> 0 | Z76: =Z$56*(-HLOOKUP($B$54,'04_Wirtschaftlichkeit'!$E$44:$L$57,7,FALSE)-HLOOKUP($B$54,'04_Wirtschaftlichkeit'!$E$44:$L$57,5,FALSE)*(1+$B76)) -> 0 | AA76: =AA$56*(-HLOOKUP($B$54,'04_Wirtschaftlichkeit'!$E$44:$L$57,7,FALSE)-HLOOKUP($B$54,'04_Wirtschaftlichkeit'!$E$44:$L$57,5,FALSE)*(1+$B76)) -> 0 | AB76: =AB$56*(-HLOOKUP($B$54,'04_Wirtschaftlichkeit'!$E$44:$L$57,7,FALSE)-HLOOKUP($B$54,'04_Wirtschaftlichkeit'!$E$44:$L$57,5,FALSE)*(1+$B76)) -> 0 | AC76: =AC$56*(-HLOOKUP($B$54,'04_Wirtschaftlichkeit'!$E$44:$L$57,7,FALSE)-HLOOKUP($B$54,'04_Wirtschaftlichkeit'!$E$44:$L$57,5,FALSE)*(1+$B76)) -> 0 | AD76: =AD$56*(-HLOOKUP($B$54,'04_Wirtschaftlichkeit'!$E$44:$L$57,7,FALSE)-HLOOKUP($B$54,'04_Wirtschaftlichkeit'!$E$44:$L$57,5,FALSE)*(1+$B76)) -> 0 | AE76: =AE$56*(-HLOOKUP($B$54,'04_Wirtschaftlichkeit'!$E$44:$L$57,7,FALSE)-HLOOKUP($B$54,'04_Wirtschaftlichkeit'!$E$44:$L$57,5,FALSE)*(1+$B76)) -> 0 | AF76: =AF$56*(-HLOOKUP($B$54,'04_Wirtschaftlichkeit'!$E$44:$L$57,7,FALSE)-HLOOKUP($B$54,'04_Wirtschaftlichkeit'!$E$44:$L$57,5,FALSE)*(1+$B76)) -> 0 | AG76: =AG$56*(-HLOOKUP($B$54,'04_Wirtschaftlichkeit'!$E$44:$L$57,7,FALSE)-HLOOKUP($B$54,'04_Wirtschaftlichkeit'!$E$44:$L$57,5,FALSE)*(1+$B76)) -> 0 | AH76: =AH$56*(-HLOOKUP($B$54,'04_Wirtschaftlichkeit'!$E$44:$L$57,7,FALSE)-HLOOKUP($B$54,'04_Wirtschaftlichkeit'!$E$44:$L$57,5,FALSE)*(1+$B76)) -> 0 | AI76: =AI$56*(-HLOOKUP($B$54,'04_Wirtschaftlichkeit'!$E$44:$L$57,7,FALSE)-HLOOKUP($B$54,'04_Wirtschaftlichkeit'!$E$44:$L$57,5,FALSE)*(1+$B76)) -> 0 | AJ76: =AJ$56*(-HLOOKUP($B$54,'04_Wirtschaftlichkeit'!$E$44:$L$57,7,FALSE)-HLOOKUP($B$54,'04_Wirtschaftlichkeit'!$E$44:$L$57,5,FALSE)*(1+$B76)) -> 0 | AK76: =AK$56*(-HLOOKUP($B$54,'04_Wirtschaftlichkeit'!$E$44:$L$57,7,FALSE)-HLOOKUP($B$54,'04_Wirtschaftlichkeit'!$E$44:$L$57,5,FALSE)*(1+$B76)) -> 0 | AL76: =AL$56*(-HLOOKUP($B$54,'04_Wirtschaftlichkeit'!$E$44:$L$57,7,FALSE)-HLOOKUP($B$54,'04_Wirtschaftlichkeit'!$E$44:$L$57,5,FALSE)*(1+$B76)) -> 0 | AM76: =AM$56*(-HLOOKUP($B$54,'04_Wirtschaftlichkeit'!$E$44:$L$57,7,FALSE)-HLOOKUP($B$54,'04_Wirtschaftlichkeit'!$E$44:$L$57,5,FALSE)*(1+$B76)) -> 0 | AN76: =AN$56*(-HLOOKUP($B$54,'04_Wirtschaftlichkeit'!$E$44:$L$57,7,FALSE)-HLOOKUP($B$54,'04_Wirtschaftlichkeit'!$E$44:$L$57,5,FALSE)*(1+$B76)) -> 0 | AO76: =AO$56*(-HLOOKUP($B$54,'04_Wirtschaftlichkeit'!$E$44:$L$57,7,FALSE)-HLOOKUP($B$54,'04_Wirtschaftlichkeit'!$E$44:$L$57,5,FALSE)*(1+$B76)) -> 0 | AP76: =AP$56*(-HLOOKUP($B$54,'04_Wirtschaftlichkeit'!$E$44:$L$57,7,FALSE)-HLOOKUP($B$54,'04_Wirtschaftlichkeit'!$E$44:$L$57,5,FALSE)*(1+$B76)) -> 0 | AQ76: =AQ$56*(-HLOOKUP($B$54,'04_Wirtschaftlichkeit'!$E$44:$L$57,7,FALSE)-HLOOKUP($B$54,'04_Wirtschaftlichkeit'!$E$44:$L$57,5,FALSE)*(1+$B76)) -> 0 | AR76: =AR$56*(-HLOOKUP($B$54,'04_Wirtschaftlichkeit'!$E$44:$L$57,7,FALSE)-HLOOKUP($B$54,'04_Wirtschaftlichkeit'!$E$44:$L$57,5,FALSE)*(1+$B76)) -> 0 | AS76: =AS$56*(-HLOOKUP($B$54,'04_Wirtschaftlichkeit'!$E$44:$L$57,7,FALSE)-HLOOKUP($B$54,'04_Wirtschaftlichkeit'!$E$44:$L$57,5,FALSE)*(1+$B76)) -> 0 | AT76: =AT$56*(-HLOOKUP($B$54,'04_Wirtschaftlichkeit'!$E$44:$L$57,7,FALSE)-HLOOKUP($B$54,'04_Wirtschaftlichkeit'!$E$44:$L$57,5,FALSE)*(1+$B76)) -> 0 | AU76: =AU$56*(-HLOOKUP($B$54,'04_Wirtschaftlichkeit'!$E$44:$L$57,7,FALSE)-HLOOKUP($B$54,'04_Wirtschaftlichkeit'!$E$44:$L$57,5,FALSE)*(1+$B76)) -> 0 | AV76: =AV$56*(-HLOOKUP($B$54,'04_Wirtschaftlichkeit'!$E$44:$L$57,7,FALSE)-HLOOKUP($B$54,'04_Wirtschaftlichkeit'!$E$44:$L$57,5,FALSE)*(1+$B76)) -> 0 | AW76: =AW$56*(-HLOOKUP($B$54,'04_Wirtschaftlichkeit'!$E$44:$L$57,7,FALSE)-HLOOKUP($B$54,'04_Wirtschaftlichkeit'!$E$44:$L$57,5,FALSE)*(1+$B76)) -> 0 | AX76: =AX$56*(-HLOOKUP($B$54,'04_Wirtschaftlichkeit'!$E$44:$L$57,7,FALSE)-HLOOKUP($B$54,'04_Wirtschaftlichkeit'!$E$44:$L$57,5,FALSE)*(1+$B76)) -> 0 | AY76: =AY$56*(-HLOOKUP($B$54,'04_Wirtschaftlichkeit'!$E$44:$L$57,7,FALSE)-HLOOKUP($B$54,'04_Wirtschaftlichkeit'!$E$44:$L$57,5,FALSE)*(1+$B76)) -> 0 | AZ76: =AZ$56*(-HLOOKUP($B$54,'04_Wirtschaftlichkeit'!$E$44:$L$57,7,FALSE)-HLOOKUP($B$54,'04_Wirtschaftlichkeit'!$E$44:$L$57,5,FALSE)*(1+$B76)) -> 0 | BA76: =BA$56*(-HLOOKUP($B$54,'04_Wirtschaftlichkeit'!$E$44:$L$57,7,FALSE)-HLOOKUP($B$54,'04_Wirtschaftlichkeit'!$E$44:$L$57,5,FALSE)*(1+$B76)) -> 0
B77: 0 | C77: =-HLOOKUP($B$54,'04_Wirtschaftlichkeit'!$E$44:$L$57,6,FALSE) -> -1057830.717 | D77: =D$56*(-HLOOKUP($B$54,'04_Wirtschaftlichkeit'!$E$44:$L$57,7,FALSE)-HLOOKUP($B$54,'04_Wirtschaftlichkeit'!$E$44:$L$57,5,FALSE)*(1+$B77)) -> -84207.9 | E77: =E$56*(-HLOOKUP($B$54,'04_Wirtschaftlichkeit'!$E$44:$L$57,7,FALSE)-HLOOKUP($B$54,'04_Wirtschaftlichkeit'!$E$44:$L$57,5,FALSE)*(1+$B77)) -> -84207.9 | F77: =F$56*(-HLOOKUP($B$54,'04_Wirtschaftlichkeit'!$E$44:$L$57,7,FALSE)-HLOOKUP($B$54,'04_Wirtschaftlichkeit'!$E$44:$L$57,5,FALSE)*(1+$B77)) -> -84207.9 | G77: =G$56*(-HLOOKUP($B$54,'04_Wirtschaftlichkeit'!$E$44:$L$57,7,FALSE)-HLOOKUP($B$54,'04_Wirtschaftlichkeit'!$E$44:$L$57,5,FALSE)*(1+$B77)) -> -84207.9 | H77: =H$56*(-HLOOKUP($B$54,'04_Wirtschaftlichkeit'!$E$44:$L$57,7,FALSE)-HLOOKUP($B$54,'04_Wirtschaftlichkeit'!$E$44:$L$57,5,FALSE)*(1+$B77)) -> -84207.9 | I77: =I$56*(-HLOOKUP($B$54,'04_Wirtschaftlichkeit'!$E$44:$L$57,7,FALSE)-HLOOKUP($B$54,'04_Wirtschaftlichkeit'!$E$44:$L$57,5,FALSE)*(1+$B77)) -> -84207.9 | J77: =J$56*(-HLOOKUP($B$54,'04_Wirtschaftlichkeit'!$E$44:$L$57,7,FALSE)-HLOOKUP($B$54,'04_Wirtschaftlichkeit'!$E$44:$L$57,5,FALSE)*(1+$B77)) -> -84207.9 | K77: =K$56*(-HLOOKUP($B$54,'04_Wirtschaftlichkeit'!$E$44:$L$57,7,FALSE)-HLOOKUP($B$54,'04_Wirtschaftlichkeit'!$E$44:$L$57,5,FALSE)*(1+$B77)) -> -84207.9 | L77: =L$56*(-HLOOKUP($B$54,'04_Wirtschaftlichkeit'!$E$44:$L$57,7,FALSE)-HLOOKUP($B$54,'04_Wirtschaftlichkeit'!$E$44:$L$57,5,FALSE)*(1+$B77)) -> -84207.9 | M77: =M$56*(-HLOOKUP($B$54,'04_Wirtschaftlichkeit'!$E$44:$L$57,7,FALSE)-HLOOKUP($B$54,'04_Wirtschaftlichkeit'!$E$44:$L$57,5,FALSE)*(1+$B77)) -> -84207.9 | N77: =N$56*(-HLOOKUP($B$54,'04_Wirtschaftlichkeit'!$E$44:$L$57,7,FALSE)-HLOOKUP($B$54,'04_Wirtschaftlichkeit'!$E$44:$L$57,5,FALSE)*(1+$B77)) -> -84207.9 | O77: =O$56*(-HLOOKUP($B$54,'04_Wirtschaftlichkeit'!$E$44:$L$57,7,FALSE)-HLOOKUP($B$54,'04_Wirtschaftlichkeit'!$E$44:$L$57,5,FALSE)*(1+$B77)) -> -84207.9 | P77: =P$56*(-HLOOKUP($B$54,'04_Wirtschaftlichkeit'!$E$44:$L$57,7,FALSE)-HLOOKUP($B$54,'04_Wirtschaftlichkeit'!$E$44:$L$57,5,FALSE)*(1+$B77)) -> -84207.9 | Q77: =Q$56*(-HLOOKUP($B$54,'04_Wirtschaftlichkeit'!$E$44:$L$57,7,FALSE)-HLOOKUP($B$54,'04_Wirtschaftlichkeit'!$E$44:$L$57,5,FALSE)*(1+$B77)) -> -84207.9 | R77: =R$56*(-HLOOKUP($B$54,'04_Wirtschaftlichkeit'!$E$44:$L$57,7,FALSE)-HLOOKUP($B$54,'04_Wirtschaftlichkeit'!$E$44:$L$57,5,FALSE)*(1+$B77)) -> -84207.9 | S77: =S$56*(-HLOOKUP($B$54,'04_Wirtschaftlichkeit'!$E$44:$L$57,7,FALSE)-HLOOKUP($B$54,'04_Wirtschaftlichkeit'!$E$44:$L$57,5,FALSE)*(1+$B77)) -> -84207.9 | T77: =T$56*(-HLOOKUP($B$54,'04_Wirtschaftlichkeit'!$E$44:$L$57,7,FALSE)-HLOOKUP($B$54,'04_Wirtschaftlichkeit'!$E$44:$L$57,5,FALSE)*(1+$B77)) -> -84207.9 | U77: =U$56*(-HLOOKUP($B$54,'04_Wirtschaftlichkeit'!$E$44:$L$57,7,FALSE)-HLOOKUP($B$54,'04_Wirtschaftlichkeit'!$E$44:$L$57,5,FALSE)*(1+$B77)) -> -84207.9 | V77: =V$56*(-HLOOKUP($B$54,'04_Wirtschaftlichkeit'!$E$44:$L$57,7,FALSE)-HLOOKUP($B$54,'04_Wirtschaftlichkeit'!$E$44:$L$57,5,FALSE)*(1+$B77)) -> -84207.9 | W77: =W$56*(-HLOOKUP($B$54,'04_Wirtschaftlichkeit'!$E$44:$L$57,7,FALSE)-HLOOKUP($B$54,'04_Wirtschaftlichkeit'!$E$44:$L$57,5,FALSE)*(1+$B77)) -> -84207.9 | X77: =X$56*(-HLOOKUP($B$54,'04_Wirtschaftlichkeit'!$E$44:$L$57,7,FALSE)-HLOOKUP($B$54,'04_Wirtschaftlichkeit'!$E$44:$L$57,5,FALSE)*(1+$B77)) -> 0 | Y77: =Y$56*(-HLOOKUP($B$54,'04_Wirtschaftlichkeit'!$E$44:$L$57,7,FALSE)-HLOOKUP($B$54,'04_Wirtschaftlichkeit'!$E$44:$L$57,5,FALSE)*(1+$B77)) -> 0 | Z77: =Z$56*(-HLOOKUP($B$54,'04_Wirtschaftlichkeit'!$E$44:$L$57,7,FALSE)-HLOOKUP($B$54,'04_Wirtschaftlichkeit'!$E$44:$L$57,5,FALSE)*(1+$B77)) -> 0 | AA77: =AA$56*(-HLOOKUP($B$54,'04_Wirtschaftlichkeit'!$E$44:$L$57,7,FALSE)-HLOOKUP($B$54,'04_Wirtschaftlichkeit'!$E$44:$L$57,5,FALSE)*(1+$B77)) -> 0 | AB77: =AB$56*(-HLOOKUP($B$54,'04_Wirtschaftlichkeit'!$E$44:$L$57,7,FALSE)-HLOOKUP($B$54,'04_Wirtschaftlichkeit'!$E$44:$L$57,5,FALSE)*(1+$B77)) -> 0 | AC77: =AC$56*(-HLOOKUP($B$54,'04_Wirtschaftlichkeit'!$E$44:$L$57,7,FALSE)-HLOOKUP($B$54,'04_Wirtschaftlichkeit'!$E$44:$L$57,5,FALSE)*(1+$B77)) -> 0 | AD77: =AD$56*(-HLOOKUP($B$54,'04_Wirtschaftlichkeit'!$E$44:$L$57,7,FALSE)-HLOOKUP($B$54,'04_Wirtschaftlichkeit'!$E$44:$L$57,5,FALSE)*(1+$B77)) -> 0 | AE77: =AE$56*(-HLOOKUP($B$54,'04_Wirtschaftlichkeit'!$E$44:$L$57,7,FALSE)-HLOOKUP($B$54,'04_Wirtschaftlichkeit'!$E$44:$L$57,5,FALSE)*(1+$B77)) -> 0 | AF77: =AF$56*(-HLOOKUP($B$54,'04_Wirtschaftlichkeit'!$E$44:$L$57,7,FALSE)-HLOOKUP($B$54,'04_Wirtschaftlichkeit'!$E$44:$L$57,5,FALSE)*(1+$B77)) -> 0 | AG77: =AG$56*(-HLOOKUP($B$54,'04_Wirtschaftlichkeit'!$E$44:$L$57,7,FALSE)-HLOOKUP($B$54,'04_Wirtschaftlichkeit'!$E$44:$L$57,5,FALSE)*(1+$B77)) -> 0 | AH77: =AH$56*(-HLOOKUP($B$54,'04_Wirtschaftlichkeit'!$E$44:$L$57,7,FALSE)-HLOOKUP($B$54,'04_Wirtschaftlichkeit'!$E$44:$L$57,5,FALSE)*(1+$B77)) -> 0 | AI77: =AI$56*(-HLOOKUP($B$54,'04_Wirtschaftlichkeit'!$E$44:$L$57,7,FALSE)-HLOOKUP($B$54,'04_Wirtschaftlichkeit'!$E$44:$L$57,5,FALSE)*(1+$B77)) -> 0 | AJ77: =AJ$56*(-HLOOKUP($B$54,'04_Wirtschaftlichkeit'!$E$44:$L$57,7,FALSE)-HLOOKUP($B$54,'04_Wirtschaftlichkeit'!$E$44:$L$57,5,FALSE)*(1+$B77)) -> 0 | AK77: =AK$56*(-HLOOKUP($B$54,'04_Wirtschaftlichkeit'!$E$44:$L$57,7,FALSE)-HLOOKUP($B$54,'04_Wirtschaftlichkeit'!$E$44:$L$57,5,FALSE)*(1+$B77)) -> 0 | AL77: =AL$56*(-HLOOKUP($B$54,'04_Wirtschaftlichkeit'!$E$44:$L$57,7,FALSE)-HLOOKUP($B$54,'04_Wirtschaftlichkeit'!$E$44:$L$57,5,FALSE)*(1+$B77)) -> 0 | AM77: =AM$56*(-HLOOKUP($B$54,'04_Wirtschaftlichkeit'!$E$44:$L$57,7,FALSE)-HLOOKUP($B$54,'04_Wirtschaftlichkeit'!$E$44:$L$57,5,FALSE)*(1+$B77)) -> 0 | AN77: =AN$56*(-HLOOKUP($B$54,'04_Wirtschaftlichkeit'!$E$44:$L$57,7,FALSE)-HLOOKUP($B$54,'04_Wirtschaftlichkeit'!$E$44:$L$57,5,FALSE)*(1+$B77)) -> 0 | AO77: =AO$56*(-HLOOKUP($B$54,'04_Wirtschaftlichkeit'!$E$44:$L$57,7,FALSE)-HLOOKUP($B$54,'04_Wirtschaftlichkeit'!$E$44:$L$57,5,FALSE)*(1+$B77)) -> 0 | AP77: =AP$56*(-HLOOKUP($B$54,'04_Wirtschaftlichkeit'!$E$44:$L$57,7,FALSE)-HLOOKUP($B$54,'04_Wirtschaftlichkeit'!$E$44:$L$57,5,FALSE)*(1+$B77)) -> 0 | AQ77: =AQ$56*(-HLOOKUP($B$54,'04_Wirtschaftlichkeit'!$E$44:$L$57,7,FALSE)-HLOOKUP($B$54,'04_Wirtschaftlichkeit'!$E$44:$L$57,5,FALSE)*(1+$B77)) -> 0 | AR77: =AR$56*(-HLOOKUP($B$54,'04_Wirtschaftlichkeit'!$E$44:$L$57,7,FALSE)-HLOOKUP($B$54,'04_Wirtschaftlichkeit'!$E$44:$L$57,5,FALSE)*(1+$B77)) -> 0 | AS77: =AS$56*(-HLOOKUP($B$54,'04_Wirtschaftlichkeit'!$E$44:$L$57,7,FALSE)-HLOOKUP($B$54,'04_Wirtschaftlichkeit'!$E$44:$L$57,5,FALSE)*(1+$B77)) -> 0 | AT77: =AT$56*(-HLOOKUP($B$54,'04_Wirtschaftlichkeit'!$E$44:$L$57,7,FALSE)-HLOOKUP($B$54,'04_Wirtschaftlichkeit'!$E$44:$L$57,5,FALSE)*(1+$B77)) -> 0 | AU77: =AU$56*(-HLOOKUP($B$54,'04_Wirtschaftlichkeit'!$E$44:$L$57,7,FALSE)-HLOOKUP($B$54,'04_Wirtschaftlichkeit'!$E$44:$L$57,5,FALSE)*(1+$B77)) -> 0 | AV77: =AV$56*(-HLOOKUP($B$54,'04_Wirtschaftlichkeit'!$E$44:$L$57,7,FALSE)-HLOOKUP($B$54,'04_Wirtschaftlichkeit'!$E$44:$L$57,5,FALSE)*(1+$B77)) -> 0 | AW77: =AW$56*(-HLOOKUP($B$54,'04_Wirtschaftlichkeit'!$E$44:$L$57,7,FALSE)-HLOOKUP($B$54,'04_Wirtschaftlichkeit'!$E$44:$L$57,5,FALSE)*(1+$B77)) -> 0 | AX77: =AX$56*(-HLOOKUP($B$54,'04_Wirtschaftlichkeit'!$E$44:$L$57,7,FALSE)-HLOOKUP($B$54,'04_Wirtschaftlichkeit'!$E$44:$L$57,5,FALSE)*(1+$B77)) -> 0 | AY77: =AY$56*(-HLOOKUP($B$54,'04_Wirtschaftlichkeit'!$E$44:$L$57,7,FALSE)-HLOOKUP($B$54,'04_Wirtschaftlichkeit'!$E$44:$L$57,5,FALSE)*(1+$B77)) -> 0 | AZ77: =AZ$56*(-HLOOKUP($B$54,'04_Wirtschaftlichkeit'!$E$44:$L$57,7,FALSE)-HLOOKUP($B$54,'04_Wirtschaftlichkeit'!$E$44:$L$57,5,FALSE)*(1+$B77)) -> 0 | BA77: =BA$56*(-HLOOKUP($B$54,'04_Wirtschaftlichkeit'!$E$44:$L$57,7,FALSE)-HLOOKUP($B$54,'04_Wirtschaftlichkeit'!$E$44:$L$57,5,FALSE)*(1+$B77)) -> 0
B78: 0.1 | C78: =-HLOOKUP($B$54,'04_Wirtschaftlichkeit'!$E$44:$L$57,6,FALSE) -> -1057830.717 | D78: =D$56*(-HLOOKUP($B$54,'04_Wirtschaftlichkeit'!$E$44:$L$57,7,FALSE)-HLOOKUP($B$54,'04_Wirtschaftlichkeit'!$E$44:$L$57,5,FALSE)*(1+$B78)) -> -84259.79 | E78: =E$56*(-HLOOKUP($B$54,'04_Wirtschaftlichkeit'!$E$44:$L$57,7,FALSE)-HLOOKUP($B$54,'04_Wirtschaftlichkeit'!$E$44:$L$57,5,FALSE)*(1+$B78)) -> -84259.79 | F78: =F$56*(-HLOOKUP($B$54,'04_Wirtschaftlichkeit'!$E$44:$L$57,7,FALSE)-HLOOKUP($B$54,'04_Wirtschaftlichkeit'!$E$44:$L$57,5,FALSE)*(1+$B78)) -> -84259.79 | G78: =G$56*(-HLOOKUP($B$54,'04_Wirtschaftlichkeit'!$E$44:$L$57,7,FALSE)-HLOOKUP($B$54,'04_Wirtschaftlichkeit'!$E$44:$L$57,5,FALSE)*(1+$B78)) -> -84259.79 | H78: =H$56*(-HLOOKUP($B$54,'04_Wirtschaftlichkeit'!$E$44:$L$57,7,FALSE)-HLOOKUP($B$54,'04_Wirtschaftlichkeit'!$E$44:$L$57,5,FALSE)*(1+$B78)) -> -84259.79 | I78: =I$56*(-HLOOKUP($B$54,'04_Wirtschaftlichkeit'!$E$44:$L$57,7,FALSE)-HLOOKUP($B$54,'04_Wirtschaftlichkeit'!$E$44:$L$57,5,FALSE)*(1+$B78)) -> -84259.79 | J78: =J$56*(-HLOOKUP($B$54,'04_Wirtschaftlichkeit'!$E$44:$L$57,7,FALSE)-HLOOKUP($B$54,'04_Wirtschaftlichkeit'!$E$44:$L$57,5,FALSE)*(1+$B78)) -> -84259.79 | K78: =K$56*(-HLOOKUP($B$54,'04_Wirtschaftlichkeit'!$E$44:$L$57,7,FALSE)-HLOOKUP($B$54,'04_Wirtschaftlichkeit'!$E$44:$L$57,5,FALSE)*(1+$B78)) -> -84259.79 | L78: =L$56*(-HLOOKUP($B$54,'04_Wirtschaftlichkeit'!$E$44:$L$57,7,FALSE)-HLOOKUP($B$54,'04_Wirtschaftlichkeit'!$E$44:$L$57,5,FALSE)*(1+$B78)) -> -84259.79 | M78: =M$56*(-HLOOKUP($B$54,'04_Wirtschaftlichkeit'!$E$44:$L$57,7,FALSE)-HLOOKUP($B$54,'04_Wirtschaftlichkeit'!$E$44:$L$57,5,FALSE)*(1+$B78)) -> -84259.79 | N78: =N$56*(-HLOOKUP($B$54,'04_Wirtschaftlichkeit'!$E$44:$L$57,7,FALSE)-HLOOKUP($B$54,'04_Wirtschaftlichkeit'!$E$44:$L$57,5,FALSE)*(1+$B78)) -> -84259.79 | O78: =O$56*(-HLOOKUP($B$54,'04_Wirtschaftlichkeit'!$E$44:$L$57,7,FALSE)-HLOOKUP($B$54,'04_Wirtschaftlichkeit'!$E$44:$L$57,5,FALSE)*(1+$B78)) -> -84259.79 | P78: =P$56*(-HLOOKUP($B$54,'04_Wirtschaftlichkeit'!$E$44:$L$57,7,FALSE)-HLOOKUP($B$54,'04_Wirtschaftlichkeit'!$E$44:$L$57,5,FALSE)*(1+$B78)) -> -84259.79 | Q78: =Q$56*(-HLOOKUP($B$54,'04_Wirtschaftlichkeit'!$E$44:$L$57,7,FALSE)-HLOOKUP($B$54,'04_Wirtschaftlichkeit'!$E$44:$L$57,5,FALSE)*(1+$B78)) -> -84259.79 | R78: =R$56*(-HLOOKUP($B$54,'04_Wirtschaftlichkeit'!$E$44:$L$57,7,FALSE)-HLOOKUP($B$54,'04_Wirtschaftlichkeit'!$E$44:$L$57,5,FALSE)*(1+$B78)) -> -84259.79 | S78: =S$56*(-HLOOKUP($B$54,'04_Wirtschaftlichkeit'!$E$44:$L$57,7,FALSE)-HLOOKUP($B$54,'04_Wirtschaftlichkeit'!$E$44:$L$57,5,FALSE)*(1+$B78)) -> -84259.79 | T78: =T$56*(-HLOOKUP($B$54,'04_Wirtschaftlichkeit'!$E$44:$L$57,7,FALSE)-HLOOKUP($B$54,'04_Wirtschaftlichkeit'!$E$44:$L$57,5,FALSE)*(1+$B78)) -> -84259.79 | U78: =U$56*(-HLOOKUP($B$54,'04_Wirtschaftlichkeit'!$E$44:$L$57,7,FALSE)-HLOOKUP($B$54,'04_Wirtschaftlichkeit'!$E$44:$L$57,5,FALSE)*(1+$B78)) -> -84259.79 | V78: =V$56*(-HLOOKUP($B$54,'04_Wirtschaftlichkeit'!$E$44:$L$57,7,FALSE)-HLOOKUP($B$54,'04_Wirtschaftlichkeit'!$E$44:$L$57,5,FALSE)*(1+$B78)) -> -84259.79 | W78: =W$56*(-HLOOKUP($B$54,'04_Wirtschaftlichkeit'!$E$44:$L$57,7,FALSE)-HLOOKUP($B$54,'04_Wirtschaftlichkeit'!$E$44:$L$57,5,FALSE)*(1+$B78)) -> -84259.79 | X78: =X$56*(-HLOOKUP($B$54,'04_Wirtschaftlichkeit'!$E$44:$L$57,7,FALSE)-HLOOKUP($B$54,'04_Wirtschaftlichkeit'!$E$44:$L$57,5,FALSE)*(1+$B78)) -> 0 | Y78: =Y$56*(-HLOOKUP($B$54,'04_Wirtschaftlichkeit'!$E$44:$L$57,7,FALSE)-HLOOKUP($B$54,'04_Wirtschaftlichkeit'!$E$44:$L$57,5,FALSE)*(1+$B78)) -> 0 | Z78: =Z$56*(-HLOOKUP($B$54,'04_Wirtschaftlichkeit'!$E$44:$L$57,7,FALSE)-HLOOKUP($B$54,'04_Wirtschaftlichkeit'!$E$44:$L$57,5,FALSE)*(1+$B78)) -> 0 | AA78: =AA$56*(-HLOOKUP($B$54,'04_Wirtschaftlichkeit'!$E$44:$L$57,7,FALSE)-HLOOKUP($B$54,'04_Wirtschaftlichkeit'!$E$44:$L$57,5,FALSE)*(1+$B78)) -> 0 | AB78: =AB$56*(-HLOOKUP($B$54,'04_Wirtschaftlichkeit'!$E$44:$L$57,7,FALSE)-HLOOKUP($B$54,'04_Wirtschaftlichkeit'!$E$44:$L$57,5,FALSE)*(1+$B78)) -> 0 | AC78: =AC$56*(-HLOOKUP($B$54,'04_Wirtschaftlichkeit'!$E$44:$L$57,7,FALSE)-HLOOKUP($B$54,'04_Wirtschaftlichkeit'!$E$44:$L$57,5,FALSE)*(1+$B78)) -> 0 | AD78: =AD$56*(-HLOOKUP($B$54,'04_Wirtschaftlichkeit'!$E$44:$L$57,7,FALSE)-HLOOKUP($B$54,'04_Wirtschaftlichkeit'!$E$44:$L$57,5,FALSE)*(1+$B78)) -> 0 | AE78: =AE$56*(-HLOOKUP($B$54,'04_Wirtschaftlichkeit'!$E$44:$L$57,7,FALSE)-HLOOKUP($B$54,'04_Wirtschaftlichkeit'!$E$44:$L$57,5,FALSE)*(1+$B78)) -> 0 | AF78: =AF$56*(-HLOOKUP($B$54,'04_Wirtschaftlichkeit'!$E$44:$L$57,7,FALSE)-HLOOKUP($B$54,'04_Wirtschaftlichkeit'!$E$44:$L$57,5,FALSE)*(1+$B78)) -> 0 | AG78: =AG$56*(-HLOOKUP($B$54,'04_Wirtschaftlichkeit'!$E$44:$L$57,7,FALSE)-HLOOKUP($B$54,'04_Wirtschaftlichkeit'!$E$44:$L$57,5,FALSE)*(1+$B78)) -> 0 | AH78: =AH$56*(-HLOOKUP($B$54,'04_Wirtschaftlichkeit'!$E$44:$L$57,7,FALSE)-HLOOKUP($B$54,'04_Wirtschaftlichkeit'!$E$44:$L$57,5,FALSE)*(1+$B78)) -> 0 | AI78: =AI$56*(-HLOOKUP($B$54,'04_Wirtschaftlichkeit'!$E$44:$L$57,7,FALSE)-HLOOKUP($B$54,'04_Wirtschaftlichkeit'!$E$44:$L$57,5,FALSE)*(1+$B78)) -> 0 | AJ78: =AJ$56*(-HLOOKUP($B$54,'04_Wirtschaftlichkeit'!$E$44:$L$57,7,FALSE)-HLOOKUP($B$54,'04_Wirtschaftlichkeit'!$E$44:$L$57,5,FALSE)*(1+$B78)) -> 0 | AK78: =AK$56*(-HLOOKUP($B$54,'04_Wirtschaftlichkeit'!$E$44:$L$57,7,FALSE)-HLOOKUP($B$54,'04_Wirtschaftlichkeit'!$E$44:$L$57,5,FALSE)*(1+$B78)) -> 0 | AL78: =AL$56*(-HLOOKUP($B$54,'04_Wirtschaftlichkeit'!$E$44:$L$57,7,FALSE)-HLOOKUP($B$54,'04_Wirtschaftlichkeit'!$E$44:$L$57,5,FALSE)*(1+$B78)) -> 0 | AM78: =AM$56*(-HLOOKUP($B$54,'04_Wirtschaftlichkeit'!$E$44:$L$57,7,FALSE)-HLOOKUP($B$54,'04_Wirtschaftlichkeit'!$E$44:$L$57,5,FALSE)*(1+$B78)) -> 0 | AN78: =AN$56*(-HLOOKUP($B$54,'04_Wirtschaftlichkeit'!$E$44:$L$57,7,FALSE)-HLOOKUP($B$54,'04_Wirtschaftlichkeit'!$E$44:$L$57,5,FALSE)*(1+$B78)) -> 0 | AO78: =AO$56*(-HLOOKUP($B$54,'04_Wirtschaftlichkeit'!$E$44:$L$57,7,FALSE)-HLOOKUP($B$54,'04_Wirtschaftlichkeit'!$E$44:$L$57,5,FALSE)*(1+$B78)) -> 0 | AP78: =AP$56*(-HLOOKUP($B$54,'04_Wirtschaftlichkeit'!$E$44:$L$57,7,FALSE)-HLOOKUP($B$54,'04_Wirtschaftlichkeit'!$E$44:$L$57,5,FALSE)*(1+$B78)) -> 0 | AQ78: =AQ$56*(-HLOOKUP($B$54,'04_Wirtschaftlichkeit'!$E$44:$L$57,7,FALSE)-HLOOKUP($B$54,'04_Wirtschaftlichkeit'!$E$44:$L$57,5,FALSE)*(1+$B78)) -> 0 | AR78: =AR$56*(-HLOOKUP($B$54,'04_Wirtschaftlichkeit'!$E$44:$L$57,7,FALSE)-HLOOKUP($B$54,'04_Wirtschaftlichkeit'!$E$44:$L$57,5,FALSE)*(1+$B78)) -> 0 | AS78: =AS$56*(-HLOOKUP($B$54,'04_Wirtschaftlichkeit'!$E$44:$L$57,7,FALSE)-HLOOKUP($B$54,'04_Wirtschaftlichkeit'!$E$44:$L$57,5,FALSE)*(1+$B78)) -> 0 | AT78: =AT$56*(-HLOOKUP($B$54,'04_Wirtschaftlichkeit'!$E$44:$L$57,7,FALSE)-HLOOKUP($B$54,'04_Wirtschaftlichkeit'!$E$44:$L$57,5,FALSE)*(1+$B78)) -> 0 | AU78: =AU$56*(-HLOOKUP($B$54,'04_Wirtschaftlichkeit'!$E$44:$L$57,7,FALSE)-HLOOKUP($B$54,'04_Wirtschaftlichkeit'!$E$44:$L$57,5,FALSE)*(1+$B78)) -> 0 | AV78: =AV$56*(-HLOOKUP($B$54,'04_Wirtschaftlichkeit'!$E$44:$L$57,7,FALSE)-HLOOKUP($B$54,'04_Wirtschaftlichkeit'!$E$44:$L$57,5,FALSE)*(1+$B78)) -> 0 | AW78: =AW$56*(-HLOOKUP($B$54,'04_Wirtschaftlichkeit'!$E$44:$L$57,7,FALSE)-HLOOKUP($B$54,'04_Wirtschaftlichkeit'!$E$44:$L$57,5,FALSE)*(1+$B78)) -> 0 | AX78: =AX$56*(-HLOOKUP($B$54,'04_Wirtschaftlichkeit'!$E$44:$L$57,7,FALSE)-HLOOKUP($B$54,'04_Wirtschaftlichkeit'!$E$44:$L$57,5,FALSE)*(1+$B78)) -> 0 | AY78: =AY$56*(-HLOOKUP($B$54,'04_Wirtschaftlichkeit'!$E$44:$L$57,7,FALSE)-HLOOKUP($B$54,'04_Wirtschaftlichkeit'!$E$44:$L$57,5,FALSE)*(1+$B78)) -> 0 | AZ78: =AZ$56*(-HLOOKUP($B$54,'04_Wirtschaftlichkeit'!$E$44:$L$57,7,FALSE)-HLOOKUP($B$54,'04_Wirtschaftlichkeit'!$E$44:$L$57,5,FALSE)*(1+$B78)) -> 0 | BA78: =BA$56*(-HLOOKUP($B$54,'04_Wirtschaftlichkeit'!$E$44:$L$57,7,FALSE)-HLOOKUP($B$54,'04_Wirtschaftlichkeit'!$E$44:$L$57,5,FALSE)*(1+$B78)) -> 0
B79: 0.2 | C79: =-HLOOKUP($B$54,'04_Wirtschaftlichkeit'!$E$44:$L$57,6,FALSE) -> -1057830.717 | D79: =D$56*(-HLOOKUP($B$54,'04_Wirtschaftlichkeit'!$E$44:$L$57,7,FALSE)-HLOOKUP($B$54,'04_Wirtschaftlichkeit'!$E$44:$L$57,5,FALSE)*(1+$B79)) -> -84311.68 | E79: =E$56*(-HLOOKUP($B$54,'04_Wirtschaftlichkeit'!$E$44:$L$57,7,FALSE)-HLOOKUP($B$54,'04_Wirtschaftlichkeit'!$E$44:$L$57,5,FALSE)*(1+$B79)) -> -84311.68 | F79: =F$56*(-HLOOKUP($B$54,'04_Wirtschaftlichkeit'!$E$44:$L$57,7,FALSE)-HLOOKUP($B$54,'04_Wirtschaftlichkeit'!$E$44:$L$57,5,FALSE)*(1+$B79)) -> -84311.68 | G79: =G$56*(-HLOOKUP($B$54,'04_Wirtschaftlichkeit'!$E$44:$L$57,7,FALSE)-HLOOKUP($B$54,'04_Wirtschaftlichkeit'!$E$44:$L$57,5,FALSE)*(1+$B79)) -> -84311.68 | H79: =H$56*(-HLOOKUP($B$54,'04_Wirtschaftlichkeit'!$E$44:$L$57,7,FALSE)-HLOOKUP($B$54,'04_Wirtschaftlichkeit'!$E$44:$L$57,5,FALSE)*(1+$B79)) -> -84311.68 | I79: =I$56*(-HLOOKUP($B$54,'04_Wirtschaftlichkeit'!$E$44:$L$57,7,FALSE)-HLOOKUP($B$54,'04_Wirtschaftlichkeit'!$E$44:$L$57,5,FALSE)*(1+$B79)) -> -84311.68 | J79: =J$56*(-HLOOKUP($B$54,'04_Wirtschaftlichkeit'!$E$44:$L$57,7,FALSE)-HLOOKUP($B$54,'04_Wirtschaftlichkeit'!$E$44:$L$57,5,FALSE)*(1+$B79)) -> -84311.68 | K79: =K$56*(-HLOOKUP($B$54,'04_Wirtschaftlichkeit'!$E$44:$L$57,7,FALSE)-HLOOKUP($B$54,'04_Wirtschaftlichkeit'!$E$44:$L$57,5,FALSE)*(1+$B79)) -> -84311.68 | L79: =L$56*(-HLOOKUP($B$54,'04_Wirtschaftlichkeit'!$E$44:$L$57,7,FALSE)-HLOOKUP($B$54,'04_Wirtschaftlichkeit'!$E$44:$L$57,5,FALSE)*(1+$B79)) -> -84311.68 | M79: =M$56*(-HLOOKUP($B$54,'04_Wirtschaftlichkeit'!$E$44:$L$57,7,FALSE)-HLOOKUP($B$54,'04_Wirtschaftlichkeit'!$E$44:$L$57,5,FALSE)*(1+$B79)) -> -84311.68 | N79: =N$56*(-HLOOKUP($B$54,'04_Wirtschaftlichkeit'!$E$44:$L$57,7,FALSE)-HLOOKUP($B$54,'04_Wirtschaftlichkeit'!$E$44:$L$57,5,FALSE)*(1+$B79)) -> -84311.68 | O79: =O$56*(-HLOOKUP($B$54,'04_Wirtschaftlichkeit'!$E$44:$L$57,7,FALSE)-HLOOKUP($B$54,'04_Wirtschaftlichkeit'!$E$44:$L$57,5,FALSE)*(1+$B79)) -> -84311.68 | P79: =P$56*(-HLOOKUP($B$54,'04_Wirtschaftlichkeit'!$E$44:$L$57,7,FALSE)-HLOOKUP($B$54,'04_Wirtschaftlichkeit'!$E$44:$L$57,5,FALSE)*(1+$B79)) -> -84311.68 | Q79: =Q$56*(-HLOOKUP($B$54,'04_Wirtschaftlichkeit'!$E$44:$L$57,7,FALSE)-HLOOKUP($B$54,'04_Wirtschaftlichkeit'!$E$44:$L$57,5,FALSE)*(1+$B79)) -> -84311.68 | R79: =R$56*(-HLOOKUP($B$54,'04_Wirtschaftlichkeit'!$E$44:$L$57,7,FALSE)-HLOOKUP($B$54,'04_Wirtschaftlichkeit'!$E$44:$L$57,5,FALSE)*(1+$B79)) -> -84311.68 | S79: =S$56*(-HLOOKUP($B$54,'04_Wirtschaftlichkeit'!$E$44:$L$57,7,FALSE)-HLOOKUP($B$54,'04_Wirtschaftlichkeit'!$E$44:$L$57,5,FALSE)*(1+$B79)) -> -84311.68 | T79: =T$56*(-HLOOKUP($B$54,'04_Wirtschaftlichkeit'!$E$44:$L$57,7,FALSE)-HLOOKUP($B$54,'04_Wirtschaftlichkeit'!$E$44:$L$57,5,FALSE)*(1+$B79)) -> -84311.68 | U79: =U$56*(-HLOOKUP($B$54,'04_Wirtschaftlichkeit'!$E$44:$L$57,7,FALSE)-HLOOKUP($B$54,'04_Wirtschaftlichkeit'!$E$44:$L$57,5,FALSE)*(1+$B79)) -> -84311.68 | V79: =V$56*(-HLOOKUP($B$54,'04_Wirtschaftlichkeit'!$E$44:$L$57,7,FALSE)-HLOOKUP($B$54,'04_Wirtschaftlichkeit'!$E$44:$L$57,5,FALSE)*(1+$B79)) -> -84311.68 | W79: =W$56*(-HLOOKUP($B$54,'04_Wirtschaftlichkeit'!$E$44:$L$57,7,FALSE)-HLOOKUP($B$54,'04_Wirtschaftlichkeit'!$E$44:$L$57,5,FALSE)*(1+$B79)) -> -84311.68 | X79: =X$56*(-HLOOKUP($B$54,'04_Wirtschaftlichkeit'!$E$44:$L$57,7,FALSE)-HLOOKUP($B$54,'04_Wirtschaftlichkeit'!$E$44:$L$57,5,FALSE)*(1+$B79)) -> 0 | Y79: =Y$56*(-HLOOKUP($B$54,'04_Wirtschaftlichkeit'!$E$44:$L$57,7,FALSE)-HLOOKUP($B$54,'04_Wirtschaftlichkeit'!$E$44:$L$57,5,FALSE)*(1+$B79)) -> 0 | Z79: =Z$56*(-HLOOKUP($B$54,'04_Wirtschaftlichkeit'!$E$44:$L$57,7,FALSE)-HLOOKUP($B$54,'04_Wirtschaftlichkeit'!$E$44:$L$57,5,FALSE)*(1+$B79)) -> 0 | AA79: =AA$56*(-HLOOKUP($B$54,'04_Wirtschaftlichkeit'!$E$44:$L$57,7,FALSE)-HLOOKUP($B$54,'04_Wirtschaftlichkeit'!$E$44:$L$57,5,FALSE)*(1+$B79)) -> 0 | AB79: =AB$56*(-HLOOKUP($B$54,'04_Wirtschaftlichkeit'!$E$44:$L$57,7,FALSE)-HLOOKUP($B$54,'04_Wirtschaftlichkeit'!$E$44:$L$57,5,FALSE)*(1+$B79)) -> 0 | AC79: =AC$56*(-HLOOKUP($B$54,'04_Wirtschaftlichkeit'!$E$44:$L$57,7,FALSE)-HLOOKUP($B$54,'04_Wirtschaftlichkeit'!$E$44:$L$57,5,FALSE)*(1+$B79)) -> 0 | AD79: =AD$56*(-HLOOKUP($B$54,'04_Wirtschaftlichkeit'!$E$44:$L$57,7,FALSE)-HLOOKUP($B$54,'04_Wirtschaftlichkeit'!$E$44:$L$57,5,FALSE)*(1+$B79)) -> 0 | AE79: =AE$56*(-HLOOKUP($B$54,'04_Wirtschaftlichkeit'!$E$44:$L$57,7,FALSE)-HLOOKUP($B$54,'04_Wirtschaftlichkeit'!$E$44:$L$57,5,FALSE)*(1+$B79)) -> 0 | AF79: =AF$56*(-HLOOKUP($B$54,'04_Wirtschaftlichkeit'!$E$44:$L$57,7,FALSE)-HLOOKUP($B$54,'04_Wirtschaftlichkeit'!$E$44:$L$57,5,FALSE)*(1+$B79)) -> 0 | AG79: =AG$56*(-HLOOKUP($B$54,'04_Wirtschaftlichkeit'!$E$44:$L$57,7,FALSE)-HLOOKUP($B$54,'04_Wirtschaftlichkeit'!$E$44:$L$57,5,FALSE)*(1+$B79)) -> 0 | AH79: =AH$56*(-HLOOKUP($B$54,'04_Wirtschaftlichkeit'!$E$44:$L$57,7,FALSE)-HLOOKUP($B$54,'04_Wirtschaftlichkeit'!$E$44:$L$57,5,FALSE)*(1+$B79)) -> 0 | AI79: =AI$56*(-HLOOKUP($B$54,'04_Wirtschaftlichkeit'!$E$44:$L$57,7,FALSE)-HLOOKUP($B$54,'04_Wirtschaftlichkeit'!$E$44:$L$57,5,FALSE)*(1+$B79)) -> 0 | AJ79: =AJ$56*(-HLOOKUP($B$54,'04_Wirtschaftlichkeit'!$E$44:$L$57,7,FALSE)-HLOOKUP($B$54,'04_Wirtschaftlichkeit'!$E$44:$L$57,5,FALSE)*(1+$B79)) -> 0 | AK79: =AK$56*(-HLOOKUP($B$54,'04_Wirtschaftlichkeit'!$E$44:$L$57,7,FALSE)-HLOOKUP($B$54,'04_Wirtschaftlichkeit'!$E$44:$L$57,5,FALSE)*(1+$B79)) -> 0 | AL79: =AL$56*(-HLOOKUP($B$54,'04_Wirtschaftlichkeit'!$E$44:$L$57,7,FALSE)-HLOOKUP($B$54,'04_Wirtschaftlichkeit'!$E$44:$L$57,5,FALSE)*(1+$B79)) -> 0 | AM79: =AM$56*(-HLOOKUP($B$54,'04_Wirtschaftlichkeit'!$E$44:$L$57,7,FALSE)-HLOOKUP($B$54,'04_Wirtschaftlichkeit'!$E$44:$L$57,5,FALSE)*(1+$B79)) -> 0 | AN79: =AN$56*(-HLOOKUP($B$54,'04_Wirtschaftlichkeit'!$E$44:$L$57,7,FALSE)-HLOOKUP($B$54,'04_Wirtschaftlichkeit'!$E$44:$L$57,5,FALSE)*(1+$B79)) -> 0 | AO79: =AO$56*(-HLOOKUP($B$54,'04_Wirtschaftlichkeit'!$E$44:$L$57,7,FALSE)-HLOOKUP($B$54,'04_Wirtschaftlichkeit'!$E$44:$L$57,5,FALSE)*(1+$B79)) -> 0 | AP79: =AP$56*(-HLOOKUP($B$54,'04_Wirtschaftlichkeit'!$E$44:$L$57,7,FALSE)-HLOOKUP($B$54,'04_Wirtschaftlichkeit'!$E$44:$L$57,5,FALSE)*(1+$B79)) -> 0 | AQ79: =AQ$56*(-HLOOKUP($B$54,'04_Wirtschaftlichkeit'!$E$44:$L$57,7,FALSE)-HLOOKUP($B$54,'04_Wirtschaftlichkeit'!$E$44:$L$57,5,FALSE)*(1+$B79)) -> 0 | AR79: =AR$56*(-HLOOKUP($B$54,'04_Wirtschaftlichkeit'!$E$44:$L$57,7,FALSE)-HLOOKUP($B$54,'04_Wirtschaftlichkeit'!$E$44:$L$57,5,FALSE)*(1+$B79)) -> 0 | AS79: =AS$56*(-HLOOKUP($B$54,'04_Wirtschaftlichkeit'!$E$44:$L$57,7,FALSE)-HLOOKUP($B$54,'04_Wirtschaftlichkeit'!$E$44:$L$57,5,FALSE)*(1+$B79)) -> 0 | AT79: =AT$56*(-HLOOKUP($B$54,'04_Wirtschaftlichkeit'!$E$44:$L$57,7,FALSE)-HLOOKUP($B$54,'04_Wirtschaftlichkeit'!$E$44:$L$57,5,FALSE)*(1+$B79)) -> 0 | AU79: =AU$56*(-HLOOKUP($B$54,'04_Wirtschaftlichkeit'!$E$44:$L$57,7,FALSE)-HLOOKUP($B$54,'04_Wirtschaftlichkeit'!$E$44:$L$57,5,FALSE)*(1+$B79)) -> 0 | AV79: =AV$56*(-HLOOKUP($B$54,'04_Wirtschaftlichkeit'!$E$44:$L$57,7,FALSE)-HLOOKUP($B$54,'04_Wirtschaftlichkeit'!$E$44:$L$57,5,FALSE)*(1+$B79)) -> 0 | AW79: =AW$56*(-HLOOKUP($B$54,'04_Wirtschaftlichkeit'!$E$44:$L$57,7,FALSE)-HLOOKUP($B$54,'04_Wirtschaftlichkeit'!$E$44:$L$57,5,FALSE)*(1+$B79)) -> 0 | AX79: =AX$56*(-HLOOKUP($B$54,'04_Wirtschaftlichkeit'!$E$44:$L$57,7,FALSE)-HLOOKUP($B$54,'04_Wirtschaftlichkeit'!$E$44:$L$57,5,FALSE)*(1+$B79)) -> 0 | AY79: =AY$56*(-HLOOKUP($B$54,'04_Wirtschaftlichkeit'!$E$44:$L$57,7,FALSE)-HLOOKUP($B$54,'04_Wirtschaftlichkeit'!$E$44:$L$57,5,FALSE)*(1+$B79)) -> 0 | AZ79: =AZ$56*(-HLOOKUP($B$54,'04_Wirtschaftlichkeit'!$E$44:$L$57,7,FALSE)-HLOOKUP($B$54,'04_Wirtschaftlichkeit'!$E$44:$L$57,5,FALSE)*(1+$B79)) -> 0 | BA79: =BA$56*(-HLOOKUP($B$54,'04_Wirtschaftlichkeit'!$E$44:$L$57,7,FALSE)-HLOOKUP($B$54,'04_Wirtschaftlichkeit'!$E$44:$L$57,5,FALSE)*(1+$B79)) -> 0
B80: 0.3 | C80: =-HLOOKUP($B$54,'04_Wirtschaftlichkeit'!$E$44:$L$57,6,FALSE) -> -1057830.717 | D80: =D$56*(-HLOOKUP($B$54,'04_Wirtschaftlichkeit'!$E$44:$L$57,7,FALSE)-HLOOKUP($B$54,'04_Wirtschaftlichkeit'!$E$44:$L$57,5,FALSE)*(1+$B80)) -> -84363.57 | E80: =E$56*(-HLOOKUP($B$54,'04_Wirtschaftlichkeit'!$E$44:$L$57,7,FALSE)-HLOOKUP($B$54,'04_Wirtschaftlichkeit'!$E$44:$L$57,5,FALSE)*(1+$B80)) -> -84363.57 | F80: =F$56*(-HLOOKUP($B$54,'04_Wirtschaftlichkeit'!$E$44:$L$57,7,FALSE)-HLOOKUP($B$54,'04_Wirtschaftlichkeit'!$E$44:$L$57,5,FALSE)*(1+$B80)) -> -84363.57 | G80: =G$56*(-HLOOKUP($B$54,'04_Wirtschaftlichkeit'!$E$44:$L$57,7,FALSE)-HLOOKUP($B$54,'04_Wirtschaftlichkeit'!$E$44:$L$57,5,FALSE)*(1+$B80)) -> -84363.57 | H80: =H$56*(-HLOOKUP($B$54,'04_Wirtschaftlichkeit'!$E$44:$L$57,7,FALSE)-HLOOKUP($B$54,'04_Wirtschaftlichkeit'!$E$44:$L$57,5,FALSE)*(1+$B80)) -> -84363.57 | I80: =I$56*(-HLOOKUP($B$54,'04_Wirtschaftlichkeit'!$E$44:$L$57,7,FALSE)-HLOOKUP($B$54,'04_Wirtschaftlichkeit'!$E$44:$L$57,5,FALSE)*(1+$B80)) -> -84363.57 | J80: =J$56*(-HLOOKUP($B$54,'04_Wirtschaftlichkeit'!$E$44:$L$57,7,FALSE)-HLOOKUP($B$54,'04_Wirtschaftlichkeit'!$E$44:$L$57,5,FALSE)*(1+$B80)) -> -84363.57 | K80: =K$56*(-HLOOKUP($B$54,'04_Wirtschaftlichkeit'!$E$44:$L$57,7,FALSE)-HLOOKUP($B$54,'04_Wirtschaftlichkeit'!$E$44:$L$57,5,FALSE)*(1+$B80)) -> -84363.57 | L80: =L$56*(-HLOOKUP($B$54,'04_Wirtschaftlichkeit'!$E$44:$L$57,7,FALSE)-HLOOKUP($B$54,'04_Wirtschaftlichkeit'!$E$44:$L$57,5,FALSE)*(1+$B80)) -> -84363.57 | M80: =M$56*(-HLOOKUP($B$54,'04_Wirtschaftlichkeit'!$E$44:$L$57,7,FALSE)-HLOOKUP($B$54,'04_Wirtschaftlichkeit'!$E$44:$L$57,5,FALSE)*(1+$B80)) -> -84363.57 | N80: =N$56*(-HLOOKUP($B$54,'04_Wirtschaftlichkeit'!$E$44:$L$57,7,FALSE)-HLOOKUP($B$54,'04_Wirtschaftlichkeit'!$E$44:$L$57,5,FALSE)*(1+$B80)) -> -84363.57 | O80: =O$56*(-HLOOKUP($B$54,'04_Wirtschaftlichkeit'!$E$44:$L$57,7,FALSE)-HLOOKUP($B$54,'04_Wirtschaftlichkeit'!$E$44:$L$57,5,FALSE)*(1+$B80)) -> -84363.57 | P80: =P$56*(-HLOOKUP($B$54,'04_Wirtschaftlichkeit'!$E$44:$L$57,7,FALSE)-HLOOKUP($B$54,'04_Wirtschaftlichkeit'!$E$44:$L$57,5,FALSE)*(1+$B80)) -> -84363.57 | Q80: =Q$56*(-HLOOKUP($B$54,'04_Wirtschaftlichkeit'!$E$44:$L$57,7,FALSE)-HLOOKUP($B$54,'04_Wirtschaftlichkeit'!$E$44:$L$57,5,FALSE)*(1+$B80)) -> -84363.57 | R80: =R$56*(-HLOOKUP($B$54,'04_Wirtschaftlichkeit'!$E$44:$L$57,7,FALSE)-HLOOKUP($B$54,'04_Wirtschaftlichkeit'!$E$44:$L$57,5,FALSE)*(1+$B80)) -> -84363.57 | S80: =S$56*(-HLOOKUP($B$54,'04_Wirtschaftlichkeit'!$E$44:$L$57,7,FALSE)-HLOOKUP($B$54,'04_Wirtschaftlichkeit'!$E$44:$L$57,5,FALSE)*(1+$B80)) -> -84363.57 | T80: =T$56*(-HLOOKUP($B$54,'04_Wirtschaftlichkeit'!$E$44:$L$57,7,FALSE)-HLOOKUP($B$54,'04_Wirtschaftlichkeit'!$E$44:$L$57,5,FALSE)*(1+$B80)) -> -84363.57 | U80: =U$56*(-HLOOKUP($B$54,'04_Wirtschaftlichkeit'!$E$44:$L$57,7,FALSE)-HLOOKUP($B$54,'04_Wirtschaftlichkeit'!$E$44:$L$57,5,FALSE)*(1+$B80)) -> -84363.57 | V80: =V$56*(-HLOOKUP($B$54,'04_Wirtschaftlichkeit'!$E$44:$L$57,7,FALSE)-HLOOKUP($B$54,'04_Wirtschaftlichkeit'!$E$44:$L$57,5,FALSE)*(1+$B80)) -> -84363.57 | W80: =W$56*(-HLOOKUP($B$54,'04_Wirtschaftlichkeit'!$E$44:$L$57,7,FALSE)-HLOOKUP($B$54,'04_Wirtschaftlichkeit'!$E$44:$L$57,5,FALSE)*(1+$B80)) -> -84363.57 | X80: =X$56*(-HLOOKUP($B$54,'04_Wirtschaftlichkeit'!$E$44:$L$57,7,FALSE)-HLOOKUP($B$54,'04_Wirtschaftlichkeit'!$E$44:$L$57,5,FALSE)*(1+$B80)) -> 0 | Y80: =Y$56*(-HLOOKUP($B$54,'04_Wirtschaftlichkeit'!$E$44:$L$57,7,FALSE)-HLOOKUP($B$54,'04_Wirtschaftlichkeit'!$E$44:$L$57,5,FALSE)*(1+$B80)) -> 0 | Z80: =Z$56*(-HLOOKUP($B$54,'04_Wirtschaftlichkeit'!$E$44:$L$57,7,FALSE)-HLOOKUP($B$54,'04_Wirtschaftlichkeit'!$E$44:$L$57,5,FALSE)*(1+$B80)) -> 0 | AA80: =AA$56*(-HLOOKUP($B$54,'04_Wirtschaftlichkeit'!$E$44:$L$57,7,FALSE)-HLOOKUP($B$54,'04_Wirtschaftlichkeit'!$E$44:$L$57,5,FALSE)*(1+$B80)) -> 0 | AB80: =AB$56*(-HLOOKUP($B$54,'04_Wirtschaftlichkeit'!$E$44:$L$57,7,FALSE)-HLOOKUP($B$54,'04_Wirtschaftlichkeit'!$E$44:$L$57,5,FALSE)*(1+$B80)) -> 0 | AC80: =AC$56*(-HLOOKUP($B$54,'04_Wirtschaftlichkeit'!$E$44:$L$57,7,FALSE)-HLOOKUP($B$54,'04_Wirtschaftlichkeit'!$E$44:$L$57,5,FALSE)*(1+$B80)) -> 0 | AD80: =AD$56*(-HLOOKUP($B$54,'04_Wirtschaftlichkeit'!$E$44:$L$57,7,FALSE)-HLOOKUP($B$54,'04_Wirtschaftlichkeit'!$E$44:$L$57,5,FALSE)*(1+$B80)) -> 0 | AE80: =AE$56*(-HLOOKUP($B$54,'04_Wirtschaftlichkeit'!$E$44:$L$57,7,FALSE)-HLOOKUP($B$54,'04_Wirtschaftlichkeit'!$E$44:$L$57,5,FALSE)*(1+$B80)) -> 0 | AF80: =AF$56*(-HLOOKUP($B$54,'04_Wirtschaftlichkeit'!$E$44:$L$57,7,FALSE)-HLOOKUP($B$54,'04_Wirtschaftlichkeit'!$E$44:$L$57,5,FALSE)*(1+$B80)) -> 0 | AG80: =AG$56*(-HLOOKUP($B$54,'04_Wirtschaftlichkeit'!$E$44:$L$57,7,FALSE)-HLOOKUP($B$54,'04_Wirtschaftlichkeit'!$E$44:$L$57,5,FALSE)*(1+$B80)) -> 0 | AH80: =AH$56*(-HLOOKUP($B$54,'04_Wirtschaftlichkeit'!$E$44:$L$57,7,FALSE)-HLOOKUP($B$54,'04_Wirtschaftlichkeit'!$E$44:$L$57,5,FALSE)*(1+$B80)) -> 0 | AI80: =AI$56*(-HLOOKUP($B$54,'04_Wirtschaftlichkeit'!$E$44:$L$57,7,FALSE)-HLOOKUP($B$54,'04_Wirtschaftlichkeit'!$E$44:$L$57,5,FALSE)*(1+$B80)) -> 0 | AJ80: =AJ$56*(-HLOOKUP($B$54,'04_Wirtschaftlichkeit'!$E$44:$L$57,7,FALSE)-HLOOKUP($B$54,'04_Wirtschaftlichkeit'!$E$44:$L$57,5,FALSE)*(1+$B80)) -> 0 | AK80: =AK$56*(-HLOOKUP($B$54,'04_Wirtschaftlichkeit'!$E$44:$L$57,7,FALSE)-HLOOKUP($B$54,'04_Wirtschaftlichkeit'!$E$44:$L$57,5,FALSE)*(1+$B80)) -> 0 | AL80: =AL$56*(-HLOOKUP($B$54,'04_Wirtschaftlichkeit'!$E$44:$L$57,7,FALSE)-HLOOKUP($B$54,'04_Wirtschaftlichkeit'!$E$44:$L$57,5,FALSE)*(1+$B80)) -> 0 | AM80: =AM$56*(-HLOOKUP($B$54,'04_Wirtschaftlichkeit'!$E$44:$L$57,7,FALSE)-HLOOKUP($B$54,'04_Wirtschaftlichkeit'!$E$44:$L$57,5,FALSE)*(1+$B80)) -> 0 | AN80: =AN$56*(-HLOOKUP($B$54,'04_Wirtschaftlichkeit'!$E$44:$L$57,7,FALSE)-HLOOKUP($B$54,'04_Wirtschaftlichkeit'!$E$44:$L$57,5,FALSE)*(1+$B80)) -> 0 | AO80: =AO$56*(-HLOOKUP($B$54,'04_Wirtschaftlichkeit'!$E$44:$L$57,7,FALSE)-HLOOKUP($B$54,'04_Wirtschaftlichkeit'!$E$44:$L$57,5,FALSE)*(1+$B80)) -> 0 | AP80: =AP$56*(-HLOOKUP($B$54,'04_Wirtschaftlichkeit'!$E$44:$L$57,7,FALSE)-HLOOKUP($B$54,'04_Wirtschaftlichkeit'!$E$44:$L$57,5,FALSE)*(1+$B80)) -> 0 | AQ80: =AQ$56*(-HLOOKUP($B$54,'04_Wirtschaftlichkeit'!$E$44:$L$57,7,FALSE)-HLOOKUP($B$54,'04_Wirtschaftlichkeit'!$E$44:$L$57,5,FALSE)*(1+$B80)) -> 0 | AR80: =AR$56*(-HLOOKUP($B$54,'04_Wirtschaftlichkeit'!$E$44:$L$57,7,FALSE)-HLOOKUP($B$54,'04_Wirtschaftlichkeit'!$E$44:$L$57,5,FALSE)*(1+$B80)) -> 0 | AS80: =AS$56*(-HLOOKUP($B$54,'04_Wirtschaftlichkeit'!$E$44:$L$57,7,FALSE)-HLOOKUP($B$54,'04_Wirtschaftlichkeit'!$E$44:$L$57,5,FALSE)*(1+$B80)) -> 0 | AT80: =AT$56*(-HLOOKUP($B$54,'04_Wirtschaftlichkeit'!$E$44:$L$57,7,FALSE)-HLOOKUP($B$54,'04_Wirtschaftlichkeit'!$E$44:$L$57,5,FALSE)*(1+$B80)) -> 0 | AU80: =AU$56*(-HLOOKUP($B$54,'04_Wirtschaftlichkeit'!$E$44:$L$57,7,FALSE)-HLOOKUP($B$54,'04_Wirtschaftlichkeit'!$E$44:$L$57,5,FALSE)*(1+$B80)) -> 0 | AV80: =AV$56*(-HLOOKUP($B$54,'04_Wirtschaftlichkeit'!$E$44:$L$57,7,FALSE)-HLOOKUP($B$54,'04_Wirtschaftlichkeit'!$E$44:$L$57,5,FALSE)*(1+$B80)) -> 0 | AW80: =AW$56*(-HLOOKUP($B$54,'04_Wirtschaftlichkeit'!$E$44:$L$57,7,FALSE)-HLOOKUP($B$54,'04_Wirtschaftlichkeit'!$E$44:$L$57,5,FALSE)*(1+$B80)) -> 0 | AX80: =AX$56*(-HLOOKUP($B$54,'04_Wirtschaftlichkeit'!$E$44:$L$57,7,FALSE)-HLOOKUP($B$54,'04_Wirtschaftlichkeit'!$E$44:$L$57,5,FALSE)*(1+$B80)) -> 0 | AY80: =AY$56*(-HLOOKUP($B$54,'04_Wirtschaftlichkeit'!$E$44:$L$57,7,FALSE)-HLOOKUP($B$54,'04_Wirtschaftlichkeit'!$E$44:$L$57,5,FALSE)*(1+$B80)) -> 0 | AZ80: =AZ$56*(-HLOOKUP($B$54,'04_Wirtschaftlichkeit'!$E$44:$L$57,7,FALSE)-HLOOKUP($B$54,'04_Wirtschaftlichkeit'!$E$44:$L$57,5,FALSE)*(1+$B80)) -> 0 | BA80: =BA$56*(-HLOOKUP($B$54,'04_Wirtschaftlichkeit'!$E$44:$L$57,7,FALSE)-HLOOKUP($B$54,'04_Wirtschaftlichkeit'!$E$44:$L$57,5,FALSE)*(1+$B80)) -> 0
B81: 0.4 | C81: =-HLOOKUP($B$54,'04_Wirtschaftlichkeit'!$E$44:$L$57,6,FALSE) -> -1057830.717 | D81: =D$56*(-HLOOKUP($B$54,'04_Wirtschaftlichkeit'!$E$44:$L$57,7,FALSE)-HLOOKUP($B$54,'04_Wirtschaftlichkeit'!$E$44:$L$57,5,FALSE)*(1+$B81)) -> -84415.46 | E81: =E$56*(-HLOOKUP($B$54,'04_Wirtschaftlichkeit'!$E$44:$L$57,7,FALSE)-HLOOKUP($B$54,'04_Wirtschaftlichkeit'!$E$44:$L$57,5,FALSE)*(1+$B81)) -> -84415.46 | F81: =F$56*(-HLOOKUP($B$54,'04_Wirtschaftlichkeit'!$E$44:$L$57,7,FALSE)-HLOOKUP($B$54,'04_Wirtschaftlichkeit'!$E$44:$L$57,5,FALSE)*(1+$B81)) -> -84415.46 | G81: =G$56*(-HLOOKUP($B$54,'04_Wirtschaftlichkeit'!$E$44:$L$57,7,FALSE)-HLOOKUP($B$54,'04_Wirtschaftlichkeit'!$E$44:$L$57,5,FALSE)*(1+$B81)) -> -84415.46 | H81: =H$56*(-HLOOKUP($B$54,'04_Wirtschaftlichkeit'!$E$44:$L$57,7,FALSE)-HLOOKUP($B$54,'04_Wirtschaftlichkeit'!$E$44:$L$57,5,FALSE)*(1+$B81)) -> -84415.46 | I81: =I$56*(-HLOOKUP($B$54,'04_Wirtschaftlichkeit'!$E$44:$L$57,7,FALSE)-HLOOKUP($B$54,'04_Wirtschaftlichkeit'!$E$44:$L$57,5,FALSE)*(1+$B81)) -> -84415.46 | J81: =J$56*(-HLOOKUP($B$54,'04_Wirtschaftlichkeit'!$E$44:$L$57,7,FALSE)-HLOOKUP($B$54,'04_Wirtschaftlichkeit'!$E$44:$L$57,5,FALSE)*(1+$B81)) -> -84415.46 | K81: =K$56*(-HLOOKUP($B$54,'04_Wirtschaftlichkeit'!$E$44:$L$57,7,FALSE)-HLOOKUP($B$54,'04_Wirtschaftlichkeit'!$E$44:$L$57,5,FALSE)*(1+$B81)) -> -84415.46 | L81: =L$56*(-HLOOKUP($B$54,'04_Wirtschaftlichkeit'!$E$44:$L$57,7,FALSE)-HLOOKUP($B$54,'04_Wirtschaftlichkeit'!$E$44:$L$57,5,FALSE)*(1+$B81)) -> -84415.46 | M81: =M$56*(-HLOOKUP($B$54,'04_Wirtschaftlichkeit'!$E$44:$L$57,7,FALSE)-HLOOKUP($B$54,'04_Wirtschaftlichkeit'!$E$44:$L$57,5,FALSE)*(1+$B81)) -> -84415.46 | N81: =N$56*(-HLOOKUP($B$54,'04_Wirtschaftlichkeit'!$E$44:$L$57,7,FALSE)-HLOOKUP($B$54,'04_Wirtschaftlichkeit'!$E$44:$L$57,5,FALSE)*(1+$B81)) -> -84415.46 | O81: =O$56*(-HLOOKUP($B$54,'04_Wirtschaftlichkeit'!$E$44:$L$57,7,FALSE)-HLOOKUP($B$54,'04_Wirtschaftlichkeit'!$E$44:$L$57,5,FALSE)*(1+$B81)) -> -84415.46 | P81: =P$56*(-HLOOKUP($B$54,'04_Wirtschaftlichkeit'!$E$44:$L$57,7,FALSE)-HLOOKUP($B$54,'04_Wirtschaftlichkeit'!$E$44:$L$57,5,FALSE)*(1+$B81)) -> -84415.46 | Q81: =Q$56*(-HLOOKUP($B$54,'04_Wirtschaftlichkeit'!$E$44:$L$57,7,FALSE)-HLOOKUP($B$54,'04_Wirtschaftlichkeit'!$E$44:$L$57,5,FALSE)*(1+$B81)) -> -84415.46 | R81: =R$56*(-HLOOKUP($B$54,'04_Wirtschaftlichkeit'!$E$44:$L$57,7,FALSE)-HLOOKUP($B$54,'04_Wirtschaftlichkeit'!$E$44:$L$57,5,FALSE)*(1+$B81)) -> -84415.46 | S81: =S$56*(-HLOOKUP($B$54,'04_Wirtschaftlichkeit'!$E$44:$L$57,7,FALSE)-HLOOKUP($B$54,'04_Wirtschaftlichkeit'!$E$44:$L$57,5,FALSE)*(1+$B81)) -> -84415.46 | T81: =T$56*(-HLOOKUP($B$54,'04_Wirtschaftlichkeit'!$E$44:$L$57,7,FALSE)-HLOOKUP($B$54,'04_Wirtschaftlichkeit'!$E$44:$L$57,5,FALSE)*(1+$B81)) -> -84415.46 | U81: =U$56*(-HLOOKUP($B$54,'04_Wirtschaftlichkeit'!$E$44:$L$57,7,FALSE)-HLOOKUP($B$54,'04_Wirtschaftlichkeit'!$E$44:$L$57,5,FALSE)*(1+$B81)) -> -84415.46 | V81: =V$56*(-HLOOKUP($B$54,'04_Wirtschaftlichkeit'!$E$44:$L$57,7,FALSE)-HLOOKUP($B$54,'04_Wirtschaftlichkeit'!$E$44:$L$57,5,FALSE)*(1+$B81)) -> -84415.46 | W81: =W$56*(-HLOOKUP($B$54,'04_Wirtschaftlichkeit'!$E$44:$L$57,7,FALSE)-HLOOKUP($B$54,'04_Wirtschaftlichkeit'!$E$44:$L$57,5,FALSE)*(1+$B81)) -> -84415.46 | X81: =X$56*(-HLOOKUP($B$54,'04_Wirtschaftlichkeit'!$E$44:$L$57,7,FALSE)-HLOOKUP($B$54,'04_Wirtschaftlichkeit'!$E$44:$L$57,5,FALSE)*(1+$B81)) -> 0 | Y81: =Y$56*(-HLOOKUP($B$54,'04_Wirtschaftlichkeit'!$E$44:$L$57,7,FALSE)-HLOOKUP($B$54,'04_Wirtschaftlichkeit'!$E$44:$L$57,5,FALSE)*(1+$B81)) -> 0 | Z81: =Z$56*(-HLOOKUP($B$54,'04_Wirtschaftlichkeit'!$E$44:$L$57,7,FALSE)-HLOOKUP($B$54,'04_Wirtschaftlichkeit'!$E$44:$L$57,5,FALSE)*(1+$B81)) -> 0 | AA81: =AA$56*(-HLOOKUP($B$54,'04_Wirtschaftlichkeit'!$E$44:$L$57,7,FALSE)-HLOOKUP($B$54,'04_Wirtschaftlichkeit'!$E$44:$L$57,5,FALSE)*(1+$B81)) -> 0 | AB81: =AB$56*(-HLOOKUP($B$54,'04_Wirtschaftlichkeit'!$E$44:$L$57,7,FALSE)-HLOOKUP($B$54,'04_Wirtschaftlichkeit'!$E$44:$L$57,5,FALSE)*(1+$B81)) -> 0 | AC81: =AC$56*(-HLOOKUP($B$54,'04_Wirtschaftlichkeit'!$E$44:$L$57,7,FALSE)-HLOOKUP($B$54,'04_Wirtschaftlichkeit'!$E$44:$L$57,5,FALSE)*(1+$B81)) -> 0 | AD81: =AD$56*(-HLOOKUP($B$54,'04_Wirtschaftlichkeit'!$E$44:$L$57,7,FALSE)-HLOOKUP($B$54,'04_Wirtschaftlichkeit'!$E$44:$L$57,5,FALSE)*(1+$B81)) -> 0 | AE81: =AE$56*(-HLOOKUP($B$54,'04_Wirtschaftlichkeit'!$E$44:$L$57,7,FALSE)-HLOOKUP($B$54,'04_Wirtschaftlichkeit'!$E$44:$L$57,5,FALSE)*(1+$B81)) -> 0 | AF81: =AF$56*(-HLOOKUP($B$54,'04_Wirtschaftlichkeit'!$E$44:$L$57,7,FALSE)-HLOOKUP($B$54,'04_Wirtschaftlichkeit'!$E$44:$L$57,5,FALSE)*(1+$B81)) -> 0 | AG81: =AG$56*(-HLOOKUP($B$54,'04_Wirtschaftlichkeit'!$E$44:$L$57,7,FALSE)-HLOOKUP($B$54,'04_Wirtschaftlichkeit'!$E$44:$L$57,5,FALSE)*(1+$B81)) -> 0 | AH81: =AH$56*(-HLOOKUP($B$54,'04_Wirtschaftlichkeit'!$E$44:$L$57,7,FALSE)-HLOOKUP($B$54,'04_Wirtschaftlichkeit'!$E$44:$L$57,5,FALSE)*(1+$B81)) -> 0 | AI81: =AI$56*(-HLOOKUP($B$54,'04_Wirtschaftlichkeit'!$E$44:$L$57,7,FALSE)-HLOOKUP($B$54,'04_Wirtschaftlichkeit'!$E$44:$L$57,5,FALSE)*(1+$B81)) -> 0 | AJ81: =AJ$56*(-HLOOKUP($B$54,'04_Wirtschaftlichkeit'!$E$44:$L$57,7,FALSE)-HLOOKUP($B$54,'04_Wirtschaftlichkeit'!$E$44:$L$57,5,FALSE)*(1+$B81)) -> 0 | AK81: =AK$56*(-HLOOKUP($B$54,'04_Wirtschaftlichkeit'!$E$44:$L$57,7,FALSE)-HLOOKUP($B$54,'04_Wirtschaftlichkeit'!$E$44:$L$57,5,FALSE)*(1+$B81)) -> 0 | AL81: =AL$56*(-HLOOKUP($B$54,'04_Wirtschaftlichkeit'!$E$44:$L$57,7,FALSE)-HLOOKUP($B$54,'04_Wirtschaftlichkeit'!$E$44:$L$57,5,FALSE)*(1+$B81)) -> 0 | AM81: =AM$56*(-HLOOKUP($B$54,'04_Wirtschaftlichkeit'!$E$44:$L$57,7,FALSE)-HLOOKUP($B$54,'04_Wirtschaftlichkeit'!$E$44:$L$57,5,FALSE)*(1+$B81)) -> 0 | AN81: =AN$56*(-HLOOKUP($B$54,'04_Wirtschaftlichkeit'!$E$44:$L$57,7,FALSE)-HLOOKUP($B$54,'04_Wirtschaftlichkeit'!$E$44:$L$57,5,FALSE)*(1+$B81)) -> 0 | AO81: =AO$56*(-HLOOKUP($B$54,'04_Wirtschaftlichkeit'!$E$44:$L$57,7,FALSE)-HLOOKUP($B$54,'04_Wirtschaftlichkeit'!$E$44:$L$57,5,FALSE)*(1+$B81)) -> 0 | AP81: =AP$56*(-HLOOKUP($B$54,'04_Wirtschaftlichkeit'!$E$44:$L$57,7,FALSE)-HLOOKUP($B$54,'04_Wirtschaftlichkeit'!$E$44:$L$57,5,FALSE)*(1+$B81)) -> 0 | AQ81: =AQ$56*(-HLOOKUP($B$54,'04_Wirtschaftlichkeit'!$E$44:$L$57,7,FALSE)-HLOOKUP($B$54,'04_Wirtschaftlichkeit'!$E$44:$L$57,5,FALSE)*(1+$B81)) -> 0 | AR81: =AR$56*(-HLOOKUP($B$54,'04_Wirtschaftlichkeit'!$E$44:$L$57,7,FALSE)-HLOOKUP($B$54,'04_Wirtschaftlichkeit'!$E$44:$L$57,5,FALSE)*(1+$B81)) -> 0 | AS81: =AS$56*(-HLOOKUP($B$54,'04_Wirtschaftlichkeit'!$E$44:$L$57,7,FALSE)-HLOOKUP($B$54,'04_Wirtschaftlichkeit'!$E$44:$L$57,5,FALSE)*(1+$B81)) -> 0 | AT81: =AT$56*(-HLOOKUP($B$54,'04_Wirtschaftlichkeit'!$E$44:$L$57,7,FALSE)-HLOOKUP($B$54,'04_Wirtschaftlichkeit'!$E$44:$L$57,5,FALSE)*(1+$B81)) -> 0 | AU81: =AU$56*(-HLOOKUP($B$54,'04_Wirtschaftlichkeit'!$E$44:$L$57,7,FALSE)-HLOOKUP($B$54,'04_Wirtschaftlichkeit'!$E$44:$L$57,5,FALSE)*(1+$B81)) -> 0 | AV81: =AV$56*(-HLOOKUP($B$54,'04_Wirtschaftlichkeit'!$E$44:$L$57,7,FALSE)-HLOOKUP($B$54,'04_Wirtschaftlichkeit'!$E$44:$L$57,5,FALSE)*(1+$B81)) -> 0 | AW81: =AW$56*(-HLOOKUP($B$54,'04_Wirtschaftlichkeit'!$E$44:$L$57,7,FALSE)-HLOOKUP($B$54,'04_Wirtschaftlichkeit'!$E$44:$L$57,5,FALSE)*(1+$B81)) -> 0 | AX81: =AX$56*(-HLOOKUP($B$54,'04_Wirtschaftlichkeit'!$E$44:$L$57,7,FALSE)-HLOOKUP($B$54,'04_Wirtschaftlichkeit'!$E$44:$L$57,5,FALSE)*(1+$B81)) -> 0 | AY81: =AY$56*(-HLOOKUP($B$54,'04_Wirtschaftlichkeit'!$E$44:$L$57,7,FALSE)-HLOOKUP($B$54,'04_Wirtschaftlichkeit'!$E$44:$L$57,5,FALSE)*(1+$B81)) -> 0 | AZ81: =AZ$56*(-HLOOKUP($B$54,'04_Wirtschaftlichkeit'!$E$44:$L$57,7,FALSE)-HLOOKUP($B$54,'04_Wirtschaftlichkeit'!$E$44:$L$57,5,FALSE)*(1+$B81)) -> 0 | BA81: =BA$56*(-HLOOKUP($B$54,'04_Wirtschaftlichkeit'!$E$44:$L$57,7,FALSE)-HLOOKUP($B$54,'04_Wirtschaftlichkeit'!$E$44:$L$57,5,FALSE)*(1+$B81)) -> 0
B82: 0.5 | C82: =-HLOOKUP($B$54,'04_Wirtschaftlichkeit'!$E$44:$L$57,6,FALSE) -> -1057830.717 | D82: =D$56*(-HLOOKUP($B$54,'04_Wirtschaftlichkeit'!$E$44:$L$57,7,FALSE)-HLOOKUP($B$54,'04_Wirtschaftlichkeit'!$E$44:$L$57,5,FALSE)*(1+$B82)) -> -84467.35 | E82: =E$56*(-HLOOKUP($B$54,'04_Wirtschaftlichkeit'!$E$44:$L$57,7,FALSE)-HLOOKUP($B$54,'04_Wirtschaftlichkeit'!$E$44:$L$57,5,FALSE)*(1+$B82)) -> -84467.35 | F82: =F$56*(-HLOOKUP($B$54,'04_Wirtschaftlichkeit'!$E$44:$L$57,7,FALSE)-HLOOKUP($B$54,'04_Wirtschaftlichkeit'!$E$44:$L$57,5,FALSE)*(1+$B82)) -> -84467.35 | G82: =G$56*(-HLOOKUP($B$54,'04_Wirtschaftlichkeit'!$E$44:$L$57,7,FALSE)-HLOOKUP($B$54,'04_Wirtschaftlichkeit'!$E$44:$L$57,5,FALSE)*(1+$B82)) -> -84467.35 | H82: =H$56*(-HLOOKUP($B$54,'04_Wirtschaftlichkeit'!$E$44:$L$57,7,FALSE)-HLOOKUP($B$54,'04_Wirtschaftlichkeit'!$E$44:$L$57,5,FALSE)*(1+$B82)) -> -84467.35 | I82: =I$56*(-HLOOKUP($B$54,'04_Wirtschaftlichkeit'!$E$44:$L$57,7,FALSE)-HLOOKUP($B$54,'04_Wirtschaftlichkeit'!$E$44:$L$57,5,FALSE)*(1+$B82)) -> -84467.35 | J82: =J$56*(-HLOOKUP($B$54,'04_Wirtschaftlichkeit'!$E$44:$L$57,7,FALSE)-HLOOKUP($B$54,'04_Wirtschaftlichkeit'!$E$44:$L$57,5,FALSE)*(1+$B82)) -> -84467.35 | K82: =K$56*(-HLOOKUP($B$54,'04_Wirtschaftlichkeit'!$E$44:$L$57,7,FALSE)-HLOOKUP($B$54,'04_Wirtschaftlichkeit'!$E$44:$L$57,5,FALSE)*(1+$B82)) -> -84467.35 | L82: =L$56*(-HLOOKUP($B$54,'04_Wirtschaftlichkeit'!$E$44:$L$57,7,FALSE)-HLOOKUP($B$54,'04_Wirtschaftlichkeit'!$E$44:$L$57,5,FALSE)*(1+$B82)) -> -84467.35 | M82: =M$56*(-HLOOKUP($B$54,'04_Wirtschaftlichkeit'!$E$44:$L$57,7,FALSE)-HLOOKUP($B$54,'04_Wirtschaftlichkeit'!$E$44:$L$57,5,FALSE)*(1+$B82)) -> -84467.35 | N82: =N$56*(-HLOOKUP($B$54,'04_Wirtschaftlichkeit'!$E$44:$L$57,7,FALSE)-HLOOKUP($B$54,'04_Wirtschaftlichkeit'!$E$44:$L$57,5,FALSE)*(1+$B82)) -> -84467.35 | O82: =O$56*(-HLOOKUP($B$54,'04_Wirtschaftlichkeit'!$E$44:$L$57,7,FALSE)-HLOOKUP($B$54,'04_Wirtschaftlichkeit'!$E$44:$L$57,5,FALSE)*(1+$B82)) -> -84467.35 | P82: =P$56*(-HLOOKUP($B$54,'04_Wirtschaftlichkeit'!$E$44:$L$57,7,FALSE)-HLOOKUP($B$54,'04_Wirtschaftlichkeit'!$E$44:$L$57,5,FALSE)*(1+$B82)) -> -84467.35 | Q82: =Q$56*(-HLOOKUP($B$54,'04_Wirtschaftlichkeit'!$E$44:$L$57,7,FALSE)-HLOOKUP($B$54,'04_Wirtschaftlichkeit'!$E$44:$L$57,5,FALSE)*(1+$B82)) -> -84467.35 | R82: =R$56*(-HLOOKUP($B$54,'04_Wirtschaftlichkeit'!$E$44:$L$57,7,FALSE)-HLOOKUP($B$54,'04_Wirtschaftlichkeit'!$E$44:$L$57,5,FALSE)*(1+$B82)) -> -84467.35 | S82: =S$56*(-HLOOKUP($B$54,'04_Wirtschaftlichkeit'!$E$44:$L$57,7,FALSE)-HLOOKUP($B$54,'04_Wirtschaftlichkeit'!$E$44:$L$57,5,FALSE)*(1+$B82)) -> -84467.35 | T82: =T$56*(-HLOOKUP($B$54,'04_Wirtschaftlichkeit'!$E$44:$L$57,7,FALSE)-HLOOKUP($B$54,'04_Wirtschaftlichkeit'!$E$44:$L$57,5,FALSE)*(1+$B82)) -> -84467.35 | U82: =U$56*(-HLOOKUP($B$54,'04_Wirtschaftlichkeit'!$E$44:$L$57,7,FALSE)-HLOOKUP($B$54,'04_Wirtschaftlichkeit'!$E$44:$L$57,5,FALSE)*(1+$B82)) -> -84467.35 | V82: =V$56*(-HLOOKUP($B$54,'04_Wirtschaftlichkeit'!$E$44:$L$57,7,FALSE)-HLOOKUP($B$54,'04_Wirtschaftlichkeit'!$E$44:$L$57,5,FALSE)*(1+$B82)) -> -84467.35 | W82: =W$56*(-HLOOKUP($B$54,'04_Wirtschaftlichkeit'!$E$44:$L$57,7,FALSE)-HLOOKUP($B$54,'04_Wirtschaftlichkeit'!$E$44:$L$57,5,FALSE)*(1+$B82)) -> -84467.35 | X82: =X$56*(-HLOOKUP($B$54,'04_Wirtschaftlichkeit'!$E$44:$L$57,7,FALSE)-HLOOKUP($B$54,'04_Wirtschaftlichkeit'!$E$44:$L$57,5,FALSE)*(1+$B82)) -> 0 | Y82: =Y$56*(-HLOOKUP($B$54,'04_Wirtschaftlichkeit'!$E$44:$L$57,7,FALSE)-HLOOKUP($B$54,'04_Wirtschaftlichkeit'!$E$44:$L$57,5,FALSE)*(1+$B82)) -> 0 | Z82: =Z$56*(-HLOOKUP($B$54,'04_Wirtschaftlichkeit'!$E$44:$L$57,7,FALSE)-HLOOKUP($B$54,'04_Wirtschaftlichkeit'!$E$44:$L$57,5,FALSE)*(1+$B82)) -> 0 | AA82: =AA$56*(-HLOOKUP($B$54,'04_Wirtschaftlichkeit'!$E$44:$L$57,7,FALSE)-HLOOKUP($B$54,'04_Wirtschaftlichkeit'!$E$44:$L$57,5,FALSE)*(1+$B82)) -> 0 | AB82: =AB$56*(-HLOOKUP($B$54,'04_Wirtschaftlichkeit'!$E$44:$L$57,7,FALSE)-HLOOKUP($B$54,'04_Wirtschaftlichkeit'!$E$44:$L$57,5,FALSE)*(1+$B82)) -> 0 | AC82: =AC$56*(-HLOOKUP($B$54,'04_Wirtschaftlichkeit'!$E$44:$L$57,7,FALSE)-HLOOKUP($B$54,'04_Wirtschaftlichkeit'!$E$44:$L$57,5,FALSE)*(1+$B82)) -> 0 | AD82: =AD$56*(-HLOOKUP($B$54,'04_Wirtschaftlichkeit'!$E$44:$L$57,7,FALSE)-HLOOKUP($B$54,'04_Wirtschaftlichkeit'!$E$44:$L$57,5,FALSE)*(1+$B82)) -> 0 | AE82: =AE$56*(-HLOOKUP($B$54,'04_Wirtschaftlichkeit'!$E$44:$L$57,7,FALSE)-HLOOKUP($B$54,'04_Wirtschaftlichkeit'!$E$44:$L$57,5,FALSE)*(1+$B82)) -> 0 | AF82: =AF$56*(-HLOOKUP($B$54,'04_Wirtschaftlichkeit'!$E$44:$L$57,7,FALSE)-HLOOKUP($B$54,'04_Wirtschaftlichkeit'!$E$44:$L$57,5,FALSE)*(1+$B82)) -> 0 | AG82: =AG$56*(-HLOOKUP($B$54,'04_Wirtschaftlichkeit'!$E$44:$L$57,7,FALSE)-HLOOKUP($B$54,'04_Wirtschaftlichkeit'!$E$44:$L$57,5,FALSE)*(1+$B82)) -> 0 | AH82: =AH$56*(-HLOOKUP($B$54,'04_Wirtschaftlichkeit'!$E$44:$L$57,7,FALSE)-HLOOKUP($B$54,'04_Wirtschaftlichkeit'!$E$44:$L$57,5,FALSE)*(1+$B82)) -> 0 | AI82: =AI$56*(-HLOOKUP($B$54,'04_Wirtschaftlichkeit'!$E$44:$L$57,7,FALSE)-HLOOKUP($B$54,'04_Wirtschaftlichkeit'!$E$44:$L$57,5,FALSE)*(1+$B82)) -> 0 | AJ82: =AJ$56*(-HLOOKUP($B$54,'04_Wirtschaftlichkeit'!$E$44:$L$57,7,FALSE)-HLOOKUP($B$54,'04_Wirtschaftlichkeit'!$E$44:$L$57,5,FALSE)*(1+$B82)) -> 0 | AK82: =AK$56*(-HLOOKUP($B$54,'04_Wirtschaftlichkeit'!$E$44:$L$57,7,FALSE)-HLOOKUP($B$54,'04_Wirtschaftlichkeit'!$E$44:$L$57,5,FALSE)*(1+$B82)) -> 0 | AL82: =AL$56*(-HLOOKUP($B$54,'04_Wirtschaftlichkeit'!$E$44:$L$57,7,FALSE)-HLOOKUP($B$54,'04_Wirtschaftlichkeit'!$E$44:$L$57,5,FALSE)*(1+$B82)) -> 0 | AM82: =AM$56*(-HLOOKUP($B$54,'04_Wirtschaftlichkeit'!$E$44:$L$57,7,FALSE)-HLOOKUP($B$54,'04_Wirtschaftlichkeit'!$E$44:$L$57,5,FALSE)*(1+$B82)) -> 0 | AN82: =AN$56*(-HLOOKUP($B$54,'04_Wirtschaftlichkeit'!$E$44:$L$57,7,FALSE)-HLOOKUP($B$54,'04_Wirtschaftlichkeit'!$E$44:$L$57,5,FALSE)*(1+$B82)) -> 0 | AO82: =AO$56*(-HLOOKUP($B$54,'04_Wirtschaftlichkeit'!$E$44:$L$57,7,FALSE)-HLOOKUP($B$54,'04_Wirtschaftlichkeit'!$E$44:$L$57,5,FALSE)*(1+$B82)) -> 0 | AP82: =AP$56*(-HLOOKUP($B$54,'04_Wirtschaftlichkeit'!$E$44:$L$57,7,FALSE)-HLOOKUP($B$54,'04_Wirtschaftlichkeit'!$E$44:$L$57,5,FALSE)*(1+$B82)) -> 0 | AQ82: =AQ$56*(-HLOOKUP($B$54,'04_Wirtschaftlichkeit'!$E$44:$L$57,7,FALSE)-HLOOKUP($B$54,'04_Wirtschaftlichkeit'!$E$44:$L$57,5,FALSE)*(1+$B82)) -> 0 | AR82: =AR$56*(-HLOOKUP($B$54,'04_Wirtschaftlichkeit'!$E$44:$L$57,7,FALSE)-HLOOKUP($B$54,'04_Wirtschaftlichkeit'!$E$44:$L$57,5,FALSE)*(1+$B82)) -> 0 | AS82: =AS$56*(-HLOOKUP($B$54,'04_Wirtschaftlichkeit'!$E$44:$L$57,7,FALSE)-HLOOKUP($B$54,'04_Wirtschaftlichkeit'!$E$44:$L$57,5,FALSE)*(1+$B82)) -> 0 | AT82: =AT$56*(-HLOOKUP($B$54,'04_Wirtschaftlichkeit'!$E$44:$L$57,7,FALSE)-HLOOKUP($B$54,'04_Wirtschaftlichkeit'!$E$44:$L$57,5,FALSE)*(1+$B82)) -> 0 | AU82: =AU$56*(-HLOOKUP($B$54,'04_Wirtschaftlichkeit'!$E$44:$L$57,7,FALSE)-HLOOKUP($B$54,'04_Wirtschaftlichkeit'!$E$44:$L$57,5,FALSE)*(1+$B82)) -> 0 | AV82: =AV$56*(-HLOOKUP($B$54,'04_Wirtschaftlichkeit'!$E$44:$L$57,7,FALSE)-HLOOKUP($B$54,'04_Wirtschaftlichkeit'!$E$44:$L$57,5,FALSE)*(1+$B82)) -> 0 | AW82: =AW$56*(-HLOOKUP($B$54,'04_Wirtschaftlichkeit'!$E$44:$L$57,7,FALSE)-HLOOKUP($B$54,'04_Wirtschaftlichkeit'!$E$44:$L$57,5,FALSE)*(1+$B82)) -> 0 | AX82: =AX$56*(-HLOOKUP($B$54,'04_Wirtschaftlichkeit'!$E$44:$L$57,7,FALSE)-HLOOKUP($B$54,'04_Wirtschaftlichkeit'!$E$44:$L$57,5,FALSE)*(1+$B82)) -> 0 | AY82: =AY$56*(-HLOOKUP($B$54,'04_Wirtschaftlichkeit'!$E$44:$L$57,7,FALSE)-HLOOKUP($B$54,'04_Wirtschaftlichkeit'!$E$44:$L$57,5,FALSE)*(1+$B82)) -> 0 | AZ82: =AZ$56*(-HLOOKUP($B$54,'04_Wirtschaftlichkeit'!$E$44:$L$57,7,FALSE)-HLOOKUP($B$54,'04_Wirtschaftlichkeit'!$E$44:$L$57,5,FALSE)*(1+$B82)) -> 0 | BA82: =BA$56*(-HLOOKUP($B$54,'04_Wirtschaftlichkeit'!$E$44:$L$57,7,FALSE)-HLOOKUP($B$54,'04_Wirtschaftlichkeit'!$E$44:$L$57,5,FALSE)*(1+$B82)) -> 0
B83: Betriebskosten
B84: -0.5 | C84: =-HLOOKUP($B$54,'04_Wirtschaftlichkeit'!$E$44:$L$57,6,FALSE) -> -1057830.717 | D84: =D$56*(-HLOOKUP($B$54,'04_Wirtschaftlichkeit'!$E$44:$L$57,7,FALSE)*(1+$B84)-HLOOKUP($B$54,'04_Wirtschaftlichkeit'!$E$44:$L$57,5,FALSE)) -> -42363.4 | E84: =E$56*(-HLOOKUP($B$54,'04_Wirtschaftlichkeit'!$E$44:$L$57,7,FALSE)*(1+$B84)-HLOOKUP($B$54,'04_Wirtschaftlichkeit'!$E$44:$L$57,5,FALSE)) -> -42363.4 | F84: =F$56*(-HLOOKUP($B$54,'04_Wirtschaftlichkeit'!$E$44:$L$57,7,FALSE)*(1+$B84)-HLOOKUP($B$54,'04_Wirtschaftlichkeit'!$E$44:$L$57,5,FALSE)) -> -42363.4 | G84: =G$56*(-HLOOKUP($B$54,'04_Wirtschaftlichkeit'!$E$44:$L$57,7,FALSE)*(1+$B84)-HLOOKUP($B$54,'04_Wirtschaftlichkeit'!$E$44:$L$57,5,FALSE)) -> -42363.4 | H84: =H$56*(-HLOOKUP($B$54,'04_Wirtschaftlichkeit'!$E$44:$L$57,7,FALSE)*(1+$B84)-HLOOKUP($B$54,'04_Wirtschaftlichkeit'!$E$44:$L$57,5,FALSE)) -> -42363.4 | I84: =I$56*(-HLOOKUP($B$54,'04_Wirtschaftlichkeit'!$E$44:$L$57,7,FALSE)*(1+$B84)-HLOOKUP($B$54,'04_Wirtschaftlichkeit'!$E$44:$L$57,5,FALSE)) -> -42363.4 | J84: =J$56*(-HLOOKUP($B$54,'04_Wirtschaftlichkeit'!$E$44:$L$57,7,FALSE)*(1+$B84)-HLOOKUP($B$54,'04_Wirtschaftlichkeit'!$E$44:$L$57,5,FALSE)) -> -42363.4 | K84: =K$56*(-HLOOKUP($B$54,'04_Wirtschaftlichkeit'!$E$44:$L$57,7,FALSE)*(1+$B84)-HLOOKUP($B$54,'04_Wirtschaftlichkeit'!$E$44:$L$57,5,FALSE)) -> -42363.4 | L84: =L$56*(-HLOOKUP($B$54,'04_Wirtschaftlichkeit'!$E$44:$L$57,7,FALSE)*(1+$B84)-HLOOKUP($B$54,'04_Wirtschaftlichkeit'!$E$44:$L$57,5,FALSE)) -> -42363.4 | M84: =M$56*(-HLOOKUP($B$54,'04_Wirtschaftlichkeit'!$E$44:$L$57,7,FALSE)*(1+$B84)-HLOOKUP($B$54,'04_Wirtschaftlichkeit'!$E$44:$L$57,5,FALSE)) -> -42363.4 | N84: =N$56*(-HLOOKUP($B$54,'04_Wirtschaftlichkeit'!$E$44:$L$57,7,FALSE)*(1+$B84)-HLOOKUP($B$54,'04_Wirtschaftlichkeit'!$E$44:$L$57,5,FALSE)) -> -42363.4 | O84: =O$56*(-HLOOKUP($B$54,'04_Wirtschaftlichkeit'!$E$44:$L$57,7,FALSE)*(1+$B84)-HLOOKUP($B$54,'04_Wirtschaftlichkeit'!$E$44:$L$57,5,FALSE)) -> -42363.4 | P84: =P$56*(-HLOOKUP($B$54,'04_Wirtschaftlichkeit'!$E$44:$L$57,7,FALSE)*(1+$B84)-HLOOKUP($B$54,'04_Wirtschaftlichkeit'!$E$44:$L$57,5,FALSE)) -> -42363.4 | Q84: =Q$56*(-HLOOKUP($B$54,'04_Wirtschaftlichkeit'!$E$44:$L$57,7,FALSE)*(1+$B84)-HLOOKUP($B$54,'04_Wirtschaftlichkeit'!$E$44:$L$57,5,FALSE)) -> -42363.4 | R84: =R$56*(-HLOOKUP($B$54,'04_Wirtschaftlichkeit'!$E$44:$L$57,7,FALSE)*(1+$B84)-HLOOKUP($B$54,'04_Wirtschaftlichkeit'!$E$44:$L$57,5,FALSE)) -> -42363.4 | S84: =S$56*(-HLOOKUP($B$54,'04_Wirtschaftlichkeit'!$E$44:$L$57,7,FALSE)*(1+$B84)-HLOOKUP($B$54,'04_Wirtschaftlichkeit'!$E$44:$L$57,5,FALSE)) -> -42363.4 | T84: =T$56*(-HLOOKUP($B$54,'04_Wirtschaftlichkeit'!$E$44:$L$57,7,FALSE)*(1+$B84)-HLOOKUP($B$54,'04_Wirtschaftlichkeit'!$E$44:$L$57,5,FALSE)) -> -42363.4 | U84: =U$56*(-HLOOKUP($B$54,'04_Wirtschaftlichkeit'!$E$44:$L$57,7,FALSE)*(1+$B84)-HLOOKUP($B$54,'04_Wirtschaftlichkeit'!$E$44:$L$57,5,FALSE)) -> -42363.4 | V84: =V$56*(-HLOOKUP($B$54,'04_Wirtschaftlichkeit'!$E$44:$L$57,7,FALSE)*(1+$B84)-HLOOKUP($B$54,'04_Wirtschaftlichkeit'!$E$44:$L$57,5,FALSE)) -> -42363.4 | W84: =W$56*(-HLOOKUP($B$54,'04_Wirtschaftlichkeit'!$E$44:$L$57,7,FALSE)*(1+$B84)-HLOOKUP($B$54,'04_Wirtschaftlichkeit'!$E$44:$L$57,5,FALSE)) -> -42363.4 | X84: =X$56*(-HLOOKUP($B$54,'04_Wirtschaftlichkeit'!$E$44:$L$57,7,FALSE)*(1+$B84)-HLOOKUP($B$54,'04_Wirtschaftlichkeit'!$E$44:$L$57,5,FALSE)) -> 0 | Y84: =Y$56*(-HLOOKUP($B$54,'04_Wirtschaftlichkeit'!$E$44:$L$57,7,FALSE)*(1+$B84)-HLOOKUP($B$54,'04_Wirtschaftlichkeit'!$E$44:$L$57,5,FALSE)) -> 0 | Z84: =Z$56*(-HLOOKUP($B$54,'04_Wirtschaftlichkeit'!$E$44:$L$57,7,FALSE)*(1+$B84)-HLOOKUP($B$54,'04_Wirtschaftlichkeit'!$E$44:$L$57,5,FALSE)) -> 0 | AA84: =AA$56*(-HLOOKUP($B$54,'04_Wirtschaftlichkeit'!$E$44:$L$57,7,FALSE)*(1+$B84)-HLOOKUP($B$54,'04_Wirtschaftlichkeit'!$E$44:$L$57,5,FALSE)) -> 0 | AB84: =AB$56*(-HLOOKUP($B$54,'04_Wirtschaftlichkeit'!$E$44:$L$57,7,FALSE)*(1+$B84)-HLOOKUP($B$54,'04_Wirtschaftlichkeit'!$E$44:$L$57,5,FALSE)) -> 0 | AC84: =AC$56*(-HLOOKUP($B$54,'04_Wirtschaftlichkeit'!$E$44:$L$57,7,FALSE)*(1+$B84)-HLOOKUP($B$54,'04_Wirtschaftlichkeit'!$E$44:$L$57,5,FALSE)) -> 0 | AD84: =AD$56*(-HLOOKUP($B$54,'04_Wirtschaftlichkeit'!$E$44:$L$57,7,FALSE)*(1+$B84)-HLOOKUP($B$54,'04_Wirtschaftlichkeit'!$E$44:$L$57,5,FALSE)) -> 0 | AE84: =AE$56*(-HLOOKUP($B$54,'04_Wirtschaftlichkeit'!$E$44:$L$57,7,FALSE)*(1+$B84)-HLOOKUP($B$54,'04_Wirtschaftlichkeit'!$E$44:$L$57,5,FALSE)) -> 0 | AF84: =AF$56*(-HLOOKUP($B$54,'04_Wirtschaftlichkeit'!$E$44:$L$57,7,FALSE)*(1+$B84)-HLOOKUP($B$54,'04_Wirtschaftlichkeit'!$E$44:$L$57,5,FALSE)) -> 0 | AG84: =AG$56*(-HLOOKUP($B$54,'04_Wirtschaftlichkeit'!$E$44:$L$57,7,FALSE)*(1+$B84)-HLOOKUP($B$54,'04_Wirtschaftlichkeit'!$E$44:$L$57,5,FALSE)) -> 0 | AH84: =AH$56*(-HLOOKUP($B$54,'04_Wirtschaftlichkeit'!$E$44:$L$57,7,FALSE)*(1+$B84)-HLOOKUP($B$54,'04_Wirtschaftlichkeit'!$E$44:$L$57,5,FALSE)) -> 0 | AI84: =AI$56*(-HLOOKUP($B$54,'04_Wirtschaftlichkeit'!$E$44:$L$57,7,FALSE)*(1+$B84)-HLOOKUP($B$54,'04_Wirtschaftlichkeit'!$E$44:$L$57,5,FALSE)) -> 0 | AJ84: =AJ$56*(-HLOOKUP($B$54,'04_Wirtschaftlichkeit'!$E$44:$L$57,7,FALSE)*(1+$B84)-HLOOKUP($B$54,'04_Wirtschaftlichkeit'!$E$44:$L$57,5,FALSE)) -> 0 | AK84: =AK$56*(-HLOOKUP($B$54,'04_Wirtschaftlichkeit'!$E$44:$L$57,7,FALSE)*(1+$B84)-HLOOKUP($B$54,'04_Wirtschaftlichkeit'!$E$44:$L$57,5,FALSE)) -> 0 | AL84: =AL$56*(-HLOOKUP($B$54,'04_Wirtschaftlichkeit'!$E$44:$L$57,7,FALSE)*(1+$B84)-HLOOKUP($B$54,'04_Wirtschaftlichkeit'!$E$44:$L$57,5,FALSE)) -> 0 | AM84: =AM$56*(-HLOOKUP($B$54,'04_Wirtschaftlichkeit'!$E$44:$L$57,7,FALSE)*(1+$B84)-HLOOKUP($B$54,'04_Wirtschaftlichkeit'!$E$44:$L$57,5,FALSE)) -> 0 | AN84: =AN$56*(-HLOOKUP($B$54,'04_Wirtschaftlichkeit'!$E$44:$L$57,7,FALSE)*(1+$B84)-HLOOKUP($B$54,'04_Wirtschaftlichkeit'!$E$44:$L$57,5,FALSE)) -> 0 | AO84: =AO$56*(-HLOOKUP($B$54,'04_Wirtschaftlichkeit'!$E$44:$L$57,7,FALSE)*(1+$B84)-HLOOKUP($B$54,'04_Wirtschaftlichkeit'!$E$44:$L$57,5,FALSE)) -> 0 | AP84: =AP$56*(-HLOOKUP($B$54,'04_Wirtschaftlichkeit'!$E$44:$L$57,7,FALSE)*(1+$B84)-HLOOKUP($B$54,'04_Wirtschaftlichkeit'!$E$44:$L$57,5,FALSE)) -> 0 | AQ84: =AQ$56*(-HLOOKUP($B$54,'04_Wirtschaftlichkeit'!$E$44:$L$57,7,FALSE)*(1+$B84)-HLOOKUP($B$54,'04_Wirtschaftlichkeit'!$E$44:$L$57,5,FALSE)) -> 0 | AR84: =AR$56*(-HLOOKUP($B$54,'04_Wirtschaftlichkeit'!$E$44:$L$57,7,FALSE)*(1+$B84)-HLOOKUP($B$54,'04_Wirtschaftlichkeit'!$E$44:$L$57,5,FALSE)) -> 0 | AS84: =AS$56*(-HLOOKUP($B$54,'04_Wirtschaftlichkeit'!$E$44:$L$57,7,FALSE)*(1+$B84)-HLOOKUP($B$54,'04_Wirtschaftlichkeit'!$E$44:$L$57,5,FALSE)) -> 0 | AT84: =AT$56*(-HLOOKUP($B$54,'04_Wirtschaftlichkeit'!$E$44:$L$57,7,FALSE)*(1+$B84)-HLOOKUP($B$54,'04_Wirtschaftlichkeit'!$E$44:$L$57,5,FALSE)) -> 0 | AU84: =AU$56*(-HLOOKUP($B$54,'04_Wirtschaftlichkeit'!$E$44:$L$57,7,FALSE)*(1+$B84)-HLOOKUP($B$54,'04_Wirtschaftlichkeit'!$E$44:$L$57,5,FALSE)) -> 0 | AV84: =AV$56*(-HLOOKUP($B$54,'04_Wirtschaftlichkeit'!$E$44:$L$57,7,FALSE)*(1+$B84)-HLOOKUP($B$54,'04_Wirtschaftlichkeit'!$E$44:$L$57,5,FALSE)) -> 0 | AW84: =AW$56*(-HLOOKUP($B$54,'04_Wirtschaftlichkeit'!$E$44:$L$57,7,FALSE)*(1+$B84)-HLOOKUP($B$54,'04_Wirtschaftlichkeit'!$E$44:$L$57,5,FALSE)) -> 0 | AX84: =AX$56*(-HLOOKUP($B$54,'04_Wirtschaftlichkeit'!$E$44:$L$57,7,FALSE)*(1+$B84)-HLOOKUP($B$54,'04_Wirtschaftlichkeit'!$E$44:$L$57,5,FALSE)) -> 0 | AY84: =AY$56*(-HLOOKUP($B$54,'04_Wirtschaftlichkeit'!$E$44:$L$57,7,FALSE)*(1+$B84)-HLOOKUP($B$54,'04_Wirtschaftlichkeit'!$E$44:$L$57,5,FALSE)) -> 0 | AZ84: =AZ$56*(-HLOOKUP($B$54,'04_Wirtschaftlichkeit'!$E$44:$L$57,7,FALSE)*(1+$B84)-HLOOKUP($B$54,'04_Wirtschaftlichkeit'!$E$44:$L$57,5,FALSE)) -> 0 | BA84: =BA$56*(-HLOOKUP($B$54,'04_Wirtschaftlichkeit'!$E$44:$L$57,7,FALSE)*(1+$B84)-HLOOKUP($B$54,'04_Wirtschaftlichkeit'!$E$44:$L$57,5,FALSE)) -> 0
